Workbook

Sheet Time Period Lookup (hidden)
A1: Month Number | B1: Month | C1: Beginning Period
A2: 1 | B2: Enero | C2: =VALUE(RIGHT('BS Accounts'!C9,2)) -> 2 | D2: =VLOOKUP(C2,$A$2:$B$13,2) -> Febrero
A3: 2 | B3: Febrero | C3: =IF(C2=12,1,C2+1) -> 3 | D3: =VLOOKUP(C3,$A$2:$B$13,2) -> Marzo
A4: 3 | B4: Marzo | C4: =IF(C3=12,1,C3+1) -> 4 | D4: Abril
A5: 4 | B5: Abril | C5: 5 | D5: Mayo
A6: 5 | B6: Mayo | C6: 6 | D6: Junio
A7: 6 | B7: Junio | C7: 7 | D7: Julio
A8: 7 | B8: Julio | C8: 8 | D8: Agosto
A9: 8 | B9: Agosto | C9: 9 | D9: Septiembre
A10: 9 | B10: Septiembre | C10: 10 | D10: Octubre
A11: 10 | B11: Octubre | C11: 11 | D11: Noviembre
A12: 11 | B12: Noviembre | C12: 12 | D12: Diciembre
A13: 12 | B13: Diciembre | C13: 1 | D13: Enero

Sheet BS Accounts (hidden)
C1: 476 | D1: 486 | E1: 496 | F1: 638 | G1: 639 | H1: 640 | I1: 660 | J1: 710 | K1: 712 | L1: 719 | M1: 721 | N1: 476 | O1: 486 | P1: 496 | Q1: 638 | R1: 639 | S1: 640 | T1: 660 | U1: 710 | V1: 712 | W1: 719 | X1: 721 | Y1: 476 | Z1: 486 | AA1: 496 | AB1: 638 | AC1: 639 | AD1: 640 | AE1: 660 | AF1: 710 | AG1: 712 | AH1: 719 | AI1: 721 | AJ1: 476 | AK1: 486 | AL1: 496 | AM1: 638 | AN1: 639 | AO1: 640 | AP1: 660 | AQ1: 710 | AR1: 712 | AS1: 719 | AT1: 721 | AU1: 476 | AV1: 486 | AW1: 496 | AX1: 638 | AY1: 639 | AZ1: 640 | BA1: 660 | BB1: 710 | BC1: 712 | BD1: 719 | BE1: 721 | BF1: 476 | BG1: 486 | BH1: 496 | BI1: 638 | BJ1: 639 | BK1: 640 | BL1: 660 | BM1: 710 | BN1: 712 | BO1: 719 | BP1: 721 | BQ1: 476 | BR1: 486 | BS1: 496 | BT1: 638 | BU1: 639 | BV1: 640 | BW1: 660 | BX1: 710 | BY1: 712 | BZ1: 719 | CA1: 721 | CB1: 476 | CC1: 486 | CD1: 496 | CE1: 638 | CF1: 639 | CG1: 640 | CH1: 660 | CI1: 710 | CJ1: 712 | CK1: 719 | CL1: 721 | CM1: 476 | CN1: 486 | CO1: 496 | CP1: 638 | CQ1: 639 | CR1: 640 | CS1: 660 | CT1: 710 | CU1: 712 | CV1: 719 | CW1: 721 | CX1: 476 | CY1: 486 | CZ1: 496 | DA1: 638 | DB1: 639 | DC1: 640 | DD1: 660 | DE1: 710 | DF1: 712 | DG1: 719 | DH1: 721 | DI1: 476 | DJ1: 486 | DK1: 496 | DL1: 638 | DM1: 639 | DN1: 640 | DO1: 660 | DP1: 710 | DQ1: 712 | DR1: 719 | DS1: 721 | DT1: 476 | DU1: 486 | DV1: 496 | DW1: 638 | DX1: 639 | DY1: 640 | DZ1: 660 | EA1: 710 | EB1: 712 | EC1: 719 | ED1: 721 | EE1: TOTLRECV | EF1: TOTLRECV | EG1: TOTLRECV | EH1: AMT | EI1: AMT | EJ1: AMT | EK1: AMT | EL1: AMT | EM1: AMT | EN1: AMT | EO1: AMT | EP1: TOTLRECV | EQ1: TOTLRECV | ER1: TOTLRECV | ES1: AMT | ET1: AMT | EU1: AMT | EV1: AMT | EW1: AMT | EX1: AMT | EY1: AMT | EZ1: AMT
C2: TOTLRECV | D2: TOTLRECV | E2: TOTLRECV | F2: AMT | G2: AMT | H2: AMT | I2: AMT | J2: AMT | K2: AMT | L2: AMT | M2: AMT | N2: TOTLRECV | O2: TOTLRECV | P2: TOTLRECV | Q2: AMT | R2: AMT | S2: AMT | T2: AMT | U2: AMT | V2: AMT | W2: AMT | X2: AMT | Y2: TOTLRECV | Z2: TOTLRECV | AA2: TOTLRECV | AB2: AMT | AC2: AMT | AD2: AMT | AE2: AMT | AF2: AMT | AG2: AMT | AH2: AMT | AI2: AMT | AJ2: TOTLRECV | AK2: TOTLRECV | AL2: TOTLRECV | AM2: AMT | AN2: AMT | AO2: AMT | AP2: AMT | AQ2: AMT | AR2: AMT | AS2: AMT | AT2: AMT | AU2: TOTLRECV | AV2: TOTLRECV | AW2: TOTLRECV | AX2: AMT | AY2: AMT | AZ2: AMT | BA2: AMT | BB2: AMT | BC2: AMT | BD2: AMT | BE2: AMT | BF2: TOTLRECV | BG2: TOTLRECV | BH2: TOTLRECV | BI2: AMT | BJ2: AMT | BK2: AMT | BL2: AMT | BM2: AMT | BN2: AMT | BO2: AMT | BP2: AMT | BQ2: TOTLRECV | BR2: TOTLRECV | BS2: TOTLRECV | BT2: AMT | BU2: AMT | BV2: AMT | BW2: AMT | BX2: AMT | BY2: AMT | BZ2: AMT | CA2: AMT | CB2: TOTLRECV | CC2: TOTLRECV | CD2: TOTLRECV | CE2: AMT | CF2: AMT | CG2: AMT | CH2: AMT | CI2: AMT | CJ2: AMT | CK2: AMT | CL2: AMT | CM2: TOTLRECV | CN2: TOTLRECV | CO2: TOTLRECV | CP2: AMT | CQ2: AMT | CR2: AMT | CS2: AMT | CT2: AMT | CU2: AMT | CV2: AMT | CW2: AMT | CX2: TOTLRECV | CY2: TOTLRECV | CZ2: TOTLRECV | DA2: AMT | DB2: AMT | DC2: AMT | DD2: AMT | DE2: AMT | DF2: AMT | DG2: AMT | DH2: AMT | DI2: TOTLRECV | DJ2: TOTLRECV | DK2: TOTLRECV | DL2: AMT | DM2: AMT | DN2: AMT | DO2: AMT | DP2: AMT | DQ2: AMT | DR2: AMT | DS2: AMT | DT2: TOTLRECV | DU2: TOTLRECV | DV2: TOTLRECV | DW2: AMT | DX2: AMT | DY2: AMT | DZ2: AMT | EA2: AMT | EB2: AMT | EC2: AMT | ED2: AMT | EE2: 00 | EF2: 00 | EG2: 00 | EH2: 00 | EI2: 00 | EJ2: 00 | EK2: 00 | EL2: 00 | EM2: 00 | EN2: 00 | EO2: 00 | EP2: 00 | EQ2: 00 | ER2: 00 | ES2: 00 | ET2: 00 | EU2: 00 | EV2: 00 | EW2: 00 | EX2: 00 | EY2: 00 | EZ2: 00
C3: 00 | D3: 00 | E3: 00 | F3: 00 | G3: 00 | H3: 00 | I3: 00 | J3: 00 | K3: 00 | L3: 00 | M3: 00 | N3: 00 | O3: 00 | P3: 00 | Q3: 00 | R3: 00 | S3: 00 | T3: 00 | U3: 00 | V3: 00 | W3: 00 | X3: 00 | Y3: 00 | Z3: 00 | AA3: 00 | AB3: 00 | AC3: 00 | AD3: 00 | AE3: 00 | AF3: 00 | AG3: 00 | AH3: 00 | AI3: 00 | AJ3: 00 | AK3: 00 | AL3: 00 | AM3: 00 | AN3: 00 | AO3: 00 | AP3: 00 | AQ3: 00 | AR3: 00 | AS3: 00 | AT3: 00 | AU3: 00 | AV3: 00 | AW3: 00 | AX3: 00 | AY3: 00 | AZ3: 00 | BA3: 00 | BB3: 00 | BC3: 00 | BD3: 00 | BE3: 00 | BF3: 00 | BG3: 00 | BH3: 00 | BI3: 00 | BJ3: 00 | BK3: 00 | BL3: 00 | BM3: 00 | BN3: 00 | BO3: 00 | BP3: 00 | BQ3: 00 | BR3: 00 | BS3: 00 | BT3: 00 | BU3: 00 | BV3: 00 | BW3: 00 | BX3: 00 | BY3: 00 | BZ3: 00 | CA3: 00 | CB3: 00 | CC3: 00 | CD3: 00 | CE3: 00 | CF3: 00 | CG3: 00 | CH3: 00 | CI3: 00 | CJ3: 00 | CK3: 00 | CL3: 00 | CM3: 00 | CN3: 00 | CO3: 00 | CP3: 00 | CQ3: 00 | CR3: 00 | CS3: 00 | CT3: 00 | CU3: 00 | CV3: 00 | CW3: 00 | CX3: 00 | CY3: 00 | CZ3: 00 | DA3: 00 | DB3: 00 | DC3: 00 | DD3: 00 | DE3: 00 | DF3: 00 | DG3: 00 | DH3: 00 | DI3: 00 | DJ3: 00 | DK3: 00 | DL3: 00 | DM3: 00 | DN3: 00 | DO3: 00 | DP3: 00 | DQ3: 00 | DR3: 00 | DS3: 00 | DT3: 00 | DU3: 00 | DV3: 00 | DW3: 00 | DX3: 00 | DY3: 00 | DZ3: 00 | EA3: 00 | EB3: 00 | EC3: 00 | ED3: 00 | EE3: 00 | EF3: 00 | EG3: 00 | EH3: 00 | EI3: 00 | EJ3: 00 | EK3: 00 | EL3: 00 | EM3: 00 | EN3: 00 | EO3: 00 | EP3: 00 | EQ3: 00 | ER3: 00 | ES3: 00 | ET3: 00 | EU3: 00 | EV3: 00 | EW3: 00 | EX3: 00 | EY3: 00 | EZ3: 00
C4: 00 | D4: 00 | E4: 00 | F4: 00 | G4: 00 | H4: 00 | I4: 00 | J4: 00 | K4: 00 | L4: 00 | M4: 00 | N4: 00 | O4: 00 | P4: 00 | Q4: 00 | R4: 00 | S4: 00 | T4: 00 | U4: 00 | V4: 00 | W4: 00 | X4: 00 | Y4: 00 | Z4: 00 | AA4: 00 | AB4: 00 | AC4: 00 | AD4: 00 | AE4: 00 | AF4: 00 | AG4: 00 | AH4: 00 | AI4: 00 | AJ4: 00 | AK4: 00 | AL4: 00 | AM4: 00 | AN4: 00 | AO4: 00 | AP4: 00 | AQ4: 00 | AR4: 00 | AS4: 00 | AT4: 00 | AU4: 00 | AV4: 00 | AW4: 00 | AX4: 00 | AY4: 00 | AZ4: 00 | BA4: 00 | BB4: 00 | BC4: 00 | BD4: 00 | BE4: 00 | BF4: 00 | BG4: 00 | BH4: 00 | BI4: 00 | BJ4: 00 | BK4: 00 | BL4: 00 | BM4: 00 | BN4: 00 | BO4: 00 | BP4: 00 | BQ4: 00 | BR4: 00 | BS4: 00 | BT4: 00 | BU4: 00 | BV4: 00 | BW4: 00 | BX4: 00 | BY4: 00 | BZ4: 00 | CA4: 00 | CB4: 00 | CC4: 00 | CD4: 00 | CE4: 00 | CF4: 00 | CG4: 00 | CH4: 00 | CI4: 00 | CJ4: 00 | CK4: 00 | CL4: 00 | CM4: 00 | CN4: 00 | CO4: 00 | CP4: 00 | CQ4: 00 | CR4: 00 | CS4: 00 | CT4: 00 | CU4: 00 | CV4: 00 | CW4: 00 | CX4: 00 | CY4: 00 | CZ4: 00 | DA4: 00 | DB4: 00 | DC4: 00 | DD4: 00 | DE4: 00 | DF4: 00 | DG4: 00 | DH4: 00 | DI4: 00 | DJ4: 00 | DK4: 00 | DL4: 00 | DM4: 00 | DN4: 00 | DO4: 00 | DP4: 00 | DQ4: 00 | DR4: 00 | DS4: 00 | DT4: 00 | DU4: 00 | DV4: 00 | DW4: 00 | DX4: 00 | DY4: 00 | DZ4: 00 | EA4: 00 | EB4: 00 | EC4: 00 | ED4: 00 | EE4: 210VEH | EF4: 220VEH | EG4: 220SVCPT | EH4: 261 | EI4: 262 | EJ4: 263 | EK4: 270 | EL4: 305 | EM4: 311 | EN4: 324 | EO4: 327 | EP4: 210VEH | EQ4: 220VEH | ER4: 220SVCPT | ES4: 261 | ET4: 262 | EU4: 263 | EV4: 270 | EW4: 305 | EX4: 311 | EY4: 324 | EZ4: 327
C5: 210VEH | D5: 220VEH | E5: 220SVCPT | F5: 261 | G5: 262 | H5: 263 | I5: 270 | J5: 305 | K5: 311 | L5: 324 | M5: 327 | N5: 210VEH | O5: 220VEH | P5: 220SVCPT | Q5: 261 | R5: 262 | S5: 263 | T5: 270 | U5: 305 | V5: 311 | W5: 324 | X5: 327 | Y5: 210VEH | Z5: 220VEH | AA5: 220SVCPT | AB5: 261 | AC5: 262 | AD5: 263 | AE5: 270 | AF5: 305 | AG5: 311 | AH5: 324 | AI5: 327 | AJ5: 210VEH | AK5: 220VEH | AL5: 220SVCPT | AM5: 261 | AN5: 262 | AO5: 263 | AP5: 270 | AQ5: 305 | AR5: 311 | AS5: 324 | AT5: 327 | AU5: 210VEH | AV5: 220VEH | AW5: 220SVCPT | AX5: 261 | AY5: 262 | AZ5: 263 | BA5: 270 | BB5: 305 | BC5: 311 | BD5: 324 | BE5: 327 | BF5: 210VEH | BG5: 220VEH | BH5: 220SVCPT | BI5: 261 | BJ5: 262 | BK5: 263 | BL5: 270 | BM5: 305 | BN5: 311 | BO5: 324 | BP5: 327 | BQ5: 210VEH | BR5: 220VEH | BS5: 220SVCPT | BT5: 261 | BU5: 262 | BV5: 263 | BW5: 270 | BX5: 305 | BY5: 311 | BZ5: 324 | CA5: 327 | CB5: 210VEH | CC5: 220VEH | CD5: 220SVCPT | CE5: 261 | CF5: 262 | CG5: 263 | CH5: 270 | CI5: 305 | CJ5: 311 | CK5: 324 | CL5: 327 | CM5: 210VEH | CN5: 220VEH | CO5: 220SVCPT | CP5: 261 | CQ5: 262 | CR5: 263 | CS5: 270 | CT5: 305 | CU5: 311 | CV5: 324 | CW5: 327 | CX5: 210VEH | CY5: 220VEH | CZ5: 220SVCPT | DA5: 261 | DB5: 262 | DC5: 263 | DD5: 270 | DE5: 305 | DF5: 311 | DG5: 324 | DH5: 327 | DI5: 210VEH | DJ5: 220VEH | DK5: 220SVCPT | DL5: 261 | DM5: 262 | DN5: 263 | DO5: 270 | DP5: 305 | DQ5: 311 | DR5: 324 | DS5: 327 | DT5: 210VEH | DU5: 220VEH | DV5: 220SVCPT | DW5: 261 | DX5: 262 | DY5: 263 | DZ5: 270 | EA5: 305 | EB5: 311 | EC5: 324 | ED5: 327 | EE5: TOTAL CONCESIONARIA | EF5: TOTAL CONCESIONARIA | EG5: TOTAL CONCESIONARIA | EH5: TOTAL CONCESIONARIA | EI5: TOTAL CONCESIONARIA | EJ5: TOTAL CONCESIONARIA | EK5: TOTAL CONCESIONARIA | EL5: TOTAL CONCESIONARIA | EM5: TOTAL CONCESIONARIA | EN5: TOTAL CONCESIONARIA | EO5: TOTAL CONCESIONARIA | EP5: TOTAL CONCESIONARIA | EQ5: TOTAL CONCESIONARIA | ER5: TOTAL CONCESIONARIA | ES5: TOTAL CONCESIONARIA | ET5: TOTAL CONCESIONARIA | EU5: TOTAL CONCESIONARIA | EV5: TOTAL CONCESIONARIA | EW5: TOTAL CONCESIONARIA | EX5: TOTAL CONCESIONARIA | EY5: TOTAL CONCESIONARIA | EZ5: TOTAL CONCESIONARIA
C6: TOTAL CONCESIONARIA | D6: TOTAL CONCESIONARIA | E6: TOTAL CONCESIONARIA | F6: TOTAL CONCESIONARIA | G6: TOTAL CONCESIONARIA | H6: TOTAL CONCESIONARIA | I6: TOTAL CONCESIONARIA | J6: TOTAL CONCESIONARIA | K6: TOTAL CONCESIONARIA | L6: TOTAL CONCESIONARIA | M6: TOTAL CONCESIONARIA | N6: TOTAL CONCESIONARIA | O6: TOTAL CONCESIONARIA | P6: TOTAL CONCESIONARIA | Q6: TOTAL CONCESIONARIA | R6: TOTAL CONCESIONARIA | S6: TOTAL CONCESIONARIA | T6: TOTAL CONCESIONARIA | U6: TOTAL CONCESIONARIA | V6: TOTAL CONCESIONARIA | W6: TOTAL CONCESIONARIA | X6: TOTAL CONCESIONARIA | Y6: TOTAL CONCESIONARIA | Z6: TOTAL CONCESIONARIA | AA6: TOTAL CONCESIONARIA | AB6: TOTAL CONCESIONARIA | AC6: TOTAL CONCESIONARIA | AD6: TOTAL CONCESIONARIA | AE6: TOTAL CONCESIONARIA | AF6: TOTAL CONCESIONARIA | AG6: TOTAL CONCESIONARIA | AH6: TOTAL CONCESIONARIA | AI6: TOTAL CONCESIONARIA | AJ6: TOTAL CONCESIONARIA | AK6: TOTAL CONCESIONARIA | AL6: TOTAL CONCESIONARIA | AM6: TOTAL CONCESIONARIA | AN6: TOTAL CONCESIONARIA | AO6: TOTAL CONCESIONARIA | AP6: TOTAL CONCESIONARIA | AQ6: TOTAL CONCESIONARIA | AR6: TOTAL CONCESIONARIA | AS6: TOTAL CONCESIONARIA | AT6: TOTAL CONCESIONARIA | AU6: TOTAL CONCESIONARIA | AV6: TOTAL CONCESIONARIA | AW6: TOTAL CONCESIONARIA | AX6: TOTAL CONCESIONARIA | AY6: TOTAL CONCESIONARIA | AZ6: TOTAL CONCESIONARIA | BA6: TOTAL CONCESIONARIA | BB6: TOTAL CONCESIONARIA | BC6: TOTAL CONCESIONARIA | BD6: TOTAL CONCESIONARIA | BE6: TOTAL CONCESIONARIA | BF6: TOTAL CONCESIONARIA | BG6: TOTAL CONCESIONARIA | BH6: TOTAL CONCESIONARIA | BI6: TOTAL CONCESIONARIA | BJ6: TOTAL CONCESIONARIA | BK6: TOTAL CONCESIONARIA | BL6: TOTAL CONCESIONARIA | BM6: TOTAL CONCESIONARIA | BN6: TOTAL CONCESIONARIA | BO6: TOTAL CONCESIONARIA | BP6: TOTAL CONCESIONARIA | BQ6: TOTAL CONCESIONARIA | BR6: TOTAL CONCESIONARIA | BS6: TOTAL CONCESIONARIA | BT6: TOTAL CONCESIONARIA | BU6: TOTAL CONCESIONARIA | BV6: TOTAL CONCESIONARIA | BW6: TOTAL CONCESIONARIA | BX6: TOTAL CONCESIONARIA | BY6: TOTAL CONCESIONARIA | BZ6: TOTAL CONCESIONARIA | CA6: TOTAL CONCESIONARIA | CB6: TOTAL CONCESIONARIA | CC6: TOTAL CONCESIONARIA | CD6: TOTAL CONCESIONARIA | CE6: TOTAL CONCESIONARIA | CF6: TOTAL CONCESIONARIA | CG6: TOTAL CONCESIONARIA | CH6: TOTAL CONCESIONARIA | CI6: TOTAL CONCESIONARIA | CJ6: TOTAL CONCESIONARIA | CK6: TOTAL CONCESIONARIA | CL6: TOTAL CONCESIONARIA | CM6: TOTAL CONCESIONARIA | CN6: TOTAL CONCESIONARIA | CO6: TOTAL CONCESIONARIA | CP6: TOTAL CONCESIONARIA | CQ6: TOTAL CONCESIONARIA | CR6: TOTAL CONCESIONARIA | CS6: TOTAL CONCESIONARIA | CT6: TOTAL CONCESIONARIA | CU6: TOTAL CONCESIONARIA | CV6: TOTAL CONCESIONARIA | CW6: TOTAL CONCESIONARIA | CX6: TOTAL CONCESIONARIA | CY6: TOTAL CONCESIONARIA | CZ6: TOTAL CONCESIONARIA | DA6: TOTAL CONCESIONARIA | DB6: TOTAL CONCESIONARIA | DC6: TOTAL CONCESIONARIA | DD6: TOTAL CONCESIONARIA | DE6: TOTAL CONCESIONARIA | DF6: TOTAL CONCESIONARIA | DG6: TOTAL CONCESIONARIA | DH6: TOTAL CONCESIONARIA | DI6: TOTAL CONCESIONARIA | DJ6: TOTAL CONCESIONARIA | DK6: TOTAL CONCESIONARIA | DL6: TOTAL CONCESIONARIA | DM6: TOTAL CONCESIONARIA | DN6: TOTAL CONCESIONARIA | DO6: TOTAL CONCESIONARIA | DP6: TOTAL CONCESIONARIA | DQ6: TOTAL CONCESIONARIA | DR6: TOTAL CONCESIONARIA | DS6: TOTAL CONCESIONARIA | DT6: TOTAL CONCESIONARIA | DU6: TOTAL CONCESIONARIA | DV6: TOTAL CONCESIONARIA | DW6: TOTAL CONCESIONARIA | DX6: TOTAL CONCESIONARIA | DY6: TOTAL CONCESIONARIA | DZ6: TOTAL CONCESIONARIA | EA6: TOTAL CONCESIONARIA | EB6: TOTAL CONCESIONARIA | EC6: TOTAL CONCESIONARIA | ED6: TOTAL CONCESIONARIA | EE6: NOTES RECEIVABLES 210 - VEHICLES | EF6: ACCOUNTS RECEIVABLES 220 - VEHICLES | EG6: ACCOUNTS RECEIVABLES 220 - MECHANICAL, BODY & PARTS | EH6: FACTORY RECEIVABLES | EI6: DUE FROM FINANCE COMPANIES | EJ6: WARRANTY CLAIMS | EK6: PREPAID EXPENSES - TAXES | EL6: WARRANTY CLAIMS ADVANCE | EM6: NOTES PAYABLE-USED VEHICLES | EN6: SALES TAXES PAYABLE | EO6: INCOME TAXES PAYABLE | EP6: NOTES RECEIVABLES 210 - VEHICLES | EQ6: ACCOUNTS RECEIVABLES 220 - VEHICLES | ER6: ACCOUNTS RECEIVABLES 220 - MECHANICAL, BODY & PARTS | ES6: FACTORY RECEIVABLES | ET6: DUE FROM FINANCE COMPANIES | EU6: WARRANTY CLAIMS | EV6: PREPAID EXPENSES - TAXES | EW6: WARRANTY CLAIMS ADVANCE | EX6: NOTES PAYABLE-USED VEHICLES | EY6: SALES TAXES PAYABLE | EZ6: INCOME TAXES PAYABLE
C7: NOTES RECEIVABLES 210 - VEHICLES | D7: ACCOUNTS RECEIVABLES 220 - VEHICLES | E7: ACCOUNTS RECEIVABLES 220 - MECHANICAL, BODY & PARTS | F7: FACTORY RECEIVABLES | G7: DUE FROM FINANCE COMPANIES | H7: WARRANTY CLAIMS | I7: PREPAID EXPENSES - TAXES | J7: WARRANTY CLAIMS ADVANCE | K7: NOTES PAYABLE-USED VEHICLES | L7: SALES TAXES PAYABLE | M7: INCOME TAXES PAYABLE | N7: NOTES RECEIVABLES 210 - VEHICLES | O7: ACCOUNTS RECEIVABLES 220 - VEHICLES | P7: ACCOUNTS RECEIVABLES 220 - MECHANICAL, BODY & PARTS | Q7: FACTORY RECEIVABLES | R7: DUE FROM FINANCE COMPANIES | S7: WARRANTY CLAIMS | T7: PREPAID EXPENSES - TAXES | U7: WARRANTY CLAIMS ADVANCE | V7: NOTES PAYABLE-USED VEHICLES | W7: SALES TAXES PAYABLE | X7: INCOME TAXES PAYABLE | Y7: NOTES RECEIVABLES 210 - VEHICLES | Z7: ACCOUNTS RECEIVABLES 220 - VEHICLES | AA7: ACCOUNTS RECEIVABLES 220 - MECHANICAL, BODY & PARTS | AB7: FACTORY RECEIVABLES | AC7: DUE FROM FINANCE COMPANIES | AD7: WARRANTY CLAIMS | AE7: PREPAID EXPENSES - TAXES | AF7: WARRANTY CLAIMS ADVANCE | AG7: NOTES PAYABLE-USED VEHICLES | AH7: SALES TAXES PAYABLE | AI7: INCOME TAXES PAYABLE | AJ7: NOTES RECEIVABLES 210 - VEHICLES | AK7: ACCOUNTS RECEIVABLES 220 - VEHICLES | AL7: ACCOUNTS RECEIVABLES 220 - MECHANICAL, BODY & PARTS | AM7: FACTORY RECEIVABLES | AN7: DUE FROM FINANCE COMPANIES | AO7: WARRANTY CLAIMS | AP7: PREPAID EXPENSES - TAXES | AQ7: WARRANTY CLAIMS ADVANCE | AR7: NOTES PAYABLE-USED VEHICLES | AS7: SALES TAXES PAYABLE | AT7: INCOME TAXES PAYABLE | AU7: NOTES RECEIVABLES 210 - VEHICLES | AV7: ACCOUNTS RECEIVABLES 220 - VEHICLES | AW7: ACCOUNTS RECEIVABLES 220 - MECHANICAL, BODY & PARTS | AX7: FACTORY RECEIVABLES | AY7: DUE FROM FINANCE COMPANIES | AZ7: WARRANTY CLAIMS | BA7: PREPAID EXPENSES - TAXES | BB7: WARRANTY CLAIMS ADVANCE | BC7: NOTES PAYABLE-USED VEHICLES | BD7: SALES TAXES PAYABLE | BE7: INCOME TAXES PAYABLE | BF7: NOTES RECEIVABLES 210 - VEHICLES | BG7: ACCOUNTS RECEIVABLES 220 - VEHICLES | BH7: ACCOUNTS RECEIVABLES 220 - MECHANICAL, BODY & PARTS | BI7: FACTORY RECEIVABLES | BJ7: DUE FROM FINANCE COMPANIES | BK7: WARRANTY CLAIMS | BL7: PREPAID EXPENSES - TAXES | BM7: WARRANTY CLAIMS ADVANCE | BN7: NOTES PAYABLE-USED VEHICLES | BO7: SALES TAXES PAYABLE | BP7: INCOME TAXES PAYABLE | BQ7: NOTES RECEIVABLES 210 - VEHICLES | BR7: ACCOUNTS RECEIVABLES 220 - VEHICLES | BS7: ACCOUNTS RECEIVABLES 220 - MECHANICAL, BODY & PARTS | BT7: FACTORY RECEIVABLES | BU7: DUE FROM FINANCE COMPANIES | BV7: WARRANTY CLAIMS | BW7: PREPAID EXPENSES - TAXES | BX7: WARRANTY CLAIMS ADVANCE | BY7: NOTES PAYABLE-USED VEHICLES | BZ7: SALES TAXES PAYABLE | CA7: INCOME TAXES PAYABLE | CB7: NOTES RECEIVABLES 210 - VEHICLES | CC7: ACCOUNTS RECEIVABLES 220 - VEHICLES | CD7: ACCOUNTS RECEIVABLES 220 - MECHANICAL, BODY & PARTS | CE7: FACTORY RECEIVABLES | CF7: DUE FROM FINANCE COMPANIES | CG7: WARRANTY CLAIMS | CH7: PREPAID EXPENSES - TAXES | CI7: WARRANTY CLAIMS ADVANCE | CJ7: NOTES PAYABLE-USED VEHICLES | CK7: SALES TAXES PAYABLE | CL7: INCOME TAXES PAYABLE | CM7: NOTES RECEIVABLES 210 - VEHICLES | CN7: ACCOUNTS RECEIVABLES 220 - VEHICLES | CO7: ACCOUNTS RECEIVABLES 220 - MECHANICAL, BODY & PARTS | CP7: FACTORY RECEIVABLES | CQ7: DUE FROM FINANCE COMPANIES | CR7: WARRANTY CLAIMS | CS7: PREPAID EXPENSES - TAXES | CT7: WARRANTY CLAIMS ADVANCE | CU7: NOTES PAYABLE-USED VEHICLES | CV7: SALES TAXES PAYABLE | CW7: INCOME TAXES PAYABLE | CX7: NOTES RECEIVABLES 210 - VEHICLES | CY7: ACCOUNTS RECEIVABLES 220 - VEHICLES | CZ7: ACCOUNTS RECEIVABLES 220 - MECHANICAL, BODY & PARTS | DA7: FACTORY RECEIVABLES | DB7: DUE FROM FINANCE COMPANIES | DC7: WARRANTY CLAIMS | DD7: PREPAID EXPENSES - TAXES | DE7: WARRANTY CLAIMS ADVANCE | DF7: NOTES PAYABLE-USED VEHICLES | DG7: SALES TAXES PAYABLE | DH7: INCOME TAXES PAYABLE | DI7: NOTES RECEIVABLES 210 - VEHICLES | DJ7: ACCOUNTS RECEIVABLES 220 - VEHICLES | DK7: ACCOUNTS RECEIVABLES 220 - MECHANICAL, BODY & PARTS | DL7: FACTORY RECEIVABLES | DM7: DUE FROM FINANCE COMPANIES | DN7: WARRANTY CLAIMS | DO7: PREPAID EXPENSES - TAXES | DP7: WARRANTY CLAIMS ADVANCE | DQ7: NOTES PAYABLE-USED VEHICLES | DR7: SALES TAXES PAYABLE | DS7: INCOME TAXES PAYABLE | DT7: NOTES RECEIVABLES 210 - VEHICLES | DU7: ACCOUNTS RECEIVABLES 220 - VEHICLES | DV7: ACCOUNTS RECEIVABLES 220 - MECHANICAL, BODY & PARTS | DW7: FACTORY RECEIVABLES | DX7: DUE FROM FINANCE COMPANIES | DY7: WARRANTY CLAIMS | DZ7: PREPAID EXPENSES - TAXES | EA7: WARRANTY CLAIMS ADVANCE | EB7: NOTES PAYABLE-USED VEHICLES | EC7: SALES TAXES PAYABLE | ED7: INCOME TAXES PAYABLE | EE7: 00-00-210VEH-TOTLRECV-CURR | EF7: 00-00-220VEH-TOTLRECV-CURR | EG7: 00-00-220SVCPT-TOTLRECV-CURR | EH7: 00-00-261-AMT-CURR | EI7: 00-00-262-AMT-CURR | EJ7: 00-00-263-AMT-CURR | EK7: 00-00-270-AMT-CURR | EL7: 00-00-305-AMT-CURR | EM7: 00-00-311-AMT-CURR | EN7: 00-00-324-AMT-CURR | EO7: 00-00-327-AMT-CURR | EP7: 00-00-210VEH-TOTLRECV-CURR | EQ7: 00-00-220VEH-TOTLRECV-CURR | ER7: 00-00-220SVCPT-TOTLRECV-CURR | ES7: 00-00-261-AMT-CURR | ET7: 00-00-262-AMT-CURR | EU7: 00-00-263-AMT-CURR | EV7: 00-00-270-AMT-CURR | EW7: 00-00-305-AMT-CURR | EX7: 00-00-311-AMT-CURR | EY7: 00-00-324-AMT-CURR | EZ7: 00-00-327-AMT-CURR
C8: 00-00-210VEH-TOTLRECV-CURR | D8: 00-00-220VEH-TOTLRECV-CURR | E8: 00-00-220SVCPT-TOTLRECV-CURR | F8: 00-00-261-AMT-CURR | G8: 00-00-262-AMT-CURR | H8: 00-00-263-AMT-CURR | I8: 00-00-270-AMT-CURR | J8: 00-00-305-AMT-CURR | K8: 00-00-311-AMT-CURR | L8: 00-00-324-AMT-CURR | M8: 00-00-327-AMT-CURR | N8: 00-00-210VEH-TOTLRECV-CURR | O8: 00-00-220VEH-TOTLRECV-CURR | P8: 00-00-220SVCPT-TOTLRECV-CURR | Q8: 00-00-261-AMT-CURR | R8: 00-00-262-AMT-CURR | S8: 00-00-263-AMT-CURR | T8: 00-00-270-AMT-CURR | U8: 00-00-305-AMT-CURR | V8: 00-00-311-AMT-CURR | W8: 00-00-324-AMT-CURR | X8: 00-00-327-AMT-CURR | Y8: 00-00-210VEH-TOTLRECV-CURR | Z8: 00-00-220VEH-TOTLRECV-CURR | AA8: 00-00-220SVCPT-TOTLRECV-CURR | AB8: 00-00-261-AMT-CURR | AC8: 00-00-262-AMT-CURR | AD8: 00-00-263-AMT-CURR | AE8: 00-00-270-AMT-CURR | AF8: 00-00-305-AMT-CURR | AG8: 00-00-311-AMT-CURR | AH8: 00-00-324-AMT-CURR | AI8: 00-00-327-AMT-CURR | AJ8: 00-00-210VEH-TOTLRECV-CURR | AK8: 00-00-220VEH-TOTLRECV-CURR | AL8: 00-00-220SVCPT-TOTLRECV-CURR | AM8: 00-00-261-AMT-CURR | AN8: 00-00-262-AMT-CURR | AO8: 00-00-263-AMT-CURR | AP8: 00-00-270-AMT-CURR | AQ8: 00-00-305-AMT-CURR | AR8: 00-00-311-AMT-CURR | AS8: 00-00-324-AMT-CURR | AT8: 00-00-327-AMT-CURR | AU8: 00-00-210VEH-TOTLRECV-CURR | AV8: 00-00-220VEH-TOTLRECV-CURR | AW8: 00-00-220SVCPT-TOTLRECV-CURR | AX8: 00-00-261-AMT-CURR | AY8: 00-00-262-AMT-CURR | AZ8: 00-00-263-AMT-CURR | BA8: 00-00-270-AMT-CURR | BB8: 00-00-305-AMT-CURR | BC8: 00-00-311-AMT-CURR | BD8: 00-00-324-AMT-CURR | BE8: 00-00-327-AMT-CURR | BF8: 00-00-210VEH-TOTLRECV-CURR | BG8: 00-00-220VEH-TOTLRECV-CURR | BH8: 00-00-220SVCPT-TOTLRECV-CURR | BI8: 00-00-261-AMT-CURR | BJ8: 00-00-262-AMT-CURR | BK8: 00-00-263-AMT-CURR | BL8: 00-00-270-AMT-CURR | BM8: 00-00-305-AMT-CURR | BN8: 00-00-311-AMT-CURR | BO8: 00-00-324-AMT-CURR | BP8: 00-00-327-AMT-CURR | BQ8: 00-00-210VEH-TOTLRECV-CURR | BR8: 00-00-220VEH-TOTLRECV-CURR | BS8: 00-00-220SVCPT-TOTLRECV-CURR | BT8: 00-00-261-AMT-CURR | BU8: 00-00-262-AMT-CURR | BV8: 00-00-263-AMT-CURR | BW8: 00-00-270-AMT-CURR | BX8: 00-00-305-AMT-CURR | BY8: 00-00-311-AMT-CURR | BZ8: 00-00-324-AMT-CURR | CA8: 00-00-327-AMT-CURR | CB8: 00-00-210VEH-TOTLRECV-CURR | CC8: 00-00-220VEH-TOTLRECV-CURR | CD8: 00-00-220SVCPT-TOTLRECV-CURR | CE8: 00-00-261-AMT-CURR | CF8: 00-00-262-AMT-CURR | CG8: 00-00-263-AMT-CURR | CH8: 00-00-270-AMT-CURR | CI8: 00-00-305-AMT-CURR | CJ8: 00-00-311-AMT-CURR | CK8: 00-00-324-AMT-CURR | CL8: 00-00-327-AMT-CURR | CM8: 00-00-210VEH-TOTLRECV-CURR | CN8: 00-00-220VEH-TOTLRECV-CURR | CO8: 00-00-220SVCPT-TOTLRECV-CURR | CP8: 00-00-261-AMT-CURR | CQ8: 00-00-262-AMT-CURR | CR8: 00-00-263-AMT-CURR | CS8: 00-00-270-AMT-CURR | CT8: 00-00-305-AMT-CURR | CU8: 00-00-311-AMT-CURR | CV8: 00-00-324-AMT-CURR | CW8: 00-00-327-AMT-CURR | CX8: 00-00-210VEH-TOTLRECV-CURR | CY8: 00-00-220VEH-TOTLRECV-CURR | CZ8: 00-00-220SVCPT-TOTLRECV-CURR | DA8: 00-00-261-AMT-CURR | DB8: 00-00-262-AMT-CURR | DC8: 00-00-263-AMT-CURR | DD8: 00-00-270-AMT-CURR | DE8: 00-00-305-AMT-CURR | DF8: 00-00-311-AMT-CURR | DG8: 00-00-324-AMT-CURR | DH8: 00-00-327-AMT-CURR | DI8: 00-00-210VEH-TOTLRECV-CURR | DJ8: 00-00-220VEH-TOTLRECV-CURR | DK8: 00-00-220SVCPT-TOTLRECV-CURR | DL8: 00-00-261-AMT-CURR | DM8: 00-00-262-AMT-CURR | DN8: 00-00-263-AMT-CURR | DO8: 00-00-270-AMT-CURR | DP8: 00-00-305-AMT-CURR | DQ8: 00-00-311-AMT-CURR | DR8: 00-00-324-AMT-CURR | DS8: 00-00-327-AMT-CURR | DT8: 00-00-210VEH-TOTLRECV-CURR | DU8: 00-00-220VEH-TOTLRECV-CURR | DV8: 00-00-220SVCPT-TOTLRECV-CURR | DW8: 00-00-261-AMT-CURR | DX8: 00-00-262-AMT-CURR | DY8: 00-00-263-AMT-CURR | DZ8: 00-00-270-AMT-CURR | EA8: 00-00-305-AMT-CURR | EB8: 00-00-311-AMT-CURR | EC8: 00-00-324-AMT-CURR | ED8: 00-00-327-AMT-CURR | EE8: 476 | EF8: 486 | EG8: 496 | EH8: 638 | EI8: 639 | EJ8: 640 | EK8: 660 | EL8: 710 | EM8: 712 | EN8: 719 | EO8: 721 | EP8: 476 | EQ8: 486 | ER8: 496 | ES8: 638 | ET8: 639 | EU8: 640 | EV8: 660 | EW8: 710 | EX8: 712 | EY8: 719 | EZ8: 721
C9: 201702 | D9: 201702 | E9: 201702 | F9: 201702 | G9: 201702 | H9: 201702 | I9: 201702 | J9: 201702 | K9: 201702 | L9: 201702 | M9: 201702 | N9: 201703 | O9: 201703 | P9: 201703 | Q9: 201703 | R9: 201703 | S9: 201703 | T9: 201703 | U9: 201703 | V9: 201703 | W9: 201703 | X9: 201703 | Y9: 201704 | Z9: 201704 | AA9: 201704 | AB9: 201704 | AC9: 201704 | AD9: 201704 | AE9: 201704 | AF9: 201704 | AG9: 201704 | AH9: 201704 | AI9: 201704 | AJ9: 201705 | AK9: 201705 | AL9: 201705 | AM9: 201705 | AN9: 201705 | AO9: 201705 | AP9: 201705 | AQ9: 201705 | AR9: 201705 | AS9: 201705 | AT9: 201705 | AU9: 201706 | AV9: 201706 | AW9: 201706 | AX9: 201706 | AY9: 201706 | AZ9: 201706 | BA9: 201706 | BB9: 201706 | BC9: 201706 | BD9: 201706 | BE9: 201706 | BF9: 201707 | BG9: 201707 | BH9: 201707 | BI9: 201707 | BJ9: 201707 | BK9: 201707 | BL9: 201707 | BM9: 201707 | BN9: 201707 | BO9: 201707 | BP9: 201707 | BQ9: 201708 | BR9: 201708 | BS9: 201708 | BT9: 201708 | BU9: 201708 | BV9: 201708 | BW9: 201708 | BX9: 201708 | BY9: 201708 | BZ9: 201708 | CA9: 201708 | CB9: 201709 | CC9: 201709 | CD9: 201709 | CE9: 201709 | CF9: 201709 | CG9: 201709 | CH9: 201709 | CI9: 201709 | CJ9: 201709 | CK9: 201709 | CL9: 201709 | CM9: 201710 | CN9: 201710 | CO9: 201710 | CP9: 201710 | CQ9: 201710 | CR9: 201710 | CS9: 201710 | CT9: 201710 | CU9: 201710 | CV9: 201710 | CW9: 201710 | CX9: 201711 | CY9: 201711 | CZ9: 201711 | DA9: 201711 | DB9: 201711 | DC9: 201711 | DD9: 201711 | DE9: 201711 | DF9: 201711 | DG9: 201711 | DH9: 201711 | DI9: 201712 | DJ9: 201712 | DK9: 201712 | DL9: 201712 | DM9: 201712 | DN9: 201712 | DO9: 201712 | DP9: 201712 | DQ9: 201712 | DR9: 201712 | DS9: 201712 | DT9: 201801 | DU9: 201801 | DV9: 201801 | DW9: 201801 | DX9: 201801 | DY9: 201801 | DZ9: 201801 | EA9: 201801 | EB9: 201801 | EC9: 201801 | ED9: 201801
A10: Dealership | C10: Dealer YTD Reported Amount | D10: Dealer YTD Reported Amount | E10: Dealer YTD Reported Amount | F10: Dealer YTD Reported Amount | G10: Dealer YTD Reported Amount | H10: Dealer YTD Reported Amount | I10: Dealer YTD Reported Amount | J10: Dealer YTD Reported Amount | K10: Dealer YTD Reported Amount | L10: Dealer YTD Reported Amount | M10: Dealer YTD Reported Amount | N10: Dealer YTD Reported Amount | O10: Dealer YTD Reported Amount | P10: Dealer YTD Reported Amount | Q10: Dealer YTD Reported Amount | R10: Dealer YTD Reported Amount | S10: Dealer YTD Reported Amount | T10: Dealer YTD Reported Amount | U10: Dealer YTD Reported Amount | V10: Dealer YTD Reported Amount | W10: Dealer YTD Reported Amount | X10: Dealer YTD Reported Amount | Y10: Dealer YTD Reported Amount | Z10: Dealer YTD Reported Amount | AA10: Dealer YTD Reported Amount | AB10: Dealer YTD Reported Amount | AC10: Dealer YTD Reported Amount | AD10: Dealer YTD Reported Amount | AE10: Dealer YTD Reported Amount | AF10: Dealer YTD Reported Amount | AG10: Dealer YTD Reported Amount | AH10: Dealer YTD Reported Amount | AI10: Dealer YTD Reported Amount | AJ10: Dealer YTD Reported Amount | AK10: Dealer YTD Reported Amount | AL10: Dealer YTD Reported Amount | AM10: Dealer YTD Reported Amount | AN10: Dealer YTD Reported Amount | AO10: Dealer YTD Reported Amount | AP10: Dealer YTD Reported Amount | AQ10: Dealer YTD Reported Amount | AR10: Dealer YTD Reported Amount | AS10: Dealer YTD Reported Amount | AT10: Dealer YTD Reported Amount | AU10: Dealer YTD Reported Amount | AV10: Dealer YTD Reported Amount | AW10: Dealer YTD Reported Amount | AX10: Dealer YTD Reported Amount | AY10: Dealer YTD Reported Amount | AZ10: Dealer YTD Reported Amount | BA10: Dealer YTD Reported Amount | BB10: Dealer YTD Reported Amount | BC10: Dealer YTD Reported Amount | BD10: Dealer YTD Reported Amount | BE10: Dealer YTD Reported Amount | BF10: Dealer YTD Reported Amount | BG10: Dealer YTD Reported Amount | BH10: Dealer YTD Reported Amount | BI10: Dealer YTD Reported Amount | BJ10: Dealer YTD Reported Amount | BK10: Dealer YTD Reported Amount | BL10: Dealer YTD Reported Amount | BM10: Dealer YTD Reported Amount | BN10: Dealer YTD Reported Amount | BO10: Dealer YTD Reported Amount | BP10: Dealer YTD Reported Amount | BQ10: Dealer YTD Reported Amount | BR10: Dealer YTD Reported Amount | BS10: Dealer YTD Reported Amount | BT10: Dealer YTD Reported Amount | BU10: Dealer YTD Reported Amount | BV10: Dealer YTD Reported Amount | BW10: Dealer YTD Reported Amount | BX10: Dealer YTD Reported Amount | BY10: Dealer YTD Reported Amount | BZ10: Dealer YTD Reported Amount | CA10: Dealer YTD Reported Amount | CB10: Dealer YTD Reported Amount | CC10: Dealer YTD Reported Amount | CD10: Dealer YTD Reported Amount | CE10: Dealer YTD Reported Amount | CF10: Dealer YTD Reported Amount | CG10: Dealer YTD Reported Amount | CH10: Dealer YTD Reported Amount | CI10: Dealer YTD Reported Amount | CJ10: Dealer YTD Reported Amount | CK10: Dealer YTD Reported Amount | CL10: Dealer YTD Reported Amount | CM10: Dealer YTD Reported Amount | CN10: Dealer YTD Reported Amount | CO10: Dealer YTD Reported Amount | CP10: Dealer YTD Reported Amount | CQ10: Dealer YTD Reported Amount | CR10: Dealer YTD Reported Amount | CS10: Dealer YTD Reported Amount | CT10: Dealer YTD Reported Amount | CU10: Dealer YTD Reported Amount | CV10: Dealer YTD Reported Amount | CW10: Dealer YTD Reported Amount | CX10: Dealer YTD Reported Amount | CY10: Dealer YTD Reported Amount | CZ10: Dealer YTD Reported Amount | DA10: Dealer YTD Reported Amount | DB10: Dealer YTD Reported Amount | DC10: Dealer YTD Reported Amount | DD10: Dealer YTD Reported Amount | DE10: Dealer YTD Reported Amount | DF10: Dealer YTD Reported Amount | DG10: Dealer YTD Reported Amount | DH10: Dealer YTD Reported Amount | DI10: Dealer YTD Reported Amount | DJ10: Dealer YTD Reported Amount | DK10: Dealer YTD Reported Amount | DL10: Dealer YTD Reported Amount | DM10: Dealer YTD Reported Amount | DN10: Dealer YTD Reported Amount | DO10: Dealer YTD Reported Amount | DP10: Dealer YTD Reported Amount | DQ10: Dealer YTD Reported Amount | DR10: Dealer YTD Reported Amount | DS10: Dealer YTD Reported Amount | DT10: Dealer YTD Reported Amount | DU10: Dealer YTD Reported Amount | DV10: Dealer YTD Reported Amount | DW10: Dealer YTD Reported Amount | DX10: Dealer YTD Reported Amount | DY10: Dealer YTD Reported Amount | DZ10: Dealer YTD Reported Amount | EA10: Dealer YTD Reported Amount | EB10: Dealer YTD Reported Amount | EC10: Dealer YTD Reported Amount | ED10: Dealer YTD Reported Amount | EE10: 135 | EF10: 136 | EG10: 137 | EH10: 138 | EI10: 139 | EJ10: 140 | EK10: 141 | EL10: 142 | EM10: 143 | EN10: 144 | EO10: 145 | EP10: 146 | EQ10: 147 | ER10: 148 | ES10: 149 | ET10: 150 | EU10: 151 | EV10: 152 | EW10: 153 | EX10: 154 | EY10: 155 | EZ10: 156
A11: 122112 | B11: QUERETARO MOTORS, S.A. | C11: 1250100 | D11: 19207562 | E11: 4640233 | F11: 895094 | G11: 8282263 | H11: 1478708 | I11: 1364446 | L11: 433985 | N11: 1250100 | O11: 20397354 | P11: 4795098 | Q11: 673725 | R11: 9302760 | S11: 1500099 | T11: 1815093 | W11: 411042 | Y11: 1250100 | Z11: 20567982 | AA11: 4880855 | AB11: 547373 | AC11: 9410577 | AD11: 1331748 | AE11: 1817478 | AH11: 585297 | AJ11: 757229 | AK11: 24402811 | AL11: 3930527 | AM11: 210888 | AN11: 10339331 | AO11: 1100920 | AP11: 1806059 | AS11: 556743 | AT11: 102827 | AU11: 757229 | AV11: 19525345 | AW11: 5059963 | AX11: 560091 | AY11: 9251377 | AZ11: 1347323 | BA11: 2026407 | BD11: 412691 | BE11: 104369 | BF11: 757229 | BG11: 17447415 | BH11: 5533140 | BI11: 481908 | BJ11: 9319860 | BK11: 1902715 | BL11: 2027997 | BO11: 571692 | BP11: 112581 | BQ11: 1058766 | BR11: 19807300 | BS11: 4742174 | BT11: 307344 | BU11: 9337864 | BV11: 1471712 | BW11: 2028729 | BZ11: 346828 | CA11: 101707 | CB11: 1058766 | CC11: 20153458 | CD11: 5944633 | CE11: 485282 | CF11: 9924697 | CG11: 1102235 | CH11: 2029061 | CK11: 551513 | CL11: 114558 | CM11: 1058766 | CN11: 19710722 | CO11: 6618528 | CP11: 558780 | CQ11: 9604626 | CR11: 1204241 | CS11: 2029061 | CV11: 455504 | CW11: 83122 | CX11: 1058766 | CY11: 22324589 | CZ11: 6203681 | DA11: 543293 | DB11: 9647894 | DC11: 1737824 | DD11: 2029410 | DG11: 511629 | DH11: 95677 | DI11: 1058766 | DJ11: 20658418 | DK11: 5338600 | DL11: 399186 | DM11: 9741942 | DN11: 1231345 | DO11: 2030785 | DR11: 489822 | DS11: 108981 | DU11: 16403392 | DV11: 7173781 | DW11: 233205 | DX11: 9486736 | DY11: 1478386 | DZ11: 2030859 | EC11: 282537 | EE11: =(C11+N11+Y11+AJ11+AU11+BF11+BQ11+CB11+CM11+CX11+DI11+DT11) -> 11315817 | EF11: =(D11+O11+Z11+AK11+AV11+BG11+BR11+CC11+CN11+CY11+DJ11+DU11) -> 240606348 | EG11: =(E11+P11+AA11+AL11+AW11+BH11+BS11+CD11+CO11+CZ11+DK11+DV11) -> 64861213 | EH11: 5896169 | EI11: 113649927 | EJ11: 16887256 | EK11: 23035385 | EL11: 0 | EM11: 0 | EN11: 5609283 | EO11: 823822 | EP11: =IFERROR((C11+N11+Y11+AJ11+AU11+BF11+BQ11+CB11+CM11+CX11+DI11+DT11)/ROUND(12/VLOOKUP($A11, Annualization!$A$3:$C$323,3,FALSE),0),0) -> 942984.75 | EQ11: =IFERROR((D11+O11+Z11+AK11+AV11+BG11+BR11+CC11+CN11+CY11+DJ11+DU11)/ROUND(12/VLOOKUP($A11, Annualization!$A$3:$C$323,3,FALSE),0),0) -> 20050529 | ER11: =IFERROR((E11+P11+AA11+AL11+AW11+BH11+BS11+CD11+CO11+CZ11+DK11+DV11)/ROUND(12/VLOOKUP($A11, Annualization!$A$3:$C$323,3,FALSE),0),0) -> 5405101.083 | ES11: =IFERROR((F11+Q11+AB11+AM11+AX11+BI11+BT11+CE11+CP11+DA11+DL11+DW11)/ROUND(12/VLOOKUP($A11, Annualization!$A$3:$C$323,3,FALSE),0),0) -> 491347.4167 | ET11: =IFERROR((G11+R11+AC11+AN11+AY11+BJ11+BU11+CF11+CQ11+DB11+DM11+DX11)/ROUND(12/VLOOKUP($A11, Annualization!$A$3:$C$323,3,FALSE),0),0) -> 9470827.25 | EU11: =IFERROR((H11+S11+AD11+AO11+AZ11+BK11+BV11+CG11+CR11+DC11+DN11+DY11)/ROUND(12/VLOOKUP($A11, Annualization!$A$3:$C$323,3,FALSE),0),0) -> 1407271.333 | EV11: =IFERROR((I11+T11+AE11+AP11+BA11+BL11+BW11+CH11+CS11+DD11+DO11+DZ11)/ROUND(12/VLOOKUP($A11, Annualization!$A$3:$C$323,3,FALSE),0),0) -> 1919615.417 | EW11: =IFERROR((J11+U11+AF11+AQ11+BB11+BM11+BX11+CI11+CT11+DE11+DP11+EA11)/ROUND(12/VLOOKUP($A11, Annualization!$A$3:$C$323,3,FALSE),0),0) -> 0 | EX11: =IFERROR((K11+V11+AG11+AR11+BC11+BN11+BY11+CJ11+CU11+DF11+DQ11+EB11)/ROUND(12/VLOOKUP($A11, Annualization!$A$3:$C$323,3,FALSE),0),0) -> 0 | EY11: =IFERROR((L11+W11+AH11+AS11+BD11+BO11+BZ11+CK11+CV11+DG11+DR11+EC11)/ROUND(12/VLOOKUP($A11, Annualization!$A$3:$C$323,3,FALSE),0),0) -> 467440.25 | EZ11: =IFERROR((M11+X11+AI11+AT11+BE11+BP11+CA11+CL11+CW11+DH11+DS11+ED11)/ROUND(12/VLOOKUP($A11, Annualization!$A$3:$C$323,3,FALSE),0),0) -> 68651.83333
EE12: =(C12+N12+Y12+AJ12+AU12+BF12+BQ12+CB12+CM12+CX12+DI12+DT12) -> 0 | EF12: 0 | EG12: 0 | EH12: 0 | EI12: 0 | EJ12: 0 | EK12: 0 | EL12: 0 | EM12: 0 | EN12: 0 | EO12: 0 | EP12: =IFERROR((C12+N12+Y12+AJ12+AU12+BF12+BQ12+CB12+CM12+CX12+DI12+DT12)/ROUND(12/VLOOKUP($A12, Annualization!$A$3:$C$323,3,FALSE),0),0) -> 0 | EQ12: =IFERROR((D12+O12+Z12+AK12+AV12+BG12+BR12+CC12+CN12+CY12+DJ12+DU12)/ROUND(12/VLOOKUP($A12, Annualization!$A$3:$C$323,3,FALSE),0),0) -> 0 | ER12: =IFERROR((E12+P12+AA12+AL12+AW12+BH12+BS12+CD12+CO12+CZ12+DK12+DV12)/ROUND(12/VLOOKUP($A12, Annualization!$A$3:$C$323,3,FALSE),0),0) -> 0 | ES12: =IFERROR((F12+Q12+AB12+AM12+AX12+BI12+BT12+CE12+CP12+DA12+DL12+DW12)/ROUND(12/VLOOKUP($A12, Annualization!$A$3:$C$323,3,FALSE),0),0) -> 0 | ET12: =IFERROR((G12+R12+AC12+AN12+AY12+BJ12+BU12+CF12+CQ12+DB12+DM12+DX12)/ROUND(12/VLOOKUP($A12, Annualization!$A$3:$C$323,3,FALSE),0),0) -> 0 | EU12: =IFERROR((H12+S12+AD12+AO12+AZ12+BK12+BV12+CG12+CR12+DC12+DN12+DY12)/ROUND(12/VLOOKUP($A12, Annualization!$A$3:$C$323,3,FALSE),0),0) -> 0 | EV12: =IFERROR((I12+T12+AE12+AP12+BA12+BL12+BW12+CH12+CS12+DD12+DO12+DZ12)/ROUND(12/VLOOKUP($A12, Annualization!$A$3:$C$323,3,FALSE),0),0) -> 0 | EW12: =IFERROR((J12+U12+AF12+AQ12+BB12+BM12+BX12+CI12+CT12+DE12+DP12+EA12)/ROUND(12/VLOOKUP($A12, Annualization!$A$3:$C$323,3,FALSE),0),0) -> 0 | EX12: =IFERROR((K12+V12+AG12+AR12+BC12+BN12+BY12+CJ12+CU12+DF12+DQ12+EB12)/ROUND(12/VLOOKUP($A12, Annualization!$A$3:$C$323,3,FALSE),0),0) -> 0 | EY12: =IFERROR((L12+W12+AH12+AS12+BD12+BO12+BZ12+CK12+CV12+DG12+DR12+EC12)/ROUND(12/VLOOKUP($A12, Annualization!$A$3:$C$323,3,FALSE),0),0) -> 0 | EZ12: =IFERROR((M12+X12+AI12+AT12+BE12+BP12+CA12+CL12+CW12+DH12+DS12+ED12)/ROUND(12/VLOOKUP($A12, Annualization!$A$3:$C$323,3,FALSE),0),0) -> 0
EE13: 0 | EF13: 0 | EG13: 0 | EH13: 0 | EI13: 0 | EJ13: 0 | EK13: 0 | EL13: 0 | EM13: 0 | EN13: 0 | EO13: 0 | EP13: =IFERROR((C13+N13+Y13+AJ13+AU13+BF13+BQ13+CB13+CM13+CX13+DI13+DT13)/ROUND(12/VLOOKUP($A13, Annualization!$A$3:$C$323,3,FALSE),0),0) -> 0 | EQ13: =IFERROR((D13+O13+Z13+AK13+AV13+BG13+BR13+CC13+CN13+CY13+DJ13+DU13)/ROUND(12/VLOOKUP($A13, Annualization!$A$3:$C$323,3,FALSE),0),0) -> 0 | ER13: =IFERROR((E13+P13+AA13+AL13+AW13+BH13+BS13+CD13+CO13+CZ13+DK13+DV13)/ROUND(12/VLOOKUP($A13, Annualization!$A$3:$C$323,3,FALSE),0),0) -> 0 | ES13: =IFERROR((F13+Q13+AB13+AM13+AX13+BI13+BT13+CE13+CP13+DA13+DL13+DW13)/ROUND(12/VLOOKUP($A13, Annualization!$A$3:$C$323,3,FALSE),0),0) -> 0 | ET13: =IFERROR((G13+R13+AC13+AN13+AY13+BJ13+BU13+CF13+CQ13+DB13+DM13+DX13)/ROUND(12/VLOOKUP($A13, Annualization!$A$3:$C$323,3,FALSE),0),0) -> 0 | EU13: =IFERROR((H13+S13+AD13+AO13+AZ13+BK13+BV13+CG13+CR13+DC13+DN13+DY13)/ROUND(12/VLOOKUP($A13, Annualization!$A$3:$C$323,3,FALSE),0),0) -> 0 | EV13: =IFERROR((I13+T13+AE13+AP13+BA13+BL13+BW13+CH13+CS13+DD13+DO13+DZ13)/ROUND(12/VLOOKUP($A13, Annualization!$A$3:$C$323,3,FALSE),0),0) -> 0 | EW13: =IFERROR((J13+U13+AF13+AQ13+BB13+BM13+BX13+CI13+CT13+DE13+DP13+EA13)/ROUND(12/VLOOKUP($A13, Annualization!$A$3:$C$323,3,FALSE),0),0) -> 0 | EX13: =IFERROR((K13+V13+AG13+AR13+BC13+BN13+BY13+CJ13+CU13+DF13+DQ13+EB13)/ROUND(12/VLOOKUP($A13, Annualization!$A$3:$C$323,3,FALSE),0),0) -> 0 | EY13: =IFERROR((L13+W13+AH13+AS13+BD13+BO13+BZ13+CK13+CV13+DG13+DR13+EC13)/ROUND(12/VLOOKUP($A13, Annualization!$A$3:$C$323,3,FALSE),0),0) -> 0 | EZ13: =IFERROR((M13+X13+AI13+AT13+BE13+BP13+CA13+CL13+CW13+DH13+DS13+ED13)/ROUND(12/VLOOKUP($A13, Annualization!$A$3:$C$323,3,FALSE),0),0) -> 0
EE14: 0 | EF14: 0 | EG14: 0 | EH14: 0 | EI14: 0 | EJ14: 0 | EK14: 0 | EL14: 0 | EM14: 0 | EN14: 0 | EO14: 0 | EP14: =IFERROR((C14+N14+Y14+AJ14+AU14+BF14+BQ14+CB14+CM14+CX14+DI14+DT14)/ROUND(12/VLOOKUP($A14, Annualization!$A$3:$C$323,3,FALSE),0),0) -> 0 | EQ14: =IFERROR((D14+O14+Z14+AK14+AV14+BG14+BR14+CC14+CN14+CY14+DJ14+DU14)/ROUND(12/VLOOKUP($A14, Annualization!$A$3:$C$323,3,FALSE),0),0) -> 0 | ER14: =IFERROR((E14+P14+AA14+AL14+AW14+BH14+BS14+CD14+CO14+CZ14+DK14+DV14)/ROUND(12/VLOOKUP($A14, Annualization!$A$3:$C$323,3,FALSE),0),0) -> 0 | ES14: =IFERROR((F14+Q14+AB14+AM14+AX14+BI14+BT14+CE14+CP14+DA14+DL14+DW14)/ROUND(12/VLOOKUP($A14, Annualization!$A$3:$C$323,3,FALSE),0),0) -> 0 | ET14: =IFERROR((G14+R14+AC14+AN14+AY14+BJ14+BU14+CF14+CQ14+DB14+DM14+DX14)/ROUND(12/VLOOKUP($A14, Annualization!$A$3:$C$323,3,FALSE),0),0) -> 0 | EU14: =IFERROR((H14+S14+AD14+AO14+AZ14+BK14+BV14+CG14+CR14+DC14+DN14+DY14)/ROUND(12/VLOOKUP($A14, Annualization!$A$3:$C$323,3,FALSE),0),0) -> 0 | EV14: =IFERROR((I14+T14+AE14+AP14+BA14+BL14+BW14+CH14+CS14+DD14+DO14+DZ14)/ROUND(12/VLOOKUP($A14, Annualization!$A$3:$C$323,3,FALSE),0),0) -> 0 | EW14: =IFERROR((J14+U14+AF14+AQ14+BB14+BM14+BX14+CI14+CT14+DE14+DP14+EA14)/ROUND(12/VLOOKUP($A14, Annualization!$A$3:$C$323,3,FALSE),0),0) -> 0 | EX14: =IFERROR((K14+V14+AG14+AR14+BC14+BN14+BY14+CJ14+CU14+DF14+DQ14+EB14)/ROUND(12/VLOOKUP($A14, Annualization!$A$3:$C$323,3,FALSE),0),0) -> 0 | EY14: =IFERROR((L14+W14+AH14+AS14+BD14+BO14+BZ14+CK14+CV14+DG14+DR14+EC14)/ROUND(12/VLOOKUP($A14, Annualization!$A$3:$C$323,3,FALSE),0),0) -> 0 | EZ14: =IFERROR((M14+X14+AI14+AT14+BE14+BP14+CA14+CL14+CW14+DH14+DS14+ED14)/ROUND(12/VLOOKUP($A14, Annualization!$A$3:$C$323,3,FALSE),0),0) -> 0
EE15: 0 | EF15: 0 | EG15: 0 | EH15: 0 | EI15: 0 | EJ15: 0 | EK15: 0 | EL15: 0 | EM15: 0 | EN15: 0 | EO15: 0 | EP15: =IFERROR((C15+N15+Y15+AJ15+AU15+BF15+BQ15+CB15+CM15+CX15+DI15+DT15)/ROUND(12/VLOOKUP($A15, Annualization!$A$3:$C$323,3,FALSE),0),0) -> 0 | EQ15: =IFERROR((D15+O15+Z15+AK15+AV15+BG15+BR15+CC15+CN15+CY15+DJ15+DU15)/ROUND(12/VLOOKUP($A15, Annualization!$A$3:$C$323,3,FALSE),0),0) -> 0 | ER15: =IFERROR((E15+P15+AA15+AL15+AW15+BH15+BS15+CD15+CO15+CZ15+DK15+DV15)/ROUND(12/VLOOKUP($A15, Annualization!$A$3:$C$323,3,FALSE),0),0) -> 0 | ES15: =IFERROR((F15+Q15+AB15+AM15+AX15+BI15+BT15+CE15+CP15+DA15+DL15+DW15)/ROUND(12/VLOOKUP($A15, Annualization!$A$3:$C$323,3,FALSE),0),0) -> 0 | ET15: =IFERROR((G15+R15+AC15+AN15+AY15+BJ15+BU15+CF15+CQ15+DB15+DM15+DX15)/ROUND(12/VLOOKUP($A15, Annualization!$A$3:$C$323,3,FALSE),0),0) -> 0 | EU15: =IFERROR((H15+S15+AD15+AO15+AZ15+BK15+BV15+CG15+CR15+DC15+DN15+DY15)/ROUND(12/VLOOKUP($A15, Annualization!$A$3:$C$323,3,FALSE),0),0) -> 0 | EV15: =IFERROR((I15+T15+AE15+AP15+BA15+BL15+BW15+CH15+CS15+DD15+DO15+DZ15)/ROUND(12/VLOOKUP($A15, Annualization!$A$3:$C$323,3,FALSE),0),0) -> 0 | EW15: =IFERROR((J15+U15+AF15+AQ15+BB15+BM15+BX15+CI15+CT15+DE15+DP15+EA15)/ROUND(12/VLOOKUP($A15, Annualization!$A$3:$C$323,3,FALSE),0),0) -> 0 | EX15: =IFERROR((K15+V15+AG15+AR15+BC15+BN15+BY15+CJ15+CU15+DF15+DQ15+EB15)/ROUND(12/VLOOKUP($A15, Annualization!$A$3:$C$323,3,FALSE),0),0) -> 0 | EY15: =IFERROR((L15+W15+AH15+AS15+BD15+BO15+BZ15+CK15+CV15+DG15+DR15+EC15)/ROUND(12/VLOOKUP($A15, Annualization!$A$3:$C$323,3,FALSE),0),0) -> 0 | EZ15: =IFERROR((M15+X15+AI15+AT15+BE15+BP15+CA15+CL15+CW15+DH15+DS15+ED15)/ROUND(12/VLOOKUP($A15, Annualization!$A$3:$C$323,3,FALSE),0),0) -> 0
EE16: 0 | EF16: 0 | EG16: 0 | EH16: 0 | EI16: 0 | EJ16: 0 | EK16: 0 | EL16: 0 | EM16: 0 | EN16: 0 | EO16: 0 | EP16: =IFERROR((C16+N16+Y16+AJ16+AU16+BF16+BQ16+CB16+CM16+CX16+DI16+DT16)/ROUND(12/VLOOKUP($A16, Annualization!$A$3:$C$323,3,FALSE),0),0) -> 0 | EQ16: =IFERROR((D16+O16+Z16+AK16+AV16+BG16+BR16+CC16+CN16+CY16+DJ16+DU16)/ROUND(12/VLOOKUP($A16, Annualization!$A$3:$C$323,3,FALSE),0),0) -> 0 | ER16: =IFERROR((E16+P16+AA16+AL16+AW16+BH16+BS16+CD16+CO16+CZ16+DK16+DV16)/ROUND(12/VLOOKUP($A16, Annualization!$A$3:$C$323,3,FALSE),0),0) -> 0 | ES16: =IFERROR((F16+Q16+AB16+AM16+AX16+BI16+BT16+CE16+CP16+DA16+DL16+DW16)/ROUND(12/VLOOKUP($A16, Annualization!$A$3:$C$323,3,FALSE),0),0) -> 0 | ET16: =IFERROR((G16+R16+AC16+AN16+AY16+BJ16+BU16+CF16+CQ16+DB16+DM16+DX16)/ROUND(12/VLOOKUP($A16, Annualization!$A$3:$C$323,3,FALSE),0),0) -> 0 | EU16: =IFERROR((H16+S16+AD16+AO16+AZ16+BK16+BV16+CG16+CR16+DC16+DN16+DY16)/ROUND(12/VLOOKUP($A16, Annualization!$A$3:$C$323,3,FALSE),0),0) -> 0 | EV16: =IFERROR((I16+T16+AE16+AP16+BA16+BL16+BW16+CH16+CS16+DD16+DO16+DZ16)/ROUND(12/VLOOKUP($A16, Annualization!$A$3:$C$323,3,FALSE),0),0) -> 0 | EW16: =IFERROR((J16+U16+AF16+AQ16+BB16+BM16+BX16+CI16+CT16+DE16+DP16+EA16)/ROUND(12/VLOOKUP($A16, Annualization!$A$3:$C$323,3,FALSE),0),0) -> 0 | EX16: =IFERROR((K16+V16+AG16+AR16+BC16+BN16+BY16+CJ16+CU16+DF16+DQ16+EB16)/ROUND(12/VLOOKUP($A16, Annualization!$A$3:$C$323,3,FALSE),0),0) -> 0 | EY16: =IFERROR((L16+W16+AH16+AS16+BD16+BO16+BZ16+CK16+CV16+DG16+DR16+EC16)/ROUND(12/VLOOKUP($A16, Annualization!$A$3:$C$323,3,FALSE),0),0) -> 0 | EZ16: =IFERROR((M16+X16+AI16+AT16+BE16+BP16+CA16+CL16+CW16+DH16+DS16+ED16)/ROUND(12/VLOOKUP($A16, Annualization!$A$3:$C$323,3,FALSE),0),0) -> 0
EE17: 0 | EF17: 0 | EG17: 0 | EH17: 0 | EI17: 0 | EJ17: 0 | EK17: 0 | EL17: 0 | EM17: 0 | EN17: 0 | EO17: 0 | EP17: =IFERROR((C17+N17+Y17+AJ17+AU17+BF17+BQ17+CB17+CM17+CX17+DI17+DT17)/ROUND(12/VLOOKUP($A17, Annualization!$A$3:$C$323,3,FALSE),0),0) -> 0 | EQ17: =IFERROR((D17+O17+Z17+AK17+AV17+BG17+BR17+CC17+CN17+CY17+DJ17+DU17)/ROUND(12/VLOOKUP($A17, Annualization!$A$3:$C$323,3,FALSE),0),0) -> 0 | ER17: =IFERROR((E17+P17+AA17+AL17+AW17+BH17+BS17+CD17+CO17+CZ17+DK17+DV17)/ROUND(12/VLOOKUP($A17, Annualization!$A$3:$C$323,3,FALSE),0),0) -> 0 | ES17: =IFERROR((F17+Q17+AB17+AM17+AX17+BI17+BT17+CE17+CP17+DA17+DL17+DW17)/ROUND(12/VLOOKUP($A17, Annualization!$A$3:$C$323,3,FALSE),0),0) -> 0 | ET17: =IFERROR((G17+R17+AC17+AN17+AY17+BJ17+BU17+CF17+CQ17+DB17+DM17+DX17)/ROUND(12/VLOOKUP($A17, Annualization!$A$3:$C$323,3,FALSE),0),0) -> 0 | EU17: =IFERROR((H17+S17+AD17+AO17+AZ17+BK17+BV17+CG17+CR17+DC17+DN17+DY17)/ROUND(12/VLOOKUP($A17, Annualization!$A$3:$C$323,3,FALSE),0),0) -> 0 | EV17: =IFERROR((I17+T17+AE17+AP17+BA17+BL17+BW17+CH17+CS17+DD17+DO17+DZ17)/ROUND(12/VLOOKUP($A17, Annualization!$A$3:$C$323,3,FALSE),0),0) -> 0 | EW17: =IFERROR((J17+U17+AF17+AQ17+BB17+BM17+BX17+CI17+CT17+DE17+DP17+EA17)/ROUND(12/VLOOKUP($A17, Annualization!$A$3:$C$323,3,FALSE),0),0) -> 0 | EX17: =IFERROR((K17+V17+AG17+AR17+BC17+BN17+BY17+CJ17+CU17+DF17+DQ17+EB17)/ROUND(12/VLOOKUP($A17, Annualization!$A$3:$C$323,3,FALSE),0),0) -> 0 | EY17: =IFERROR((L17+W17+AH17+AS17+BD17+BO17+BZ17+CK17+CV17+DG17+DR17+EC17)/ROUND(12/VLOOKUP($A17, Annualization!$A$3:$C$323,3,FALSE),0),0) -> 0 | EZ17: =IFERROR((M17+X17+AI17+AT17+BE17+BP17+CA17+CL17+CW17+DH17+DS17+ED17)/ROUND(12/VLOOKUP($A17, Annualization!$A$3:$C$323,3,FALSE),0),0) -> 0
EE18: 0 | EF18: 0 | EG18: 0 | EH18: 0 | EI18: 0 | EJ18: 0 | EK18: 0 | EL18: 0 | EM18: 0 | EN18: 0 | EO18: 0 | EP18: =IFERROR((C18+N18+Y18+AJ18+AU18+BF18+BQ18+CB18+CM18+CX18+DI18+DT18)/ROUND(12/VLOOKUP($A18, Annualization!$A$3:$C$323,3,FALSE),0),0) -> 0 | EQ18: =IFERROR((D18+O18+Z18+AK18+AV18+BG18+BR18+CC18+CN18+CY18+DJ18+DU18)/ROUND(12/VLOOKUP($A18, Annualization!$A$3:$C$323,3,FALSE),0),0) -> 0 | ER18: =IFERROR((E18+P18+AA18+AL18+AW18+BH18+BS18+CD18+CO18+CZ18+DK18+DV18)/ROUND(12/VLOOKUP($A18, Annualization!$A$3:$C$323,3,FALSE),0),0) -> 0 | ES18: =IFERROR((F18+Q18+AB18+AM18+AX18+BI18+BT18+CE18+CP18+DA18+DL18+DW18)/ROUND(12/VLOOKUP($A18, Annualization!$A$3:$C$323,3,FALSE),0),0) -> 0 | ET18: =IFERROR((G18+R18+AC18+AN18+AY18+BJ18+BU18+CF18+CQ18+DB18+DM18+DX18)/ROUND(12/VLOOKUP($A18, Annualization!$A$3:$C$323,3,FALSE),0),0) -> 0 | EU18: =IFERROR((H18+S18+AD18+AO18+AZ18+BK18+BV18+CG18+CR18+DC18+DN18+DY18)/ROUND(12/VLOOKUP($A18, Annualization!$A$3:$C$323,3,FALSE),0),0) -> 0 | EV18: =IFERROR((I18+T18+AE18+AP18+BA18+BL18+BW18+CH18+CS18+DD18+DO18+DZ18)/ROUND(12/VLOOKUP($A18, Annualization!$A$3:$C$323,3,FALSE),0),0) -> 0 | EW18: =IFERROR((J18+U18+AF18+AQ18+BB18+BM18+BX18+CI18+CT18+DE18+DP18+EA18)/ROUND(12/VLOOKUP($A18, Annualization!$A$3:$C$323,3,FALSE),0),0) -> 0 | EX18: =IFERROR((K18+V18+AG18+AR18+BC18+BN18+BY18+CJ18+CU18+DF18+DQ18+EB18)/ROUND(12/VLOOKUP($A18, Annualization!$A$3:$C$323,3,FALSE),0),0) -> 0 | EY18: =IFERROR((L18+W18+AH18+AS18+BD18+BO18+BZ18+CK18+CV18+DG18+DR18+EC18)/ROUND(12/VLOOKUP($A18, Annualization!$A$3:$C$323,3,FALSE),0),0) -> 0 | EZ18: =IFERROR((M18+X18+AI18+AT18+BE18+BP18+CA18+CL18+CW18+DH18+DS18+ED18)/ROUND(12/VLOOKUP($A18, Annualization!$A$3:$C$323,3,FALSE),0),0) -> 0
EE19: 0 | EF19: 0 | EG19: 0 | EH19: 0 | EI19: 0 | EJ19: 0 | EK19: 0 | EL19: 0 | EM19: 0 | EN19: 0 | EO19: 0 | EP19: =IFERROR((C19+N19+Y19+AJ19+AU19+BF19+BQ19+CB19+CM19+CX19+DI19+DT19)/ROUND(12/VLOOKUP($A19, Annualization!$A$3:$C$323,3,FALSE),0),0) -> 0 | EQ19: =IFERROR((D19+O19+Z19+AK19+AV19+BG19+BR19+CC19+CN19+CY19+DJ19+DU19)/ROUND(12/VLOOKUP($A19, Annualization!$A$3:$C$323,3,FALSE),0),0) -> 0 | ER19: =IFERROR((E19+P19+AA19+AL19+AW19+BH19+BS19+CD19+CO19+CZ19+DK19+DV19)/ROUND(12/VLOOKUP($A19, Annualization!$A$3:$C$323,3,FALSE),0),0) -> 0 | ES19: =IFERROR((F19+Q19+AB19+AM19+AX19+BI19+BT19+CE19+CP19+DA19+DL19+DW19)/ROUND(12/VLOOKUP($A19, Annualization!$A$3:$C$323,3,FALSE),0),0) -> 0 | ET19: =IFERROR((G19+R19+AC19+AN19+AY19+BJ19+BU19+CF19+CQ19+DB19+DM19+DX19)/ROUND(12/VLOOKUP($A19, Annualization!$A$3:$C$323,3,FALSE),0),0) -> 0 | EU19: =IFERROR((H19+S19+AD19+AO19+AZ19+BK19+BV19+CG19+CR19+DC19+DN19+DY19)/ROUND(12/VLOOKUP($A19, Annualization!$A$3:$C$323,3,FALSE),0),0) -> 0 | EV19: =IFERROR((I19+T19+AE19+AP19+BA19+BL19+BW19+CH19+CS19+DD19+DO19+DZ19)/ROUND(12/VLOOKUP($A19, Annualization!$A$3:$C$323,3,FALSE),0),0) -> 0 | EW19: =IFERROR((J19+U19+AF19+AQ19+BB19+BM19+BX19+CI19+CT19+DE19+DP19+EA19)/ROUND(12/VLOOKUP($A19, Annualization!$A$3:$C$323,3,FALSE),0),0) -> 0 | EX19: =IFERROR((K19+V19+AG19+AR19+BC19+BN19+BY19+CJ19+CU19+DF19+DQ19+EB19)/ROUND(12/VLOOKUP($A19, Annualization!$A$3:$C$323,3,FALSE),0),0) -> 0 | EY19: =IFERROR((L19+W19+AH19+AS19+BD19+BO19+BZ19+CK19+CV19+DG19+DR19+EC19)/ROUND(12/VLOOKUP($A19, Annualization!$A$3:$C$323,3,FALSE),0),0) -> 0 | EZ19: =IFERROR((M19+X19+AI19+AT19+BE19+BP19+CA19+CL19+CW19+DH19+DS19+ED19)/ROUND(12/VLOOKUP($A19, Annualization!$A$3:$C$323,3,FALSE),0),0) -> 0
EE20: 0 | EF20: 0 | EG20: 0 | EH20: 0 | EI20: 0 | EJ20: 0 | EK20: 0 | EL20: 0 | EM20: 0 | EN20: 0 | EO20: 0 | EP20: =IFERROR((C20+N20+Y20+AJ20+AU20+BF20+BQ20+CB20+CM20+CX20+DI20+DT20)/ROUND(12/VLOOKUP($A20, Annualization!$A$3:$C$323,3,FALSE),0),0) -> 0 | EQ20: =IFERROR((D20+O20+Z20+AK20+AV20+BG20+BR20+CC20+CN20+CY20+DJ20+DU20)/ROUND(12/VLOOKUP($A20, Annualization!$A$3:$C$323,3,FALSE),0),0) -> 0 | ER20: =IFERROR((E20+P20+AA20+AL20+AW20+BH20+BS20+CD20+CO20+CZ20+DK20+DV20)/ROUND(12/VLOOKUP($A20, Annualization!$A$3:$C$323,3,FALSE),0),0) -> 0 | ES20: =IFERROR((F20+Q20+AB20+AM20+AX20+BI20+BT20+CE20+CP20+DA20+DL20+DW20)/ROUND(12/VLOOKUP($A20, Annualization!$A$3:$C$323,3,FALSE),0),0) -> 0 | ET20: =IFERROR((G20+R20+AC20+AN20+AY20+BJ20+BU20+CF20+CQ20+DB20+DM20+DX20)/ROUND(12/VLOOKUP($A20, Annualization!$A$3:$C$323,3,FALSE),0),0) -> 0 | EU20: =IFERROR((H20+S20+AD20+AO20+AZ20+BK20+BV20+CG20+CR20+DC20+DN20+DY20)/ROUND(12/VLOOKUP($A20, Annualization!$A$3:$C$323,3,FALSE),0),0) -> 0 | EV20: =IFERROR((I20+T20+AE20+AP20+BA20+BL20+BW20+CH20+CS20+DD20+DO20+DZ20)/ROUND(12/VLOOKUP($A20, Annualization!$A$3:$C$323,3,FALSE),0),0) -> 0 | EW20: =IFERROR((J20+U20+AF20+AQ20+BB20+BM20+BX20+CI20+CT20+DE20+DP20+EA20)/ROUND(12/VLOOKUP($A20, Annualization!$A$3:$C$323,3,FALSE),0),0) -> 0 | EX20: =IFERROR((K20+V20+AG20+AR20+BC20+BN20+BY20+CJ20+CU20+DF20+DQ20+EB20)/ROUND(12/VLOOKUP($A20, Annualization!$A$3:$C$323,3,FALSE),0),0) -> 0 | EY20: =IFERROR((L20+W20+AH20+AS20+BD20+BO20+BZ20+CK20+CV20+DG20+DR20+EC20)/ROUND(12/VLOOKUP($A20, Annualization!$A$3:$C$323,3,FALSE),0),0) -> 0 | EZ20: =IFERROR((M20+X20+AI20+AT20+BE20+BP20+CA20+CL20+CW20+DH20+DS20+ED20)/ROUND(12/VLOOKUP($A20, Annualization!$A$3:$C$323,3,FALSE),0),0) -> 0
EE21: 0 | EF21: 0 | EG21: 0 | EH21: 0 | EI21: 0 | EJ21: 0 | EK21: 0 | EL21: 0 | EM21: 0 | EN21: 0 | EO21: 0 | EP21: =IFERROR((C21+N21+Y21+AJ21+AU21+BF21+BQ21+CB21+CM21+CX21+DI21+DT21)/ROUND(12/VLOOKUP($A21, Annualization!$A$3:$C$323,3,FALSE),0),0) -> 0 | EQ21: =IFERROR((D21+O21+Z21+AK21+AV21+BG21+BR21+CC21+CN21+CY21+DJ21+DU21)/ROUND(12/VLOOKUP($A21, Annualization!$A$3:$C$323,3,FALSE),0),0) -> 0 | ER21: =IFERROR((E21+P21+AA21+AL21+AW21+BH21+BS21+CD21+CO21+CZ21+DK21+DV21)/ROUND(12/VLOOKUP($A21, Annualization!$A$3:$C$323,3,FALSE),0),0) -> 0 | ES21: =IFERROR((F21+Q21+AB21+AM21+AX21+BI21+BT21+CE21+CP21+DA21+DL21+DW21)/ROUND(12/VLOOKUP($A21, Annualization!$A$3:$C$323,3,FALSE),0),0) -> 0 | ET21: =IFERROR((G21+R21+AC21+AN21+AY21+BJ21+BU21+CF21+CQ21+DB21+DM21+DX21)/ROUND(12/VLOOKUP($A21, Annualization!$A$3:$C$323,3,FALSE),0),0) -> 0 | EU21: =IFERROR((H21+S21+AD21+AO21+AZ21+BK21+BV21+CG21+CR21+DC21+DN21+DY21)/ROUND(12/VLOOKUP($A21, Annualization!$A$3:$C$323,3,FALSE),0),0) -> 0 | EV21: =IFERROR((I21+T21+AE21+AP21+BA21+BL21+BW21+CH21+CS21+DD21+DO21+DZ21)/ROUND(12/VLOOKUP($A21, Annualization!$A$3:$C$323,3,FALSE),0),0) -> 0 | EW21: =IFERROR((J21+U21+AF21+AQ21+BB21+BM21+BX21+CI21+CT21+DE21+DP21+EA21)/ROUND(12/VLOOKUP($A21, Annualization!$A$3:$C$323,3,FALSE),0),0) -> 0 | EX21: =IFERROR((K21+V21+AG21+AR21+BC21+BN21+BY21+CJ21+CU21+DF21+DQ21+EB21)/ROUND(12/VLOOKUP($A21, Annualization!$A$3:$C$323,3,FALSE),0),0) -> 0 | EY21: =IFERROR((L21+W21+AH21+AS21+BD21+BO21+BZ21+CK21+CV21+DG21+DR21+EC21)/ROUND(12/VLOOKUP($A21, Annualization!$A$3:$C$323,3,FALSE),0),0) -> 0 | EZ21: =IFERROR((M21+X21+AI21+AT21+BE21+BP21+CA21+CL21+CW21+DH21+DS21+ED21)/ROUND(12/VLOOKUP($A21, Annualization!$A$3:$C$323,3,FALSE),0),0) -> 0
EE22: 0 | EF22: 0 | EG22: 0 | EH22: 0 | EI22: 0 | EJ22: 0 | EK22: 0 | EL22: 0 | EM22: 0 | EN22: 0 | EO22: 0 | EP22: =IFERROR((C22+N22+Y22+AJ22+AU22+BF22+BQ22+CB22+CM22+CX22+DI22+DT22)/ROUND(12/VLOOKUP($A22, Annualization!$A$3:$C$323,3,FALSE),0),0) -> 0 | EQ22: =IFERROR((D22+O22+Z22+AK22+AV22+BG22+BR22+CC22+CN22+CY22+DJ22+DU22)/ROUND(12/VLOOKUP($A22, Annualization!$A$3:$C$323,3,FALSE),0),0) -> 0 | ER22: =IFERROR((E22+P22+AA22+AL22+AW22+BH22+BS22+CD22+CO22+CZ22+DK22+DV22)/ROUND(12/VLOOKUP($A22, Annualization!$A$3:$C$323,3,FALSE),0),0) -> 0 | ES22: =IFERROR((F22+Q22+AB22+AM22+AX22+BI22+BT22+CE22+CP22+DA22+DL22+DW22)/ROUND(12/VLOOKUP($A22, Annualization!$A$3:$C$323,3,FALSE),0),0) -> 0 | ET22: =IFERROR((G22+R22+AC22+AN22+AY22+BJ22+BU22+CF22+CQ22+DB22+DM22+DX22)/ROUND(12/VLOOKUP($A22, Annualization!$A$3:$C$323,3,FALSE),0),0) -> 0 | EU22: =IFERROR((H22+S22+AD22+AO22+AZ22+BK22+BV22+CG22+CR22+DC22+DN22+DY22)/ROUND(12/VLOOKUP($A22, Annualization!$A$3:$C$323,3,FALSE),0),0) -> 0 | EV22: =IFERROR((I22+T22+AE22+AP22+BA22+BL22+BW22+CH22+CS22+DD22+DO22+DZ22)/ROUND(12/VLOOKUP($A22, Annualization!$A$3:$C$323,3,FALSE),0),0) -> 0 | EW22: =IFERROR((J22+U22+AF22+AQ22+BB22+BM22+BX22+CI22+CT22+DE22+DP22+EA22)/ROUND(12/VLOOKUP($A22, Annualization!$A$3:$C$323,3,FALSE),0),0) -> 0 | EX22: =IFERROR((K22+V22+AG22+AR22+BC22+BN22+BY22+CJ22+CU22+DF22+DQ22+EB22)/ROUND(12/VLOOKUP($A22, Annualization!$A$3:$C$323,3,FALSE),0),0) -> 0 | EY22: =IFERROR((L22+W22+AH22+AS22+BD22+BO22+BZ22+CK22+CV22+DG22+DR22+EC22)/ROUND(12/VLOOKUP($A22, Annualization!$A$3:$C$323,3,FALSE),0),0) -> 0 | EZ22: =IFERROR((M22+X22+AI22+AT22+BE22+BP22+CA22+CL22+CW22+DH22+DS22+ED22)/ROUND(12/VLOOKUP($A22, Annualization!$A$3:$C$323,3,FALSE),0),0) -> 0
EE23: 0 | EF23: 0 | EG23: 0 | EH23: 0 | EI23: 0 | EJ23: 0 | EK23: 0 | EL23: 0 | EM23: 0 | EN23: 0 | EO23: 0 | EP23: =IFERROR((C23+N23+Y23+AJ23+AU23+BF23+BQ23+CB23+CM23+CX23+DI23+DT23)/ROUND(12/VLOOKUP($A23, Annualization!$A$3:$C$323,3,FALSE),0),0) -> 0 | EQ23: =IFERROR((D23+O23+Z23+AK23+AV23+BG23+BR23+CC23+CN23+CY23+DJ23+DU23)/ROUND(12/VLOOKUP($A23, Annualization!$A$3:$C$323,3,FALSE),0),0) -> 0 | ER23: =IFERROR((E23+P23+AA23+AL23+AW23+BH23+BS23+CD23+CO23+CZ23+DK23+DV23)/ROUND(12/VLOOKUP($A23, Annualization!$A$3:$C$323,3,FALSE),0),0) -> 0 | ES23: =IFERROR((F23+Q23+AB23+AM23+AX23+BI23+BT23+CE23+CP23+DA23+DL23+DW23)/ROUND(12/VLOOKUP($A23, Annualization!$A$3:$C$323,3,FALSE),0),0) -> 0 | ET23: =IFERROR((G23+R23+AC23+AN23+AY23+BJ23+BU23+CF23+CQ23+DB23+DM23+DX23)/ROUND(12/VLOOKUP($A23, Annualization!$A$3:$C$323,3,FALSE),0),0) -> 0 | EU23: =IFERROR((H23+S23+AD23+AO23+AZ23+BK23+BV23+CG23+CR23+DC23+DN23+DY23)/ROUND(12/VLOOKUP($A23, Annualization!$A$3:$C$323,3,FALSE),0),0) -> 0 | EV23: =IFERROR((I23+T23+AE23+AP23+BA23+BL23+BW23+CH23+CS23+DD23+DO23+DZ23)/ROUND(12/VLOOKUP($A23, Annualization!$A$3:$C$323,3,FALSE),0),0) -> 0 | EW23: =IFERROR((J23+U23+AF23+AQ23+BB23+BM23+BX23+CI23+CT23+DE23+DP23+EA23)/ROUND(12/VLOOKUP($A23, Annualization!$A$3:$C$323,3,FALSE),0),0) -> 0 | EX23: =IFERROR((K23+V23+AG23+AR23+BC23+BN23+BY23+CJ23+CU23+DF23+DQ23+EB23)/ROUND(12/VLOOKUP($A23, Annualization!$A$3:$C$323,3,FALSE),0),0) -> 0 | EY23: =IFERROR((L23+W23+AH23+AS23+BD23+BO23+BZ23+CK23+CV23+DG23+DR23+EC23)/ROUND(12/VLOOKUP($A23, Annualization!$A$3:$C$323,3,FALSE),0),0) -> 0 | EZ23: =IFERROR((M23+X23+AI23+AT23+BE23+BP23+CA23+CL23+CW23+DH23+DS23+ED23)/ROUND(12/VLOOKUP($A23, Annualization!$A$3:$C$323,3,FALSE),0),0) -> 0
EE24: 0 | EF24: 0 | EG24: 0 | EH24: 0 | EI24: 0 | EJ24: 0 | EK24: 0 | EL24: 0 | EM24: 0 | EN24: 0 | EO24: 0 | EP24: =IFERROR((C24+N24+Y24+AJ24+AU24+BF24+BQ24+CB24+CM24+CX24+DI24+DT24)/ROUND(12/VLOOKUP($A24, Annualization!$A$3:$C$323,3,FALSE),0),0) -> 0 | EQ24: =IFERROR((D24+O24+Z24+AK24+AV24+BG24+BR24+CC24+CN24+CY24+DJ24+DU24)/ROUND(12/VLOOKUP($A24, Annualization!$A$3:$C$323,3,FALSE),0),0) -> 0 | ER24: =IFERROR((E24+P24+AA24+AL24+AW24+BH24+BS24+CD24+CO24+CZ24+DK24+DV24)/ROUND(12/VLOOKUP($A24, Annualization!$A$3:$C$323,3,FALSE),0),0) -> 0 | ES24: =IFERROR((F24+Q24+AB24+AM24+AX24+BI24+BT24+CE24+CP24+DA24+DL24+DW24)/ROUND(12/VLOOKUP($A24, Annualization!$A$3:$C$323,3,FALSE),0),0) -> 0 | ET24: =IFERROR((G24+R24+AC24+AN24+AY24+BJ24+BU24+CF24+CQ24+DB24+DM24+DX24)/ROUND(12/VLOOKUP($A24, Annualization!$A$3:$C$323,3,FALSE),0),0) -> 0 | EU24: =IFERROR((H24+S24+AD24+AO24+AZ24+BK24+BV24+CG24+CR24+DC24+DN24+DY24)/ROUND(12/VLOOKUP($A24, Annualization!$A$3:$C$323,3,FALSE),0),0) -> 0 | EV24: =IFERROR((I24+T24+AE24+AP24+BA24+BL24+BW24+CH24+CS24+DD24+DO24+DZ24)/ROUND(12/VLOOKUP($A24, Annualization!$A$3:$C$323,3,FALSE),0),0) -> 0 | EW24: =IFERROR((J24+U24+AF24+AQ24+BB24+BM24+BX24+CI24+CT24+DE24+DP24+EA24)/ROUND(12/VLOOKUP($A24, Annualization!$A$3:$C$323,3,FALSE),0),0) -> 0 | EX24: =IFERROR((K24+V24+AG24+AR24+BC24+BN24+BY24+CJ24+CU24+DF24+DQ24+EB24)/ROUND(12/VLOOKUP($A24, Annualization!$A$3:$C$323,3,FALSE),0),0) -> 0 | EY24: =IFERROR((L24+W24+AH24+AS24+BD24+BO24+BZ24+CK24+CV24+DG24+DR24+EC24)/ROUND(12/VLOOKUP($A24, Annualization!$A$3:$C$323,3,FALSE),0),0) -> 0 | EZ24: =IFERROR((M24+X24+AI24+AT24+BE24+BP24+CA24+CL24+CW24+DH24+DS24+ED24)/ROUND(12/VLOOKUP($A24, Annualization!$A$3:$C$323,3,FALSE),0),0) -> 0
EE25: 0 | EF25: 0 | EG25: 0 | EH25: 0 | EI25: 0 | EJ25: 0 | EK25: 0 | EL25: 0 | EM25: 0 | EN25: 0 | EO25: 0 | EP25: =IFERROR((C25+N25+Y25+AJ25+AU25+BF25+BQ25+CB25+CM25+CX25+DI25+DT25)/ROUND(12/VLOOKUP($A25, Annualization!$A$3:$C$323,3,FALSE),0),0) -> 0 | EQ25: =IFERROR((D25+O25+Z25+AK25+AV25+BG25+BR25+CC25+CN25+CY25+DJ25+DU25)/ROUND(12/VLOOKUP($A25, Annualization!$A$3:$C$323,3,FALSE),0),0) -> 0 | ER25: =IFERROR((E25+P25+AA25+AL25+AW25+BH25+BS25+CD25+CO25+CZ25+DK25+DV25)/ROUND(12/VLOOKUP($A25, Annualization!$A$3:$C$323,3,FALSE),0),0) -> 0 | ES25: =IFERROR((F25+Q25+AB25+AM25+AX25+BI25+BT25+CE25+CP25+DA25+DL25+DW25)/ROUND(12/VLOOKUP($A25, Annualization!$A$3:$C$323,3,FALSE),0),0) -> 0 | ET25: =IFERROR((G25+R25+AC25+AN25+AY25+BJ25+BU25+CF25+CQ25+DB25+DM25+DX25)/ROUND(12/VLOOKUP($A25, Annualization!$A$3:$C$323,3,FALSE),0),0) -> 0 | EU25: =IFERROR((H25+S25+AD25+AO25+AZ25+BK25+BV25+CG25+CR25+DC25+DN25+DY25)/ROUND(12/VLOOKUP($A25, Annualization!$A$3:$C$323,3,FALSE),0),0) -> 0 | EV25: =IFERROR((I25+T25+AE25+AP25+BA25+BL25+BW25+CH25+CS25+DD25+DO25+DZ25)/ROUND(12/VLOOKUP($A25, Annualization!$A$3:$C$323,3,FALSE),0),0) -> 0 | EW25: =IFERROR((J25+U25+AF25+AQ25+BB25+BM25+BX25+CI25+CT25+DE25+DP25+EA25)/ROUND(12/VLOOKUP($A25, Annualization!$A$3:$C$323,3,FALSE),0),0) -> 0 | EX25: =IFERROR((K25+V25+AG25+AR25+BC25+BN25+BY25+CJ25+CU25+DF25+DQ25+EB25)/ROUND(12/VLOOKUP($A25, Annualization!$A$3:$C$323,3,FALSE),0),0) -> 0 | EY25: =IFERROR((L25+W25+AH25+AS25+BD25+BO25+BZ25+CK25+CV25+DG25+DR25+EC25)/ROUND(12/VLOOKUP($A25, Annualization!$A$3:$C$323,3,FALSE),0),0) -> 0 | EZ25: =IFERROR((M25+X25+AI25+AT25+BE25+BP25+CA25+CL25+CW25+DH25+DS25+ED25)/ROUND(12/VLOOKUP($A25, Annualization!$A$3:$C$323,3,FALSE),0),0) -> 0
EE26: 0 | EF26: 0 | EG26: 0 | EH26: 0 | EI26: 0 | EJ26: 0 | EK26: 0 | EL26: 0 | EM26: 0 | EN26: 0 | EO26: 0 | EP26: =IFERROR((C26+N26+Y26+AJ26+AU26+BF26+BQ26+CB26+CM26+CX26+DI26+DT26)/ROUND(12/VLOOKUP($A26, Annualization!$A$3:$C$323,3,FALSE),0),0) -> 0 | EQ26: =IFERROR((D26+O26+Z26+AK26+AV26+BG26+BR26+CC26+CN26+CY26+DJ26+DU26)/ROUND(12/VLOOKUP($A26, Annualization!$A$3:$C$323,3,FALSE),0),0) -> 0 | ER26: =IFERROR((E26+P26+AA26+AL26+AW26+BH26+BS26+CD26+CO26+CZ26+DK26+DV26)/ROUND(12/VLOOKUP($A26, Annualization!$A$3:$C$323,3,FALSE),0),0) -> 0 | ES26: =IFERROR((F26+Q26+AB26+AM26+AX26+BI26+BT26+CE26+CP26+DA26+DL26+DW26)/ROUND(12/VLOOKUP($A26, Annualization!$A$3:$C$323,3,FALSE),0),0) -> 0 | ET26: =IFERROR((G26+R26+AC26+AN26+AY26+BJ26+BU26+CF26+CQ26+DB26+DM26+DX26)/ROUND(12/VLOOKUP($A26, Annualization!$A$3:$C$323,3,FALSE),0),0) -> 0 | EU26: =IFERROR((H26+S26+AD26+AO26+AZ26+BK26+BV26+CG26+CR26+DC26+DN26+DY26)/ROUND(12/VLOOKUP($A26, Annualization!$A$3:$C$323,3,FALSE),0),0) -> 0 | EV26: =IFERROR((I26+T26+AE26+AP26+BA26+BL26+BW26+CH26+CS26+DD26+DO26+DZ26)/ROUND(12/VLOOKUP($A26, Annualization!$A$3:$C$323,3,FALSE),0),0) -> 0 | EW26: =IFERROR((J26+U26+AF26+AQ26+BB26+BM26+BX26+CI26+CT26+DE26+DP26+EA26)/ROUND(12/VLOOKUP($A26, Annualization!$A$3:$C$323,3,FALSE),0),0) -> 0 | EX26: =IFERROR((K26+V26+AG26+AR26+BC26+BN26+BY26+CJ26+CU26+DF26+DQ26+EB26)/ROUND(12/VLOOKUP($A26, Annualization!$A$3:$C$323,3,FALSE),0),0) -> 0 | EY26: =IFERROR((L26+W26+AH26+AS26+BD26+BO26+BZ26+CK26+CV26+DG26+DR26+EC26)/ROUND(12/VLOOKUP($A26, Annualization!$A$3:$C$323,3,FALSE),0),0) -> 0 | EZ26: =IFERROR((M26+X26+AI26+AT26+BE26+BP26+CA26+CL26+CW26+DH26+DS26+ED26)/ROUND(12/VLOOKUP($A26, Annualization!$A$3:$C$323,3,FALSE),0),0) -> 0
EE27: 0 | EF27: 0 | EG27: 0 | EH27: 0 | EI27: 0 | EJ27: 0 | EK27: 0 | EL27: 0 | EM27: 0 | EN27: 0 | EO27: 0 | EP27: =IFERROR((C27+N27+Y27+AJ27+AU27+BF27+BQ27+CB27+CM27+CX27+DI27+DT27)/ROUND(12/VLOOKUP($A27, Annualization!$A$3:$C$323,3,FALSE),0),0) -> 0 | EQ27: =IFERROR((D27+O27+Z27+AK27+AV27+BG27+BR27+CC27+CN27+CY27+DJ27+DU27)/ROUND(12/VLOOKUP($A27, Annualization!$A$3:$C$323,3,FALSE),0),0) -> 0 | ER27: =IFERROR((E27+P27+AA27+AL27+AW27+BH27+BS27+CD27+CO27+CZ27+DK27+DV27)/ROUND(12/VLOOKUP($A27, Annualization!$A$3:$C$323,3,FALSE),0),0) -> 0 | ES27: =IFERROR((F27+Q27+AB27+AM27+AX27+BI27+BT27+CE27+CP27+DA27+DL27+DW27)/ROUND(12/VLOOKUP($A27, Annualization!$A$3:$C$323,3,FALSE),0),0) -> 0 | ET27: =IFERROR((G27+R27+AC27+AN27+AY27+BJ27+BU27+CF27+CQ27+DB27+DM27+DX27)/ROUND(12/VLOOKUP($A27, Annualization!$A$3:$C$323,3,FALSE),0),0) -> 0 | EU27: =IFERROR((H27+S27+AD27+AO27+AZ27+BK27+BV27+CG27+CR27+DC27+DN27+DY27)/ROUND(12/VLOOKUP($A27, Annualization!$A$3:$C$323,3,FALSE),0),0) -> 0 | EV27: =IFERROR((I27+T27+AE27+AP27+BA27+BL27+BW27+CH27+CS27+DD27+DO27+DZ27)/ROUND(12/VLOOKUP($A27, Annualization!$A$3:$C$323,3,FALSE),0),0) -> 0 | EW27: =IFERROR((J27+U27+AF27+AQ27+BB27+BM27+BX27+CI27+CT27+DE27+DP27+EA27)/ROUND(12/VLOOKUP($A27, Annualization!$A$3:$C$323,3,FALSE),0),0) -> 0 | EX27: =IFERROR((K27+V27+AG27+AR27+BC27+BN27+BY27+CJ27+CU27+DF27+DQ27+EB27)/ROUND(12/VLOOKUP($A27, Annualization!$A$3:$C$323,3,FALSE),0),0) -> 0 | EY27: =IFERROR((L27+W27+AH27+AS27+BD27+BO27+BZ27+CK27+CV27+DG27+DR27+EC27)/ROUND(12/VLOOKUP($A27, Annualization!$A$3:$C$323,3,FALSE),0),0) -> 0 | EZ27: =IFERROR((M27+X27+AI27+AT27+BE27+BP27+CA27+CL27+CW27+DH27+DS27+ED27)/ROUND(12/VLOOKUP($A27, Annualization!$A$3:$C$323,3,FALSE),0),0) -> 0
EE28: 0 | EF28: 0 | EG28: 0 | EH28: 0 | EI28: 0 | EJ28: 0 | EK28: 0 | EL28: 0 | EM28: 0 | EN28: 0 | EO28: 0 | EP28: =IFERROR((C28+N28+Y28+AJ28+AU28+BF28+BQ28+CB28+CM28+CX28+DI28+DT28)/ROUND(12/VLOOKUP($A28, Annualization!$A$3:$C$323,3,FALSE),0),0) -> 0 | EQ28: =IFERROR((D28+O28+Z28+AK28+AV28+BG28+BR28+CC28+CN28+CY28+DJ28+DU28)/ROUND(12/VLOOKUP($A28, Annualization!$A$3:$C$323,3,FALSE),0),0) -> 0 | ER28: =IFERROR((E28+P28+AA28+AL28+AW28+BH28+BS28+CD28+CO28+CZ28+DK28+DV28)/ROUND(12/VLOOKUP($A28, Annualization!$A$3:$C$323,3,FALSE),0),0) -> 0 | ES28: =IFERROR((F28+Q28+AB28+AM28+AX28+BI28+BT28+CE28+CP28+DA28+DL28+DW28)/ROUND(12/VLOOKUP($A28, Annualization!$A$3:$C$323,3,FALSE),0),0) -> 0 | ET28: =IFERROR((G28+R28+AC28+AN28+AY28+BJ28+BU28+CF28+CQ28+DB28+DM28+DX28)/ROUND(12/VLOOKUP($A28, Annualization!$A$3:$C$323,3,FALSE),0),0) -> 0 | EU28: =IFERROR((H28+S28+AD28+AO28+AZ28+BK28+BV28+CG28+CR28+DC28+DN28+DY28)/ROUND(12/VLOOKUP($A28, Annualization!$A$3:$C$323,3,FALSE),0),0) -> 0 | EV28: =IFERROR((I28+T28+AE28+AP28+BA28+BL28+BW28+CH28+CS28+DD28+DO28+DZ28)/ROUND(12/VLOOKUP($A28, Annualization!$A$3:$C$323,3,FALSE),0),0) -> 0 | EW28: =IFERROR((J28+U28+AF28+AQ28+BB28+BM28+BX28+CI28+CT28+DE28+DP28+EA28)/ROUND(12/VLOOKUP($A28, Annualization!$A$3:$C$323,3,FALSE),0),0) -> 0 | EX28: =IFERROR((K28+V28+AG28+AR28+BC28+BN28+BY28+CJ28+CU28+DF28+DQ28+EB28)/ROUND(12/VLOOKUP($A28, Annualization!$A$3:$C$323,3,FALSE),0),0) -> 0 | EY28: =IFERROR((L28+W28+AH28+AS28+BD28+BO28+BZ28+CK28+CV28+DG28+DR28+EC28)/ROUND(12/VLOOKUP($A28, Annualization!$A$3:$C$323,3,FALSE),0),0) -> 0 | EZ28: =IFERROR((M28+X28+AI28+AT28+BE28+BP28+CA28+CL28+CW28+DH28+DS28+ED28)/ROUND(12/VLOOKUP($A28, Annualization!$A$3:$C$323,3,FALSE),0),0) -> 0
EE29: 0 | EF29: 0 | EG29: 0 | EH29: 0 | EI29: 0 | EJ29: 0 | EK29: 0 | EL29: 0 | EM29: 0 | EN29: 0 | EO29: 0 | EP29: =IFERROR((C29+N29+Y29+AJ29+AU29+BF29+BQ29+CB29+CM29+CX29+DI29+DT29)/ROUND(12/VLOOKUP($A29, Annualization!$A$3:$C$323,3,FALSE),0),0) -> 0 | EQ29: =IFERROR((D29+O29+Z29+AK29+AV29+BG29+BR29+CC29+CN29+CY29+DJ29+DU29)/ROUND(12/VLOOKUP($A29, Annualization!$A$3:$C$323,3,FALSE),0),0) -> 0 | ER29: =IFERROR((E29+P29+AA29+AL29+AW29+BH29+BS29+CD29+CO29+CZ29+DK29+DV29)/ROUND(12/VLOOKUP($A29, Annualization!$A$3:$C$323,3,FALSE),0),0) -> 0 | ES29: =IFERROR((F29+Q29+AB29+AM29+AX29+BI29+BT29+CE29+CP29+DA29+DL29+DW29)/ROUND(12/VLOOKUP($A29, Annualization!$A$3:$C$323,3,FALSE),0),0) -> 0 | ET29: =IFERROR((G29+R29+AC29+AN29+AY29+BJ29+BU29+CF29+CQ29+DB29+DM29+DX29)/ROUND(12/VLOOKUP($A29, Annualization!$A$3:$C$323,3,FALSE),0),0) -> 0 | EU29: =IFERROR((H29+S29+AD29+AO29+AZ29+BK29+BV29+CG29+CR29+DC29+DN29+DY29)/ROUND(12/VLOOKUP($A29, Annualization!$A$3:$C$323,3,FALSE),0),0) -> 0 | EV29: =IFERROR((I29+T29+AE29+AP29+BA29+BL29+BW29+CH29+CS29+DD29+DO29+DZ29)/ROUND(12/VLOOKUP($A29, Annualization!$A$3:$C$323,3,FALSE),0),0) -> 0 | EW29: =IFERROR((J29+U29+AF29+AQ29+BB29+BM29+BX29+CI29+CT29+DE29+DP29+EA29)/ROUND(12/VLOOKUP($A29, Annualization!$A$3:$C$323,3,FALSE),0),0) -> 0 | EX29: =IFERROR((K29+V29+AG29+AR29+BC29+BN29+BY29+CJ29+CU29+DF29+DQ29+EB29)/ROUND(12/VLOOKUP($A29, Annualization!$A$3:$C$323,3,FALSE),0),0) -> 0 | EY29: =IFERROR((L29+W29+AH29+AS29+BD29+BO29+BZ29+CK29+CV29+DG29+DR29+EC29)/ROUND(12/VLOOKUP($A29, Annualization!$A$3:$C$323,3,FALSE),0),0) -> 0 | EZ29: =IFERROR((M29+X29+AI29+AT29+BE29+BP29+CA29+CL29+CW29+DH29+DS29+ED29)/ROUND(12/VLOOKUP($A29, Annualization!$A$3:$C$323,3,FALSE),0),0) -> 0
EE30: 0 | EF30: 0 | EG30: 0 | EH30: 0 | EI30: 0 | EJ30: 0 | EK30: 0 | EL30: 0 | EM30: 0 | EN30: 0 | EO30: 0 | EP30: =IFERROR((C30+N30+Y30+AJ30+AU30+BF30+BQ30+CB30+CM30+CX30+DI30+DT30)/ROUND(12/VLOOKUP($A30, Annualization!$A$3:$C$323,3,FALSE),0),0) -> 0 | EQ30: =IFERROR((D30+O30+Z30+AK30+AV30+BG30+BR30+CC30+CN30+CY30+DJ30+DU30)/ROUND(12/VLOOKUP($A30, Annualization!$A$3:$C$323,3,FALSE),0),0) -> 0 | ER30: =IFERROR((E30+P30+AA30+AL30+AW30+BH30+BS30+CD30+CO30+CZ30+DK30+DV30)/ROUND(12/VLOOKUP($A30, Annualization!$A$3:$C$323,3,FALSE),0),0) -> 0 | ES30: =IFERROR((F30+Q30+AB30+AM30+AX30+BI30+BT30+CE30+CP30+DA30+DL30+DW30)/ROUND(12/VLOOKUP($A30, Annualization!$A$3:$C$323,3,FALSE),0),0) -> 0 | ET30: =IFERROR((G30+R30+AC30+AN30+AY30+BJ30+BU30+CF30+CQ30+DB30+DM30+DX30)/ROUND(12/VLOOKUP($A30, Annualization!$A$3:$C$323,3,FALSE),0),0) -> 0 | EU30: =IFERROR((H30+S30+AD30+AO30+AZ30+BK30+BV30+CG30+CR30+DC30+DN30+DY30)/ROUND(12/VLOOKUP($A30, Annualization!$A$3:$C$323,3,FALSE),0),0) -> 0 | EV30: =IFERROR((I30+T30+AE30+AP30+BA30+BL30+BW30+CH30+CS30+DD30+DO30+DZ30)/ROUND(12/VLOOKUP($A30, Annualization!$A$3:$C$323,3,FALSE),0),0) -> 0 | EW30: =IFERROR((J30+U30+AF30+AQ30+BB30+BM30+BX30+CI30+CT30+DE30+DP30+EA30)/ROUND(12/VLOOKUP($A30, Annualization!$A$3:$C$323,3,FALSE),0),0) -> 0 | EX30: =IFERROR((K30+V30+AG30+AR30+BC30+BN30+BY30+CJ30+CU30+DF30+DQ30+EB30)/ROUND(12/VLOOKUP($A30, Annualization!$A$3:$C$323,3,FALSE),0),0) -> 0 | EY30: =IFERROR((L30+W30+AH30+AS30+BD30+BO30+BZ30+CK30+CV30+DG30+DR30+EC30)/ROUND(12/VLOOKUP($A30, Annualization!$A$3:$C$323,3,FALSE),0),0) -> 0 | EZ30: =IFERROR((M30+X30+AI30+AT30+BE30+BP30+CA30+CL30+CW30+DH30+DS30+ED30)/ROUND(12/VLOOKUP($A30, Annualization!$A$3:$C$323,3,FALSE),0),0) -> 0
EE31: 0 | EF31: 0 | EG31: 0 | EH31: 0 | EI31: 0 | EJ31: 0 | EK31: 0 | EL31: 0 | EM31: 0 | EN31: 0 | EO31: 0 | EP31: =IFERROR((C31+N31+Y31+AJ31+AU31+BF31+BQ31+CB31+CM31+CX31+DI31+DT31)/ROUND(12/VLOOKUP($A31, Annualization!$A$3:$C$323,3,FALSE),0),0) -> 0 | EQ31: =IFERROR((D31+O31+Z31+AK31+AV31+BG31+BR31+CC31+CN31+CY31+DJ31+DU31)/ROUND(12/VLOOKUP($A31, Annualization!$A$3:$C$323,3,FALSE),0),0) -> 0 | ER31: =IFERROR((E31+P31+AA31+AL31+AW31+BH31+BS31+CD31+CO31+CZ31+DK31+DV31)/ROUND(12/VLOOKUP($A31, Annualization!$A$3:$C$323,3,FALSE),0),0) -> 0 | ES31: =IFERROR((F31+Q31+AB31+AM31+AX31+BI31+BT31+CE31+CP31+DA31+DL31+DW31)/ROUND(12/VLOOKUP($A31, Annualization!$A$3:$C$323,3,FALSE),0),0) -> 0 | ET31: =IFERROR((G31+R31+AC31+AN31+AY31+BJ31+BU31+CF31+CQ31+DB31+DM31+DX31)/ROUND(12/VLOOKUP($A31, Annualization!$A$3:$C$323,3,FALSE),0),0) -> 0 | EU31: =IFERROR((H31+S31+AD31+AO31+AZ31+BK31+BV31+CG31+CR31+DC31+DN31+DY31)/ROUND(12/VLOOKUP($A31, Annualization!$A$3:$C$323,3,FALSE),0),0) -> 0 | EV31: =IFERROR((I31+T31+AE31+AP31+BA31+BL31+BW31+CH31+CS31+DD31+DO31+DZ31)/ROUND(12/VLOOKUP($A31, Annualization!$A$3:$C$323,3,FALSE),0),0) -> 0 | EW31: =IFERROR((J31+U31+AF31+AQ31+BB31+BM31+BX31+CI31+CT31+DE31+DP31+EA31)/ROUND(12/VLOOKUP($A31, Annualization!$A$3:$C$323,3,FALSE),0),0) -> 0 | EX31: =IFERROR((K31+V31+AG31+AR31+BC31+BN31+BY31+CJ31+CU31+DF31+DQ31+EB31)/ROUND(12/VLOOKUP($A31, Annualization!$A$3:$C$323,3,FALSE),0),0) -> 0 | EY31: =IFERROR((L31+W31+AH31+AS31+BD31+BO31+BZ31+CK31+CV31+DG31+DR31+EC31)/ROUND(12/VLOOKUP($A31, Annualization!$A$3:$C$323,3,FALSE),0),0) -> 0 | EZ31: =IFERROR((M31+X31+AI31+AT31+BE31+BP31+CA31+CL31+CW31+DH31+DS31+ED31)/ROUND(12/VLOOKUP($A31, Annualization!$A$3:$C$323,3,FALSE),0),0) -> 0
EE32: 0 | EF32: 0 | EG32: 0 | EH32: 0 | EI32: 0 | EJ32: 0 | EK32: 0 | EL32: 0 | EM32: 0 | EN32: 0 | EO32: 0 | EP32: =IFERROR((C32+N32+Y32+AJ32+AU32+BF32+BQ32+CB32+CM32+CX32+DI32+DT32)/ROUND(12/VLOOKUP($A32, Annualization!$A$3:$C$323,3,FALSE),0),0) -> 0 | EQ32: =IFERROR((D32+O32+Z32+AK32+AV32+BG32+BR32+CC32+CN32+CY32+DJ32+DU32)/ROUND(12/VLOOKUP($A32, Annualization!$A$3:$C$323,3,FALSE),0),0) -> 0 | ER32: =IFERROR((E32+P32+AA32+AL32+AW32+BH32+BS32+CD32+CO32+CZ32+DK32+DV32)/ROUND(12/VLOOKUP($A32, Annualization!$A$3:$C$323,3,FALSE),0),0) -> 0 | ES32: =IFERROR((F32+Q32+AB32+AM32+AX32+BI32+BT32+CE32+CP32+DA32+DL32+DW32)/ROUND(12/VLOOKUP($A32, Annualization!$A$3:$C$323,3,FALSE),0),0) -> 0 | ET32: =IFERROR((G32+R32+AC32+AN32+AY32+BJ32+BU32+CF32+CQ32+DB32+DM32+DX32)/ROUND(12/VLOOKUP($A32, Annualization!$A$3:$C$323,3,FALSE),0),0) -> 0 | EU32: =IFERROR((H32+S32+AD32+AO32+AZ32+BK32+BV32+CG32+CR32+DC32+DN32+DY32)/ROUND(12/VLOOKUP($A32, Annualization!$A$3:$C$323,3,FALSE),0),0) -> 0 | EV32: =IFERROR((I32+T32+AE32+AP32+BA32+BL32+BW32+CH32+CS32+DD32+DO32+DZ32)/ROUND(12/VLOOKUP($A32, Annualization!$A$3:$C$323,3,FALSE),0),0) -> 0 | EW32: =IFERROR((J32+U32+AF32+AQ32+BB32+BM32+BX32+CI32+CT32+DE32+DP32+EA32)/ROUND(12/VLOOKUP($A32, Annualization!$A$3:$C$323,3,FALSE),0),0) -> 0 | EX32: =IFERROR((K32+V32+AG32+AR32+BC32+BN32+BY32+CJ32+CU32+DF32+DQ32+EB32)/ROUND(12/VLOOKUP($A32, Annualization!$A$3:$C$323,3,FALSE),0),0) -> 0 | EY32: =IFERROR((L32+W32+AH32+AS32+BD32+BO32+BZ32+CK32+CV32+DG32+DR32+EC32)/ROUND(12/VLOOKUP($A32, Annualization!$A$3:$C$323,3,FALSE),0),0) -> 0 | EZ32: =IFERROR((M32+X32+AI32+AT32+BE32+BP32+CA32+CL32+CW32+DH32+DS32+ED32)/ROUND(12/VLOOKUP($A32, Annualization!$A$3:$C$323,3,FALSE),0),0) -> 0
EE33: 0 | EF33: 0 | EG33: 0 | EH33: 0 | EI33: 0 | EJ33: 0 | EK33: 0 | EL33: 0 | EM33: 0 | EN33: 0 | EO33: 0 | EP33: =IFERROR((C33+N33+Y33+AJ33+AU33+BF33+BQ33+CB33+CM33+CX33+DI33+DT33)/ROUND(12/VLOOKUP($A33, Annualization!$A$3:$C$323,3,FALSE),0),0) -> 0 | EQ33: =IFERROR((D33+O33+Z33+AK33+AV33+BG33+BR33+CC33+CN33+CY33+DJ33+DU33)/ROUND(12/VLOOKUP($A33, Annualization!$A$3:$C$323,3,FALSE),0),0) -> 0 | ER33: =IFERROR((E33+P33+AA33+AL33+AW33+BH33+BS33+CD33+CO33+CZ33+DK33+DV33)/ROUND(12/VLOOKUP($A33, Annualization!$A$3:$C$323,3,FALSE),0),0) -> 0 | ES33: =IFERROR((F33+Q33+AB33+AM33+AX33+BI33+BT33+CE33+CP33+DA33+DL33+DW33)/ROUND(12/VLOOKUP($A33, Annualization!$A$3:$C$323,3,FALSE),0),0) -> 0 | ET33: =IFERROR((G33+R33+AC33+AN33+AY33+BJ33+BU33+CF33+CQ33+DB33+DM33+DX33)/ROUND(12/VLOOKUP($A33, Annualization!$A$3:$C$323,3,FALSE),0),0) -> 0 | EU33: =IFERROR((H33+S33+AD33+AO33+AZ33+BK33+BV33+CG33+CR33+DC33+DN33+DY33)/ROUND(12/VLOOKUP($A33, Annualization!$A$3:$C$323,3,FALSE),0),0) -> 0 | EV33: =IFERROR((I33+T33+AE33+AP33+BA33+BL33+BW33+CH33+CS33+DD33+DO33+DZ33)/ROUND(12/VLOOKUP($A33, Annualization!$A$3:$C$323,3,FALSE),0),0) -> 0 | EW33: =IFERROR((J33+U33+AF33+AQ33+BB33+BM33+BX33+CI33+CT33+DE33+DP33+EA33)/ROUND(12/VLOOKUP($A33, Annualization!$A$3:$C$323,3,FALSE),0),0) -> 0 | EX33: =IFERROR((K33+V33+AG33+AR33+BC33+BN33+BY33+CJ33+CU33+DF33+DQ33+EB33)/ROUND(12/VLOOKUP($A33, Annualization!$A$3:$C$323,3,FALSE),0),0) -> 0 | EY33: =IFERROR((L33+W33+AH33+AS33+BD33+BO33+BZ33+CK33+CV33+DG33+DR33+EC33)/ROUND(12/VLOOKUP($A33, Annualization!$A$3:$C$323,3,FALSE),0),0) -> 0 | EZ33: =IFERROR((M33+X33+AI33+AT33+BE33+BP33+CA33+CL33+CW33+DH33+DS33+ED33)/ROUND(12/VLOOKUP($A33, Annualization!$A$3:$C$323,3,FALSE),0),0) -> 0
EE34: 0 | EF34: 0 | EG34: 0 | EH34: 0 | EI34: 0 | EJ34: 0 | EK34: 0 | EL34: 0 | EM34: 0 | EN34: 0 | EO34: 0 | EP34: =IFERROR((C34+N34+Y34+AJ34+AU34+BF34+BQ34+CB34+CM34+CX34+DI34+DT34)/ROUND(12/VLOOKUP($A34, Annualization!$A$3:$C$323,3,FALSE),0),0) -> 0 | EQ34: =IFERROR((D34+O34+Z34+AK34+AV34+BG34+BR34+CC34+CN34+CY34+DJ34+DU34)/ROUND(12/VLOOKUP($A34, Annualization!$A$3:$C$323,3,FALSE),0),0) -> 0 | ER34: =IFERROR((E34+P34+AA34+AL34+AW34+BH34+BS34+CD34+CO34+CZ34+DK34+DV34)/ROUND(12/VLOOKUP($A34, Annualization!$A$3:$C$323,3,FALSE),0),0) -> 0 | ES34: =IFERROR((F34+Q34+AB34+AM34+AX34+BI34+BT34+CE34+CP34+DA34+DL34+DW34)/ROUND(12/VLOOKUP($A34, Annualization!$A$3:$C$323,3,FALSE),0),0) -> 0 | ET34: =IFERROR((G34+R34+AC34+AN34+AY34+BJ34+BU34+CF34+CQ34+DB34+DM34+DX34)/ROUND(12/VLOOKUP($A34, Annualization!$A$3:$C$323,3,FALSE),0),0) -> 0 | EU34: =IFERROR((H34+S34+AD34+AO34+AZ34+BK34+BV34+CG34+CR34+DC34+DN34+DY34)/ROUND(12/VLOOKUP($A34, Annualization!$A$3:$C$323,3,FALSE),0),0) -> 0 | EV34: =IFERROR((I34+T34+AE34+AP34+BA34+BL34+BW34+CH34+CS34+DD34+DO34+DZ34)/ROUND(12/VLOOKUP($A34, Annualization!$A$3:$C$323,3,FALSE),0),0) -> 0 | EW34: =IFERROR((J34+U34+AF34+AQ34+BB34+BM34+BX34+CI34+CT34+DE34+DP34+EA34)/ROUND(12/VLOOKUP($A34, Annualization!$A$3:$C$323,3,FALSE),0),0) -> 0 | EX34: =IFERROR((K34+V34+AG34+AR34+BC34+BN34+BY34+CJ34+CU34+DF34+DQ34+EB34)/ROUND(12/VLOOKUP($A34, Annualization!$A$3:$C$323,3,FALSE),0),0) -> 0 | EY34: =IFERROR((L34+W34+AH34+AS34+BD34+BO34+BZ34+CK34+CV34+DG34+DR34+EC34)/ROUND(12/VLOOKUP($A34, Annualization!$A$3:$C$323,3,FALSE),0),0) -> 0 | EZ34: =IFERROR((M34+X34+AI34+AT34+BE34+BP34+CA34+CL34+CW34+DH34+DS34+ED34)/ROUND(12/VLOOKUP($A34, Annualization!$A$3:$C$323,3,FALSE),0),0) -> 0
EE35: 0 | EF35: 0 | EG35: 0 | EH35: 0 | EI35: 0 | EJ35: 0 | EK35: 0 | EL35: 0 | EM35: 0 | EN35: 0 | EO35: 0 | EP35: =IFERROR((C35+N35+Y35+AJ35+AU35+BF35+BQ35+CB35+CM35+CX35+DI35+DT35)/ROUND(12/VLOOKUP($A35, Annualization!$A$3:$C$323,3,FALSE),0),0) -> 0 | EQ35: =IFERROR((D35+O35+Z35+AK35+AV35+BG35+BR35+CC35+CN35+CY35+DJ35+DU35)/ROUND(12/VLOOKUP($A35, Annualization!$A$3:$C$323,3,FALSE),0),0) -> 0 | ER35: =IFERROR((E35+P35+AA35+AL35+AW35+BH35+BS35+CD35+CO35+CZ35+DK35+DV35)/ROUND(12/VLOOKUP($A35, Annualization!$A$3:$C$323,3,FALSE),0),0) -> 0 | ES35: =IFERROR((F35+Q35+AB35+AM35+AX35+BI35+BT35+CE35+CP35+DA35+DL35+DW35)/ROUND(12/VLOOKUP($A35, Annualization!$A$3:$C$323,3,FALSE),0),0) -> 0 | ET35: =IFERROR((G35+R35+AC35+AN35+AY35+BJ35+BU35+CF35+CQ35+DB35+DM35+DX35)/ROUND(12/VLOOKUP($A35, Annualization!$A$3:$C$323,3,FALSE),0),0) -> 0 | EU35: =IFERROR((H35+S35+AD35+AO35+AZ35+BK35+BV35+CG35+CR35+DC35+DN35+DY35)/ROUND(12/VLOOKUP($A35, Annualization!$A$3:$C$323,3,FALSE),0),0) -> 0 | EV35: =IFERROR((I35+T35+AE35+AP35+BA35+BL35+BW35+CH35+CS35+DD35+DO35+DZ35)/ROUND(12/VLOOKUP($A35, Annualization!$A$3:$C$323,3,FALSE),0),0) -> 0 | EW35: =IFERROR((J35+U35+AF35+AQ35+BB35+BM35+BX35+CI35+CT35+DE35+DP35+EA35)/ROUND(12/VLOOKUP($A35, Annualization!$A$3:$C$323,3,FALSE),0),0) -> 0 | EX35: =IFERROR((K35+V35+AG35+AR35+BC35+BN35+BY35+CJ35+CU35+DF35+DQ35+EB35)/ROUND(12/VLOOKUP($A35, Annualization!$A$3:$C$323,3,FALSE),0),0) -> 0 | EY35: =IFERROR((L35+W35+AH35+AS35+BD35+BO35+BZ35+CK35+CV35+DG35+DR35+EC35)/ROUND(12/VLOOKUP($A35, Annualization!$A$3:$C$323,3,FALSE),0),0) -> 0 | EZ35: =IFERROR((M35+X35+AI35+AT35+BE35+BP35+CA35+CL35+CW35+DH35+DS35+ED35)/ROUND(12/VLOOKUP($A35, Annualization!$A$3:$C$323,3,FALSE),0),0) -> 0
EE36: 0 | EF36: 0 | EG36: 0 | EH36: 0 | EI36: 0 | EJ36: 0 | EK36: 0 | EL36: 0 | EM36: 0 | EN36: 0 | EO36: 0 | EP36: =IFERROR((C36+N36+Y36+AJ36+AU36+BF36+BQ36+CB36+CM36+CX36+DI36+DT36)/ROUND(12/VLOOKUP($A36, Annualization!$A$3:$C$323,3,FALSE),0),0) -> 0 | EQ36: =IFERROR((D36+O36+Z36+AK36+AV36+BG36+BR36+CC36+CN36+CY36+DJ36+DU36)/ROUND(12/VLOOKUP($A36, Annualization!$A$3:$C$323,3,FALSE),0),0) -> 0 | ER36: =IFERROR((E36+P36+AA36+AL36+AW36+BH36+BS36+CD36+CO36+CZ36+DK36+DV36)/ROUND(12/VLOOKUP($A36, Annualization!$A$3:$C$323,3,FALSE),0),0) -> 0 | ES36: =IFERROR((F36+Q36+AB36+AM36+AX36+BI36+BT36+CE36+CP36+DA36+DL36+DW36)/ROUND(12/VLOOKUP($A36, Annualization!$A$3:$C$323,3,FALSE),0),0) -> 0 | ET36: =IFERROR((G36+R36+AC36+AN36+AY36+BJ36+BU36+CF36+CQ36+DB36+DM36+DX36)/ROUND(12/VLOOKUP($A36, Annualization!$A$3:$C$323,3,FALSE),0),0) -> 0 | EU36: =IFERROR((H36+S36+AD36+AO36+AZ36+BK36+BV36+CG36+CR36+DC36+DN36+DY36)/ROUND(12/VLOOKUP($A36, Annualization!$A$3:$C$323,3,FALSE),0),0) -> 0 | EV36: =IFERROR((I36+T36+AE36+AP36+BA36+BL36+BW36+CH36+CS36+DD36+DO36+DZ36)/ROUND(12/VLOOKUP($A36, Annualization!$A$3:$C$323,3,FALSE),0),0) -> 0 | EW36: =IFERROR((J36+U36+AF36+AQ36+BB36+BM36+BX36+CI36+CT36+DE36+DP36+EA36)/ROUND(12/VLOOKUP($A36, Annualization!$A$3:$C$323,3,FALSE),0),0) -> 0 | EX36: =IFERROR((K36+V36+AG36+AR36+BC36+BN36+BY36+CJ36+CU36+DF36+DQ36+EB36)/ROUND(12/VLOOKUP($A36, Annualization!$A$3:$C$323,3,FALSE),0),0) -> 0 | EY36: =IFERROR((L36+W36+AH36+AS36+BD36+BO36+BZ36+CK36+CV36+DG36+DR36+EC36)/ROUND(12/VLOOKUP($A36, Annualization!$A$3:$C$323,3,FALSE),0),0) -> 0 | EZ36: =IFERROR((M36+X36+AI36+AT36+BE36+BP36+CA36+CL36+CW36+DH36+DS36+ED36)/ROUND(12/VLOOKUP($A36, Annualization!$A$3:$C$323,3,FALSE),0),0) -> 0
EE37: 0 | EF37: 0 | EG37: 0 | EH37: 0 | EI37: 0 | EJ37: 0 | EK37: 0 | EL37: 0 | EM37: 0 | EN37: 0 | EO37: 0 | EP37: =IFERROR((C37+N37+Y37+AJ37+AU37+BF37+BQ37+CB37+CM37+CX37+DI37+DT37)/ROUND(12/VLOOKUP($A37, Annualization!$A$3:$C$323,3,FALSE),0),0) -> 0 | EQ37: =IFERROR((D37+O37+Z37+AK37+AV37+BG37+BR37+CC37+CN37+CY37+DJ37+DU37)/ROUND(12/VLOOKUP($A37, Annualization!$A$3:$C$323,3,FALSE),0),0) -> 0 | ER37: =IFERROR((E37+P37+AA37+AL37+AW37+BH37+BS37+CD37+CO37+CZ37+DK37+DV37)/ROUND(12/VLOOKUP($A37, Annualization!$A$3:$C$323,3,FALSE),0),0) -> 0 | ES37: =IFERROR((F37+Q37+AB37+AM37+AX37+BI37+BT37+CE37+CP37+DA37+DL37+DW37)/ROUND(12/VLOOKUP($A37, Annualization!$A$3:$C$323,3,FALSE),0),0) -> 0 | ET37: =IFERROR((G37+R37+AC37+AN37+AY37+BJ37+BU37+CF37+CQ37+DB37+DM37+DX37)/ROUND(12/VLOOKUP($A37, Annualization!$A$3:$C$323,3,FALSE),0),0) -> 0 | EU37: =IFERROR((H37+S37+AD37+AO37+AZ37+BK37+BV37+CG37+CR37+DC37+DN37+DY37)/ROUND(12/VLOOKUP($A37, Annualization!$A$3:$C$323,3,FALSE),0),0) -> 0 | EV37: =IFERROR((I37+T37+AE37+AP37+BA37+BL37+BW37+CH37+CS37+DD37+DO37+DZ37)/ROUND(12/VLOOKUP($A37, Annualization!$A$3:$C$323,3,FALSE),0),0) -> 0 | EW37: =IFERROR((J37+U37+AF37+AQ37+BB37+BM37+BX37+CI37+CT37+DE37+DP37+EA37)/ROUND(12/VLOOKUP($A37, Annualization!$A$3:$C$323,3,FALSE),0),0) -> 0 | EX37: =IFERROR((K37+V37+AG37+AR37+BC37+BN37+BY37+CJ37+CU37+DF37+DQ37+EB37)/ROUND(12/VLOOKUP($A37, Annualization!$A$3:$C$323,3,FALSE),0),0) -> 0 | EY37: =IFERROR((L37+W37+AH37+AS37+BD37+BO37+BZ37+CK37+CV37+DG37+DR37+EC37)/ROUND(12/VLOOKUP($A37, Annualization!$A$3:$C$323,3,FALSE),0),0) -> 0 | EZ37: =IFERROR((M37+X37+AI37+AT37+BE37+BP37+CA37+CL37+CW37+DH37+DS37+ED37)/ROUND(12/VLOOKUP($A37, Annualization!$A$3:$C$323,3,FALSE),0),0) -> 0
EE38: 0 | EF38: 0 | EG38: 0 | EH38: 0 | EI38: 0 | EJ38: 0 | EK38: 0 | EL38: 0 | EM38: 0 | EN38: 0 | EO38: 0 | EP38: =IFERROR((C38+N38+Y38+AJ38+AU38+BF38+BQ38+CB38+CM38+CX38+DI38+DT38)/ROUND(12/VLOOKUP($A38, Annualization!$A$3:$C$323,3,FALSE),0),0) -> 0 | EQ38: =IFERROR((D38+O38+Z38+AK38+AV38+BG38+BR38+CC38+CN38+CY38+DJ38+DU38)/ROUND(12/VLOOKUP($A38, Annualization!$A$3:$C$323,3,FALSE),0),0) -> 0 | ER38: =IFERROR((E38+P38+AA38+AL38+AW38+BH38+BS38+CD38+CO38+CZ38+DK38+DV38)/ROUND(12/VLOOKUP($A38, Annualization!$A$3:$C$323,3,FALSE),0),0) -> 0 | ES38: =IFERROR((F38+Q38+AB38+AM38+AX38+BI38+BT38+CE38+CP38+DA38+DL38+DW38)/ROUND(12/VLOOKUP($A38, Annualization!$A$3:$C$323,3,FALSE),0),0) -> 0 | ET38: =IFERROR((G38+R38+AC38+AN38+AY38+BJ38+BU38+CF38+CQ38+DB38+DM38+DX38)/ROUND(12/VLOOKUP($A38, Annualization!$A$3:$C$323,3,FALSE),0),0) -> 0 | EU38: =IFERROR((H38+S38+AD38+AO38+AZ38+BK38+BV38+CG38+CR38+DC38+DN38+DY38)/ROUND(12/VLOOKUP($A38, Annualization!$A$3:$C$323,3,FALSE),0),0) -> 0 | EV38: =IFERROR((I38+T38+AE38+AP38+BA38+BL38+BW38+CH38+CS38+DD38+DO38+DZ38)/ROUND(12/VLOOKUP($A38, Annualization!$A$3:$C$323,3,FALSE),0),0) -> 0 | EW38: =IFERROR((J38+U38+AF38+AQ38+BB38+BM38+BX38+CI38+CT38+DE38+DP38+EA38)/ROUND(12/VLOOKUP($A38, Annualization!$A$3:$C$323,3,FALSE),0),0) -> 0 | EX38: =IFERROR((K38+V38+AG38+AR38+BC38+BN38+BY38+CJ38+CU38+DF38+DQ38+EB38)/ROUND(12/VLOOKUP($A38, Annualization!$A$3:$C$323,3,FALSE),0),0) -> 0 | EY38: =IFERROR((L38+W38+AH38+AS38+BD38+BO38+BZ38+CK38+CV38+DG38+DR38+EC38)/ROUND(12/VLOOKUP($A38, Annualization!$A$3:$C$323,3,FALSE),0),0) -> 0 | EZ38: =IFERROR((M38+X38+AI38+AT38+BE38+BP38+CA38+CL38+CW38+DH38+DS38+ED38)/ROUND(12/VLOOKUP($A38, Annualization!$A$3:$C$323,3,FALSE),0),0) -> 0
EE39: 0 | EF39: 0 | EG39: 0 | EH39: 0 | EI39: 0 | EJ39: =(H39+S39+AD39+AO39+AZ39+BK39+BV39+CG39+CR39+DC39+DN39+DY39) -> 0 | EK39: 0 | EL39: 0 | EM39: 0 | EN39: 0 | EO39: 0 | EP39: =IFERROR((C39+N39+Y39+AJ39+AU39+BF39+BQ39+CB39+CM39+CX39+DI39+DT39)/ROUND(12/VLOOKUP($A39, Annualization!$A$3:$C$323,3,FALSE),0),0) -> 0 | EQ39: =IFERROR((D39+O39+Z39+AK39+AV39+BG39+BR39+CC39+CN39+CY39+DJ39+DU39)/ROUND(12/VLOOKUP($A39, Annualization!$A$3:$C$323,3,FALSE),0),0) -> 0 | ER39: =IFERROR((E39+P39+AA39+AL39+AW39+BH39+BS39+CD39+CO39+CZ39+DK39+DV39)/ROUND(12/VLOOKUP($A39, Annualization!$A$3:$C$323,3,FALSE),0),0) -> 0 | ES39: =IFERROR((F39+Q39+AB39+AM39+AX39+BI39+BT39+CE39+CP39+DA39+DL39+DW39)/ROUND(12/VLOOKUP($A39, Annualization!$A$3:$C$323,3,FALSE),0),0) -> 0 | ET39: =IFERROR((G39+R39+AC39+AN39+AY39+BJ39+BU39+CF39+CQ39+DB39+DM39+DX39)/ROUND(12/VLOOKUP($A39, Annualization!$A$3:$C$323,3,FALSE),0),0) -> 0 | EU39: =IFERROR((H39+S39+AD39+AO39+AZ39+BK39+BV39+CG39+CR39+DC39+DN39+DY39)/ROUND(12/VLOOKUP($A39, Annualization!$A$3:$C$323,3,FALSE),0),0) -> 0 | EV39: =IFERROR((I39+T39+AE39+AP39+BA39+BL39+BW39+CH39+CS39+DD39+DO39+DZ39)/ROUND(12/VLOOKUP($A39, Annualization!$A$3:$C$323,3,FALSE),0),0) -> 0 | EW39: =IFERROR((J39+U39+AF39+AQ39+BB39+BM39+BX39+CI39+CT39+DE39+DP39+EA39)/ROUND(12/VLOOKUP($A39, Annualization!$A$3:$C$323,3,FALSE),0),0) -> 0 | EX39: =IFERROR((K39+V39+AG39+AR39+BC39+BN39+BY39+CJ39+CU39+DF39+DQ39+EB39)/ROUND(12/VLOOKUP($A39, Annualization!$A$3:$C$323,3,FALSE),0),0) -> 0 | EY39: =IFERROR((L39+W39+AH39+AS39+BD39+BO39+BZ39+CK39+CV39+DG39+DR39+EC39)/ROUND(12/VLOOKUP($A39, Annualization!$A$3:$C$323,3,FALSE),0),0) -> 0 | EZ39: =IFERROR((M39+X39+AI39+AT39+BE39+BP39+CA39+CL39+CW39+DH39+DS39+ED39)/ROUND(12/VLOOKUP($A39, Annualization!$A$3:$C$323,3,FALSE),0),0) -> 0
EE40: 0 | EF40: 0 | EG40: 0 | EH40: 0 | EI40: 0 | EJ40: 0 | EK40: 0 | EL40: 0 | EM40: 0 | EN40: 0 | EO40: 0 | EP40: =IFERROR((C40+N40+Y40+AJ40+AU40+BF40+BQ40+CB40+CM40+CX40+DI40+DT40)/ROUND(12/VLOOKUP($A40, Annualization!$A$3:$C$323,3,FALSE),0),0) -> 0 | EQ40: =IFERROR((D40+O40+Z40+AK40+AV40+BG40+BR40+CC40+CN40+CY40+DJ40+DU40)/ROUND(12/VLOOKUP($A40, Annualization!$A$3:$C$323,3,FALSE),0),0) -> 0 | ER40: =IFERROR((E40+P40+AA40+AL40+AW40+BH40+BS40+CD40+CO40+CZ40+DK40+DV40)/ROUND(12/VLOOKUP($A40, Annualization!$A$3:$C$323,3,FALSE),0),0) -> 0 | ES40: =IFERROR((F40+Q40+AB40+AM40+AX40+BI40+BT40+CE40+CP40+DA40+DL40+DW40)/ROUND(12/VLOOKUP($A40, Annualization!$A$3:$C$323,3,FALSE),0),0) -> 0 | ET40: =IFERROR((G40+R40+AC40+AN40+AY40+BJ40+BU40+CF40+CQ40+DB40+DM40+DX40)/ROUND(12/VLOOKUP($A40, Annualization!$A$3:$C$323,3,FALSE),0),0) -> 0 | EU40: =IFERROR((H40+S40+AD40+AO40+AZ40+BK40+BV40+CG40+CR40+DC40+DN40+DY40)/ROUND(12/VLOOKUP($A40, Annualization!$A$3:$C$323,3,FALSE),0),0) -> 0 | EV40: =IFERROR((I40+T40+AE40+AP40+BA40+BL40+BW40+CH40+CS40+DD40+DO40+DZ40)/ROUND(12/VLOOKUP($A40, Annualization!$A$3:$C$323,3,FALSE),0),0) -> 0 | EW40: =IFERROR((J40+U40+AF40+AQ40+BB40+BM40+BX40+CI40+CT40+DE40+DP40+EA40)/ROUND(12/VLOOKUP($A40, Annualization!$A$3:$C$323,3,FALSE),0),0) -> 0 | EX40: =IFERROR((K40+V40+AG40+AR40+BC40+BN40+BY40+CJ40+CU40+DF40+DQ40+EB40)/ROUND(12/VLOOKUP($A40, Annualization!$A$3:$C$323,3,FALSE),0),0) -> 0 | EY40: =IFERROR((L40+W40+AH40+AS40+BD40+BO40+BZ40+CK40+CV40+DG40+DR40+EC40)/ROUND(12/VLOOKUP($A40, Annualization!$A$3:$C$323,3,FALSE),0),0) -> 0 | EZ40: =IFERROR((M40+X40+AI40+AT40+BE40+BP40+CA40+CL40+CW40+DH40+DS40+ED40)/ROUND(12/VLOOKUP($A40, Annualization!$A$3:$C$323,3,FALSE),0),0) -> 0
EE41: 0 | EF41: 0 | EG41: 0 | EH41: 0 | EI41: 0 | EJ41: 0 | EK41: 0 | EL41: 0 | EM41: 0 | EN41: 0 | EO41: 0 | EP41: =IFERROR((C41+N41+Y41+AJ41+AU41+BF41+BQ41+CB41+CM41+CX41+DI41+DT41)/ROUND(12/VLOOKUP($A41, Annualization!$A$3:$C$323,3,FALSE),0),0) -> 0 | EQ41: =IFERROR((D41+O41+Z41+AK41+AV41+BG41+BR41+CC41+CN41+CY41+DJ41+DU41)/ROUND(12/VLOOKUP($A41, Annualization!$A$3:$C$323,3,FALSE),0),0) -> 0 | ER41: =IFERROR((E41+P41+AA41+AL41+AW41+BH41+BS41+CD41+CO41+CZ41+DK41+DV41)/ROUND(12/VLOOKUP($A41, Annualization!$A$3:$C$323,3,FALSE),0),0) -> 0 | ES41: =IFERROR((F41+Q41+AB41+AM41+AX41+BI41+BT41+CE41+CP41+DA41+DL41+DW41)/ROUND(12/VLOOKUP($A41, Annualization!$A$3:$C$323,3,FALSE),0),0) -> 0 | ET41: =IFERROR((G41+R41+AC41+AN41+AY41+BJ41+BU41+CF41+CQ41+DB41+DM41+DX41)/ROUND(12/VLOOKUP($A41, Annualization!$A$3:$C$323,3,FALSE),0),0) -> 0 | EU41: =IFERROR((H41+S41+AD41+AO41+AZ41+BK41+BV41+CG41+CR41+DC41+DN41+DY41)/ROUND(12/VLOOKUP($A41, Annualization!$A$3:$C$323,3,FALSE),0),0) -> 0 | EV41: =IFERROR((I41+T41+AE41+AP41+BA41+BL41+BW41+CH41+CS41+DD41+DO41+DZ41)/ROUND(12/VLOOKUP($A41, Annualization!$A$3:$C$323,3,FALSE),0),0) -> 0 | EW41: =IFERROR((J41+U41+AF41+AQ41+BB41+BM41+BX41+CI41+CT41+DE41+DP41+EA41)/ROUND(12/VLOOKUP($A41, Annualization!$A$3:$C$323,3,FALSE),0),0) -> 0 | EX41: =IFERROR((K41+V41+AG41+AR41+BC41+BN41+BY41+CJ41+CU41+DF41+DQ41+EB41)/ROUND(12/VLOOKUP($A41, Annualization!$A$3:$C$323,3,FALSE),0),0) -> 0 | EY41: =IFERROR((L41+W41+AH41+AS41+BD41+BO41+BZ41+CK41+CV41+DG41+DR41+EC41)/ROUND(12/VLOOKUP($A41, Annualization!$A$3:$C$323,3,FALSE),0),0) -> 0 | EZ41: =IFERROR((M41+X41+AI41+AT41+BE41+BP41+CA41+CL41+CW41+DH41+DS41+ED41)/ROUND(12/VLOOKUP($A41, Annualization!$A$3:$C$323,3,FALSE),0),0) -> 0
EE42: 0 | EF42: 0 | EG42: 0 | EH42: 0 | EI42: 0 | EJ42: 0 | EK42: 0 | EL42: 0 | EM42: 0 | EN42: 0 | EO42: 0 | EP42: =IFERROR((C42+N42+Y42+AJ42+AU42+BF42+BQ42+CB42+CM42+CX42+DI42+DT42)/ROUND(12/VLOOKUP($A42, Annualization!$A$3:$C$323,3,FALSE),0),0) -> 0 | EQ42: =IFERROR((D42+O42+Z42+AK42+AV42+BG42+BR42+CC42+CN42+CY42+DJ42+DU42)/ROUND(12/VLOOKUP($A42, Annualization!$A$3:$C$323,3,FALSE),0),0) -> 0 | ER42: =IFERROR((E42+P42+AA42+AL42+AW42+BH42+BS42+CD42+CO42+CZ42+DK42+DV42)/ROUND(12/VLOOKUP($A42, Annualization!$A$3:$C$323,3,FALSE),0),0) -> 0 | ES42: =IFERROR((F42+Q42+AB42+AM42+AX42+BI42+BT42+CE42+CP42+DA42+DL42+DW42)/ROUND(12/VLOOKUP($A42, Annualization!$A$3:$C$323,3,FALSE),0),0) -> 0 | ET42: =IFERROR((G42+R42+AC42+AN42+AY42+BJ42+BU42+CF42+CQ42+DB42+DM42+DX42)/ROUND(12/VLOOKUP($A42, Annualization!$A$3:$C$323,3,FALSE),0),0) -> 0 | EU42: =IFERROR((H42+S42+AD42+AO42+AZ42+BK42+BV42+CG42+CR42+DC42+DN42+DY42)/ROUND(12/VLOOKUP($A42, Annualization!$A$3:$C$323,3,FALSE),0),0) -> 0 | EV42: =IFERROR((I42+T42+AE42+AP42+BA42+BL42+BW42+CH42+CS42+DD42+DO42+DZ42)/ROUND(12/VLOOKUP($A42, Annualization!$A$3:$C$323,3,FALSE),0),0) -> 0 | EW42: =IFERROR((J42+U42+AF42+AQ42+BB42+BM42+BX42+CI42+CT42+DE42+DP42+EA42)/ROUND(12/VLOOKUP($A42, Annualization!$A$3:$C$323,3,FALSE),0),0) -> 0 | EX42: =IFERROR((K42+V42+AG42+AR42+BC42+BN42+BY42+CJ42+CU42+DF42+DQ42+EB42)/ROUND(12/VLOOKUP($A42, Annualization!$A$3:$C$323,3,FALSE),0),0) -> 0 | EY42: =IFERROR((L42+W42+AH42+AS42+BD42+BO42+BZ42+CK42+CV42+DG42+DR42+EC42)/ROUND(12/VLOOKUP($A42, Annualization!$A$3:$C$323,3,FALSE),0),0) -> 0 | EZ42: =IFERROR((M42+X42+AI42+AT42+BE42+BP42+CA42+CL42+CW42+DH42+DS42+ED42)/ROUND(12/VLOOKUP($A42, Annualization!$A$3:$C$323,3,FALSE),0),0) -> 0
EE43: 0 | EF43: 0 | EG43: 0 | EH43: 0 | EI43: 0 | EJ43: 0 | EK43: 0 | EL43: 0 | EM43: 0 | EN43: 0 | EO43: 0 | EP43: =IFERROR((C43+N43+Y43+AJ43+AU43+BF43+BQ43+CB43+CM43+CX43+DI43+DT43)/ROUND(12/VLOOKUP($A43, Annualization!$A$3:$C$323,3,FALSE),0),0) -> 0 | EQ43: =IFERROR((D43+O43+Z43+AK43+AV43+BG43+BR43+CC43+CN43+CY43+DJ43+DU43)/ROUND(12/VLOOKUP($A43, Annualization!$A$3:$C$323,3,FALSE),0),0) -> 0 | ER43: =IFERROR((E43+P43+AA43+AL43+AW43+BH43+BS43+CD43+CO43+CZ43+DK43+DV43)/ROUND(12/VLOOKUP($A43, Annualization!$A$3:$C$323,3,FALSE),0),0) -> 0 | ES43: =IFERROR((F43+Q43+AB43+AM43+AX43+BI43+BT43+CE43+CP43+DA43+DL43+DW43)/ROUND(12/VLOOKUP($A43, Annualization!$A$3:$C$323,3,FALSE),0),0) -> 0 | ET43: =IFERROR((G43+R43+AC43+AN43+AY43+BJ43+BU43+CF43+CQ43+DB43+DM43+DX43)/ROUND(12/VLOOKUP($A43, Annualization!$A$3:$C$323,3,FALSE),0),0) -> 0 | EU43: =IFERROR((H43+S43+AD43+AO43+AZ43+BK43+BV43+CG43+CR43+DC43+DN43+DY43)/ROUND(12/VLOOKUP($A43, Annualization!$A$3:$C$323,3,FALSE),0),0) -> 0 | EV43: =IFERROR((I43+T43+AE43+AP43+BA43+BL43+BW43+CH43+CS43+DD43+DO43+DZ43)/ROUND(12/VLOOKUP($A43, Annualization!$A$3:$C$323,3,FALSE),0),0) -> 0 | EW43: =IFERROR((J43+U43+AF43+AQ43+BB43+BM43+BX43+CI43+CT43+DE43+DP43+EA43)/ROUND(12/VLOOKUP($A43, Annualization!$A$3:$C$323,3,FALSE),0),0) -> 0 | EX43: =IFERROR((K43+V43+AG43+AR43+BC43+BN43+BY43+CJ43+CU43+DF43+DQ43+EB43)/ROUND(12/VLOOKUP($A43, Annualization!$A$3:$C$323,3,FALSE),0),0) -> 0 | EY43: =IFERROR((L43+W43+AH43+AS43+BD43+BO43+BZ43+CK43+CV43+DG43+DR43+EC43)/ROUND(12/VLOOKUP($A43, Annualization!$A$3:$C$323,3,FALSE),0),0) -> 0 | EZ43: =IFERROR((M43+X43+AI43+AT43+BE43+BP43+CA43+CL43+CW43+DH43+DS43+ED43)/ROUND(12/VLOOKUP($A43, Annualization!$A$3:$C$323,3,FALSE),0),0) -> 0
EE44: 0 | EF44: 0 | EG44: 0 | EH44: 0 | EI44: 0 | EJ44: 0 | EK44: 0 | EL44: 0 | EM44: 0 | EN44: 0 | EO44: 0 | EP44: =IFERROR((C44+N44+Y44+AJ44+AU44+BF44+BQ44+CB44+CM44+CX44+DI44+DT44)/ROUND(12/VLOOKUP($A44, Annualization!$A$3:$C$323,3,FALSE),0),0) -> 0 | EQ44: =IFERROR((D44+O44+Z44+AK44+AV44+BG44+BR44+CC44+CN44+CY44+DJ44+DU44)/ROUND(12/VLOOKUP($A44, Annualization!$A$3:$C$323,3,FALSE),0),0) -> 0 | ER44: =IFERROR((E44+P44+AA44+AL44+AW44+BH44+BS44+CD44+CO44+CZ44+DK44+DV44)/ROUND(12/VLOOKUP($A44, Annualization!$A$3:$C$323,3,FALSE),0),0) -> 0 | ES44: =IFERROR((F44+Q44+AB44+AM44+AX44+BI44+BT44+CE44+CP44+DA44+DL44+DW44)/ROUND(12/VLOOKUP($A44, Annualization!$A$3:$C$323,3,FALSE),0),0) -> 0 | ET44: =IFERROR((G44+R44+AC44+AN44+AY44+BJ44+BU44+CF44+CQ44+DB44+DM44+DX44)/ROUND(12/VLOOKUP($A44, Annualization!$A$3:$C$323,3,FALSE),0),0) -> 0 | EU44: =IFERROR((H44+S44+AD44+AO44+AZ44+BK44+BV44+CG44+CR44+DC44+DN44+DY44)/ROUND(12/VLOOKUP($A44, Annualization!$A$3:$C$323,3,FALSE),0),0) -> 0 | EV44: =IFERROR((I44+T44+AE44+AP44+BA44+BL44+BW44+CH44+CS44+DD44+DO44+DZ44)/ROUND(12/VLOOKUP($A44, Annualization!$A$3:$C$323,3,FALSE),0),0) -> 0 | EW44: =IFERROR((J44+U44+AF44+AQ44+BB44+BM44+BX44+CI44+CT44+DE44+DP44+EA44)/ROUND(12/VLOOKUP($A44, Annualization!$A$3:$C$323,3,FALSE),0),0) -> 0 | EX44: =IFERROR((K44+V44+AG44+AR44+BC44+BN44+BY44+CJ44+CU44+DF44+DQ44+EB44)/ROUND(12/VLOOKUP($A44, Annualization!$A$3:$C$323,3,FALSE),0),0) -> 0 | EY44: =IFERROR((L44+W44+AH44+AS44+BD44+BO44+BZ44+CK44+CV44+DG44+DR44+EC44)/ROUND(12/VLOOKUP($A44, Annualization!$A$3:$C$323,3,FALSE),0),0) -> 0 | EZ44: =IFERROR((M44+X44+AI44+AT44+BE44+BP44+CA44+CL44+CW44+DH44+DS44+ED44)/ROUND(12/VLOOKUP($A44, Annualization!$A$3:$C$323,3,FALSE),0),0) -> 0
EE45: 0 | EF45: 0 | EG45: 0 | EH45: 0 | EI45: 0 | EJ45: 0 | EK45: 0 | EL45: 0 | EM45: 0 | EN45: 0 | EO45: 0 | EP45: =IFERROR((C45+N45+Y45+AJ45+AU45+BF45+BQ45+CB45+CM45+CX45+DI45+DT45)/ROUND(12/VLOOKUP($A45, Annualization!$A$3:$C$323,3,FALSE),0),0) -> 0 | EQ45: =IFERROR((D45+O45+Z45+AK45+AV45+BG45+BR45+CC45+CN45+CY45+DJ45+DU45)/ROUND(12/VLOOKUP($A45, Annualization!$A$3:$C$323,3,FALSE),0),0) -> 0 | ER45: =IFERROR((E45+P45+AA45+AL45+AW45+BH45+BS45+CD45+CO45+CZ45+DK45+DV45)/ROUND(12/VLOOKUP($A45, Annualization!$A$3:$C$323,3,FALSE),0),0) -> 0 | ES45: =IFERROR((F45+Q45+AB45+AM45+AX45+BI45+BT45+CE45+CP45+DA45+DL45+DW45)/ROUND(12/VLOOKUP($A45, Annualization!$A$3:$C$323,3,FALSE),0),0) -> 0 | ET45: =IFERROR((G45+R45+AC45+AN45+AY45+BJ45+BU45+CF45+CQ45+DB45+DM45+DX45)/ROUND(12/VLOOKUP($A45, Annualization!$A$3:$C$323,3,FALSE),0),0) -> 0 | EU45: =IFERROR((H45+S45+AD45+AO45+AZ45+BK45+BV45+CG45+CR45+DC45+DN45+DY45)/ROUND(12/VLOOKUP($A45, Annualization!$A$3:$C$323,3,FALSE),0),0) -> 0 | EV45: =IFERROR((I45+T45+AE45+AP45+BA45+BL45+BW45+CH45+CS45+DD45+DO45+DZ45)/ROUND(12/VLOOKUP($A45, Annualization!$A$3:$C$323,3,FALSE),0),0) -> 0 | EW45: =IFERROR((J45+U45+AF45+AQ45+BB45+BM45+BX45+CI45+CT45+DE45+DP45+EA45)/ROUND(12/VLOOKUP($A45, Annualization!$A$3:$C$323,3,FALSE),0),0) -> 0 | EX45: =IFERROR((K45+V45+AG45+AR45+BC45+BN45+BY45+CJ45+CU45+DF45+DQ45+EB45)/ROUND(12/VLOOKUP($A45, Annualization!$A$3:$C$323,3,FALSE),0),0) -> 0 | EY45: =IFERROR((L45+W45+AH45+AS45+BD45+BO45+BZ45+CK45+CV45+DG45+DR45+EC45)/ROUND(12/VLOOKUP($A45, Annualization!$A$3:$C$323,3,FALSE),0),0) -> 0 | EZ45: =IFERROR((M45+X45+AI45+AT45+BE45+BP45+CA45+CL45+CW45+DH45+DS45+ED45)/ROUND(12/VLOOKUP($A45, Annualization!$A$3:$C$323,3,FALSE),0),0) -> 0
EE46: 0 | EF46: 0 | EG46: 0 | EH46: 0 | EI46: 0 | EJ46: 0 | EK46: 0 | EL46: 0 | EM46: 0 | EN46: 0 | EO46: 0 | EP46: =IFERROR((C46+N46+Y46+AJ46+AU46+BF46+BQ46+CB46+CM46+CX46+DI46+DT46)/ROUND(12/VLOOKUP($A46, Annualization!$A$3:$C$323,3,FALSE),0),0) -> 0 | EQ46: =IFERROR((D46+O46+Z46+AK46+AV46+BG46+BR46+CC46+CN46+CY46+DJ46+DU46)/ROUND(12/VLOOKUP($A46, Annualization!$A$3:$C$323,3,FALSE),0),0) -> 0 | ER46: =IFERROR((E46+P46+AA46+AL46+AW46+BH46+BS46+CD46+CO46+CZ46+DK46+DV46)/ROUND(12/VLOOKUP($A46, Annualization!$A$3:$C$323,3,FALSE),0),0) -> 0 | ES46: =IFERROR((F46+Q46+AB46+AM46+AX46+BI46+BT46+CE46+CP46+DA46+DL46+DW46)/ROUND(12/VLOOKUP($A46, Annualization!$A$3:$C$323,3,FALSE),0),0) -> 0 | ET46: =IFERROR((G46+R46+AC46+AN46+AY46+BJ46+BU46+CF46+CQ46+DB46+DM46+DX46)/ROUND(12/VLOOKUP($A46, Annualization!$A$3:$C$323,3,FALSE),0),0) -> 0 | EU46: =IFERROR((H46+S46+AD46+AO46+AZ46+BK46+BV46+CG46+CR46+DC46+DN46+DY46)/ROUND(12/VLOOKUP($A46, Annualization!$A$3:$C$323,3,FALSE),0),0) -> 0 | EV46: =IFERROR((I46+T46+AE46+AP46+BA46+BL46+BW46+CH46+CS46+DD46+DO46+DZ46)/ROUND(12/VLOOKUP($A46, Annualization!$A$3:$C$323,3,FALSE),0),0) -> 0 | EW46: =IFERROR((J46+U46+AF46+AQ46+BB46+BM46+BX46+CI46+CT46+DE46+DP46+EA46)/ROUND(12/VLOOKUP($A46, Annualization!$A$3:$C$323,3,FALSE),0),0) -> 0 | EX46: =IFERROR((K46+V46+AG46+AR46+BC46+BN46+BY46+CJ46+CU46+DF46+DQ46+EB46)/ROUND(12/VLOOKUP($A46, Annualization!$A$3:$C$323,3,FALSE),0),0) -> 0 | EY46: =IFERROR((L46+W46+AH46+AS46+BD46+BO46+BZ46+CK46+CV46+DG46+DR46+EC46)/ROUND(12/VLOOKUP($A46, Annualization!$A$3:$C$323,3,FALSE),0),0) -> 0 | EZ46: =IFERROR((M46+X46+AI46+AT46+BE46+BP46+CA46+CL46+CW46+DH46+DS46+ED46)/ROUND(12/VLOOKUP($A46, Annualization!$A$3:$C$323,3,FALSE),0),0) -> 0
EE47: 0 | EF47: 0 | EG47: 0 | EH47: 0 | EI47: 0 | EJ47: 0 | EK47: 0 | EL47: 0 | EM47: 0 | EN47: 0 | EO47: 0 | EP47: =IFERROR((C47+N47+Y47+AJ47+AU47+BF47+BQ47+CB47+CM47+CX47+DI47+DT47)/ROUND(12/VLOOKUP($A47, Annualization!$A$3:$C$323,3,FALSE),0),0) -> 0 | EQ47: =IFERROR((D47+O47+Z47+AK47+AV47+BG47+BR47+CC47+CN47+CY47+DJ47+DU47)/ROUND(12/VLOOKUP($A47, Annualization!$A$3:$C$323,3,FALSE),0),0) -> 0 | ER47: =IFERROR((E47+P47+AA47+AL47+AW47+BH47+BS47+CD47+CO47+CZ47+DK47+DV47)/ROUND(12/VLOOKUP($A47, Annualization!$A$3:$C$323,3,FALSE),0),0) -> 0 | ES47: =IFERROR((F47+Q47+AB47+AM47+AX47+BI47+BT47+CE47+CP47+DA47+DL47+DW47)/ROUND(12/VLOOKUP($A47, Annualization!$A$3:$C$323,3,FALSE),0),0) -> 0 | ET47: =IFERROR((G47+R47+AC47+AN47+AY47+BJ47+BU47+CF47+CQ47+DB47+DM47+DX47)/ROUND(12/VLOOKUP($A47, Annualization!$A$3:$C$323,3,FALSE),0),0) -> 0 | EU47: =IFERROR((H47+S47+AD47+AO47+AZ47+BK47+BV47+CG47+CR47+DC47+DN47+DY47)/ROUND(12/VLOOKUP($A47, Annualization!$A$3:$C$323,3,FALSE),0),0) -> 0 | EV47: =IFERROR((I47+T47+AE47+AP47+BA47+BL47+BW47+CH47+CS47+DD47+DO47+DZ47)/ROUND(12/VLOOKUP($A47, Annualization!$A$3:$C$323,3,FALSE),0),0) -> 0 | EW47: =IFERROR((J47+U47+AF47+AQ47+BB47+BM47+BX47+CI47+CT47+DE47+DP47+EA47)/ROUND(12/VLOOKUP($A47, Annualization!$A$3:$C$323,3,FALSE),0),0) -> 0 | EX47: =IFERROR((K47+V47+AG47+AR47+BC47+BN47+BY47+CJ47+CU47+DF47+DQ47+EB47)/ROUND(12/VLOOKUP($A47, Annualization!$A$3:$C$323,3,FALSE),0),0) -> 0 | EY47: =IFERROR((L47+W47+AH47+AS47+BD47+BO47+BZ47+CK47+CV47+DG47+DR47+EC47)/ROUND(12/VLOOKUP($A47, Annualization!$A$3:$C$323,3,FALSE),0),0) -> 0 | EZ47: =IFERROR((M47+X47+AI47+AT47+BE47+BP47+CA47+CL47+CW47+DH47+DS47+ED47)/ROUND(12/VLOOKUP($A47, Annualization!$A$3:$C$323,3,FALSE),0),0) -> 0
EE48: 0 | EF48: 0 | EG48: 0 | EH48: 0 | EI48: 0 | EJ48: 0 | EK48: 0 | EL48: 0 | EM48: 0 | EN48: 0 | EO48: 0 | EP48: =IFERROR((C48+N48+Y48+AJ48+AU48+BF48+BQ48+CB48+CM48+CX48+DI48+DT48)/ROUND(12/VLOOKUP($A48, Annualization!$A$3:$C$323,3,FALSE),0),0) -> 0 | EQ48: =IFERROR((D48+O48+Z48+AK48+AV48+BG48+BR48+CC48+CN48+CY48+DJ48+DU48)/ROUND(12/VLOOKUP($A48, Annualization!$A$3:$C$323,3,FALSE),0),0) -> 0 | ER48: =IFERROR((E48+P48+AA48+AL48+AW48+BH48+BS48+CD48+CO48+CZ48+DK48+DV48)/ROUND(12/VLOOKUP($A48, Annualization!$A$3:$C$323,3,FALSE),0),0) -> 0 | ES48: =IFERROR((F48+Q48+AB48+AM48+AX48+BI48+BT48+CE48+CP48+DA48+DL48+DW48)/ROUND(12/VLOOKUP($A48, Annualization!$A$3:$C$323,3,FALSE),0),0) -> 0 | ET48: =IFERROR((G48+R48+AC48+AN48+AY48+BJ48+BU48+CF48+CQ48+DB48+DM48+DX48)/ROUND(12/VLOOKUP($A48, Annualization!$A$3:$C$323,3,FALSE),0),0) -> 0 | EU48: =IFERROR((H48+S48+AD48+AO48+AZ48+BK48+BV48+CG48+CR48+DC48+DN48+DY48)/ROUND(12/VLOOKUP($A48, Annualization!$A$3:$C$323,3,FALSE),0),0) -> 0 | EV48: =IFERROR((I48+T48+AE48+AP48+BA48+BL48+BW48+CH48+CS48+DD48+DO48+DZ48)/ROUND(12/VLOOKUP($A48, Annualization!$A$3:$C$323,3,FALSE),0),0) -> 0 | EW48: =IFERROR((J48+U48+AF48+AQ48+BB48+BM48+BX48+CI48+CT48+DE48+DP48+EA48)/ROUND(12/VLOOKUP($A48, Annualization!$A$3:$C$323,3,FALSE),0),0) -> 0 | EX48: =IFERROR((K48+V48+AG48+AR48+BC48+BN48+BY48+CJ48+CU48+DF48+DQ48+EB48)/ROUND(12/VLOOKUP($A48, Annualization!$A$3:$C$323,3,FALSE),0),0) -> 0 | EY48: =IFERROR((L48+W48+AH48+AS48+BD48+BO48+BZ48+CK48+CV48+DG48+DR48+EC48)/ROUND(12/VLOOKUP($A48, Annualization!$A$3:$C$323,3,FALSE),0),0) -> 0 | EZ48: =IFERROR((M48+X48+AI48+AT48+BE48+BP48+CA48+CL48+CW48+DH48+DS48+ED48)/ROUND(12/VLOOKUP($A48, Annualization!$A$3:$C$323,3,FALSE),0),0) -> 0
EE49: 0 | EF49: 0 | EG49: 0 | EH49: 0 | EI49: 0 | EJ49: 0 | EK49: 0 | EL49: 0 | EM49: 0 | EN49: 0 | EO49: 0 | EP49: =IFERROR((C49+N49+Y49+AJ49+AU49+BF49+BQ49+CB49+CM49+CX49+DI49+DT49)/ROUND(12/VLOOKUP($A49, Annualization!$A$3:$C$323,3,FALSE),0),0) -> 0 | EQ49: =IFERROR((D49+O49+Z49+AK49+AV49+BG49+BR49+CC49+CN49+CY49+DJ49+DU49)/ROUND(12/VLOOKUP($A49, Annualization!$A$3:$C$323,3,FALSE),0),0) -> 0 | ER49: =IFERROR((E49+P49+AA49+AL49+AW49+BH49+BS49+CD49+CO49+CZ49+DK49+DV49)/ROUND(12/VLOOKUP($A49, Annualization!$A$3:$C$323,3,FALSE),0),0) -> 0 | ES49: =IFERROR((F49+Q49+AB49+AM49+AX49+BI49+BT49+CE49+CP49+DA49+DL49+DW49)/ROUND(12/VLOOKUP($A49, Annualization!$A$3:$C$323,3,FALSE),0),0) -> 0 | ET49: =IFERROR((G49+R49+AC49+AN49+AY49+BJ49+BU49+CF49+CQ49+DB49+DM49+DX49)/ROUND(12/VLOOKUP($A49, Annualization!$A$3:$C$323,3,FALSE),0),0) -> 0 | EU49: =IFERROR((H49+S49+AD49+AO49+AZ49+BK49+BV49+CG49+CR49+DC49+DN49+DY49)/ROUND(12/VLOOKUP($A49, Annualization!$A$3:$C$323,3,FALSE),0),0) -> 0 | EV49: =IFERROR((I49+T49+AE49+AP49+BA49+BL49+BW49+CH49+CS49+DD49+DO49+DZ49)/ROUND(12/VLOOKUP($A49, Annualization!$A$3:$C$323,3,FALSE),0),0) -> 0 | EW49: =IFERROR((J49+U49+AF49+AQ49+BB49+BM49+BX49+CI49+CT49+DE49+DP49+EA49)/ROUND(12/VLOOKUP($A49, Annualization!$A$3:$C$323,3,FALSE),0),0) -> 0 | EX49: =IFERROR((K49+V49+AG49+AR49+BC49+BN49+BY49+CJ49+CU49+DF49+DQ49+EB49)/ROUND(12/VLOOKUP($A49, Annualization!$A$3:$C$323,3,FALSE),0),0) -> 0 | EY49: =IFERROR((L49+W49+AH49+AS49+BD49+BO49+BZ49+CK49+CV49+DG49+DR49+EC49)/ROUND(12/VLOOKUP($A49, Annualization!$A$3:$C$323,3,FALSE),0),0) -> 0 | EZ49: =IFERROR((M49+X49+AI49+AT49+BE49+BP49+CA49+CL49+CW49+DH49+DS49+ED49)/ROUND(12/VLOOKUP($A49, Annualization!$A$3:$C$323,3,FALSE),0),0) -> 0
EE50: 0 | EF50: 0 | EG50: 0 | EH50: 0 | EI50: 0 | EJ50: 0 | EK50: 0 | EL50: 0 | EM50: 0 | EN50: 0 | EO50: 0 | EP50: =IFERROR((C50+N50+Y50+AJ50+AU50+BF50+BQ50+CB50+CM50+CX50+DI50+DT50)/ROUND(12/VLOOKUP($A50, Annualization!$A$3:$C$323,3,FALSE),0),0) -> 0 | EQ50: =IFERROR((D50+O50+Z50+AK50+AV50+BG50+BR50+CC50+CN50+CY50+DJ50+DU50)/ROUND(12/VLOOKUP($A50, Annualization!$A$3:$C$323,3,FALSE),0),0) -> 0 | ER50: =IFERROR((E50+P50+AA50+AL50+AW50+BH50+BS50+CD50+CO50+CZ50+DK50+DV50)/ROUND(12/VLOOKUP($A50, Annualization!$A$3:$C$323,3,FALSE),0),0) -> 0 | ES50: =IFERROR((F50+Q50+AB50+AM50+AX50+BI50+BT50+CE50+CP50+DA50+DL50+DW50)/ROUND(12/VLOOKUP($A50, Annualization!$A$3:$C$323,3,FALSE),0),0) -> 0 | ET50: =IFERROR((G50+R50+AC50+AN50+AY50+BJ50+BU50+CF50+CQ50+DB50+DM50+DX50)/ROUND(12/VLOOKUP($A50, Annualization!$A$3:$C$323,3,FALSE),0),0) -> 0 | EU50: =IFERROR((H50+S50+AD50+AO50+AZ50+BK50+BV50+CG50+CR50+DC50+DN50+DY50)/ROUND(12/VLOOKUP($A50, Annualization!$A$3:$C$323,3,FALSE),0),0) -> 0 | EV50: =IFERROR((I50+T50+AE50+AP50+BA50+BL50+BW50+CH50+CS50+DD50+DO50+DZ50)/ROUND(12/VLOOKUP($A50, Annualization!$A$3:$C$323,3,FALSE),0),0) -> 0 | EW50: =IFERROR((J50+U50+AF50+AQ50+BB50+BM50+BX50+CI50+CT50+DE50+DP50+EA50)/ROUND(12/VLOOKUP($A50, Annualization!$A$3:$C$323,3,FALSE),0),0) -> 0 | EX50: =IFERROR((K50+V50+AG50+AR50+BC50+BN50+BY50+CJ50+CU50+DF50+DQ50+EB50)/ROUND(12/VLOOKUP($A50, Annualization!$A$3:$C$323,3,FALSE),0),0) -> 0 | EY50: =IFERROR((L50+W50+AH50+AS50+BD50+BO50+BZ50+CK50+CV50+DG50+DR50+EC50)/ROUND(12/VLOOKUP($A50, Annualization!$A$3:$C$323,3,FALSE),0),0) -> 0 | EZ50: =IFERROR((M50+X50+AI50+AT50+BE50+BP50+CA50+CL50+CW50+DH50+DS50+ED50)/ROUND(12/VLOOKUP($A50, Annualization!$A$3:$C$323,3,FALSE),0),0) -> 0
EE51: 0 | EF51: 0 | EG51: 0 | EH51: 0 | EI51: 0 | EJ51: 0 | EK51: 0 | EL51: 0 | EM51: 0 | EN51: 0 | EO51: 0 | EP51: =IFERROR((C51+N51+Y51+AJ51+AU51+BF51+BQ51+CB51+CM51+CX51+DI51+DT51)/ROUND(12/VLOOKUP($A51, Annualization!$A$3:$C$323,3,FALSE),0),0) -> 0 | EQ51: =IFERROR((D51+O51+Z51+AK51+AV51+BG51+BR51+CC51+CN51+CY51+DJ51+DU51)/ROUND(12/VLOOKUP($A51, Annualization!$A$3:$C$323,3,FALSE),0),0) -> 0 | ER51: =IFERROR((E51+P51+AA51+AL51+AW51+BH51+BS51+CD51+CO51+CZ51+DK51+DV51)/ROUND(12/VLOOKUP($A51, Annualization!$A$3:$C$323,3,FALSE),0),0) -> 0 | ES51: =IFERROR((F51+Q51+AB51+AM51+AX51+BI51+BT51+CE51+CP51+DA51+DL51+DW51)/ROUND(12/VLOOKUP($A51, Annualization!$A$3:$C$323,3,FALSE),0),0) -> 0 | ET51: =IFERROR((G51+R51+AC51+AN51+AY51+BJ51+BU51+CF51+CQ51+DB51+DM51+DX51)/ROUND(12/VLOOKUP($A51, Annualization!$A$3:$C$323,3,FALSE),0),0) -> 0 | EU51: =IFERROR((H51+S51+AD51+AO51+AZ51+BK51+BV51+CG51+CR51+DC51+DN51+DY51)/ROUND(12/VLOOKUP($A51, Annualization!$A$3:$C$323,3,FALSE),0),0) -> 0 | EV51: =IFERROR((I51+T51+AE51+AP51+BA51+BL51+BW51+CH51+CS51+DD51+DO51+DZ51)/ROUND(12/VLOOKUP($A51, Annualization!$A$3:$C$323,3,FALSE),0),0) -> 0 | EW51: =IFERROR((J51+U51+AF51+AQ51+BB51+BM51+BX51+CI51+CT51+DE51+DP51+EA51)/ROUND(12/VLOOKUP($A51, Annualization!$A$3:$C$323,3,FALSE),0),0) -> 0 | EX51: =IFERROR((K51+V51+AG51+AR51+BC51+BN51+BY51+CJ51+CU51+DF51+DQ51+EB51)/ROUND(12/VLOOKUP($A51, Annualization!$A$3:$C$323,3,FALSE),0),0) -> 0 | EY51: =IFERROR((L51+W51+AH51+AS51+BD51+BO51+BZ51+CK51+CV51+DG51+DR51+EC51)/ROUND(12/VLOOKUP($A51, Annualization!$A$3:$C$323,3,FALSE),0),0) -> 0 | EZ51: =IFERROR((M51+X51+AI51+AT51+BE51+BP51+CA51+CL51+CW51+DH51+DS51+ED51)/ROUND(12/VLOOKUP($A51, Annualization!$A$3:$C$323,3,FALSE),0),0) -> 0
EE52: 0 | EF52: 0 | EG52: 0 | EH52: 0 | EI52: 0 | EJ52: 0 | EK52: 0 | EL52: 0 | EM52: 0 | EN52: 0 | EO52: 0 | EP52: =IFERROR((C52+N52+Y52+AJ52+AU52+BF52+BQ52+CB52+CM52+CX52+DI52+DT52)/ROUND(12/VLOOKUP($A52, Annualization!$A$3:$C$323,3,FALSE),0),0) -> 0 | EQ52: =IFERROR((D52+O52+Z52+AK52+AV52+BG52+BR52+CC52+CN52+CY52+DJ52+DU52)/ROUND(12/VLOOKUP($A52, Annualization!$A$3:$C$323,3,FALSE),0),0) -> 0 | ER52: =IFERROR((E52+P52+AA52+AL52+AW52+BH52+BS52+CD52+CO52+CZ52+DK52+DV52)/ROUND(12/VLOOKUP($A52, Annualization!$A$3:$C$323,3,FALSE),0),0) -> 0 | ES52: =IFERROR((F52+Q52+AB52+AM52+AX52+BI52+BT52+CE52+CP52+DA52+DL52+DW52)/ROUND(12/VLOOKUP($A52, Annualization!$A$3:$C$323,3,FALSE),0),0) -> 0 | ET52: =IFERROR((G52+R52+AC52+AN52+AY52+BJ52+BU52+CF52+CQ52+DB52+DM52+DX52)/ROUND(12/VLOOKUP($A52, Annualization!$A$3:$C$323,3,FALSE),0),0) -> 0 | EU52: =IFERROR((H52+S52+AD52+AO52+AZ52+BK52+BV52+CG52+CR52+DC52+DN52+DY52)/ROUND(12/VLOOKUP($A52, Annualization!$A$3:$C$323,3,FALSE),0),0) -> 0 | EV52: =IFERROR((I52+T52+AE52+AP52+BA52+BL52+BW52+CH52+CS52+DD52+DO52+DZ52)/ROUND(12/VLOOKUP($A52, Annualization!$A$3:$C$323,3,FALSE),0),0) -> 0 | EW52: =IFERROR((J52+U52+AF52+AQ52+BB52+BM52+BX52+CI52+CT52+DE52+DP52+EA52)/ROUND(12/VLOOKUP($A52, Annualization!$A$3:$C$323,3,FALSE),0),0) -> 0 | EX52: =IFERROR((K52+V52+AG52+AR52+BC52+BN52+BY52+CJ52+CU52+DF52+DQ52+EB52)/ROUND(12/VLOOKUP($A52, Annualization!$A$3:$C$323,3,FALSE),0),0) -> 0 | EY52: =IFERROR((L52+W52+AH52+AS52+BD52+BO52+BZ52+CK52+CV52+DG52+DR52+EC52)/ROUND(12/VLOOKUP($A52, Annualization!$A$3:$C$323,3,FALSE),0),0) -> 0 | EZ52: =IFERROR((M52+X52+AI52+AT52+BE52+BP52+CA52+CL52+CW52+DH52+DS52+ED52)/ROUND(12/VLOOKUP($A52, Annualization!$A$3:$C$323,3,FALSE),0),0) -> 0
EE53: 0 | EF53: 0 | EG53: 0 | EH53: 0 | EI53: 0 | EJ53: 0 | EK53: 0 | EL53: 0 | EM53: 0 | EN53: 0 | EO53: 0 | EP53: =IFERROR((C53+N53+Y53+AJ53+AU53+BF53+BQ53+CB53+CM53+CX53+DI53+DT53)/ROUND(12/VLOOKUP($A53, Annualization!$A$3:$C$323,3,FALSE),0),0) -> 0 | EQ53: =IFERROR((D53+O53+Z53+AK53+AV53+BG53+BR53+CC53+CN53+CY53+DJ53+DU53)/ROUND(12/VLOOKUP($A53, Annualization!$A$3:$C$323,3,FALSE),0),0) -> 0 | ER53: =IFERROR((E53+P53+AA53+AL53+AW53+BH53+BS53+CD53+CO53+CZ53+DK53+DV53)/ROUND(12/VLOOKUP($A53, Annualization!$A$3:$C$323,3,FALSE),0),0) -> 0 | ES53: =IFERROR((F53+Q53+AB53+AM53+AX53+BI53+BT53+CE53+CP53+DA53+DL53+DW53)/ROUND(12/VLOOKUP($A53, Annualization!$A$3:$C$323,3,FALSE),0),0) -> 0 | ET53: =IFERROR((G53+R53+AC53+AN53+AY53+BJ53+BU53+CF53+CQ53+DB53+DM53+DX53)/ROUND(12/VLOOKUP($A53, Annualization!$A$3:$C$323,3,FALSE),0),0) -> 0 | EU53: =IFERROR((H53+S53+AD53+AO53+AZ53+BK53+BV53+CG53+CR53+DC53+DN53+DY53)/ROUND(12/VLOOKUP($A53, Annualization!$A$3:$C$323,3,FALSE),0),0) -> 0 | EV53: =IFERROR((I53+T53+AE53+AP53+BA53+BL53+BW53+CH53+CS53+DD53+DO53+DZ53)/ROUND(12/VLOOKUP($A53, Annualization!$A$3:$C$323,3,FALSE),0),0) -> 0 | EW53: =IFERROR((J53+U53+AF53+AQ53+BB53+BM53+BX53+CI53+CT53+DE53+DP53+EA53)/ROUND(12/VLOOKUP($A53, Annualization!$A$3:$C$323,3,FALSE),0),0) -> 0 | EX53: =IFERROR((K53+V53+AG53+AR53+BC53+BN53+BY53+CJ53+CU53+DF53+DQ53+EB53)/ROUND(12/VLOOKUP($A53, Annualization!$A$3:$C$323,3,FALSE),0),0) -> 0 | EY53: =IFERROR((L53+W53+AH53+AS53+BD53+BO53+BZ53+CK53+CV53+DG53+DR53+EC53)/ROUND(12/VLOOKUP($A53, Annualization!$A$3:$C$323,3,FALSE),0),0) -> 0 | EZ53: =IFERROR((M53+X53+AI53+AT53+BE53+BP53+CA53+CL53+CW53+DH53+DS53+ED53)/ROUND(12/VLOOKUP($A53, Annualization!$A$3:$C$323,3,FALSE),0),0) -> 0
EE54: 0 | EF54: 0 | EG54: 0 | EH54: 0 | EI54: 0 | EJ54: 0 | EK54: 0 | EL54: 0 | EM54: 0 | EN54: 0 | EO54: 0 | EP54: =IFERROR((C54+N54+Y54+AJ54+AU54+BF54+BQ54+CB54+CM54+CX54+DI54+DT54)/ROUND(12/VLOOKUP($A54, Annualization!$A$3:$C$323,3,FALSE),0),0) -> 0 | EQ54: =IFERROR((D54+O54+Z54+AK54+AV54+BG54+BR54+CC54+CN54+CY54+DJ54+DU54)/ROUND(12/VLOOKUP($A54, Annualization!$A$3:$C$323,3,FALSE),0),0) -> 0 | ER54: =IFERROR((E54+P54+AA54+AL54+AW54+BH54+BS54+CD54+CO54+CZ54+DK54+DV54)/ROUND(12/VLOOKUP($A54, Annualization!$A$3:$C$323,3,FALSE),0),0) -> 0 | ES54: =IFERROR((F54+Q54+AB54+AM54+AX54+BI54+BT54+CE54+CP54+DA54+DL54+DW54)/ROUND(12/VLOOKUP($A54, Annualization!$A$3:$C$323,3,FALSE),0),0) -> 0 | ET54: =IFERROR((G54+R54+AC54+AN54+AY54+BJ54+BU54+CF54+CQ54+DB54+DM54+DX54)/ROUND(12/VLOOKUP($A54, Annualization!$A$3:$C$323,3,FALSE),0),0) -> 0 | EU54: =IFERROR((H54+S54+AD54+AO54+AZ54+BK54+BV54+CG54+CR54+DC54+DN54+DY54)/ROUND(12/VLOOKUP($A54, Annualization!$A$3:$C$323,3,FALSE),0),0) -> 0 | EV54: =IFERROR((I54+T54+AE54+AP54+BA54+BL54+BW54+CH54+CS54+DD54+DO54+DZ54)/ROUND(12/VLOOKUP($A54, Annualization!$A$3:$C$323,3,FALSE),0),0) -> 0 | EW54: =IFERROR((J54+U54+AF54+AQ54+BB54+BM54+BX54+CI54+CT54+DE54+DP54+EA54)/ROUND(12/VLOOKUP($A54, Annualization!$A$3:$C$323,3,FALSE),0),0) -> 0 | EX54: =IFERROR((K54+V54+AG54+AR54+BC54+BN54+BY54+CJ54+CU54+DF54+DQ54+EB54)/ROUND(12/VLOOKUP($A54, Annualization!$A$3:$C$323,3,FALSE),0),0) -> 0 | EY54: =IFERROR((L54+W54+AH54+AS54+BD54+BO54+BZ54+CK54+CV54+DG54+DR54+EC54)/ROUND(12/VLOOKUP($A54, Annualization!$A$3:$C$323,3,FALSE),0),0) -> 0 | EZ54: =IFERROR((M54+X54+AI54+AT54+BE54+BP54+CA54+CL54+CW54+DH54+DS54+ED54)/ROUND(12/VLOOKUP($A54, Annualization!$A$3:$C$323,3,FALSE),0),0) -> 0
EE55: 0 | EF55: 0 | EG55: 0 | EH55: 0 | EI55: 0 | EJ55: 0 | EK55: 0 | EL55: 0 | EM55: 0 | EN55: 0 | EO55: 0 | EP55: =IFERROR((C55+N55+Y55+AJ55+AU55+BF55+BQ55+CB55+CM55+CX55+DI55+DT55)/ROUND(12/VLOOKUP($A55, Annualization!$A$3:$C$323,3,FALSE),0),0) -> 0 | EQ55: =IFERROR((D55+O55+Z55+AK55+AV55+BG55+BR55+CC55+CN55+CY55+DJ55+DU55)/ROUND(12/VLOOKUP($A55, Annualization!$A$3:$C$323,3,FALSE),0),0) -> 0 | ER55: =IFERROR((E55+P55+AA55+AL55+AW55+BH55+BS55+CD55+CO55+CZ55+DK55+DV55)/ROUND(12/VLOOKUP($A55, Annualization!$A$3:$C$323,3,FALSE),0),0) -> 0 | ES55: =IFERROR((F55+Q55+AB55+AM55+AX55+BI55+BT55+CE55+CP55+DA55+DL55+DW55)/ROUND(12/VLOOKUP($A55, Annualization!$A$3:$C$323,3,FALSE),0),0) -> 0 | ET55: =IFERROR((G55+R55+AC55+AN55+AY55+BJ55+BU55+CF55+CQ55+DB55+DM55+DX55)/ROUND(12/VLOOKUP($A55, Annualization!$A$3:$C$323,3,FALSE),0),0) -> 0 | EU55: =IFERROR((H55+S55+AD55+AO55+AZ55+BK55+BV55+CG55+CR55+DC55+DN55+DY55)/ROUND(12/VLOOKUP($A55, Annualization!$A$3:$C$323,3,FALSE),0),0) -> 0 | EV55: =IFERROR((I55+T55+AE55+AP55+BA55+BL55+BW55+CH55+CS55+DD55+DO55+DZ55)/ROUND(12/VLOOKUP($A55, Annualization!$A$3:$C$323,3,FALSE),0),0) -> 0 | EW55: =IFERROR((J55+U55+AF55+AQ55+BB55+BM55+BX55+CI55+CT55+DE55+DP55+EA55)/ROUND(12/VLOOKUP($A55, Annualization!$A$3:$C$323,3,FALSE),0),0) -> 0 | EX55: =IFERROR((K55+V55+AG55+AR55+BC55+BN55+BY55+CJ55+CU55+DF55+DQ55+EB55)/ROUND(12/VLOOKUP($A55, Annualization!$A$3:$C$323,3,FALSE),0),0) -> 0 | EY55: =IFERROR((L55+W55+AH55+AS55+BD55+BO55+BZ55+CK55+CV55+DG55+DR55+EC55)/ROUND(12/VLOOKUP($A55, Annualization!$A$3:$C$323,3,FALSE),0),0) -> 0 | EZ55: =IFERROR((M55+X55+AI55+AT55+BE55+BP55+CA55+CL55+CW55+DH55+DS55+ED55)/ROUND(12/VLOOKUP($A55, Annualization!$A$3:$C$323,3,FALSE),0),0) -> 0
EE56: 0 | EF56: 0 | EG56: 0 | EH56: 0 | EI56: 0 | EJ56: 0 | EK56: 0 | EL56: 0 | EM56: 0 | EN56: 0 | EO56: 0 | EP56: =IFERROR((C56+N56+Y56+AJ56+AU56+BF56+BQ56+CB56+CM56+CX56+DI56+DT56)/ROUND(12/VLOOKUP($A56, Annualization!$A$3:$C$323,3,FALSE),0),0) -> 0 | EQ56: =IFERROR((D56+O56+Z56+AK56+AV56+BG56+BR56+CC56+CN56+CY56+DJ56+DU56)/ROUND(12/VLOOKUP($A56, Annualization!$A$3:$C$323,3,FALSE),0),0) -> 0 | ER56: =IFERROR((E56+P56+AA56+AL56+AW56+BH56+BS56+CD56+CO56+CZ56+DK56+DV56)/ROUND(12/VLOOKUP($A56, Annualization!$A$3:$C$323,3,FALSE),0),0) -> 0 | ES56: =IFERROR((F56+Q56+AB56+AM56+AX56+BI56+BT56+CE56+CP56+DA56+DL56+DW56)/ROUND(12/VLOOKUP($A56, Annualization!$A$3:$C$323,3,FALSE),0),0) -> 0 | ET56: =IFERROR((G56+R56+AC56+AN56+AY56+BJ56+BU56+CF56+CQ56+DB56+DM56+DX56)/ROUND(12/VLOOKUP($A56, Annualization!$A$3:$C$323,3,FALSE),0),0) -> 0 | EU56: =IFERROR((H56+S56+AD56+AO56+AZ56+BK56+BV56+CG56+CR56+DC56+DN56+DY56)/ROUND(12/VLOOKUP($A56, Annualization!$A$3:$C$323,3,FALSE),0),0) -> 0 | EV56: =IFERROR((I56+T56+AE56+AP56+BA56+BL56+BW56+CH56+CS56+DD56+DO56+DZ56)/ROUND(12/VLOOKUP($A56, Annualization!$A$3:$C$323,3,FALSE),0),0) -> 0 | EW56: =IFERROR((J56+U56+AF56+AQ56+BB56+BM56+BX56+CI56+CT56+DE56+DP56+EA56)/ROUND(12/VLOOKUP($A56, Annualization!$A$3:$C$323,3,FALSE),0),0) -> 0 | EX56: =IFERROR((K56+V56+AG56+AR56+BC56+BN56+BY56+CJ56+CU56+DF56+DQ56+EB56)/ROUND(12/VLOOKUP($A56, Annualization!$A$3:$C$323,3,FALSE),0),0) -> 0 | EY56: =IFERROR((L56+W56+AH56+AS56+BD56+BO56+BZ56+CK56+CV56+DG56+DR56+EC56)/ROUND(12/VLOOKUP($A56, Annualization!$A$3:$C$323,3,FALSE),0),0) -> 0 | EZ56: =IFERROR((M56+X56+AI56+AT56+BE56+BP56+CA56+CL56+CW56+DH56+DS56+ED56)/ROUND(12/VLOOKUP($A56, Annualization!$A$3:$C$323,3,FALSE),0),0) -> 0
EE57: 0 | EF57: 0 | EG57: 0 | EH57: 0 | EI57: 0 | EJ57: 0 | EK57: 0 | EL57: 0 | EM57: 0 | EN57: 0 | EO57: 0 | EP57: =IFERROR((C57+N57+Y57+AJ57+AU57+BF57+BQ57+CB57+CM57+CX57+DI57+DT57)/ROUND(12/VLOOKUP($A57, Annualization!$A$3:$C$323,3,FALSE),0),0) -> 0 | EQ57: =IFERROR((D57+O57+Z57+AK57+AV57+BG57+BR57+CC57+CN57+CY57+DJ57+DU57)/ROUND(12/VLOOKUP($A57, Annualization!$A$3:$C$323,3,FALSE),0),0) -> 0 | ER57: =IFERROR((E57+P57+AA57+AL57+AW57+BH57+BS57+CD57+CO57+CZ57+DK57+DV57)/ROUND(12/VLOOKUP($A57, Annualization!$A$3:$C$323,3,FALSE),0),0) -> 0 | ES57: =IFERROR((F57+Q57+AB57+AM57+AX57+BI57+BT57+CE57+CP57+DA57+DL57+DW57)/ROUND(12/VLOOKUP($A57, Annualization!$A$3:$C$323,3,FALSE),0),0) -> 0 | ET57: =IFERROR((G57+R57+AC57+AN57+AY57+BJ57+BU57+CF57+CQ57+DB57+DM57+DX57)/ROUND(12/VLOOKUP($A57, Annualization!$A$3:$C$323,3,FALSE),0),0) -> 0 | EU57: =IFERROR((H57+S57+AD57+AO57+AZ57+BK57+BV57+CG57+CR57+DC57+DN57+DY57)/ROUND(12/VLOOKUP($A57, Annualization!$A$3:$C$323,3,FALSE),0),0) -> 0 | EV57: =IFERROR((I57+T57+AE57+AP57+BA57+BL57+BW57+CH57+CS57+DD57+DO57+DZ57)/ROUND(12/VLOOKUP($A57, Annualization!$A$3:$C$323,3,FALSE),0),0) -> 0 | EW57: =IFERROR((J57+U57+AF57+AQ57+BB57+BM57+BX57+CI57+CT57+DE57+DP57+EA57)/ROUND(12/VLOOKUP($A57, Annualization!$A$3:$C$323,3,FALSE),0),0) -> 0 | EX57: =IFERROR((K57+V57+AG57+AR57+BC57+BN57+BY57+CJ57+CU57+DF57+DQ57+EB57)/ROUND(12/VLOOKUP($A57, Annualization!$A$3:$C$323,3,FALSE),0),0) -> 0 | EY57: =IFERROR((L57+W57+AH57+AS57+BD57+BO57+BZ57+CK57+CV57+DG57+DR57+EC57)/ROUND(12/VLOOKUP($A57, Annualization!$A$3:$C$323,3,FALSE),0),0) -> 0 | EZ57: =IFERROR((M57+X57+AI57+AT57+BE57+BP57+CA57+CL57+CW57+DH57+DS57+ED57)/ROUND(12/VLOOKUP($A57, Annualization!$A$3:$C$323,3,FALSE),0),0) -> 0
EE58: 0 | EF58: 0 | EG58: 0 | EH58: 0 | EI58: 0 | EJ58: 0 | EK58: 0 | EL58: 0 | EM58: 0 | EN58: 0 | EO58: 0 | EP58: =IFERROR((C58+N58+Y58+AJ58+AU58+BF58+BQ58+CB58+CM58+CX58+DI58+DT58)/ROUND(12/VLOOKUP($A58, Annualization!$A$3:$C$323,3,FALSE),0),0) -> 0 | EQ58: =IFERROR((D58+O58+Z58+AK58+AV58+BG58+BR58+CC58+CN58+CY58+DJ58+DU58)/ROUND(12/VLOOKUP($A58, Annualization!$A$3:$C$323,3,FALSE),0),0) -> 0 | ER58: =IFERROR((E58+P58+AA58+AL58+AW58+BH58+BS58+CD58+CO58+CZ58+DK58+DV58)/ROUND(12/VLOOKUP($A58, Annualization!$A$3:$C$323,3,FALSE),0),0) -> 0 | ES58: =IFERROR((F58+Q58+AB58+AM58+AX58+BI58+BT58+CE58+CP58+DA58+DL58+DW58)/ROUND(12/VLOOKUP($A58, Annualization!$A$3:$C$323,3,FALSE),0),0) -> 0 | ET58: =IFERROR((G58+R58+AC58+AN58+AY58+BJ58+BU58+CF58+CQ58+DB58+DM58+DX58)/ROUND(12/VLOOKUP($A58, Annualization!$A$3:$C$323,3,FALSE),0),0) -> 0 | EU58: =IFERROR((H58+S58+AD58+AO58+AZ58+BK58+BV58+CG58+CR58+DC58+DN58+DY58)/ROUND(12/VLOOKUP($A58, Annualization!$A$3:$C$323,3,FALSE),0),0) -> 0 | EV58: =IFERROR((I58+T58+AE58+AP58+BA58+BL58+BW58+CH58+CS58+DD58+DO58+DZ58)/ROUND(12/VLOOKUP($A58, Annualization!$A$3:$C$323,3,FALSE),0),0) -> 0 | EW58: =IFERROR((J58+U58+AF58+AQ58+BB58+BM58+BX58+CI58+CT58+DE58+DP58+EA58)/ROUND(12/VLOOKUP($A58, Annualization!$A$3:$C$323,3,FALSE),0),0) -> 0 | EX58: =IFERROR((K58+V58+AG58+AR58+BC58+BN58+BY58+CJ58+CU58+DF58+DQ58+EB58)/ROUND(12/VLOOKUP($A58, Annualization!$A$3:$C$323,3,FALSE),0),0) -> 0 | EY58: =IFERROR((L58+W58+AH58+AS58+BD58+BO58+BZ58+CK58+CV58+DG58+DR58+EC58)/ROUND(12/VLOOKUP($A58, Annualization!$A$3:$C$323,3,FALSE),0),0) -> 0 | EZ58: =IFERROR((M58+X58+AI58+AT58+BE58+BP58+CA58+CL58+CW58+DH58+DS58+ED58)/ROUND(12/VLOOKUP($A58, Annualization!$A$3:$C$323,3,FALSE),0),0) -> 0
EE59: 0 | EF59: 0 | EG59: 0 | EH59: 0 | EI59: 0 | EJ59: 0 | EK59: 0 | EL59: 0 | EM59: 0 | EN59: 0 | EO59: 0 | EP59: =IFERROR((C59+N59+Y59+AJ59+AU59+BF59+BQ59+CB59+CM59+CX59+DI59+DT59)/ROUND(12/VLOOKUP($A59, Annualization!$A$3:$C$323,3,FALSE),0),0) -> 0 | EQ59: =IFERROR((D59+O59+Z59+AK59+AV59+BG59+BR59+CC59+CN59+CY59+DJ59+DU59)/ROUND(12/VLOOKUP($A59, Annualization!$A$3:$C$323,3,FALSE),0),0) -> 0 | ER59: =IFERROR((E59+P59+AA59+AL59+AW59+BH59+BS59+CD59+CO59+CZ59+DK59+DV59)/ROUND(12/VLOOKUP($A59, Annualization!$A$3:$C$323,3,FALSE),0),0) -> 0 | ES59: =IFERROR((F59+Q59+AB59+AM59+AX59+BI59+BT59+CE59+CP59+DA59+DL59+DW59)/ROUND(12/VLOOKUP($A59, Annualization!$A$3:$C$323,3,FALSE),0),0) -> 0 | ET59: =IFERROR((G59+R59+AC59+AN59+AY59+BJ59+BU59+CF59+CQ59+DB59+DM59+DX59)/ROUND(12/VLOOKUP($A59, Annualization!$A$3:$C$323,3,FALSE),0),0) -> 0 | EU59: =IFERROR((H59+S59+AD59+AO59+AZ59+BK59+BV59+CG59+CR59+DC59+DN59+DY59)/ROUND(12/VLOOKUP($A59, Annualization!$A$3:$C$323,3,FALSE),0),0) -> 0 | EV59: =IFERROR((I59+T59+AE59+AP59+BA59+BL59+BW59+CH59+CS59+DD59+DO59+DZ59)/ROUND(12/VLOOKUP($A59, Annualization!$A$3:$C$323,3,FALSE),0),0) -> 0 | EW59: =IFERROR((J59+U59+AF59+AQ59+BB59+BM59+BX59+CI59+CT59+DE59+DP59+EA59)/ROUND(12/VLOOKUP($A59, Annualization!$A$3:$C$323,3,FALSE),0),0) -> 0 | EX59: =IFERROR((K59+V59+AG59+AR59+BC59+BN59+BY59+CJ59+CU59+DF59+DQ59+EB59)/ROUND(12/VLOOKUP($A59, Annualization!$A$3:$C$323,3,FALSE),0),0) -> 0 | EY59: =IFERROR((L59+W59+AH59+AS59+BD59+BO59+BZ59+CK59+CV59+DG59+DR59+EC59)/ROUND(12/VLOOKUP($A59, Annualization!$A$3:$C$323,3,FALSE),0),0) -> 0 | EZ59: =IFERROR((M59+X59+AI59+AT59+BE59+BP59+CA59+CL59+CW59+DH59+DS59+ED59)/ROUND(12/VLOOKUP($A59, Annualization!$A$3:$C$323,3,FALSE),0),0) -> 0
EE60: 0 | EF60: 0 | EG60: 0 | EH60: 0 | EI60: 0 | EJ60: 0 | EK60: 0 | EL60: 0 | EM60: 0 | EN60: 0 | EO60: 0 | EP60: =IFERROR((C60+N60+Y60+AJ60+AU60+BF60+BQ60+CB60+CM60+CX60+DI60+DT60)/ROUND(12/VLOOKUP($A60, Annualization!$A$3:$C$323,3,FALSE),0),0) -> 0 | EQ60: =IFERROR((D60+O60+Z60+AK60+AV60+BG60+BR60+CC60+CN60+CY60+DJ60+DU60)/ROUND(12/VLOOKUP($A60, Annualization!$A$3:$C$323,3,FALSE),0),0) -> 0 | ER60: =IFERROR((E60+P60+AA60+AL60+AW60+BH60+BS60+CD60+CO60+CZ60+DK60+DV60)/ROUND(12/VLOOKUP($A60, Annualization!$A$3:$C$323,3,FALSE),0),0) -> 0 | ES60: =IFERROR((F60+Q60+AB60+AM60+AX60+BI60+BT60+CE60+CP60+DA60+DL60+DW60)/ROUND(12/VLOOKUP($A60, Annualization!$A$3:$C$323,3,FALSE),0),0) -> 0 | ET60: =IFERROR((G60+R60+AC60+AN60+AY60+BJ60+BU60+CF60+CQ60+DB60+DM60+DX60)/ROUND(12/VLOOKUP($A60, Annualization!$A$3:$C$323,3,FALSE),0),0) -> 0 | EU60: =IFERROR((H60+S60+AD60+AO60+AZ60+BK60+BV60+CG60+CR60+DC60+DN60+DY60)/ROUND(12/VLOOKUP($A60, Annualization!$A$3:$C$323,3,FALSE),0),0) -> 0 | EV60: =IFERROR((I60+T60+AE60+AP60+BA60+BL60+BW60+CH60+CS60+DD60+DO60+DZ60)/ROUND(12/VLOOKUP($A60, Annualization!$A$3:$C$323,3,FALSE),0),0) -> 0 | EW60: =IFERROR((J60+U60+AF60+AQ60+BB60+BM60+BX60+CI60+CT60+DE60+DP60+EA60)/ROUND(12/VLOOKUP($A60, Annualization!$A$3:$C$323,3,FALSE),0),0) -> 0 | EX60: =IFERROR((K60+V60+AG60+AR60+BC60+BN60+BY60+CJ60+CU60+DF60+DQ60+EB60)/ROUND(12/VLOOKUP($A60, Annualization!$A$3:$C$323,3,FALSE),0),0) -> 0 | EY60: =IFERROR((L60+W60+AH60+AS60+BD60+BO60+BZ60+CK60+CV60+DG60+DR60+EC60)/ROUND(12/VLOOKUP($A60, Annualization!$A$3:$C$323,3,FALSE),0),0) -> 0 | EZ60: =IFERROR((M60+X60+AI60+AT60+BE60+BP60+CA60+CL60+CW60+DH60+DS60+ED60)/ROUND(12/VLOOKUP($A60, Annualization!$A$3:$C$323,3,FALSE),0),0) -> 0
EE61: 0 | EF61: 0 | EG61: 0 | EH61: 0 | EI61: 0 | EJ61: 0 | EK61: 0 | EL61: 0 | EM61: 0 | EN61: 0 | EO61: 0 | EP61: =IFERROR((C61+N61+Y61+AJ61+AU61+BF61+BQ61+CB61+CM61+CX61+DI61+DT61)/ROUND(12/VLOOKUP($A61, Annualization!$A$3:$C$323,3,FALSE),0),0) -> 0 | EQ61: =IFERROR((D61+O61+Z61+AK61+AV61+BG61+BR61+CC61+CN61+CY61+DJ61+DU61)/ROUND(12/VLOOKUP($A61, Annualization!$A$3:$C$323,3,FALSE),0),0) -> 0 | ER61: =IFERROR((E61+P61+AA61+AL61+AW61+BH61+BS61+CD61+CO61+CZ61+DK61+DV61)/ROUND(12/VLOOKUP($A61, Annualization!$A$3:$C$323,3,FALSE),0),0) -> 0 | ES61: =IFERROR((F61+Q61+AB61+AM61+AX61+BI61+BT61+CE61+CP61+DA61+DL61+DW61)/ROUND(12/VLOOKUP($A61, Annualization!$A$3:$C$323,3,FALSE),0),0) -> 0 | ET61: =IFERROR((G61+R61+AC61+AN61+AY61+BJ61+BU61+CF61+CQ61+DB61+DM61+DX61)/ROUND(12/VLOOKUP($A61, Annualization!$A$3:$C$323,3,FALSE),0),0) -> 0 | EU61: =IFERROR((H61+S61+AD61+AO61+AZ61+BK61+BV61+CG61+CR61+DC61+DN61+DY61)/ROUND(12/VLOOKUP($A61, Annualization!$A$3:$C$323,3,FALSE),0),0) -> 0 | EV61: =IFERROR((I61+T61+AE61+AP61+BA61+BL61+BW61+CH61+CS61+DD61+DO61+DZ61)/ROUND(12/VLOOKUP($A61, Annualization!$A$3:$C$323,3,FALSE),0),0) -> 0 | EW61: =IFERROR((J61+U61+AF61+AQ61+BB61+BM61+BX61+CI61+CT61+DE61+DP61+EA61)/ROUND(12/VLOOKUP($A61, Annualization!$A$3:$C$323,3,FALSE),0),0) -> 0 | EX61: =IFERROR((K61+V61+AG61+AR61+BC61+BN61+BY61+CJ61+CU61+DF61+DQ61+EB61)/ROUND(12/VLOOKUP($A61, Annualization!$A$3:$C$323,3,FALSE),0),0) -> 0 | EY61: =IFERROR((L61+W61+AH61+AS61+BD61+BO61+BZ61+CK61+CV61+DG61+DR61+EC61)/ROUND(12/VLOOKUP($A61, Annualization!$A$3:$C$323,3,FALSE),0),0) -> 0 | EZ61: =IFERROR((M61+X61+AI61+AT61+BE61+BP61+CA61+CL61+CW61+DH61+DS61+ED61)/ROUND(12/VLOOKUP($A61, Annualization!$A$3:$C$323,3,FALSE),0),0) -> 0
EE62: 0 | EF62: 0 | EG62: 0 | EH62: 0 | EI62: 0 | EJ62: 0 | EK62: 0 | EL62: 0 | EM62: 0 | EN62: 0 | EO62: 0 | EP62: =IFERROR((C62+N62+Y62+AJ62+AU62+BF62+BQ62+CB62+CM62+CX62+DI62+DT62)/ROUND(12/VLOOKUP($A62, Annualization!$A$3:$C$323,3,FALSE),0),0) -> 0 | EQ62: =IFERROR((D62+O62+Z62+AK62+AV62+BG62+BR62+CC62+CN62+CY62+DJ62+DU62)/ROUND(12/VLOOKUP($A62, Annualization!$A$3:$C$323,3,FALSE),0),0) -> 0 | ER62: =IFERROR((E62+P62+AA62+AL62+AW62+BH62+BS62+CD62+CO62+CZ62+DK62+DV62)/ROUND(12/VLOOKUP($A62, Annualization!$A$3:$C$323,3,FALSE),0),0) -> 0 | ES62: =IFERROR((F62+Q62+AB62+AM62+AX62+BI62+BT62+CE62+CP62+DA62+DL62+DW62)/ROUND(12/VLOOKUP($A62, Annualization!$A$3:$C$323,3,FALSE),0),0) -> 0 | ET62: =IFERROR((G62+R62+AC62+AN62+AY62+BJ62+BU62+CF62+CQ62+DB62+DM62+DX62)/ROUND(12/VLOOKUP($A62, Annualization!$A$3:$C$323,3,FALSE),0),0) -> 0 | EU62: =IFERROR((H62+S62+AD62+AO62+AZ62+BK62+BV62+CG62+CR62+DC62+DN62+DY62)/ROUND(12/VLOOKUP($A62, Annualization!$A$3:$C$323,3,FALSE),0),0) -> 0 | EV62: =IFERROR((I62+T62+AE62+AP62+BA62+BL62+BW62+CH62+CS62+DD62+DO62+DZ62)/ROUND(12/VLOOKUP($A62, Annualization!$A$3:$C$323,3,FALSE),0),0) -> 0 | EW62: =IFERROR((J62+U62+AF62+AQ62+BB62+BM62+BX62+CI62+CT62+DE62+DP62+EA62)/ROUND(12/VLOOKUP($A62, Annualization!$A$3:$C$323,3,FALSE),0),0) -> 0 | EX62: =IFERROR((K62+V62+AG62+AR62+BC62+BN62+BY62+CJ62+CU62+DF62+DQ62+EB62)/ROUND(12/VLOOKUP($A62, Annualization!$A$3:$C$323,3,FALSE),0),0) -> 0 | EY62: =IFERROR((L62+W62+AH62+AS62+BD62+BO62+BZ62+CK62+CV62+DG62+DR62+EC62)/ROUND(12/VLOOKUP($A62, Annualization!$A$3:$C$323,3,FALSE),0),0) -> 0 | EZ62: =IFERROR((M62+X62+AI62+AT62+BE62+BP62+CA62+CL62+CW62+DH62+DS62+ED62)/ROUND(12/VLOOKUP($A62, Annualization!$A$3:$C$323,3,FALSE),0),0) -> 0
EE63: 0 | EF63: 0 | EG63: 0 | EH63: 0 | EI63: 0 | EJ63: 0 | EK63: 0 | EL63: 0 | EM63: 0 | EN63: 0 | EO63: 0 | EP63: =IFERROR((C63+N63+Y63+AJ63+AU63+BF63+BQ63+CB63+CM63+CX63+DI63+DT63)/ROUND(12/VLOOKUP($A63, Annualization!$A$3:$C$323,3,FALSE),0),0) -> 0 | EQ63: =IFERROR((D63+O63+Z63+AK63+AV63+BG63+BR63+CC63+CN63+CY63+DJ63+DU63)/ROUND(12/VLOOKUP($A63, Annualization!$A$3:$C$323,3,FALSE),0),0) -> 0 | ER63: =IFERROR((E63+P63+AA63+AL63+AW63+BH63+BS63+CD63+CO63+CZ63+DK63+DV63)/ROUND(12/VLOOKUP($A63, Annualization!$A$3:$C$323,3,FALSE),0),0) -> 0 | ES63: =IFERROR((F63+Q63+AB63+AM63+AX63+BI63+BT63+CE63+CP63+DA63+DL63+DW63)/ROUND(12/VLOOKUP($A63, Annualization!$A$3:$C$323,3,FALSE),0),0) -> 0 | ET63: =IFERROR((G63+R63+AC63+AN63+AY63+BJ63+BU63+CF63+CQ63+DB63+DM63+DX63)/ROUND(12/VLOOKUP($A63, Annualization!$A$3:$C$323,3,FALSE),0),0) -> 0 | EU63: =IFERROR((H63+S63+AD63+AO63+AZ63+BK63+BV63+CG63+CR63+DC63+DN63+DY63)/ROUND(12/VLOOKUP($A63, Annualization!$A$3:$C$323,3,FALSE),0),0) -> 0 | EV63: =IFERROR((I63+T63+AE63+AP63+BA63+BL63+BW63+CH63+CS63+DD63+DO63+DZ63)/ROUND(12/VLOOKUP($A63, Annualization!$A$3:$C$323,3,FALSE),0),0) -> 0 | EW63: =IFERROR((J63+U63+AF63+AQ63+BB63+BM63+BX63+CI63+CT63+DE63+DP63+EA63)/ROUND(12/VLOOKUP($A63, Annualization!$A$3:$C$323,3,FALSE),0),0) -> 0 | EX63: =IFERROR((K63+V63+AG63+AR63+BC63+BN63+BY63+CJ63+CU63+DF63+DQ63+EB63)/ROUND(12/VLOOKUP($A63, Annualization!$A$3:$C$323,3,FALSE),0),0) -> 0 | EY63: =IFERROR((L63+W63+AH63+AS63+BD63+BO63+BZ63+CK63+CV63+DG63+DR63+EC63)/ROUND(12/VLOOKUP($A63, Annualization!$A$3:$C$323,3,FALSE),0),0) -> 0 | EZ63: =IFERROR((M63+X63+AI63+AT63+BE63+BP63+CA63+CL63+CW63+DH63+DS63+ED63)/ROUND(12/VLOOKUP($A63, Annualization!$A$3:$C$323,3,FALSE),0),0) -> 0
EE64: 0 | EF64: 0 | EG64: 0 | EH64: 0 | EI64: 0 | EJ64: 0 | EK64: 0 | EL64: 0 | EM64: 0 | EN64: 0 | EO64: 0 | EP64: =IFERROR((C64+N64+Y64+AJ64+AU64+BF64+BQ64+CB64+CM64+CX64+DI64+DT64)/ROUND(12/VLOOKUP($A64, Annualization!$A$3:$C$323,3,FALSE),0),0) -> 0 | EQ64: =IFERROR((D64+O64+Z64+AK64+AV64+BG64+BR64+CC64+CN64+CY64+DJ64+DU64)/ROUND(12/VLOOKUP($A64, Annualization!$A$3:$C$323,3,FALSE),0),0) -> 0 | ER64: =IFERROR((E64+P64+AA64+AL64+AW64+BH64+BS64+CD64+CO64+CZ64+DK64+DV64)/ROUND(12/VLOOKUP($A64, Annualization!$A$3:$C$323,3,FALSE),0),0) -> 0 | ES64: =IFERROR((F64+Q64+AB64+AM64+AX64+BI64+BT64+CE64+CP64+DA64+DL64+DW64)/ROUND(12/VLOOKUP($A64, Annualization!$A$3:$C$323,3,FALSE),0),0) -> 0 | ET64: =IFERROR((G64+R64+AC64+AN64+AY64+BJ64+BU64+CF64+CQ64+DB64+DM64+DX64)/ROUND(12/VLOOKUP($A64, Annualization!$A$3:$C$323,3,FALSE),0),0) -> 0 | EU64: =IFERROR((H64+S64+AD64+AO64+AZ64+BK64+BV64+CG64+CR64+DC64+DN64+DY64)/ROUND(12/VLOOKUP($A64, Annualization!$A$3:$C$323,3,FALSE),0),0) -> 0 | EV64: =IFERROR((I64+T64+AE64+AP64+BA64+BL64+BW64+CH64+CS64+DD64+DO64+DZ64)/ROUND(12/VLOOKUP($A64, Annualization!$A$3:$C$323,3,FALSE),0),0) -> 0 | EW64: =IFERROR((J64+U64+AF64+AQ64+BB64+BM64+BX64+CI64+CT64+DE64+DP64+EA64)/ROUND(12/VLOOKUP($A64, Annualization!$A$3:$C$323,3,FALSE),0),0) -> 0 | EX64: =IFERROR((K64+V64+AG64+AR64+BC64+BN64+BY64+CJ64+CU64+DF64+DQ64+EB64)/ROUND(12/VLOOKUP($A64, Annualization!$A$3:$C$323,3,FALSE),0),0) -> 0 | EY64: =IFERROR((L64+W64+AH64+AS64+BD64+BO64+BZ64+CK64+CV64+DG64+DR64+EC64)/ROUND(12/VLOOKUP($A64, Annualization!$A$3:$C$323,3,FALSE),0),0) -> 0 | EZ64: =IFERROR((M64+X64+AI64+AT64+BE64+BP64+CA64+CL64+CW64+DH64+DS64+ED64)/ROUND(12/VLOOKUP($A64, Annualization!$A$3:$C$323,3,FALSE),0),0) -> 0
EE65: 0 | EF65: 0 | EG65: 0 | EH65: 0 | EI65: 0 | EJ65: 0 | EK65: 0 | EL65: 0 | EM65: 0 | EN65: 0 | EO65: 0 | EP65: =IFERROR((C65+N65+Y65+AJ65+AU65+BF65+BQ65+CB65+CM65+CX65+DI65+DT65)/ROUND(12/VLOOKUP($A65, Annualization!$A$3:$C$323,3,FALSE),0),0) -> 0 | EQ65: =IFERROR((D65+O65+Z65+AK65+AV65+BG65+BR65+CC65+CN65+CY65+DJ65+DU65)/ROUND(12/VLOOKUP($A65, Annualization!$A$3:$C$323,3,FALSE),0),0) -> 0 | ER65: =IFERROR((E65+P65+AA65+AL65+AW65+BH65+BS65+CD65+CO65+CZ65+DK65+DV65)/ROUND(12/VLOOKUP($A65, Annualization!$A$3:$C$323,3,FALSE),0),0) -> 0 | ES65: =IFERROR((F65+Q65+AB65+AM65+AX65+BI65+BT65+CE65+CP65+DA65+DL65+DW65)/ROUND(12/VLOOKUP($A65, Annualization!$A$3:$C$323,3,FALSE),0),0) -> 0 | ET65: =IFERROR((G65+R65+AC65+AN65+AY65+BJ65+BU65+CF65+CQ65+DB65+DM65+DX65)/ROUND(12/VLOOKUP($A65, Annualization!$A$3:$C$323,3,FALSE),0),0) -> 0 | EU65: =IFERROR((H65+S65+AD65+AO65+AZ65+BK65+BV65+CG65+CR65+DC65+DN65+DY65)/ROUND(12/VLOOKUP($A65, Annualization!$A$3:$C$323,3,FALSE),0),0) -> 0 | EV65: =IFERROR((I65+T65+AE65+AP65+BA65+BL65+BW65+CH65+CS65+DD65+DO65+DZ65)/ROUND(12/VLOOKUP($A65, Annualization!$A$3:$C$323,3,FALSE),0),0) -> 0 | EW65: =IFERROR((J65+U65+AF65+AQ65+BB65+BM65+BX65+CI65+CT65+DE65+DP65+EA65)/ROUND(12/VLOOKUP($A65, Annualization!$A$3:$C$323,3,FALSE),0),0) -> 0 | EX65: =IFERROR((K65+V65+AG65+AR65+BC65+BN65+BY65+CJ65+CU65+DF65+DQ65+EB65)/ROUND(12/VLOOKUP($A65, Annualization!$A$3:$C$323,3,FALSE),0),0) -> 0 | EY65: =IFERROR((L65+W65+AH65+AS65+BD65+BO65+BZ65+CK65+CV65+DG65+DR65+EC65)/ROUND(12/VLOOKUP($A65, Annualization!$A$3:$C$323,3,FALSE),0),0) -> 0 | EZ65: =IFERROR((M65+X65+AI65+AT65+BE65+BP65+CA65+CL65+CW65+DH65+DS65+ED65)/ROUND(12/VLOOKUP($A65, Annualization!$A$3:$C$323,3,FALSE),0),0) -> 0
EE66: 0 | EF66: 0 | EG66: 0 | EH66: 0 | EI66: 0 | EJ66: 0 | EK66: 0 | EL66: 0 | EM66: 0 | EN66: 0 | EO66: 0 | EP66: =IFERROR((C66+N66+Y66+AJ66+AU66+BF66+BQ66+CB66+CM66+CX66+DI66+DT66)/ROUND(12/VLOOKUP($A66, Annualization!$A$3:$C$323,3,FALSE),0),0) -> 0 | EQ66: =IFERROR((D66+O66+Z66+AK66+AV66+BG66+BR66+CC66+CN66+CY66+DJ66+DU66)/ROUND(12/VLOOKUP($A66, Annualization!$A$3:$C$323,3,FALSE),0),0) -> 0 | ER66: =IFERROR((E66+P66+AA66+AL66+AW66+BH66+BS66+CD66+CO66+CZ66+DK66+DV66)/ROUND(12/VLOOKUP($A66, Annualization!$A$3:$C$323,3,FALSE),0),0) -> 0 | ES66: =IFERROR((F66+Q66+AB66+AM66+AX66+BI66+BT66+CE66+CP66+DA66+DL66+DW66)/ROUND(12/VLOOKUP($A66, Annualization!$A$3:$C$323,3,FALSE),0),0) -> 0 | ET66: =IFERROR((G66+R66+AC66+AN66+AY66+BJ66+BU66+CF66+CQ66+DB66+DM66+DX66)/ROUND(12/VLOOKUP($A66, Annualization!$A$3:$C$323,3,FALSE),0),0) -> 0 | EU66: =IFERROR((H66+S66+AD66+AO66+AZ66+BK66+BV66+CG66+CR66+DC66+DN66+DY66)/ROUND(12/VLOOKUP($A66, Annualization!$A$3:$C$323,3,FALSE),0),0) -> 0 | EV66: =IFERROR((I66+T66+AE66+AP66+BA66+BL66+BW66+CH66+CS66+DD66+DO66+DZ66)/ROUND(12/VLOOKUP($A66, Annualization!$A$3:$C$323,3,FALSE),0),0) -> 0 | EW66: =IFERROR((J66+U66+AF66+AQ66+BB66+BM66+BX66+CI66+CT66+DE66+DP66+EA66)/ROUND(12/VLOOKUP($A66, Annualization!$A$3:$C$323,3,FALSE),0),0) -> 0 | EX66: =IFERROR((K66+V66+AG66+AR66+BC66+BN66+BY66+CJ66+CU66+DF66+DQ66+EB66)/ROUND(12/VLOOKUP($A66, Annualization!$A$3:$C$323,3,FALSE),0),0) -> 0 | EY66: =IFERROR((L66+W66+AH66+AS66+BD66+BO66+BZ66+CK66+CV66+DG66+DR66+EC66)/ROUND(12/VLOOKUP($A66, Annualization!$A$3:$C$323,3,FALSE),0),0) -> 0 | EZ66: =IFERROR((M66+X66+AI66+AT66+BE66+BP66+CA66+CL66+CW66+DH66+DS66+ED66)/ROUND(12/VLOOKUP($A66, Annualization!$A$3:$C$323,3,FALSE),0),0) -> 0
EE67: 0 | EF67: 0 | EG67: 0 | EH67: 0 | EI67: 0 | EJ67: 0 | EK67: 0 | EL67: 0 | EM67: 0 | EN67: 0 | EO67: 0 | EP67: =IFERROR((C67+N67+Y67+AJ67+AU67+BF67+BQ67+CB67+CM67+CX67+DI67+DT67)/ROUND(12/VLOOKUP($A67, Annualization!$A$3:$C$323,3,FALSE),0),0) -> 0 | EQ67: =IFERROR((D67+O67+Z67+AK67+AV67+BG67+BR67+CC67+CN67+CY67+DJ67+DU67)/ROUND(12/VLOOKUP($A67, Annualization!$A$3:$C$323,3,FALSE),0),0) -> 0 | ER67: =IFERROR((E67+P67+AA67+AL67+AW67+BH67+BS67+CD67+CO67+CZ67+DK67+DV67)/ROUND(12/VLOOKUP($A67, Annualization!$A$3:$C$323,3,FALSE),0),0) -> 0 | ES67: =IFERROR((F67+Q67+AB67+AM67+AX67+BI67+BT67+CE67+CP67+DA67+DL67+DW67)/ROUND(12/VLOOKUP($A67, Annualization!$A$3:$C$323,3,FALSE),0),0) -> 0 | ET67: =IFERROR((G67+R67+AC67+AN67+AY67+BJ67+BU67+CF67+CQ67+DB67+DM67+DX67)/ROUND(12/VLOOKUP($A67, Annualization!$A$3:$C$323,3,FALSE),0),0) -> 0 | EU67: =IFERROR((H67+S67+AD67+AO67+AZ67+BK67+BV67+CG67+CR67+DC67+DN67+DY67)/ROUND(12/VLOOKUP($A67, Annualization!$A$3:$C$323,3,FALSE),0),0) -> 0 | EV67: =IFERROR((I67+T67+AE67+AP67+BA67+BL67+BW67+CH67+CS67+DD67+DO67+DZ67)/ROUND(12/VLOOKUP($A67, Annualization!$A$3:$C$323,3,FALSE),0),0) -> 0 | EW67: =IFERROR((J67+U67+AF67+AQ67+BB67+BM67+BX67+CI67+CT67+DE67+DP67+EA67)/ROUND(12/VLOOKUP($A67, Annualization!$A$3:$C$323,3,FALSE),0),0) -> 0 | EX67: =IFERROR((K67+V67+AG67+AR67+BC67+BN67+BY67+CJ67+CU67+DF67+DQ67+EB67)/ROUND(12/VLOOKUP($A67, Annualization!$A$3:$C$323,3,FALSE),0),0) -> 0 | EY67: =IFERROR((L67+W67+AH67+AS67+BD67+BO67+BZ67+CK67+CV67+DG67+DR67+EC67)/ROUND(12/VLOOKUP($A67, Annualization!$A$3:$C$323,3,FALSE),0),0) -> 0 | EZ67: =IFERROR((M67+X67+AI67+AT67+BE67+BP67+CA67+CL67+CW67+DH67+DS67+ED67)/ROUND(12/VLOOKUP($A67, Annualization!$A$3:$C$323,3,FALSE),0),0) -> 0
EE68: 0 | EF68: 0 | EG68: 0 | EH68: 0 | EI68: 0 | EJ68: 0 | EK68: 0 | EL68: 0 | EM68: 0 | EN68: 0 | EO68: 0 | EP68: =IFERROR((C68+N68+Y68+AJ68+AU68+BF68+BQ68+CB68+CM68+CX68+DI68+DT68)/ROUND(12/VLOOKUP($A68, Annualization!$A$3:$C$323,3,FALSE),0),0) -> 0 | EQ68: =IFERROR((D68+O68+Z68+AK68+AV68+BG68+BR68+CC68+CN68+CY68+DJ68+DU68)/ROUND(12/VLOOKUP($A68, Annualization!$A$3:$C$323,3,FALSE),0),0) -> 0 | ER68: =IFERROR((E68+P68+AA68+AL68+AW68+BH68+BS68+CD68+CO68+CZ68+DK68+DV68)/ROUND(12/VLOOKUP($A68, Annualization!$A$3:$C$323,3,FALSE),0),0) -> 0 | ES68: =IFERROR((F68+Q68+AB68+AM68+AX68+BI68+BT68+CE68+CP68+DA68+DL68+DW68)/ROUND(12/VLOOKUP($A68, Annualization!$A$3:$C$323,3,FALSE),0),0) -> 0 | ET68: =IFERROR((G68+R68+AC68+AN68+AY68+BJ68+BU68+CF68+CQ68+DB68+DM68+DX68)/ROUND(12/VLOOKUP($A68, Annualization!$A$3:$C$323,3,FALSE),0),0) -> 0 | EU68: =IFERROR((H68+S68+AD68+AO68+AZ68+BK68+BV68+CG68+CR68+DC68+DN68+DY68)/ROUND(12/VLOOKUP($A68, Annualization!$A$3:$C$323,3,FALSE),0),0) -> 0 | EV68: =IFERROR((I68+T68+AE68+AP68+BA68+BL68+BW68+CH68+CS68+DD68+DO68+DZ68)/ROUND(12/VLOOKUP($A68, Annualization!$A$3:$C$323,3,FALSE),0),0) -> 0 | EW68: =IFERROR((J68+U68+AF68+AQ68+BB68+BM68+BX68+CI68+CT68+DE68+DP68+EA68)/ROUND(12/VLOOKUP($A68, Annualization!$A$3:$C$323,3,FALSE),0),0) -> 0 | EX68: =IFERROR((K68+V68+AG68+AR68+BC68+BN68+BY68+CJ68+CU68+DF68+DQ68+EB68)/ROUND(12/VLOOKUP($A68, Annualization!$A$3:$C$323,3,FALSE),0),0) -> 0 | EY68: =IFERROR((L68+W68+AH68+AS68+BD68+BO68+BZ68+CK68+CV68+DG68+DR68+EC68)/ROUND(12/VLOOKUP($A68, Annualization!$A$3:$C$323,3,FALSE),0),0) -> 0 | EZ68: =IFERROR((M68+X68+AI68+AT68+BE68+BP68+CA68+CL68+CW68+DH68+DS68+ED68)/ROUND(12/VLOOKUP($A68, Annualization!$A$3:$C$323,3,FALSE),0),0) -> 0
EE69: 0 | EF69: 0 | EG69: 0 | EH69: 0 | EI69: 0 | EJ69: 0 | EK69: 0 | EL69: 0 | EM69: 0 | EN69: 0 | EO69: 0 | EP69: =IFERROR((C69+N69+Y69+AJ69+AU69+BF69+BQ69+CB69+CM69+CX69+DI69+DT69)/ROUND(12/VLOOKUP($A69, Annualization!$A$3:$C$323,3,FALSE),0),0) -> 0 | EQ69: =IFERROR((D69+O69+Z69+AK69+AV69+BG69+BR69+CC69+CN69+CY69+DJ69+DU69)/ROUND(12/VLOOKUP($A69, Annualization!$A$3:$C$323,3,FALSE),0),0) -> 0 | ER69: =IFERROR((E69+P69+AA69+AL69+AW69+BH69+BS69+CD69+CO69+CZ69+DK69+DV69)/ROUND(12/VLOOKUP($A69, Annualization!$A$3:$C$323,3,FALSE),0),0) -> 0 | ES69: =IFERROR((F69+Q69+AB69+AM69+AX69+BI69+BT69+CE69+CP69+DA69+DL69+DW69)/ROUND(12/VLOOKUP($A69, Annualization!$A$3:$C$323,3,FALSE),0),0) -> 0 | ET69: =IFERROR((G69+R69+AC69+AN69+AY69+BJ69+BU69+CF69+CQ69+DB69+DM69+DX69)/ROUND(12/VLOOKUP($A69, Annualization!$A$3:$C$323,3,FALSE),0),0) -> 0 | EU69: =IFERROR((H69+S69+AD69+AO69+AZ69+BK69+BV69+CG69+CR69+DC69+DN69+DY69)/ROUND(12/VLOOKUP($A69, Annualization!$A$3:$C$323,3,FALSE),0),0) -> 0 | EV69: =IFERROR((I69+T69+AE69+AP69+BA69+BL69+BW69+CH69+CS69+DD69+DO69+DZ69)/ROUND(12/VLOOKUP($A69, Annualization!$A$3:$C$323,3,FALSE),0),0) -> 0 | EW69: =IFERROR((J69+U69+AF69+AQ69+BB69+BM69+BX69+CI69+CT69+DE69+DP69+EA69)/ROUND(12/VLOOKUP($A69, Annualization!$A$3:$C$323,3,FALSE),0),0) -> 0 | EX69: =IFERROR((K69+V69+AG69+AR69+BC69+BN69+BY69+CJ69+CU69+DF69+DQ69+EB69)/ROUND(12/VLOOKUP($A69, Annualization!$A$3:$C$323,3,FALSE),0),0) -> 0 | EY69: =IFERROR((L69+W69+AH69+AS69+BD69+BO69+BZ69+CK69+CV69+DG69+DR69+EC69)/ROUND(12/VLOOKUP($A69, Annualization!$A$3:$C$323,3,FALSE),0),0) -> 0 | EZ69: =IFERROR((M69+X69+AI69+AT69+BE69+BP69+CA69+CL69+CW69+DH69+DS69+ED69)/ROUND(12/VLOOKUP($A69, Annualization!$A$3:$C$323,3,FALSE),0),0) -> 0
EE70: 0 | EF70: 0 | EG70: 0 | EH70: 0 | EI70: 0 | EJ70: 0 | EK70: 0 | EL70: 0 | EM70: 0 | EN70: 0 | EO70: 0 | EP70: =IFERROR((C70+N70+Y70+AJ70+AU70+BF70+BQ70+CB70+CM70+CX70+DI70+DT70)/ROUND(12/VLOOKUP($A70, Annualization!$A$3:$C$323,3,FALSE),0),0) -> 0 | EQ70: =IFERROR((D70+O70+Z70+AK70+AV70+BG70+BR70+CC70+CN70+CY70+DJ70+DU70)/ROUND(12/VLOOKUP($A70, Annualization!$A$3:$C$323,3,FALSE),0),0) -> 0 | ER70: =IFERROR((E70+P70+AA70+AL70+AW70+BH70+BS70+CD70+CO70+CZ70+DK70+DV70)/ROUND(12/VLOOKUP($A70, Annualization!$A$3:$C$323,3,FALSE),0),0) -> 0 | ES70: =IFERROR((F70+Q70+AB70+AM70+AX70+BI70+BT70+CE70+CP70+DA70+DL70+DW70)/ROUND(12/VLOOKUP($A70, Annualization!$A$3:$C$323,3,FALSE),0),0) -> 0 | ET70: =IFERROR((G70+R70+AC70+AN70+AY70+BJ70+BU70+CF70+CQ70+DB70+DM70+DX70)/ROUND(12/VLOOKUP($A70, Annualization!$A$3:$C$323,3,FALSE),0),0) -> 0 | EU70: =IFERROR((H70+S70+AD70+AO70+AZ70+BK70+BV70+CG70+CR70+DC70+DN70+DY70)/ROUND(12/VLOOKUP($A70, Annualization!$A$3:$C$323,3,FALSE),0),0) -> 0 | EV70: =IFERROR((I70+T70+AE70+AP70+BA70+BL70+BW70+CH70+CS70+DD70+DO70+DZ70)/ROUND(12/VLOOKUP($A70, Annualization!$A$3:$C$323,3,FALSE),0),0) -> 0 | EW70: =IFERROR((J70+U70+AF70+AQ70+BB70+BM70+BX70+CI70+CT70+DE70+DP70+EA70)/ROUND(12/VLOOKUP($A70, Annualization!$A$3:$C$323,3,FALSE),0),0) -> 0 | EX70: =IFERROR((K70+V70+AG70+AR70+BC70+BN70+BY70+CJ70+CU70+DF70+DQ70+EB70)/ROUND(12/VLOOKUP($A70, Annualization!$A$3:$C$323,3,FALSE),0),0) -> 0 | EY70: =IFERROR((L70+W70+AH70+AS70+BD70+BO70+BZ70+CK70+CV70+DG70+DR70+EC70)/ROUND(12/VLOOKUP($A70, Annualization!$A$3:$C$323,3,FALSE),0),0) -> 0 | EZ70: =IFERROR((M70+X70+AI70+AT70+BE70+BP70+CA70+CL70+CW70+DH70+DS70+ED70)/ROUND(12/VLOOKUP($A70, Annualization!$A$3:$C$323,3,FALSE),0),0) -> 0
EE71: 0 | EF71: 0 | EG71: 0 | EH71: 0 | EI71: 0 | EJ71: 0 | EK71: 0 | EL71: 0 | EM71: 0 | EN71: 0 | EO71: 0 | EP71: =IFERROR((C71+N71+Y71+AJ71+AU71+BF71+BQ71+CB71+CM71+CX71+DI71+DT71)/ROUND(12/VLOOKUP($A71, Annualization!$A$3:$C$323,3,FALSE),0),0) -> 0 | EQ71: =IFERROR((D71+O71+Z71+AK71+AV71+BG71+BR71+CC71+CN71+CY71+DJ71+DU71)/ROUND(12/VLOOKUP($A71, Annualization!$A$3:$C$323,3,FALSE),0),0) -> 0 | ER71: =IFERROR((E71+P71+AA71+AL71+AW71+BH71+BS71+CD71+CO71+CZ71+DK71+DV71)/ROUND(12/VLOOKUP($A71, Annualization!$A$3:$C$323,3,FALSE),0),0) -> 0 | ES71: =IFERROR((F71+Q71+AB71+AM71+AX71+BI71+BT71+CE71+CP71+DA71+DL71+DW71)/ROUND(12/VLOOKUP($A71, Annualization!$A$3:$C$323,3,FALSE),0),0) -> 0 | ET71: =IFERROR((G71+R71+AC71+AN71+AY71+BJ71+BU71+CF71+CQ71+DB71+DM71+DX71)/ROUND(12/VLOOKUP($A71, Annualization!$A$3:$C$323,3,FALSE),0),0) -> 0 | EU71: =IFERROR((H71+S71+AD71+AO71+AZ71+BK71+BV71+CG71+CR71+DC71+DN71+DY71)/ROUND(12/VLOOKUP($A71, Annualization!$A$3:$C$323,3,FALSE),0),0) -> 0 | EV71: =IFERROR((I71+T71+AE71+AP71+BA71+BL71+BW71+CH71+CS71+DD71+DO71+DZ71)/ROUND(12/VLOOKUP($A71, Annualization!$A$3:$C$323,3,FALSE),0),0) -> 0 | EW71: =IFERROR((J71+U71+AF71+AQ71+BB71+BM71+BX71+CI71+CT71+DE71+DP71+EA71)/ROUND(12/VLOOKUP($A71, Annualization!$A$3:$C$323,3,FALSE),0),0) -> 0 | EX71: =IFERROR((K71+V71+AG71+AR71+BC71+BN71+BY71+CJ71+CU71+DF71+DQ71+EB71)/ROUND(12/VLOOKUP($A71, Annualization!$A$3:$C$323,3,FALSE),0),0) -> 0 | EY71: =IFERROR((L71+W71+AH71+AS71+BD71+BO71+BZ71+CK71+CV71+DG71+DR71+EC71)/ROUND(12/VLOOKUP($A71, Annualization!$A$3:$C$323,3,FALSE),0),0) -> 0 | EZ71: =IFERROR((M71+X71+AI71+AT71+BE71+BP71+CA71+CL71+CW71+DH71+DS71+ED71)/ROUND(12/VLOOKUP($A71, Annualization!$A$3:$C$323,3,FALSE),0),0) -> 0
EE72: 0 | EF72: 0 | EG72: 0 | EH72: 0 | EI72: 0 | EJ72: 0 | EK72: 0 | EL72: 0 | EM72: 0 | EN72: 0 | EO72: 0 | EP72: =IFERROR((C72+N72+Y72+AJ72+AU72+BF72+BQ72+CB72+CM72+CX72+DI72+DT72)/ROUND(12/VLOOKUP($A72, Annualization!$A$3:$C$323,3,FALSE),0),0) -> 0 | EQ72: =IFERROR((D72+O72+Z72+AK72+AV72+BG72+BR72+CC72+CN72+CY72+DJ72+DU72)/ROUND(12/VLOOKUP($A72, Annualization!$A$3:$C$323,3,FALSE),0),0) -> 0 | ER72: =IFERROR((E72+P72+AA72+AL72+AW72+BH72+BS72+CD72+CO72+CZ72+DK72+DV72)/ROUND(12/VLOOKUP($A72, Annualization!$A$3:$C$323,3,FALSE),0),0) -> 0 | ES72: =IFERROR((F72+Q72+AB72+AM72+AX72+BI72+BT72+CE72+CP72+DA72+DL72+DW72)/ROUND(12/VLOOKUP($A72, Annualization!$A$3:$C$323,3,FALSE),0),0) -> 0 | ET72: =IFERROR((G72+R72+AC72+AN72+AY72+BJ72+BU72+CF72+CQ72+DB72+DM72+DX72)/ROUND(12/VLOOKUP($A72, Annualization!$A$3:$C$323,3,FALSE),0),0) -> 0 | EU72: =IFERROR((H72+S72+AD72+AO72+AZ72+BK72+BV72+CG72+CR72+DC72+DN72+DY72)/ROUND(12/VLOOKUP($A72, Annualization!$A$3:$C$323,3,FALSE),0),0) -> 0 | EV72: =IFERROR((I72+T72+AE72+AP72+BA72+BL72+BW72+CH72+CS72+DD72+DO72+DZ72)/ROUND(12/VLOOKUP($A72, Annualization!$A$3:$C$323,3,FALSE),0),0) -> 0 | EW72: =IFERROR((J72+U72+AF72+AQ72+BB72+BM72+BX72+CI72+CT72+DE72+DP72+EA72)/ROUND(12/VLOOKUP($A72, Annualization!$A$3:$C$323,3,FALSE),0),0) -> 0 | EX72: =IFERROR((K72+V72+AG72+AR72+BC72+BN72+BY72+CJ72+CU72+DF72+DQ72+EB72)/ROUND(12/VLOOKUP($A72, Annualization!$A$3:$C$323,3,FALSE),0),0) -> 0 | EY72: =IFERROR((L72+W72+AH72+AS72+BD72+BO72+BZ72+CK72+CV72+DG72+DR72+EC72)/ROUND(12/VLOOKUP($A72, Annualization!$A$3:$C$323,3,FALSE),0),0) -> 0 | EZ72: =IFERROR((M72+X72+AI72+AT72+BE72+BP72+CA72+CL72+CW72+DH72+DS72+ED72)/ROUND(12/VLOOKUP($A72, Annualization!$A$3:$C$323,3,FALSE),0),0) -> 0
EE73: 0 | EF73: 0 | EG73: 0 | EH73: 0 | EI73: 0 | EJ73: 0 | EK73: 0 | EL73: 0 | EM73: 0 | EN73: 0 | EO73: 0 | EP73: =IFERROR((C73+N73+Y73+AJ73+AU73+BF73+BQ73+CB73+CM73+CX73+DI73+DT73)/ROUND(12/VLOOKUP($A73, Annualization!$A$3:$C$323,3,FALSE),0),0) -> 0 | EQ73: =IFERROR((D73+O73+Z73+AK73+AV73+BG73+BR73+CC73+CN73+CY73+DJ73+DU73)/ROUND(12/VLOOKUP($A73, Annualization!$A$3:$C$323,3,FALSE),0),0) -> 0 | ER73: =IFERROR((E73+P73+AA73+AL73+AW73+BH73+BS73+CD73+CO73+CZ73+DK73+DV73)/ROUND(12/VLOOKUP($A73, Annualization!$A$3:$C$323,3,FALSE),0),0) -> 0 | ES73: =IFERROR((F73+Q73+AB73+AM73+AX73+BI73+BT73+CE73+CP73+DA73+DL73+DW73)/ROUND(12/VLOOKUP($A73, Annualization!$A$3:$C$323,3,FALSE),0),0) -> 0 | ET73: =IFERROR((G73+R73+AC73+AN73+AY73+BJ73+BU73+CF73+CQ73+DB73+DM73+DX73)/ROUND(12/VLOOKUP($A73, Annualization!$A$3:$C$323,3,FALSE),0),0) -> 0 | EU73: =IFERROR((H73+S73+AD73+AO73+AZ73+BK73+BV73+CG73+CR73+DC73+DN73+DY73)/ROUND(12/VLOOKUP($A73, Annualization!$A$3:$C$323,3,FALSE),0),0) -> 0 | EV73: =IFERROR((I73+T73+AE73+AP73+BA73+BL73+BW73+CH73+CS73+DD73+DO73+DZ73)/ROUND(12/VLOOKUP($A73, Annualization!$A$3:$C$323,3,FALSE),0),0) -> 0 | EW73: =IFERROR((J73+U73+AF73+AQ73+BB73+BM73+BX73+CI73+CT73+DE73+DP73+EA73)/ROUND(12/VLOOKUP($A73, Annualization!$A$3:$C$323,3,FALSE),0),0) -> 0 | EX73: =IFERROR((K73+V73+AG73+AR73+BC73+BN73+BY73+CJ73+CU73+DF73+DQ73+EB73)/ROUND(12/VLOOKUP($A73, Annualization!$A$3:$C$323,3,FALSE),0),0) -> 0 | EY73: =IFERROR((L73+W73+AH73+AS73+BD73+BO73+BZ73+CK73+CV73+DG73+DR73+EC73)/ROUND(12/VLOOKUP($A73, Annualization!$A$3:$C$323,3,FALSE),0),0) -> 0 | EZ73: =IFERROR((M73+X73+AI73+AT73+BE73+BP73+CA73+CL73+CW73+DH73+DS73+ED73)/ROUND(12/VLOOKUP($A73, Annualization!$A$3:$C$323,3,FALSE),0),0) -> 0
EE74: 0 | EF74: 0 | EG74: 0 | EH74: 0 | EI74: 0 | EJ74: 0 | EK74: 0 | EL74: 0 | EM74: 0 | EN74: 0 | EO74: 0 | EP74: =IFERROR((C74+N74+Y74+AJ74+AU74+BF74+BQ74+CB74+CM74+CX74+DI74+DT74)/ROUND(12/VLOOKUP($A74, Annualization!$A$3:$C$323,3,FALSE),0),0) -> 0 | EQ74: =IFERROR((D74+O74+Z74+AK74+AV74+BG74+BR74+CC74+CN74+CY74+DJ74+DU74)/ROUND(12/VLOOKUP($A74, Annualization!$A$3:$C$323,3,FALSE),0),0) -> 0 | ER74: =IFERROR((E74+P74+AA74+AL74+AW74+BH74+BS74+CD74+CO74+CZ74+DK74+DV74)/ROUND(12/VLOOKUP($A74, Annualization!$A$3:$C$323,3,FALSE),0),0) -> 0 | ES74: =IFERROR((F74+Q74+AB74+AM74+AX74+BI74+BT74+CE74+CP74+DA74+DL74+DW74)/ROUND(12/VLOOKUP($A74, Annualization!$A$3:$C$323,3,FALSE),0),0) -> 0 | ET74: =IFERROR((G74+R74+AC74+AN74+AY74+BJ74+BU74+CF74+CQ74+DB74+DM74+DX74)/ROUND(12/VLOOKUP($A74, Annualization!$A$3:$C$323,3,FALSE),0),0) -> 0 | EU74: =IFERROR((H74+S74+AD74+AO74+AZ74+BK74+BV74+CG74+CR74+DC74+DN74+DY74)/ROUND(12/VLOOKUP($A74, Annualization!$A$3:$C$323,3,FALSE),0),0) -> 0 | EV74: =IFERROR((I74+T74+AE74+AP74+BA74+BL74+BW74+CH74+CS74+DD74+DO74+DZ74)/ROUND(12/VLOOKUP($A74, Annualization!$A$3:$C$323,3,FALSE),0),0) -> 0 | EW74: =IFERROR((J74+U74+AF74+AQ74+BB74+BM74+BX74+CI74+CT74+DE74+DP74+EA74)/ROUND(12/VLOOKUP($A74, Annualization!$A$3:$C$323,3,FALSE),0),0) -> 0 | EX74: =IFERROR((K74+V74+AG74+AR74+BC74+BN74+BY74+CJ74+CU74+DF74+DQ74+EB74)/ROUND(12/VLOOKUP($A74, Annualization!$A$3:$C$323,3,FALSE),0),0) -> 0 | EY74: =IFERROR((L74+W74+AH74+AS74+BD74+BO74+BZ74+CK74+CV74+DG74+DR74+EC74)/ROUND(12/VLOOKUP($A74, Annualization!$A$3:$C$323,3,FALSE),0),0) -> 0 | EZ74: =IFERROR((M74+X74+AI74+AT74+BE74+BP74+CA74+CL74+CW74+DH74+DS74+ED74)/ROUND(12/VLOOKUP($A74, Annualization!$A$3:$C$323,3,FALSE),0),0) -> 0
EE75: 0 | EF75: 0 | EG75: 0 | EH75: 0 | EI75: 0 | EJ75: 0 | EK75: 0 | EL75: 0 | EM75: 0 | EN75: 0 | EO75: 0 | EP75: =IFERROR((C75+N75+Y75+AJ75+AU75+BF75+BQ75+CB75+CM75+CX75+DI75+DT75)/ROUND(12/VLOOKUP($A75, Annualization!$A$3:$C$323,3,FALSE),0),0) -> 0 | EQ75: =IFERROR((D75+O75+Z75+AK75+AV75+BG75+BR75+CC75+CN75+CY75+DJ75+DU75)/ROUND(12/VLOOKUP($A75, Annualization!$A$3:$C$323,3,FALSE),0),0) -> 0 | ER75: =IFERROR((E75+P75+AA75+AL75+AW75+BH75+BS75+CD75+CO75+CZ75+DK75+DV75)/ROUND(12/VLOOKUP($A75, Annualization!$A$3:$C$323,3,FALSE),0),0) -> 0 | ES75: =IFERROR((F75+Q75+AB75+AM75+AX75+BI75+BT75+CE75+CP75+DA75+DL75+DW75)/ROUND(12/VLOOKUP($A75, Annualization!$A$3:$C$323,3,FALSE),0),0) -> 0 | ET75: =IFERROR((G75+R75+AC75+AN75+AY75+BJ75+BU75+CF75+CQ75+DB75+DM75+DX75)/ROUND(12/VLOOKUP($A75, Annualization!$A$3:$C$323,3,FALSE),0),0) -> 0 | EU75: =IFERROR((H75+S75+AD75+AO75+AZ75+BK75+BV75+CG75+CR75+DC75+DN75+DY75)/ROUND(12/VLOOKUP($A75, Annualization!$A$3:$C$323,3,FALSE),0),0) -> 0 | EV75: =IFERROR((I75+T75+AE75+AP75+BA75+BL75+BW75+CH75+CS75+DD75+DO75+DZ75)/ROUND(12/VLOOKUP($A75, Annualization!$A$3:$C$323,3,FALSE),0),0) -> 0 | EW75: =IFERROR((J75+U75+AF75+AQ75+BB75+BM75+BX75+CI75+CT75+DE75+DP75+EA75)/ROUND(12/VLOOKUP($A75, Annualization!$A$3:$C$323,3,FALSE),0),0) -> 0 | EX75: =IFERROR((K75+V75+AG75+AR75+BC75+BN75+BY75+CJ75+CU75+DF75+DQ75+EB75)/ROUND(12/VLOOKUP($A75, Annualization!$A$3:$C$323,3,FALSE),0),0) -> 0 | EY75: =IFERROR((L75+W75+AH75+AS75+BD75+BO75+BZ75+CK75+CV75+DG75+DR75+EC75)/ROUND(12/VLOOKUP($A75, Annualization!$A$3:$C$323,3,FALSE),0),0) -> 0 | EZ75: =IFERROR((M75+X75+AI75+AT75+BE75+BP75+CA75+CL75+CW75+DH75+DS75+ED75)/ROUND(12/VLOOKUP($A75, Annualization!$A$3:$C$323,3,FALSE),0),0) -> 0
EE76: =(C76+N76+Y76+AJ76+AU76+BF76+BQ76+CB76+CM76+CX76+DI76+DT76) -> 0 | EF76: 0 | EG76: 0 | EH76: 0 | EI76: 0 | EJ76: 0 | EK76: 0 | EL76: 0 | EM76: 0 | EN76: 0 | EO76: 0 | EP76: =IFERROR((C76+N76+Y76+AJ76+AU76+BF76+BQ76+CB76+CM76+CX76+DI76+DT76)/ROUND(12/VLOOKUP($A76, Annualization!$A$3:$C$323,3,FALSE),0),0) -> 0 | EQ76: =IFERROR((D76+O76+Z76+AK76+AV76+BG76+BR76+CC76+CN76+CY76+DJ76+DU76)/ROUND(12/VLOOKUP($A76, Annualization!$A$3:$C$323,3,FALSE),0),0) -> 0 | ER76: =IFERROR((E76+P76+AA76+AL76+AW76+BH76+BS76+CD76+CO76+CZ76+DK76+DV76)/ROUND(12/VLOOKUP($A76, Annualization!$A$3:$C$323,3,FALSE),0),0) -> 0 | ES76: =IFERROR((F76+Q76+AB76+AM76+AX76+BI76+BT76+CE76+CP76+DA76+DL76+DW76)/ROUND(12/VLOOKUP($A76, Annualization!$A$3:$C$323,3,FALSE),0),0) -> 0 | ET76: =IFERROR((G76+R76+AC76+AN76+AY76+BJ76+BU76+CF76+CQ76+DB76+DM76+DX76)/ROUND(12/VLOOKUP($A76, Annualization!$A$3:$C$323,3,FALSE),0),0) -> 0 | EU76: =IFERROR((H76+S76+AD76+AO76+AZ76+BK76+BV76+CG76+CR76+DC76+DN76+DY76)/ROUND(12/VLOOKUP($A76, Annualization!$A$3:$C$323,3,FALSE),0),0) -> 0 | EV76: =IFERROR((I76+T76+AE76+AP76+BA76+BL76+BW76+CH76+CS76+DD76+DO76+DZ76)/ROUND(12/VLOOKUP($A76, Annualization!$A$3:$C$323,3,FALSE),0),0) -> 0 | EW76: =IFERROR((J76+U76+AF76+AQ76+BB76+BM76+BX76+CI76+CT76+DE76+DP76+EA76)/ROUND(12/VLOOKUP($A76, Annualization!$A$3:$C$323,3,FALSE),0),0) -> 0 | EX76: =IFERROR((K76+V76+AG76+AR76+BC76+BN76+BY76+CJ76+CU76+DF76+DQ76+EB76)/ROUND(12/VLOOKUP($A76, Annualization!$A$3:$C$323,3,FALSE),0),0) -> 0 | EY76: =IFERROR((L76+W76+AH76+AS76+BD76+BO76+BZ76+CK76+CV76+DG76+DR76+EC76)/ROUND(12/VLOOKUP($A76, Annualization!$A$3:$C$323,3,FALSE),0),0) -> 0 | EZ76: =IFERROR((M76+X76+AI76+AT76+BE76+BP76+CA76+CL76+CW76+DH76+DS76+ED76)/ROUND(12/VLOOKUP($A76, Annualization!$A$3:$C$323,3,FALSE),0),0) -> 0
EE77: 0 | EF77: 0 | EG77: 0 | EH77: 0 | EI77: 0 | EJ77: 0 | EK77: 0 | EL77: 0 | EM77: 0 | EN77: 0 | EO77: 0 | EP77: =IFERROR((C77+N77+Y77+AJ77+AU77+BF77+BQ77+CB77+CM77+CX77+DI77+DT77)/ROUND(12/VLOOKUP($A77, Annualization!$A$3:$C$323,3,FALSE),0),0) -> 0 | EQ77: =IFERROR((D77+O77+Z77+AK77+AV77+BG77+BR77+CC77+CN77+CY77+DJ77+DU77)/ROUND(12/VLOOKUP($A77, Annualization!$A$3:$C$323,3,FALSE),0),0) -> 0 | ER77: =IFERROR((E77+P77+AA77+AL77+AW77+BH77+BS77+CD77+CO77+CZ77+DK77+DV77)/ROUND(12/VLOOKUP($A77, Annualization!$A$3:$C$323,3,FALSE),0),0) -> 0 | ES77: =IFERROR((F77+Q77+AB77+AM77+AX77+BI77+BT77+CE77+CP77+DA77+DL77+DW77)/ROUND(12/VLOOKUP($A77, Annualization!$A$3:$C$323,3,FALSE),0),0) -> 0 | ET77: =IFERROR((G77+R77+AC77+AN77+AY77+BJ77+BU77+CF77+CQ77+DB77+DM77+DX77)/ROUND(12/VLOOKUP($A77, Annualization!$A$3:$C$323,3,FALSE),0),0) -> 0 | EU77: =IFERROR((H77+S77+AD77+AO77+AZ77+BK77+BV77+CG77+CR77+DC77+DN77+DY77)/ROUND(12/VLOOKUP($A77, Annualization!$A$3:$C$323,3,FALSE),0),0) -> 0 | EV77: =IFERROR((I77+T77+AE77+AP77+BA77+BL77+BW77+CH77+CS77+DD77+DO77+DZ77)/ROUND(12/VLOOKUP($A77, Annualization!$A$3:$C$323,3,FALSE),0),0) -> 0 | EW77: =IFERROR((J77+U77+AF77+AQ77+BB77+BM77+BX77+CI77+CT77+DE77+DP77+EA77)/ROUND(12/VLOOKUP($A77, Annualization!$A$3:$C$323,3,FALSE),0),0) -> 0 | EX77: =IFERROR((K77+V77+AG77+AR77+BC77+BN77+BY77+CJ77+CU77+DF77+DQ77+EB77)/ROUND(12/VLOOKUP($A77, Annualization!$A$3:$C$323,3,FALSE),0),0) -> 0 | EY77: =IFERROR((L77+W77+AH77+AS77+BD77+BO77+BZ77+CK77+CV77+DG77+DR77+EC77)/ROUND(12/VLOOKUP($A77, Annualization!$A$3:$C$323,3,FALSE),0),0) -> 0 | EZ77: =IFERROR((M77+X77+AI77+AT77+BE77+BP77+CA77+CL77+CW77+DH77+DS77+ED77)/ROUND(12/VLOOKUP($A77, Annualization!$A$3:$C$323,3,FALSE),0),0) -> 0
EE78: 0 | EF78: 0 | EG78: 0 | EH78: 0 | EI78: 0 | EJ78: 0 | EK78: 0 | EL78: 0 | EM78: 0 | EN78: 0 | EO78: 0 | EP78: =IFERROR((C78+N78+Y78+AJ78+AU78+BF78+BQ78+CB78+CM78+CX78+DI78+DT78)/ROUND(12/VLOOKUP($A78, Annualization!$A$3:$C$323,3,FALSE),0),0) -> 0 | EQ78: =IFERROR((D78+O78+Z78+AK78+AV78+BG78+BR78+CC78+CN78+CY78+DJ78+DU78)/ROUND(12/VLOOKUP($A78, Annualization!$A$3:$C$323,3,FALSE),0),0) -> 0 | ER78: =IFERROR((E78+P78+AA78+AL78+AW78+BH78+BS78+CD78+CO78+CZ78+DK78+DV78)/ROUND(12/VLOOKUP($A78, Annualization!$A$3:$C$323,3,FALSE),0),0) -> 0 | ES78: =IFERROR((F78+Q78+AB78+AM78+AX78+BI78+BT78+CE78+CP78+DA78+DL78+DW78)/ROUND(12/VLOOKUP($A78, Annualization!$A$3:$C$323,3,FALSE),0),0) -> 0 | ET78: =IFERROR((G78+R78+AC78+AN78+AY78+BJ78+BU78+CF78+CQ78+DB78+DM78+DX78)/ROUND(12/VLOOKUP($A78, Annualization!$A$3:$C$323,3,FALSE),0),0) -> 0 | EU78: =IFERROR((H78+S78+AD78+AO78+AZ78+BK78+BV78+CG78+CR78+DC78+DN78+DY78)/ROUND(12/VLOOKUP($A78, Annualization!$A$3:$C$323,3,FALSE),0),0) -> 0 | EV78: =IFERROR((I78+T78+AE78+AP78+BA78+BL78+BW78+CH78+CS78+DD78+DO78+DZ78)/ROUND(12/VLOOKUP($A78, Annualization!$A$3:$C$323,3,FALSE),0),0) -> 0 | EW78: =IFERROR((J78+U78+AF78+AQ78+BB78+BM78+BX78+CI78+CT78+DE78+DP78+EA78)/ROUND(12/VLOOKUP($A78, Annualization!$A$3:$C$323,3,FALSE),0),0) -> 0 | EX78: =IFERROR((K78+V78+AG78+AR78+BC78+BN78+BY78+CJ78+CU78+DF78+DQ78+EB78)/ROUND(12/VLOOKUP($A78, Annualization!$A$3:$C$323,3,FALSE),0),0) -> 0 | EY78: =IFERROR((L78+W78+AH78+AS78+BD78+BO78+BZ78+CK78+CV78+DG78+DR78+EC78)/ROUND(12/VLOOKUP($A78, Annualization!$A$3:$C$323,3,FALSE),0),0) -> 0 | EZ78: =IFERROR((M78+X78+AI78+AT78+BE78+BP78+CA78+CL78+CW78+DH78+DS78+ED78)/ROUND(12/VLOOKUP($A78, Annualization!$A$3:$C$323,3,FALSE),0),0) -> 0
EE79: 0 | EF79: 0 | EG79: 0 | EH79: 0 | EI79: 0 | EJ79: 0 | EK79: 0 | EL79: 0 | EM79: 0 | EN79: 0 | EO79: 0 | EP79: =IFERROR((C79+N79+Y79+AJ79+AU79+BF79+BQ79+CB79+CM79+CX79+DI79+DT79)/ROUND(12/VLOOKUP($A79, Annualization!$A$3:$C$323,3,FALSE),0),0) -> 0 | EQ79: =IFERROR((D79+O79+Z79+AK79+AV79+BG79+BR79+CC79+CN79+CY79+DJ79+DU79)/ROUND(12/VLOOKUP($A79, Annualization!$A$3:$C$323,3,FALSE),0),0) -> 0 | ER79: =IFERROR((E79+P79+AA79+AL79+AW79+BH79+BS79+CD79+CO79+CZ79+DK79+DV79)/ROUND(12/VLOOKUP($A79, Annualization!$A$3:$C$323,3,FALSE),0),0) -> 0 | ES79: =IFERROR((F79+Q79+AB79+AM79+AX79+BI79+BT79+CE79+CP79+DA79+DL79+DW79)/ROUND(12/VLOOKUP($A79, Annualization!$A$3:$C$323,3,FALSE),0),0) -> 0 | ET79: =IFERROR((G79+R79+AC79+AN79+AY79+BJ79+BU79+CF79+CQ79+DB79+DM79+DX79)/ROUND(12/VLOOKUP($A79, Annualization!$A$3:$C$323,3,FALSE),0),0) -> 0 | EU79: =IFERROR((H79+S79+AD79+AO79+AZ79+BK79+BV79+CG79+CR79+DC79+DN79+DY79)/ROUND(12/VLOOKUP($A79, Annualization!$A$3:$C$323,3,FALSE),0),0) -> 0 | EV79: =IFERROR((I79+T79+AE79+AP79+BA79+BL79+BW79+CH79+CS79+DD79+DO79+DZ79)/ROUND(12/VLOOKUP($A79, Annualization!$A$3:$C$323,3,FALSE),0),0) -> 0 | EW79: =IFERROR((J79+U79+AF79+AQ79+BB79+BM79+BX79+CI79+CT79+DE79+DP79+EA79)/ROUND(12/VLOOKUP($A79, Annualization!$A$3:$C$323,3,FALSE),0),0) -> 0 | EX79: =IFERROR((K79+V79+AG79+AR79+BC79+BN79+BY79+CJ79+CU79+DF79+DQ79+EB79)/ROUND(12/VLOOKUP($A79, Annualization!$A$3:$C$323,3,FALSE),0),0) -> 0 | EY79: =IFERROR((L79+W79+AH79+AS79+BD79+BO79+BZ79+CK79+CV79+DG79+DR79+EC79)/ROUND(12/VLOOKUP($A79, Annualization!$A$3:$C$323,3,FALSE),0),0) -> 0 | EZ79: =IFERROR((M79+X79+AI79+AT79+BE79+BP79+CA79+CL79+CW79+DH79+DS79+ED79)/ROUND(12/VLOOKUP($A79, Annualization!$A$3:$C$323,3,FALSE),0),0) -> 0
EE80: 0 | EF80: 0 | EG80: 0 | EH80: 0 | EI80: 0 | EJ80: 0 | EK80: 0 | EL80: 0 | EM80: 0 | EN80: 0 | EO80: 0 | EP80: =IFERROR((C80+N80+Y80+AJ80+AU80+BF80+BQ80+CB80+CM80+CX80+DI80+DT80)/ROUND(12/VLOOKUP($A80, Annualization!$A$3:$C$323,3,FALSE),0),0) -> 0 | EQ80: =IFERROR((D80+O80+Z80+AK80+AV80+BG80+BR80+CC80+CN80+CY80+DJ80+DU80)/ROUND(12/VLOOKUP($A80, Annualization!$A$3:$C$323,3,FALSE),0),0) -> 0 | ER80: =IFERROR((E80+P80+AA80+AL80+AW80+BH80+BS80+CD80+CO80+CZ80+DK80+DV80)/ROUND(12/VLOOKUP($A80, Annualization!$A$3:$C$323,3,FALSE),0),0) -> 0 | ES80: =IFERROR((F80+Q80+AB80+AM80+AX80+BI80+BT80+CE80+CP80+DA80+DL80+DW80)/ROUND(12/VLOOKUP($A80, Annualization!$A$3:$C$323,3,FALSE),0),0) -> 0 | ET80: =IFERROR((G80+R80+AC80+AN80+AY80+BJ80+BU80+CF80+CQ80+DB80+DM80+DX80)/ROUND(12/VLOOKUP($A80, Annualization!$A$3:$C$323,3,FALSE),0),0) -> 0 | EU80: =IFERROR((H80+S80+AD80+AO80+AZ80+BK80+BV80+CG80+CR80+DC80+DN80+DY80)/ROUND(12/VLOOKUP($A80, Annualization!$A$3:$C$323,3,FALSE),0),0) -> 0 | EV80: =IFERROR((I80+T80+AE80+AP80+BA80+BL80+BW80+CH80+CS80+DD80+DO80+DZ80)/ROUND(12/VLOOKUP($A80, Annualization!$A$3:$C$323,3,FALSE),0),0) -> 0 | EW80: =IFERROR((J80+U80+AF80+AQ80+BB80+BM80+BX80+CI80+CT80+DE80+DP80+EA80)/ROUND(12/VLOOKUP($A80, Annualization!$A$3:$C$323,3,FALSE),0),0) -> 0 | EX80: =IFERROR((K80+V80+AG80+AR80+BC80+BN80+BY80+CJ80+CU80+DF80+DQ80+EB80)/ROUND(12/VLOOKUP($A80, Annualization!$A$3:$C$323,3,FALSE),0),0) -> 0 | EY80: =IFERROR((L80+W80+AH80+AS80+BD80+BO80+BZ80+CK80+CV80+DG80+DR80+EC80)/ROUND(12/VLOOKUP($A80, Annualization!$A$3:$C$323,3,FALSE),0),0) -> 0 | EZ80: =IFERROR((M80+X80+AI80+AT80+BE80+BP80+CA80+CL80+CW80+DH80+DS80+ED80)/ROUND(12/VLOOKUP($A80, Annualization!$A$3:$C$323,3,FALSE),0),0) -> 0
EE81: 0 | EF81: 0 | EG81: 0 | EH81: 0 | EI81: 0 | EJ81: 0 | EK81: 0 | EL81: 0 | EM81: =(K81+V81+AG81+AR81+BC81+BN81+BY81+CJ81+CU81+DF81+DQ81+EB81) -> 0 | EN81: 0 | EO81: 0 | EP81: =IFERROR((C81+N81+Y81+AJ81+AU81+BF81+BQ81+CB81+CM81+CX81+DI81+DT81)/ROUND(12/VLOOKUP($A81, Annualization!$A$3:$C$323,3,FALSE),0),0) -> 0 | EQ81: =IFERROR((D81+O81+Z81+AK81+AV81+BG81+BR81+CC81+CN81+CY81+DJ81+DU81)/ROUND(12/VLOOKUP($A81, Annualization!$A$3:$C$323,3,FALSE),0),0) -> 0 | ER81: =IFERROR((E81+P81+AA81+AL81+AW81+BH81+BS81+CD81+CO81+CZ81+DK81+DV81)/ROUND(12/VLOOKUP($A81, Annualization!$A$3:$C$323,3,FALSE),0),0) -> 0 | ES81: =IFERROR((F81+Q81+AB81+AM81+AX81+BI81+BT81+CE81+CP81+DA81+DL81+DW81)/ROUND(12/VLOOKUP($A81, Annualization!$A$3:$C$323,3,FALSE),0),0) -> 0 | ET81: =IFERROR((G81+R81+AC81+AN81+AY81+BJ81+BU81+CF81+CQ81+DB81+DM81+DX81)/ROUND(12/VLOOKUP($A81, Annualization!$A$3:$C$323,3,FALSE),0),0) -> 0 | EU81: =IFERROR((H81+S81+AD81+AO81+AZ81+BK81+BV81+CG81+CR81+DC81+DN81+DY81)/ROUND(12/VLOOKUP($A81, Annualization!$A$3:$C$323,3,FALSE),0),0) -> 0 | EV81: =IFERROR((I81+T81+AE81+AP81+BA81+BL81+BW81+CH81+CS81+DD81+DO81+DZ81)/ROUND(12/VLOOKUP($A81, Annualization!$A$3:$C$323,3,FALSE),0),0) -> 0 | EW81: =IFERROR((J81+U81+AF81+AQ81+BB81+BM81+BX81+CI81+CT81+DE81+DP81+EA81)/ROUND(12/VLOOKUP($A81, Annualization!$A$3:$C$323,3,FALSE),0),0) -> 0 | EX81: =IFERROR((K81+V81+AG81+AR81+BC81+BN81+BY81+CJ81+CU81+DF81+DQ81+EB81)/ROUND(12/VLOOKUP($A81, Annualization!$A$3:$C$323,3,FALSE),0),0) -> 0 | EY81: =IFERROR((L81+W81+AH81+AS81+BD81+BO81+BZ81+CK81+CV81+DG81+DR81+EC81)/ROUND(12/VLOOKUP($A81, Annualization!$A$3:$C$323,3,FALSE),0),0) -> 0 | EZ81: =IFERROR((M81+X81+AI81+AT81+BE81+BP81+CA81+CL81+CW81+DH81+DS81+ED81)/ROUND(12/VLOOKUP($A81, Annualization!$A$3:$C$323,3,FALSE),0),0) -> 0
EE82: 0 | EF82: 0 | EG82: 0 | EH82: 0 | EI82: 0 | EJ82: 0 | EK82: 0 | EL82: 0 | EM82: 0 | EN82: 0 | EO82: 0 | EP82: =IFERROR((C82+N82+Y82+AJ82+AU82+BF82+BQ82+CB82+CM82+CX82+DI82+DT82)/ROUND(12/VLOOKUP($A82, Annualization!$A$3:$C$323,3,FALSE),0),0) -> 0 | EQ82: =IFERROR((D82+O82+Z82+AK82+AV82+BG82+BR82+CC82+CN82+CY82+DJ82+DU82)/ROUND(12/VLOOKUP($A82, Annualization!$A$3:$C$323,3,FALSE),0),0) -> 0 | ER82: =IFERROR((E82+P82+AA82+AL82+AW82+BH82+BS82+CD82+CO82+CZ82+DK82+DV82)/ROUND(12/VLOOKUP($A82, Annualization!$A$3:$C$323,3,FALSE),0),0) -> 0 | ES82: =IFERROR((F82+Q82+AB82+AM82+AX82+BI82+BT82+CE82+CP82+DA82+DL82+DW82)/ROUND(12/VLOOKUP($A82, Annualization!$A$3:$C$323,3,FALSE),0),0) -> 0 | ET82: =IFERROR((G82+R82+AC82+AN82+AY82+BJ82+BU82+CF82+CQ82+DB82+DM82+DX82)/ROUND(12/VLOOKUP($A82, Annualization!$A$3:$C$323,3,FALSE),0),0) -> 0 | EU82: =IFERROR((H82+S82+AD82+AO82+AZ82+BK82+BV82+CG82+CR82+DC82+DN82+DY82)/ROUND(12/VLOOKUP($A82, Annualization!$A$3:$C$323,3,FALSE),0),0) -> 0 | EV82: =IFERROR((I82+T82+AE82+AP82+BA82+BL82+BW82+CH82+CS82+DD82+DO82+DZ82)/ROUND(12/VLOOKUP($A82, Annualization!$A$3:$C$323,3,FALSE),0),0) -> 0 | EW82: =IFERROR((J82+U82+AF82+AQ82+BB82+BM82+BX82+CI82+CT82+DE82+DP82+EA82)/ROUND(12/VLOOKUP($A82, Annualization!$A$3:$C$323,3,FALSE),0),0) -> 0 | EX82: =IFERROR((K82+V82+AG82+AR82+BC82+BN82+BY82+CJ82+CU82+DF82+DQ82+EB82)/ROUND(12/VLOOKUP($A82, Annualization!$A$3:$C$323,3,FALSE),0),0) -> 0 | EY82: =IFERROR((L82+W82+AH82+AS82+BD82+BO82+BZ82+CK82+CV82+DG82+DR82+EC82)/ROUND(12/VLOOKUP($A82, Annualization!$A$3:$C$323,3,FALSE),0),0) -> 0 | EZ82: =IFERROR((M82+X82+AI82+AT82+BE82+BP82+CA82+CL82+CW82+DH82+DS82+ED82)/ROUND(12/VLOOKUP($A82, Annualization!$A$3:$C$323,3,FALSE),0),0) -> 0
EE83: 0 | EF83: 0 | EG83: 0 | EH83: 0 | EI83: 0 | EJ83: 0 | EK83: 0 | EL83: 0 | EM83: 0 | EN83: 0 | EO83: 0 | EP83: =IFERROR((C83+N83+Y83+AJ83+AU83+BF83+BQ83+CB83+CM83+CX83+DI83+DT83)/ROUND(12/VLOOKUP($A83, Annualization!$A$3:$C$323,3,FALSE),0),0) -> 0 | EQ83: =IFERROR((D83+O83+Z83+AK83+AV83+BG83+BR83+CC83+CN83+CY83+DJ83+DU83)/ROUND(12/VLOOKUP($A83, Annualization!$A$3:$C$323,3,FALSE),0),0) -> 0 | ER83: =IFERROR((E83+P83+AA83+AL83+AW83+BH83+BS83+CD83+CO83+CZ83+DK83+DV83)/ROUND(12/VLOOKUP($A83, Annualization!$A$3:$C$323,3,FALSE),0),0) -> 0 | ES83: =IFERROR((F83+Q83+AB83+AM83+AX83+BI83+BT83+CE83+CP83+DA83+DL83+DW83)/ROUND(12/VLOOKUP($A83, Annualization!$A$3:$C$323,3,FALSE),0),0) -> 0 | ET83: =IFERROR((G83+R83+AC83+AN83+AY83+BJ83+BU83+CF83+CQ83+DB83+DM83+DX83)/ROUND(12/VLOOKUP($A83, Annualization!$A$3:$C$323,3,FALSE),0),0) -> 0 | EU83: =IFERROR((H83+S83+AD83+AO83+AZ83+BK83+BV83+CG83+CR83+DC83+DN83+DY83)/ROUND(12/VLOOKUP($A83, Annualization!$A$3:$C$323,3,FALSE),0),0) -> 0 | EV83: =IFERROR((I83+T83+AE83+AP83+BA83+BL83+BW83+CH83+CS83+DD83+DO83+DZ83)/ROUND(12/VLOOKUP($A83, Annualization!$A$3:$C$323,3,FALSE),0),0) -> 0 | EW83: =IFERROR((J83+U83+AF83+AQ83+BB83+BM83+BX83+CI83+CT83+DE83+DP83+EA83)/ROUND(12/VLOOKUP($A83, Annualization!$A$3:$C$323,3,FALSE),0),0) -> 0 | EX83: =IFERROR((K83+V83+AG83+AR83+BC83+BN83+BY83+CJ83+CU83+DF83+DQ83+EB83)/ROUND(12/VLOOKUP($A83, Annualization!$A$3:$C$323,3,FALSE),0),0) -> 0 | EY83: =IFERROR((L83+W83+AH83+AS83+BD83+BO83+BZ83+CK83+CV83+DG83+DR83+EC83)/ROUND(12/VLOOKUP($A83, Annualization!$A$3:$C$323,3,FALSE),0),0) -> 0 | EZ83: =IFERROR((M83+X83+AI83+AT83+BE83+BP83+CA83+CL83+CW83+DH83+DS83+ED83)/ROUND(12/VLOOKUP($A83, Annualization!$A$3:$C$323,3,FALSE),0),0) -> 0
EE84: 0 | EF84: 0 | EG84: 0 | EH84: 0 | EI84: 0 | EJ84: 0 | EK84: 0 | EL84: 0 | EM84: 0 | EN84: 0 | EO84: 0 | EP84: =IFERROR((C84+N84+Y84+AJ84+AU84+BF84+BQ84+CB84+CM84+CX84+DI84+DT84)/ROUND(12/VLOOKUP($A84, Annualization!$A$3:$C$323,3,FALSE),0),0) -> 0 | EQ84: =IFERROR((D84+O84+Z84+AK84+AV84+BG84+BR84+CC84+CN84+CY84+DJ84+DU84)/ROUND(12/VLOOKUP($A84, Annualization!$A$3:$C$323,3,FALSE),0),0) -> 0 | ER84: =IFERROR((E84+P84+AA84+AL84+AW84+BH84+BS84+CD84+CO84+CZ84+DK84+DV84)/ROUND(12/VLOOKUP($A84, Annualization!$A$3:$C$323,3,FALSE),0),0) -> 0 | ES84: =IFERROR((F84+Q84+AB84+AM84+AX84+BI84+BT84+CE84+CP84+DA84+DL84+DW84)/ROUND(12/VLOOKUP($A84, Annualization!$A$3:$C$323,3,FALSE),0),0) -> 0 | ET84: =IFERROR((G84+R84+AC84+AN84+AY84+BJ84+BU84+CF84+CQ84+DB84+DM84+DX84)/ROUND(12/VLOOKUP($A84, Annualization!$A$3:$C$323,3,FALSE),0),0) -> 0 | EU84: =IFERROR((H84+S84+AD84+AO84+AZ84+BK84+BV84+CG84+CR84+DC84+DN84+DY84)/ROUND(12/VLOOKUP($A84, Annualization!$A$3:$C$323,3,FALSE),0),0) -> 0 | EV84: =IFERROR((I84+T84+AE84+AP84+BA84+BL84+BW84+CH84+CS84+DD84+DO84+DZ84)/ROUND(12/VLOOKUP($A84, Annualization!$A$3:$C$323,3,FALSE),0),0) -> 0 | EW84: =IFERROR((J84+U84+AF84+AQ84+BB84+BM84+BX84+CI84+CT84+DE84+DP84+EA84)/ROUND(12/VLOOKUP($A84, Annualization!$A$3:$C$323,3,FALSE),0),0) -> 0 | EX84: =IFERROR((K84+V84+AG84+AR84+BC84+BN84+BY84+CJ84+CU84+DF84+DQ84+EB84)/ROUND(12/VLOOKUP($A84, Annualization!$A$3:$C$323,3,FALSE),0),0) -> 0 | EY84: =IFERROR((L84+W84+AH84+AS84+BD84+BO84+BZ84+CK84+CV84+DG84+DR84+EC84)/ROUND(12/VLOOKUP($A84, Annualization!$A$3:$C$323,3,FALSE),0),0) -> 0 | EZ84: =IFERROR((M84+X84+AI84+AT84+BE84+BP84+CA84+CL84+CW84+DH84+DS84+ED84)/ROUND(12/VLOOKUP($A84, Annualization!$A$3:$C$323,3,FALSE),0),0) -> 0
EE85: 0 | EF85: 0 | EG85: 0 | EH85: 0 | EI85: 0 | EJ85: 0 | EK85: 0 | EL85: 0 | EM85: 0 | EN85: 0 | EO85: 0 | EP85: =IFERROR((C85+N85+Y85+AJ85+AU85+BF85+BQ85+CB85+CM85+CX85+DI85+DT85)/ROUND(12/VLOOKUP($A85, Annualization!$A$3:$C$323,3,FALSE),0),0) -> 0 | EQ85: =IFERROR((D85+O85+Z85+AK85+AV85+BG85+BR85+CC85+CN85+CY85+DJ85+DU85)/ROUND(12/VLOOKUP($A85, Annualization!$A$3:$C$323,3,FALSE),0),0) -> 0 | ER85: =IFERROR((E85+P85+AA85+AL85+AW85+BH85+BS85+CD85+CO85+CZ85+DK85+DV85)/ROUND(12/VLOOKUP($A85, Annualization!$A$3:$C$323,3,FALSE),0),0) -> 0 | ES85: =IFERROR((F85+Q85+AB85+AM85+AX85+BI85+BT85+CE85+CP85+DA85+DL85+DW85)/ROUND(12/VLOOKUP($A85, Annualization!$A$3:$C$323,3,FALSE),0),0) -> 0 | ET85: =IFERROR((G85+R85+AC85+AN85+AY85+BJ85+BU85+CF85+CQ85+DB85+DM85+DX85)/ROUND(12/VLOOKUP($A85, Annualization!$A$3:$C$323,3,FALSE),0),0) -> 0 | EU85: =IFERROR((H85+S85+AD85+AO85+AZ85+BK85+BV85+CG85+CR85+DC85+DN85+DY85)/ROUND(12/VLOOKUP($A85, Annualization!$A$3:$C$323,3,FALSE),0),0) -> 0 | EV85: =IFERROR((I85+T85+AE85+AP85+BA85+BL85+BW85+CH85+CS85+DD85+DO85+DZ85)/ROUND(12/VLOOKUP($A85, Annualization!$A$3:$C$323,3,FALSE),0),0) -> 0 | EW85: =IFERROR((J85+U85+AF85+AQ85+BB85+BM85+BX85+CI85+CT85+DE85+DP85+EA85)/ROUND(12/VLOOKUP($A85, Annualization!$A$3:$C$323,3,FALSE),0),0) -> 0 | EX85: =IFERROR((K85+V85+AG85+AR85+BC85+BN85+BY85+CJ85+CU85+DF85+DQ85+EB85)/ROUND(12/VLOOKUP($A85, Annualization!$A$3:$C$323,3,FALSE),0),0) -> 0 | EY85: =IFERROR((L85+W85+AH85+AS85+BD85+BO85+BZ85+CK85+CV85+DG85+DR85+EC85)/ROUND(12/VLOOKUP($A85, Annualization!$A$3:$C$323,3,FALSE),0),0) -> 0 | EZ85: =IFERROR((M85+X85+AI85+AT85+BE85+BP85+CA85+CL85+CW85+DH85+DS85+ED85)/ROUND(12/VLOOKUP($A85, Annualization!$A$3:$C$323,3,FALSE),0),0) -> 0
EE86: 0 | EF86: 0 | EG86: 0 | EH86: 0 | EI86: 0 | EJ86: 0 | EK86: 0 | EL86: 0 | EM86: 0 | EN86: 0 | EO86: 0 | EP86: =IFERROR((C86+N86+Y86+AJ86+AU86+BF86+BQ86+CB86+CM86+CX86+DI86+DT86)/ROUND(12/VLOOKUP($A86, Annualization!$A$3:$C$323,3,FALSE),0),0) -> 0 | EQ86: =IFERROR((D86+O86+Z86+AK86+AV86+BG86+BR86+CC86+CN86+CY86+DJ86+DU86)/ROUND(12/VLOOKUP($A86, Annualization!$A$3:$C$323,3,FALSE),0),0) -> 0 | ER86: =IFERROR((E86+P86+AA86+AL86+AW86+BH86+BS86+CD86+CO86+CZ86+DK86+DV86)/ROUND(12/VLOOKUP($A86, Annualization!$A$3:$C$323,3,FALSE),0),0) -> 0 | ES86: =IFERROR((F86+Q86+AB86+AM86+AX86+BI86+BT86+CE86+CP86+DA86+DL86+DW86)/ROUND(12/VLOOKUP($A86, Annualization!$A$3:$C$323,3,FALSE),0),0) -> 0 | ET86: =IFERROR((G86+R86+AC86+AN86+AY86+BJ86+BU86+CF86+CQ86+DB86+DM86+DX86)/ROUND(12/VLOOKUP($A86, Annualization!$A$3:$C$323,3,FALSE),0),0) -> 0 | EU86: =IFERROR((H86+S86+AD86+AO86+AZ86+BK86+BV86+CG86+CR86+DC86+DN86+DY86)/ROUND(12/VLOOKUP($A86, Annualization!$A$3:$C$323,3,FALSE),0),0) -> 0 | EV86: =IFERROR((I86+T86+AE86+AP86+BA86+BL86+BW86+CH86+CS86+DD86+DO86+DZ86)/ROUND(12/VLOOKUP($A86, Annualization!$A$3:$C$323,3,FALSE),0),0) -> 0 | EW86: =IFERROR((J86+U86+AF86+AQ86+BB86+BM86+BX86+CI86+CT86+DE86+DP86+EA86)/ROUND(12/VLOOKUP($A86, Annualization!$A$3:$C$323,3,FALSE),0),0) -> 0 | EX86: =IFERROR((K86+V86+AG86+AR86+BC86+BN86+BY86+CJ86+CU86+DF86+DQ86+EB86)/ROUND(12/VLOOKUP($A86, Annualization!$A$3:$C$323,3,FALSE),0),0) -> 0 | EY86: =IFERROR((L86+W86+AH86+AS86+BD86+BO86+BZ86+CK86+CV86+DG86+DR86+EC86)/ROUND(12/VLOOKUP($A86, Annualization!$A$3:$C$323,3,FALSE),0),0) -> 0 | EZ86: =IFERROR((M86+X86+AI86+AT86+BE86+BP86+CA86+CL86+CW86+DH86+DS86+ED86)/ROUND(12/VLOOKUP($A86, Annualization!$A$3:$C$323,3,FALSE),0),0) -> 0
EE87: 0 | EF87: 0 | EG87: 0 | EH87: 0 | EI87: 0 | EJ87: 0 | EK87: 0 | EL87: 0 | EM87: 0 | EN87: 0 | EO87: 0 | EP87: =IFERROR((C87+N87+Y87+AJ87+AU87+BF87+BQ87+CB87+CM87+CX87+DI87+DT87)/ROUND(12/VLOOKUP($A87, Annualization!$A$3:$C$323,3,FALSE),0),0) -> 0 | EQ87: =IFERROR((D87+O87+Z87+AK87+AV87+BG87+BR87+CC87+CN87+CY87+DJ87+DU87)/ROUND(12/VLOOKUP($A87, Annualization!$A$3:$C$323,3,FALSE),0),0) -> 0 | ER87: =IFERROR((E87+P87+AA87+AL87+AW87+BH87+BS87+CD87+CO87+CZ87+DK87+DV87)/ROUND(12/VLOOKUP($A87, Annualization!$A$3:$C$323,3,FALSE),0),0) -> 0 | ES87: =IFERROR((F87+Q87+AB87+AM87+AX87+BI87+BT87+CE87+CP87+DA87+DL87+DW87)/ROUND(12/VLOOKUP($A87, Annualization!$A$3:$C$323,3,FALSE),0),0) -> 0 | ET87: =IFERROR((G87+R87+AC87+AN87+AY87+BJ87+BU87+CF87+CQ87+DB87+DM87+DX87)/ROUND(12/VLOOKUP($A87, Annualization!$A$3:$C$323,3,FALSE),0),0) -> 0 | EU87: =IFERROR((H87+S87+AD87+AO87+AZ87+BK87+BV87+CG87+CR87+DC87+DN87+DY87)/ROUND(12/VLOOKUP($A87, Annualization!$A$3:$C$323,3,FALSE),0),0) -> 0 | EV87: =IFERROR((I87+T87+AE87+AP87+BA87+BL87+BW87+CH87+CS87+DD87+DO87+DZ87)/ROUND(12/VLOOKUP($A87, Annualization!$A$3:$C$323,3,FALSE),0),0) -> 0 | EW87: =IFERROR((J87+U87+AF87+AQ87+BB87+BM87+BX87+CI87+CT87+DE87+DP87+EA87)/ROUND(12/VLOOKUP($A87, Annualization!$A$3:$C$323,3,FALSE),0),0) -> 0 | EX87: =IFERROR((K87+V87+AG87+AR87+BC87+BN87+BY87+CJ87+CU87+DF87+DQ87+EB87)/ROUND(12/VLOOKUP($A87, Annualization!$A$3:$C$323,3,FALSE),0),0) -> 0 | EY87: =IFERROR((L87+W87+AH87+AS87+BD87+BO87+BZ87+CK87+CV87+DG87+DR87+EC87)/ROUND(12/VLOOKUP($A87, Annualization!$A$3:$C$323,3,FALSE),0),0) -> 0 | EZ87: =IFERROR((M87+X87+AI87+AT87+BE87+BP87+CA87+CL87+CW87+DH87+DS87+ED87)/ROUND(12/VLOOKUP($A87, Annualization!$A$3:$C$323,3,FALSE),0),0) -> 0
EE88: 0 | EF88: 0 | EG88: 0 | EH88: 0 | EI88: 0 | EJ88: 0 | EK88: 0 | EL88: 0 | EM88: 0 | EN88: 0 | EO88: 0 | EP88: =IFERROR((C88+N88+Y88+AJ88+AU88+BF88+BQ88+CB88+CM88+CX88+DI88+DT88)/ROUND(12/VLOOKUP($A88, Annualization!$A$3:$C$323,3,FALSE),0),0) -> 0 | EQ88: =IFERROR((D88+O88+Z88+AK88+AV88+BG88+BR88+CC88+CN88+CY88+DJ88+DU88)/ROUND(12/VLOOKUP($A88, Annualization!$A$3:$C$323,3,FALSE),0),0) -> 0 | ER88: =IFERROR((E88+P88+AA88+AL88+AW88+BH88+BS88+CD88+CO88+CZ88+DK88+DV88)/ROUND(12/VLOOKUP($A88, Annualization!$A$3:$C$323,3,FALSE),0),0) -> 0 | ES88: =IFERROR((F88+Q88+AB88+AM88+AX88+BI88+BT88+CE88+CP88+DA88+DL88+DW88)/ROUND(12/VLOOKUP($A88, Annualization!$A$3:$C$323,3,FALSE),0),0) -> 0 | ET88: =IFERROR((G88+R88+AC88+AN88+AY88+BJ88+BU88+CF88+CQ88+DB88+DM88+DX88)/ROUND(12/VLOOKUP($A88, Annualization!$A$3:$C$323,3,FALSE),0),0) -> 0 | EU88: =IFERROR((H88+S88+AD88+AO88+AZ88+BK88+BV88+CG88+CR88+DC88+DN88+DY88)/ROUND(12/VLOOKUP($A88, Annualization!$A$3:$C$323,3,FALSE),0),0) -> 0 | EV88: =IFERROR((I88+T88+AE88+AP88+BA88+BL88+BW88+CH88+CS88+DD88+DO88+DZ88)/ROUND(12/VLOOKUP($A88, Annualization!$A$3:$C$323,3,FALSE),0),0) -> 0 | EW88: =IFERROR((J88+U88+AF88+AQ88+BB88+BM88+BX88+CI88+CT88+DE88+DP88+EA88)/ROUND(12/VLOOKUP($A88, Annualization!$A$3:$C$323,3,FALSE),0),0) -> 0 | EX88: =IFERROR((K88+V88+AG88+AR88+BC88+BN88+BY88+CJ88+CU88+DF88+DQ88+EB88)/ROUND(12/VLOOKUP($A88, Annualization!$A$3:$C$323,3,FALSE),0),0) -> 0 | EY88: =IFERROR((L88+W88+AH88+AS88+BD88+BO88+BZ88+CK88+CV88+DG88+DR88+EC88)/ROUND(12/VLOOKUP($A88, Annualization!$A$3:$C$323,3,FALSE),0),0) -> 0 | EZ88: =IFERROR((M88+X88+AI88+AT88+BE88+BP88+CA88+CL88+CW88+DH88+DS88+ED88)/ROUND(12/VLOOKUP($A88, Annualization!$A$3:$C$323,3,FALSE),0),0) -> 0
EE89: 0 | EF89: 0 | EG89: 0 | EH89: 0 | EI89: 0 | EJ89: 0 | EK89: 0 | EL89: 0 | EM89: 0 | EN89: 0 | EO89: 0 | EP89: =IFERROR((C89+N89+Y89+AJ89+AU89+BF89+BQ89+CB89+CM89+CX89+DI89+DT89)/ROUND(12/VLOOKUP($A89, Annualization!$A$3:$C$323,3,FALSE),0),0) -> 0 | EQ89: =IFERROR((D89+O89+Z89+AK89+AV89+BG89+BR89+CC89+CN89+CY89+DJ89+DU89)/ROUND(12/VLOOKUP($A89, Annualization!$A$3:$C$323,3,FALSE),0),0) -> 0 | ER89: =IFERROR((E89+P89+AA89+AL89+AW89+BH89+BS89+CD89+CO89+CZ89+DK89+DV89)/ROUND(12/VLOOKUP($A89, Annualization!$A$3:$C$323,3,FALSE),0),0) -> 0 | ES89: =IFERROR((F89+Q89+AB89+AM89+AX89+BI89+BT89+CE89+CP89+DA89+DL89+DW89)/ROUND(12/VLOOKUP($A89, Annualization!$A$3:$C$323,3,FALSE),0),0) -> 0 | ET89: =IFERROR((G89+R89+AC89+AN89+AY89+BJ89+BU89+CF89+CQ89+DB89+DM89+DX89)/ROUND(12/VLOOKUP($A89, Annualization!$A$3:$C$323,3,FALSE),0),0) -> 0 | EU89: =IFERROR((H89+S89+AD89+AO89+AZ89+BK89+BV89+CG89+CR89+DC89+DN89+DY89)/ROUND(12/VLOOKUP($A89, Annualization!$A$3:$C$323,3,FALSE),0),0) -> 0 | EV89: =IFERROR((I89+T89+AE89+AP89+BA89+BL89+BW89+CH89+CS89+DD89+DO89+DZ89)/ROUND(12/VLOOKUP($A89, Annualization!$A$3:$C$323,3,FALSE),0),0) -> 0 | EW89: =IFERROR((J89+U89+AF89+AQ89+BB89+BM89+BX89+CI89+CT89+DE89+DP89+EA89)/ROUND(12/VLOOKUP($A89, Annualization!$A$3:$C$323,3,FALSE),0),0) -> 0 | EX89: =IFERROR((K89+V89+AG89+AR89+BC89+BN89+BY89+CJ89+CU89+DF89+DQ89+EB89)/ROUND(12/VLOOKUP($A89, Annualization!$A$3:$C$323,3,FALSE),0),0) -> 0 | EY89: =IFERROR((L89+W89+AH89+AS89+BD89+BO89+BZ89+CK89+CV89+DG89+DR89+EC89)/ROUND(12/VLOOKUP($A89, Annualization!$A$3:$C$323,3,FALSE),0),0) -> 0 | EZ89: =IFERROR((M89+X89+AI89+AT89+BE89+BP89+CA89+CL89+CW89+DH89+DS89+ED89)/ROUND(12/VLOOKUP($A89, Annualization!$A$3:$C$323,3,FALSE),0),0) -> 0
EE90: 0 | EF90: 0 | EG90: 0 | EH90: 0 | EI90: 0 | EJ90: 0 | EK90: 0 | EL90: 0 | EM90: 0 | EN90: 0 | EO90: 0 | EP90: =IFERROR((C90+N90+Y90+AJ90+AU90+BF90+BQ90+CB90+CM90+CX90+DI90+DT90)/ROUND(12/VLOOKUP($A90, Annualization!$A$3:$C$323,3,FALSE),0),0) -> 0 | EQ90: =IFERROR((D90+O90+Z90+AK90+AV90+BG90+BR90+CC90+CN90+CY90+DJ90+DU90)/ROUND(12/VLOOKUP($A90, Annualization!$A$3:$C$323,3,FALSE),0),0) -> 0 | ER90: =IFERROR((E90+P90+AA90+AL90+AW90+BH90+BS90+CD90+CO90+CZ90+DK90+DV90)/ROUND(12/VLOOKUP($A90, Annualization!$A$3:$C$323,3,FALSE),0),0) -> 0 | ES90: =IFERROR((F90+Q90+AB90+AM90+AX90+BI90+BT90+CE90+CP90+DA90+DL90+DW90)/ROUND(12/VLOOKUP($A90, Annualization!$A$3:$C$323,3,FALSE),0),0) -> 0 | ET90: =IFERROR((G90+R90+AC90+AN90+AY90+BJ90+BU90+CF90+CQ90+DB90+DM90+DX90)/ROUND(12/VLOOKUP($A90, Annualization!$A$3:$C$323,3,FALSE),0),0) -> 0 | EU90: =IFERROR((H90+S90+AD90+AO90+AZ90+BK90+BV90+CG90+CR90+DC90+DN90+DY90)/ROUND(12/VLOOKUP($A90, Annualization!$A$3:$C$323,3,FALSE),0),0) -> 0 | EV90: =IFERROR((I90+T90+AE90+AP90+BA90+BL90+BW90+CH90+CS90+DD90+DO90+DZ90)/ROUND(12/VLOOKUP($A90, Annualization!$A$3:$C$323,3,FALSE),0),0) -> 0 | EW90: =IFERROR((J90+U90+AF90+AQ90+BB90+BM90+BX90+CI90+CT90+DE90+DP90+EA90)/ROUND(12/VLOOKUP($A90, Annualization!$A$3:$C$323,3,FALSE),0),0) -> 0 | EX90: =IFERROR((K90+V90+AG90+AR90+BC90+BN90+BY90+CJ90+CU90+DF90+DQ90+EB90)/ROUND(12/VLOOKUP($A90, Annualization!$A$3:$C$323,3,FALSE),0),0) -> 0 | EY90: =IFERROR((L90+W90+AH90+AS90+BD90+BO90+BZ90+CK90+CV90+DG90+DR90+EC90)/ROUND(12/VLOOKUP($A90, Annualization!$A$3:$C$323,3,FALSE),0),0) -> 0 | EZ90: =IFERROR((M90+X90+AI90+AT90+BE90+BP90+CA90+CL90+CW90+DH90+DS90+ED90)/ROUND(12/VLOOKUP($A90, Annualization!$A$3:$C$323,3,FALSE),0),0) -> 0
EE91: 0 | EF91: 0 | EG91: 0 | EH91: 0 | EI91: 0 | EJ91: 0 | EK91: 0 | EL91: 0 | EM91: 0 | EN91: 0 | EO91: 0 | EP91: =IFERROR((C91+N91+Y91+AJ91+AU91+BF91+BQ91+CB91+CM91+CX91+DI91+DT91)/ROUND(12/VLOOKUP($A91, Annualization!$A$3:$C$323,3,FALSE),0),0) -> 0 | EQ91: =IFERROR((D91+O91+Z91+AK91+AV91+BG91+BR91+CC91+CN91+CY91+DJ91+DU91)/ROUND(12/VLOOKUP($A91, Annualization!$A$3:$C$323,3,FALSE),0),0) -> 0 | ER91: =IFERROR((E91+P91+AA91+AL91+AW91+BH91+BS91+CD91+CO91+CZ91+DK91+DV91)/ROUND(12/VLOOKUP($A91, Annualization!$A$3:$C$323,3,FALSE),0),0) -> 0 | ES91: =IFERROR((F91+Q91+AB91+AM91+AX91+BI91+BT91+CE91+CP91+DA91+DL91+DW91)/ROUND(12/VLOOKUP($A91, Annualization!$A$3:$C$323,3,FALSE),0),0) -> 0 | ET91: =IFERROR((G91+R91+AC91+AN91+AY91+BJ91+BU91+CF91+CQ91+DB91+DM91+DX91)/ROUND(12/VLOOKUP($A91, Annualization!$A$3:$C$323,3,FALSE),0),0) -> 0 | EU91: =IFERROR((H91+S91+AD91+AO91+AZ91+BK91+BV91+CG91+CR91+DC91+DN91+DY91)/ROUND(12/VLOOKUP($A91, Annualization!$A$3:$C$323,3,FALSE),0),0) -> 0 | EV91: =IFERROR((I91+T91+AE91+AP91+BA91+BL91+BW91+CH91+CS91+DD91+DO91+DZ91)/ROUND(12/VLOOKUP($A91, Annualization!$A$3:$C$323,3,FALSE),0),0) -> 0 | EW91: =IFERROR((J91+U91+AF91+AQ91+BB91+BM91+BX91+CI91+CT91+DE91+DP91+EA91)/ROUND(12/VLOOKUP($A91, Annualization!$A$3:$C$323,3,FALSE),0),0) -> 0 | EX91: =IFERROR((K91+V91+AG91+AR91+BC91+BN91+BY91+CJ91+CU91+DF91+DQ91+EB91)/ROUND(12/VLOOKUP($A91, Annualization!$A$3:$C$323,3,FALSE),0),0) -> 0 | EY91: =IFERROR((L91+W91+AH91+AS91+BD91+BO91+BZ91+CK91+CV91+DG91+DR91+EC91)/ROUND(12/VLOOKUP($A91, Annualization!$A$3:$C$323,3,FALSE),0),0) -> 0 | EZ91: =IFERROR((M91+X91+AI91+AT91+BE91+BP91+CA91+CL91+CW91+DH91+DS91+ED91)/ROUND(12/VLOOKUP($A91, Annualization!$A$3:$C$323,3,FALSE),0),0) -> 0
EE92: 0 | EF92: 0 | EG92: 0 | EH92: 0 | EI92: 0 | EJ92: 0 | EK92: 0 | EL92: 0 | EM92: 0 | EN92: 0 | EO92: 0 | EP92: =IFERROR((C92+N92+Y92+AJ92+AU92+BF92+BQ92+CB92+CM92+CX92+DI92+DT92)/ROUND(12/VLOOKUP($A92, Annualization!$A$3:$C$323,3,FALSE),0),0) -> 0 | EQ92: =IFERROR((D92+O92+Z92+AK92+AV92+BG92+BR92+CC92+CN92+CY92+DJ92+DU92)/ROUND(12/VLOOKUP($A92, Annualization!$A$3:$C$323,3,FALSE),0),0) -> 0 | ER92: =IFERROR((E92+P92+AA92+AL92+AW92+BH92+BS92+CD92+CO92+CZ92+DK92+DV92)/ROUND(12/VLOOKUP($A92, Annualization!$A$3:$C$323,3,FALSE),0),0) -> 0 | ES92: =IFERROR((F92+Q92+AB92+AM92+AX92+BI92+BT92+CE92+CP92+DA92+DL92+DW92)/ROUND(12/VLOOKUP($A92, Annualization!$A$3:$C$323,3,FALSE),0),0) -> 0 | ET92: =IFERROR((G92+R92+AC92+AN92+AY92+BJ92+BU92+CF92+CQ92+DB92+DM92+DX92)/ROUND(12/VLOOKUP($A92, Annualization!$A$3:$C$323,3,FALSE),0),0) -> 0 | EU92: =IFERROR((H92+S92+AD92+AO92+AZ92+BK92+BV92+CG92+CR92+DC92+DN92+DY92)/ROUND(12/VLOOKUP($A92, Annualization!$A$3:$C$323,3,FALSE),0),0) -> 0 | EV92: =IFERROR((I92+T92+AE92+AP92+BA92+BL92+BW92+CH92+CS92+DD92+DO92+DZ92)/ROUND(12/VLOOKUP($A92, Annualization!$A$3:$C$323,3,FALSE),0),0) -> 0 | EW92: =IFERROR((J92+U92+AF92+AQ92+BB92+BM92+BX92+CI92+CT92+DE92+DP92+EA92)/ROUND(12/VLOOKUP($A92, Annualization!$A$3:$C$323,3,FALSE),0),0) -> 0 | EX92: =IFERROR((K92+V92+AG92+AR92+BC92+BN92+BY92+CJ92+CU92+DF92+DQ92+EB92)/ROUND(12/VLOOKUP($A92, Annualization!$A$3:$C$323,3,FALSE),0),0) -> 0 | EY92: =IFERROR((L92+W92+AH92+AS92+BD92+BO92+BZ92+CK92+CV92+DG92+DR92+EC92)/ROUND(12/VLOOKUP($A92, Annualization!$A$3:$C$323,3,FALSE),0),0) -> 0 | EZ92: =IFERROR((M92+X92+AI92+AT92+BE92+BP92+CA92+CL92+CW92+DH92+DS92+ED92)/ROUND(12/VLOOKUP($A92, Annualization!$A$3:$C$323,3,FALSE),0),0) -> 0
EE93: 0 | EF93: 0 | EG93: 0 | EH93: 0 | EI93: 0 | EJ93: 0 | EK93: 0 | EL93: 0 | EM93: 0 | EN93: 0 | EO93: 0 | EP93: =IFERROR((C93+N93+Y93+AJ93+AU93+BF93+BQ93+CB93+CM93+CX93+DI93+DT93)/ROUND(12/VLOOKUP($A93, Annualization!$A$3:$C$323,3,FALSE),0),0) -> 0 | EQ93: =IFERROR((D93+O93+Z93+AK93+AV93+BG93+BR93+CC93+CN93+CY93+DJ93+DU93)/ROUND(12/VLOOKUP($A93, Annualization!$A$3:$C$323,3,FALSE),0),0) -> 0 | ER93: =IFERROR((E93+P93+AA93+AL93+AW93+BH93+BS93+CD93+CO93+CZ93+DK93+DV93)/ROUND(12/VLOOKUP($A93, Annualization!$A$3:$C$323,3,FALSE),0),0) -> 0 | ES93: =IFERROR((F93+Q93+AB93+AM93+AX93+BI93+BT93+CE93+CP93+DA93+DL93+DW93)/ROUND(12/VLOOKUP($A93, Annualization!$A$3:$C$323,3,FALSE),0),0) -> 0 | ET93: =IFERROR((G93+R93+AC93+AN93+AY93+BJ93+BU93+CF93+CQ93+DB93+DM93+DX93)/ROUND(12/VLOOKUP($A93, Annualization!$A$3:$C$323,3,FALSE),0),0) -> 0 | EU93: =IFERROR((H93+S93+AD93+AO93+AZ93+BK93+BV93+CG93+CR93+DC93+DN93+DY93)/ROUND(12/VLOOKUP($A93, Annualization!$A$3:$C$323,3,FALSE),0),0) -> 0 | EV93: =IFERROR((I93+T93+AE93+AP93+BA93+BL93+BW93+CH93+CS93+DD93+DO93+DZ93)/ROUND(12/VLOOKUP($A93, Annualization!$A$3:$C$323,3,FALSE),0),0) -> 0 | EW93: =IFERROR((J93+U93+AF93+AQ93+BB93+BM93+BX93+CI93+CT93+DE93+DP93+EA93)/ROUND(12/VLOOKUP($A93, Annualization!$A$3:$C$323,3,FALSE),0),0) -> 0 | EX93: =IFERROR((K93+V93+AG93+AR93+BC93+BN93+BY93+CJ93+CU93+DF93+DQ93+EB93)/ROUND(12/VLOOKUP($A93, Annualization!$A$3:$C$323,3,FALSE),0),0) -> 0 | EY93: =IFERROR((L93+W93+AH93+AS93+BD93+BO93+BZ93+CK93+CV93+DG93+DR93+EC93)/ROUND(12/VLOOKUP($A93, Annualization!$A$3:$C$323,3,FALSE),0),0) -> 0 | EZ93: =IFERROR((M93+X93+AI93+AT93+BE93+BP93+CA93+CL93+CW93+DH93+DS93+ED93)/ROUND(12/VLOOKUP($A93, Annualization!$A$3:$C$323,3,FALSE),0),0) -> 0
EE94: 0 | EF94: 0 | EG94: 0 | EH94: 0 | EI94: 0 | EJ94: 0 | EK94: 0 | EL94: 0 | EM94: 0 | EN94: 0 | EO94: 0 | EP94: =IFERROR((C94+N94+Y94+AJ94+AU94+BF94+BQ94+CB94+CM94+CX94+DI94+DT94)/ROUND(12/VLOOKUP($A94, Annualization!$A$3:$C$323,3,FALSE),0),0) -> 0 | EQ94: =IFERROR((D94+O94+Z94+AK94+AV94+BG94+BR94+CC94+CN94+CY94+DJ94+DU94)/ROUND(12/VLOOKUP($A94, Annualization!$A$3:$C$323,3,FALSE),0),0) -> 0 | ER94: =IFERROR((E94+P94+AA94+AL94+AW94+BH94+BS94+CD94+CO94+CZ94+DK94+DV94)/ROUND(12/VLOOKUP($A94, Annualization!$A$3:$C$323,3,FALSE),0),0) -> 0 | ES94: =IFERROR((F94+Q94+AB94+AM94+AX94+BI94+BT94+CE94+CP94+DA94+DL94+DW94)/ROUND(12/VLOOKUP($A94, Annualization!$A$3:$C$323,3,FALSE),0),0) -> 0 | ET94: =IFERROR((G94+R94+AC94+AN94+AY94+BJ94+BU94+CF94+CQ94+DB94+DM94+DX94)/ROUND(12/VLOOKUP($A94, Annualization!$A$3:$C$323,3,FALSE),0),0) -> 0 | EU94: =IFERROR((H94+S94+AD94+AO94+AZ94+BK94+BV94+CG94+CR94+DC94+DN94+DY94)/ROUND(12/VLOOKUP($A94, Annualization!$A$3:$C$323,3,FALSE),0),0) -> 0 | EV94: =IFERROR((I94+T94+AE94+AP94+BA94+BL94+BW94+CH94+CS94+DD94+DO94+DZ94)/ROUND(12/VLOOKUP($A94, Annualization!$A$3:$C$323,3,FALSE),0),0) -> 0 | EW94: =IFERROR((J94+U94+AF94+AQ94+BB94+BM94+BX94+CI94+CT94+DE94+DP94+EA94)/ROUND(12/VLOOKUP($A94, Annualization!$A$3:$C$323,3,FALSE),0),0) -> 0 | EX94: =IFERROR((K94+V94+AG94+AR94+BC94+BN94+BY94+CJ94+CU94+DF94+DQ94+EB94)/ROUND(12/VLOOKUP($A94, Annualization!$A$3:$C$323,3,FALSE),0),0) -> 0 | EY94: =IFERROR((L94+W94+AH94+AS94+BD94+BO94+BZ94+CK94+CV94+DG94+DR94+EC94)/ROUND(12/VLOOKUP($A94, Annualization!$A$3:$C$323,3,FALSE),0),0) -> 0 | EZ94: =IFERROR((M94+X94+AI94+AT94+BE94+BP94+CA94+CL94+CW94+DH94+DS94+ED94)/ROUND(12/VLOOKUP($A94, Annualization!$A$3:$C$323,3,FALSE),0),0) -> 0
EE95: 0 | EF95: 0 | EG95: 0 | EH95: 0 | EI95: 0 | EJ95: 0 | EK95: 0 | EL95: 0 | EM95: 0 | EN95: 0 | EO95: 0 | EP95: =IFERROR((C95+N95+Y95+AJ95+AU95+BF95+BQ95+CB95+CM95+CX95+DI95+DT95)/ROUND(12/VLOOKUP($A95, Annualization!$A$3:$C$323,3,FALSE),0),0) -> 0 | EQ95: =IFERROR((D95+O95+Z95+AK95+AV95+BG95+BR95+CC95+CN95+CY95+DJ95+DU95)/ROUND(12/VLOOKUP($A95, Annualization!$A$3:$C$323,3,FALSE),0),0) -> 0 | ER95: =IFERROR((E95+P95+AA95+AL95+AW95+BH95+BS95+CD95+CO95+CZ95+DK95+DV95)/ROUND(12/VLOOKUP($A95, Annualization!$A$3:$C$323,3,FALSE),0),0) -> 0 | ES95: =IFERROR((F95+Q95+AB95+AM95+AX95+BI95+BT95+CE95+CP95+DA95+DL95+DW95)/ROUND(12/VLOOKUP($A95, Annualization!$A$3:$C$323,3,FALSE),0),0) -> 0 | ET95: =IFERROR((G95+R95+AC95+AN95+AY95+BJ95+BU95+CF95+CQ95+DB95+DM95+DX95)/ROUND(12/VLOOKUP($A95, Annualization!$A$3:$C$323,3,FALSE),0),0) -> 0 | EU95: =IFERROR((H95+S95+AD95+AO95+AZ95+BK95+BV95+CG95+CR95+DC95+DN95+DY95)/ROUND(12/VLOOKUP($A95, Annualization!$A$3:$C$323,3,FALSE),0),0) -> 0 | EV95: =IFERROR((I95+T95+AE95+AP95+BA95+BL95+BW95+CH95+CS95+DD95+DO95+DZ95)/ROUND(12/VLOOKUP($A95, Annualization!$A$3:$C$323,3,FALSE),0),0) -> 0 | EW95: =IFERROR((J95+U95+AF95+AQ95+BB95+BM95+BX95+CI95+CT95+DE95+DP95+EA95)/ROUND(12/VLOOKUP($A95, Annualization!$A$3:$C$323,3,FALSE),0),0) -> 0 | EX95: =IFERROR((K95+V95+AG95+AR95+BC95+BN95+BY95+CJ95+CU95+DF95+DQ95+EB95)/ROUND(12/VLOOKUP($A95, Annualization!$A$3:$C$323,3,FALSE),0),0) -> 0 | EY95: =IFERROR((L95+W95+AH95+AS95+BD95+BO95+BZ95+CK95+CV95+DG95+DR95+EC95)/ROUND(12/VLOOKUP($A95, Annualization!$A$3:$C$323,3,FALSE),0),0) -> 0 | EZ95: =IFERROR((M95+X95+AI95+AT95+BE95+BP95+CA95+CL95+CW95+DH95+DS95+ED95)/ROUND(12/VLOOKUP($A95, Annualization!$A$3:$C$323,3,FALSE),0),0) -> 0
EE96: 0 | EF96: 0 | EG96: 0 | EH96: 0 | EI96: 0 | EJ96: 0 | EK96: 0 | EL96: 0 | EM96: 0 | EN96: 0 | EO96: 0 | EP96: =IFERROR((C96+N96+Y96+AJ96+AU96+BF96+BQ96+CB96+CM96+CX96+DI96+DT96)/ROUND(12/VLOOKUP($A96, Annualization!$A$3:$C$323,3,FALSE),0),0) -> 0 | EQ96: =IFERROR((D96+O96+Z96+AK96+AV96+BG96+BR96+CC96+CN96+CY96+DJ96+DU96)/ROUND(12/VLOOKUP($A96, Annualization!$A$3:$C$323,3,FALSE),0),0) -> 0 | ER96: =IFERROR((E96+P96+AA96+AL96+AW96+BH96+BS96+CD96+CO96+CZ96+DK96+DV96)/ROUND(12/VLOOKUP($A96, Annualization!$A$3:$C$323,3,FALSE),0),0) -> 0 | ES96: =IFERROR((F96+Q96+AB96+AM96+AX96+BI96+BT96+CE96+CP96+DA96+DL96+DW96)/ROUND(12/VLOOKUP($A96, Annualization!$A$3:$C$323,3,FALSE),0),0) -> 0 | ET96: =IFERROR((G96+R96+AC96+AN96+AY96+BJ96+BU96+CF96+CQ96+DB96+DM96+DX96)/ROUND(12/VLOOKUP($A96, Annualization!$A$3:$C$323,3,FALSE),0),0) -> 0 | EU96: =IFERROR((H96+S96+AD96+AO96+AZ96+BK96+BV96+CG96+CR96+DC96+DN96+DY96)/ROUND(12/VLOOKUP($A96, Annualization!$A$3:$C$323,3,FALSE),0),0) -> 0 | EV96: =IFERROR((I96+T96+AE96+AP96+BA96+BL96+BW96+CH96+CS96+DD96+DO96+DZ96)/ROUND(12/VLOOKUP($A96, Annualization!$A$3:$C$323,3,FALSE),0),0) -> 0 | EW96: =IFERROR((J96+U96+AF96+AQ96+BB96+BM96+BX96+CI96+CT96+DE96+DP96+EA96)/ROUND(12/VLOOKUP($A96, Annualization!$A$3:$C$323,3,FALSE),0),0) -> 0 | EX96: =IFERROR((K96+V96+AG96+AR96+BC96+BN96+BY96+CJ96+CU96+DF96+DQ96+EB96)/ROUND(12/VLOOKUP($A96, Annualization!$A$3:$C$323,3,FALSE),0),0) -> 0 | EY96: =IFERROR((L96+W96+AH96+AS96+BD96+BO96+BZ96+CK96+CV96+DG96+DR96+EC96)/ROUND(12/VLOOKUP($A96, Annualization!$A$3:$C$323,3,FALSE),0),0) -> 0 | EZ96: =IFERROR((M96+X96+AI96+AT96+BE96+BP96+CA96+CL96+CW96+DH96+DS96+ED96)/ROUND(12/VLOOKUP($A96, Annualization!$A$3:$C$323,3,FALSE),0),0) -> 0
EE97: 0 | EF97: 0 | EG97: 0 | EH97: 0 | EI97: 0 | EJ97: 0 | EK97: 0 | EL97: 0 | EM97: 0 | EN97: 0 | EO97: 0 | EP97: =IFERROR((C97+N97+Y97+AJ97+AU97+BF97+BQ97+CB97+CM97+CX97+DI97+DT97)/ROUND(12/VLOOKUP($A97, Annualization!$A$3:$C$323,3,FALSE),0),0) -> 0 | EQ97: =IFERROR((D97+O97+Z97+AK97+AV97+BG97+BR97+CC97+CN97+CY97+DJ97+DU97)/ROUND(12/VLOOKUP($A97, Annualization!$A$3:$C$323,3,FALSE),0),0) -> 0 | ER97: =IFERROR((E97+P97+AA97+AL97+AW97+BH97+BS97+CD97+CO97+CZ97+DK97+DV97)/ROUND(12/VLOOKUP($A97, Annualization!$A$3:$C$323,3,FALSE),0),0) -> 0 | ES97: =IFERROR((F97+Q97+AB97+AM97+AX97+BI97+BT97+CE97+CP97+DA97+DL97+DW97)/ROUND(12/VLOOKUP($A97, Annualization!$A$3:$C$323,3,FALSE),0),0) -> 0 | ET97: =IFERROR((G97+R97+AC97+AN97+AY97+BJ97+BU97+CF97+CQ97+DB97+DM97+DX97)/ROUND(12/VLOOKUP($A97, Annualization!$A$3:$C$323,3,FALSE),0),0) -> 0 | EU97: =IFERROR((H97+S97+AD97+AO97+AZ97+BK97+BV97+CG97+CR97+DC97+DN97+DY97)/ROUND(12/VLOOKUP($A97, Annualization!$A$3:$C$323,3,FALSE),0),0) -> 0 | EV97: =IFERROR((I97+T97+AE97+AP97+BA97+BL97+BW97+CH97+CS97+DD97+DO97+DZ97)/ROUND(12/VLOOKUP($A97, Annualization!$A$3:$C$323,3,FALSE),0),0) -> 0 | EW97: =IFERROR((J97+U97+AF97+AQ97+BB97+BM97+BX97+CI97+CT97+DE97+DP97+EA97)/ROUND(12/VLOOKUP($A97, Annualization!$A$3:$C$323,3,FALSE),0),0) -> 0 | EX97: =IFERROR((K97+V97+AG97+AR97+BC97+BN97+BY97+CJ97+CU97+DF97+DQ97+EB97)/ROUND(12/VLOOKUP($A97, Annualization!$A$3:$C$323,3,FALSE),0),0) -> 0 | EY97: =IFERROR((L97+W97+AH97+AS97+BD97+BO97+BZ97+CK97+CV97+DG97+DR97+EC97)/ROUND(12/VLOOKUP($A97, Annualization!$A$3:$C$323,3,FALSE),0),0) -> 0 | EZ97: =IFERROR((M97+X97+AI97+AT97+BE97+BP97+CA97+CL97+CW97+DH97+DS97+ED97)/ROUND(12/VLOOKUP($A97, Annualization!$A$3:$C$323,3,FALSE),0),0) -> 0
EE98: 0 | EF98: 0 | EG98: 0 | EH98: 0 | EI98: 0 | EJ98: 0 | EK98: 0 | EL98: 0 | EM98: 0 | EN98: 0 | EO98: 0 | EP98: =IFERROR((C98+N98+Y98+AJ98+AU98+BF98+BQ98+CB98+CM98+CX98+DI98+DT98)/ROUND(12/VLOOKUP($A98, Annualization!$A$3:$C$323,3,FALSE),0),0) -> 0 | EQ98: =IFERROR((D98+O98+Z98+AK98+AV98+BG98+BR98+CC98+CN98+CY98+DJ98+DU98)/ROUND(12/VLOOKUP($A98, Annualization!$A$3:$C$323,3,FALSE),0),0) -> 0 | ER98: =IFERROR((E98+P98+AA98+AL98+AW98+BH98+BS98+CD98+CO98+CZ98+DK98+DV98)/ROUND(12/VLOOKUP($A98, Annualization!$A$3:$C$323,3,FALSE),0),0) -> 0 | ES98: =IFERROR((F98+Q98+AB98+AM98+AX98+BI98+BT98+CE98+CP98+DA98+DL98+DW98)/ROUND(12/VLOOKUP($A98, Annualization!$A$3:$C$323,3,FALSE),0),0) -> 0 | ET98: =IFERROR((G98+R98+AC98+AN98+AY98+BJ98+BU98+CF98+CQ98+DB98+DM98+DX98)/ROUND(12/VLOOKUP($A98, Annualization!$A$3:$C$323,3,FALSE),0),0) -> 0 | EU98: =IFERROR((H98+S98+AD98+AO98+AZ98+BK98+BV98+CG98+CR98+DC98+DN98+DY98)/ROUND(12/VLOOKUP($A98, Annualization!$A$3:$C$323,3,FALSE),0),0) -> 0 | EV98: =IFERROR((I98+T98+AE98+AP98+BA98+BL98+BW98+CH98+CS98+DD98+DO98+DZ98)/ROUND(12/VLOOKUP($A98, Annualization!$A$3:$C$323,3,FALSE),0),0) -> 0 | EW98: =IFERROR((J98+U98+AF98+AQ98+BB98+BM98+BX98+CI98+CT98+DE98+DP98+EA98)/ROUND(12/VLOOKUP($A98, Annualization!$A$3:$C$323,3,FALSE),0),0) -> 0 | EX98: =IFERROR((K98+V98+AG98+AR98+BC98+BN98+BY98+CJ98+CU98+DF98+DQ98+EB98)/ROUND(12/VLOOKUP($A98, Annualization!$A$3:$C$323,3,FALSE),0),0) -> 0 | EY98: =IFERROR((L98+W98+AH98+AS98+BD98+BO98+BZ98+CK98+CV98+DG98+DR98+EC98)/ROUND(12/VLOOKUP($A98, Annualization!$A$3:$C$323,3,FALSE),0),0) -> 0 | EZ98: =IFERROR((M98+X98+AI98+AT98+BE98+BP98+CA98+CL98+CW98+DH98+DS98+ED98)/ROUND(12/VLOOKUP($A98, Annualization!$A$3:$C$323,3,FALSE),0),0) -> 0
EE99: 0 | EF99: 0 | EG99: 0 | EH99: 0 | EI99: 0 | EJ99: 0 | EK99: 0 | EL99: 0 | EM99: 0 | EN99: 0 | EO99: 0 | EP99: =IFERROR((C99+N99+Y99+AJ99+AU99+BF99+BQ99+CB99+CM99+CX99+DI99+DT99)/ROUND(12/VLOOKUP($A99, Annualization!$A$3:$C$323,3,FALSE),0),0) -> 0 | EQ99: =IFERROR((D99+O99+Z99+AK99+AV99+BG99+BR99+CC99+CN99+CY99+DJ99+DU99)/ROUND(12/VLOOKUP($A99, Annualization!$A$3:$C$323,3,FALSE),0),0) -> 0 | ER99: =IFERROR((E99+P99+AA99+AL99+AW99+BH99+BS99+CD99+CO99+CZ99+DK99+DV99)/ROUND(12/VLOOKUP($A99, Annualization!$A$3:$C$323,3,FALSE),0),0) -> 0 | ES99: =IFERROR((F99+Q99+AB99+AM99+AX99+BI99+BT99+CE99+CP99+DA99+DL99+DW99)/ROUND(12/VLOOKUP($A99, Annualization!$A$3:$C$323,3,FALSE),0),0) -> 0 | ET99: =IFERROR((G99+R99+AC99+AN99+AY99+BJ99+BU99+CF99+CQ99+DB99+DM99+DX99)/ROUND(12/VLOOKUP($A99, Annualization!$A$3:$C$323,3,FALSE),0),0) -> 0 | EU99: =IFERROR((H99+S99+AD99+AO99+AZ99+BK99+BV99+CG99+CR99+DC99+DN99+DY99)/ROUND(12/VLOOKUP($A99, Annualization!$A$3:$C$323,3,FALSE),0),0) -> 0 | EV99: =IFERROR((I99+T99+AE99+AP99+BA99+BL99+BW99+CH99+CS99+DD99+DO99+DZ99)/ROUND(12/VLOOKUP($A99, Annualization!$A$3:$C$323,3,FALSE),0),0) -> 0 | EW99: =IFERROR((J99+U99+AF99+AQ99+BB99+BM99+BX99+CI99+CT99+DE99+DP99+EA99)/ROUND(12/VLOOKUP($A99, Annualization!$A$3:$C$323,3,FALSE),0),0) -> 0 | EX99: =IFERROR((K99+V99+AG99+AR99+BC99+BN99+BY99+CJ99+CU99+DF99+DQ99+EB99)/ROUND(12/VLOOKUP($A99, Annualization!$A$3:$C$323,3,FALSE),0),0) -> 0 | EY99: =IFERROR((L99+W99+AH99+AS99+BD99+BO99+BZ99+CK99+CV99+DG99+DR99+EC99)/ROUND(12/VLOOKUP($A99, Annualization!$A$3:$C$323,3,FALSE),0),0) -> 0 | EZ99: =IFERROR((M99+X99+AI99+AT99+BE99+BP99+CA99+CL99+CW99+DH99+DS99+ED99)/ROUND(12/VLOOKUP($A99, Annualization!$A$3:$C$323,3,FALSE),0),0) -> 0
EE100: 0 | EF100: 0 | EG100: 0 | EH100: 0 | EI100: 0 | EJ100: 0 | EK100: 0 | EL100: 0 | EM100: 0 | EN100: 0 | EO100: 0 | EP100: =IFERROR((C100+N100+Y100+AJ100+AU100+BF100+BQ100+CB100+CM100+CX100+DI100+DT100)/ROUND(12/VLOOKUP($A100, Annualization!$A$3:$C$323,3,FALSE),0),0) -> 0 | EQ100: =IFERROR((D100+O100+Z100+AK100+AV100+BG100+BR100+CC100+CN100+CY100+DJ100+DU100)/ROUND(12/VLOOKUP($A100, Annualization!$A$3:$C$323,3,FALSE),0),0) -> 0 | ER100: =IFERROR((E100+P100+AA100+AL100+AW100+BH100+BS100+CD100+CO100+CZ100+DK100+DV100)/ROUND(12/VLOOKUP($A100, Annualization!$A$3:$C$323,3,FALSE),0),0) -> 0 | ES100: =IFERROR((F100+Q100+AB100+AM100+AX100+BI100+BT100+CE100+CP100+DA100+DL100+DW100)/ROUND(12/VLOOKUP($A100, Annualization!$A$3:$C$323,3,FALSE),0),0) -> 0 | ET100: =IFERROR((G100+R100+AC100+AN100+AY100+BJ100+BU100+CF100+CQ100+DB100+DM100+DX100)/ROUND(12/VLOOKUP($A100, Annualization!$A$3:$C$323,3,FALSE),0),0) -> 0 | EU100: =IFERROR((H100+S100+AD100+AO100+AZ100+BK100+BV100+CG100+CR100+DC100+DN100+DY100)/ROUND(12/VLOOKUP($A100, Annualization!$A$3:$C$323,3,FALSE),0),0) -> 0 | EV100: =IFERROR((I100+T100+AE100+AP100+BA100+BL100+BW100+CH100+CS100+DD100+DO100+DZ100)/ROUND(12/VLOOKUP($A100, Annualization!$A$3:$C$323,3,FALSE),0),0) -> 0 | EW100: =IFERROR((J100+U100+AF100+AQ100+BB100+BM100+BX100+CI100+CT100+DE100+DP100+EA100)/ROUND(12/VLOOKUP($A100, Annualization!$A$3:$C$323,3,FALSE),0),0) -> 0 | EX100: =IFERROR((K100+V100+AG100+AR100+BC100+BN100+BY100+CJ100+CU100+DF100+DQ100+EB100)/ROUND(12/VLOOKUP($A100, Annualization!$A$3:$C$323,3,FALSE),0),0) -> 0 | EY100: =IFERROR((L100+W100+AH100+AS100+BD100+BO100+BZ100+CK100+CV100+DG100+DR100+EC100)/ROUND(12/VLOOKUP($A100, Annualization!$A$3:$C$323,3,FALSE),0),0) -> 0 | EZ100: =IFERROR((M100+X100+AI100+AT100+BE100+BP100+CA100+CL100+CW100+DH100+DS100+ED100)/ROUND(12/VLOOKUP($A100, Annualization!$A$3:$C$323,3,FALSE),0),0) -> 0
EE101: 0 | EF101: 0 | EG101: 0 | EH101: 0 | EI101: 0 | EJ101: 0 | EK101: 0 | EL101: 0 | EM101: 0 | EN101: 0 | EO101: 0 | EP101: =IFERROR((C101+N101+Y101+AJ101+AU101+BF101+BQ101+CB101+CM101+CX101+DI101+DT101)/ROUND(12/VLOOKUP($A101, Annualization!$A$3:$C$323,3,FALSE),0),0) -> 0 | EQ101: =IFERROR((D101+O101+Z101+AK101+AV101+BG101+BR101+CC101+CN101+CY101+DJ101+DU101)/ROUND(12/VLOOKUP($A101, Annualization!$A$3:$C$323,3,FALSE),0),0) -> 0 | ER101: =IFERROR((E101+P101+AA101+AL101+AW101+BH101+BS101+CD101+CO101+CZ101+DK101+DV101)/ROUND(12/VLOOKUP($A101, Annualization!$A$3:$C$323,3,FALSE),0),0) -> 0 | ES101: =IFERROR((F101+Q101+AB101+AM101+AX101+BI101+BT101+CE101+CP101+DA101+DL101+DW101)/ROUND(12/VLOOKUP($A101, Annualization!$A$3:$C$323,3,FALSE),0),0) -> 0 | ET101: =IFERROR((G101+R101+AC101+AN101+AY101+BJ101+BU101+CF101+CQ101+DB101+DM101+DX101)/ROUND(12/VLOOKUP($A101, Annualization!$A$3:$C$323,3,FALSE),0),0) -> 0 | EU101: =IFERROR((H101+S101+AD101+AO101+AZ101+BK101+BV101+CG101+CR101+DC101+DN101+DY101)/ROUND(12/VLOOKUP($A101, Annualization!$A$3:$C$323,3,FALSE),0),0) -> 0 | EV101: =IFERROR((I101+T101+AE101+AP101+BA101+BL101+BW101+CH101+CS101+DD101+DO101+DZ101)/ROUND(12/VLOOKUP($A101, Annualization!$A$3:$C$323,3,FALSE),0),0) -> 0 | EW101: =IFERROR((J101+U101+AF101+AQ101+BB101+BM101+BX101+CI101+CT101+DE101+DP101+EA101)/ROUND(12/VLOOKUP($A101, Annualization!$A$3:$C$323,3,FALSE),0),0) -> 0 | EX101: =IFERROR((K101+V101+AG101+AR101+BC101+BN101+BY101+CJ101+CU101+DF101+DQ101+EB101)/ROUND(12/VLOOKUP($A101, Annualization!$A$3:$C$323,3,FALSE),0),0) -> 0 | EY101: =IFERROR((L101+W101+AH101+AS101+BD101+BO101+BZ101+CK101+CV101+DG101+DR101+EC101)/ROUND(12/VLOOKUP($A101, Annualization!$A$3:$C$323,3,FALSE),0),0) -> 0 | EZ101: =IFERROR((M101+X101+AI101+AT101+BE101+BP101+CA101+CL101+CW101+DH101+DS101+ED101)/ROUND(12/VLOOKUP($A101, Annualization!$A$3:$C$323,3,FALSE),0),0) -> 0
EE102: 0 | EF102: 0 | EG102: 0 | EH102: 0 | EI102: 0 | EJ102: 0 | EK102: 0 | EL102: 0 | EM102: 0 | EN102: 0 | EO102: 0 | EP102: =IFERROR((C102+N102+Y102+AJ102+AU102+BF102+BQ102+CB102+CM102+CX102+DI102+DT102)/ROUND(12/VLOOKUP($A102, Annualization!$A$3:$C$323,3,FALSE),0),0) -> 0 | EQ102: =IFERROR((D102+O102+Z102+AK102+AV102+BG102+BR102+CC102+CN102+CY102+DJ102+DU102)/ROUND(12/VLOOKUP($A102, Annualization!$A$3:$C$323,3,FALSE),0),0) -> 0 | ER102: =IFERROR((E102+P102+AA102+AL102+AW102+BH102+BS102+CD102+CO102+CZ102+DK102+DV102)/ROUND(12/VLOOKUP($A102, Annualization!$A$3:$C$323,3,FALSE),0),0) -> 0 | ES102: =IFERROR((F102+Q102+AB102+AM102+AX102+BI102+BT102+CE102+CP102+DA102+DL102+DW102)/ROUND(12/VLOOKUP($A102, Annualization!$A$3:$C$323,3,FALSE),0),0) -> 0 | ET102: =IFERROR((G102+R102+AC102+AN102+AY102+BJ102+BU102+CF102+CQ102+DB102+DM102+DX102)/ROUND(12/VLOOKUP($A102, Annualization!$A$3:$C$323,3,FALSE),0),0) -> 0 | EU102: =IFERROR((H102+S102+AD102+AO102+AZ102+BK102+BV102+CG102+CR102+DC102+DN102+DY102)/ROUND(12/VLOOKUP($A102, Annualization!$A$3:$C$323,3,FALSE),0),0) -> 0 | EV102: =IFERROR((I102+T102+AE102+AP102+BA102+BL102+BW102+CH102+CS102+DD102+DO102+DZ102)/ROUND(12/VLOOKUP($A102, Annualization!$A$3:$C$323,3,FALSE),0),0) -> 0 | EW102: =IFERROR((J102+U102+AF102+AQ102+BB102+BM102+BX102+CI102+CT102+DE102+DP102+EA102)/ROUND(12/VLOOKUP($A102, Annualization!$A$3:$C$323,3,FALSE),0),0) -> 0 | EX102: =IFERROR((K102+V102+AG102+AR102+BC102+BN102+BY102+CJ102+CU102+DF102+DQ102+EB102)/ROUND(12/VLOOKUP($A102, Annualization!$A$3:$C$323,3,FALSE),0),0) -> 0 | EY102: =IFERROR((L102+W102+AH102+AS102+BD102+BO102+BZ102+CK102+CV102+DG102+DR102+EC102)/ROUND(12/VLOOKUP($A102, Annualization!$A$3:$C$323,3,FALSE),0),0) -> 0 | EZ102: =IFERROR((M102+X102+AI102+AT102+BE102+BP102+CA102+CL102+CW102+DH102+DS102+ED102)/ROUND(12/VLOOKUP($A102, Annualization!$A$3:$C$323,3,FALSE),0),0) -> 0
EE103: 0 | EF103: 0 | EG103: 0 | EH103: 0 | EI103: 0 | EJ103: 0 | EK103: 0 | EL103: 0 | EM103: 0 | EN103: 0 | EO103: 0 | EP103: =IFERROR((C103+N103+Y103+AJ103+AU103+BF103+BQ103+CB103+CM103+CX103+DI103+DT103)/ROUND(12/VLOOKUP($A103, Annualization!$A$3:$C$323,3,FALSE),0),0) -> 0 | EQ103: =IFERROR((D103+O103+Z103+AK103+AV103+BG103+BR103+CC103+CN103+CY103+DJ103+DU103)/ROUND(12/VLOOKUP($A103, Annualization!$A$3:$C$323,3,FALSE),0),0) -> 0 | ER103: =IFERROR((E103+P103+AA103+AL103+AW103+BH103+BS103+CD103+CO103+CZ103+DK103+DV103)/ROUND(12/VLOOKUP($A103, Annualization!$A$3:$C$323,3,FALSE),0),0) -> 0 | ES103: =IFERROR((F103+Q103+AB103+AM103+AX103+BI103+BT103+CE103+CP103+DA103+DL103+DW103)/ROUND(12/VLOOKUP($A103, Annualization!$A$3:$C$323,3,FALSE),0),0) -> 0 | ET103: =IFERROR((G103+R103+AC103+AN103+AY103+BJ103+BU103+CF103+CQ103+DB103+DM103+DX103)/ROUND(12/VLOOKUP($A103, Annualization!$A$3:$C$323,3,FALSE),0),0) -> 0 | EU103: =IFERROR((H103+S103+AD103+AO103+AZ103+BK103+BV103+CG103+CR103+DC103+DN103+DY103)/ROUND(12/VLOOKUP($A103, Annualization!$A$3:$C$323,3,FALSE),0),0) -> 0 | EV103: =IFERROR((I103+T103+AE103+AP103+BA103+BL103+BW103+CH103+CS103+DD103+DO103+DZ103)/ROUND(12/VLOOKUP($A103, Annualization!$A$3:$C$323,3,FALSE),0),0) -> 0 | EW103: =IFERROR((J103+U103+AF103+AQ103+BB103+BM103+BX103+CI103+CT103+DE103+DP103+EA103)/ROUND(12/VLOOKUP($A103, Annualization!$A$3:$C$323,3,FALSE),0),0) -> 0 | EX103: =IFERROR((K103+V103+AG103+AR103+BC103+BN103+BY103+CJ103+CU103+DF103+DQ103+EB103)/ROUND(12/VLOOKUP($A103, Annualization!$A$3:$C$323,3,FALSE),0),0) -> 0 | EY103: =IFERROR((L103+W103+AH103+AS103+BD103+BO103+BZ103+CK103+CV103+DG103+DR103+EC103)/ROUND(12/VLOOKUP($A103, Annualization!$A$3:$C$323,3,FALSE),0),0) -> 0 | EZ103: =IFERROR((M103+X103+AI103+AT103+BE103+BP103+CA103+CL103+CW103+DH103+DS103+ED103)/ROUND(12/VLOOKUP($A103, Annualization!$A$3:$C$323,3,FALSE),0),0) -> 0
EE104: 0 | EF104: 0 | EG104: 0 | EH104: 0 | EI104: 0 | EJ104: 0 | EK104: 0 | EL104: 0 | EM104: 0 | EN104: 0 | EO104: 0 | EP104: =IFERROR((C104+N104+Y104+AJ104+AU104+BF104+BQ104+CB104+CM104+CX104+DI104+DT104)/ROUND(12/VLOOKUP($A104, Annualization!$A$3:$C$323,3,FALSE),0),0) -> 0 | EQ104: =IFERROR((D104+O104+Z104+AK104+AV104+BG104+BR104+CC104+CN104+CY104+DJ104+DU104)/ROUND(12/VLOOKUP($A104, Annualization!$A$3:$C$323,3,FALSE),0),0) -> 0 | ER104: =IFERROR((E104+P104+AA104+AL104+AW104+BH104+BS104+CD104+CO104+CZ104+DK104+DV104)/ROUND(12/VLOOKUP($A104, Annualization!$A$3:$C$323,3,FALSE),0),0) -> 0 | ES104: =IFERROR((F104+Q104+AB104+AM104+AX104+BI104+BT104+CE104+CP104+DA104+DL104+DW104)/ROUND(12/VLOOKUP($A104, Annualization!$A$3:$C$323,3,FALSE),0),0) -> 0 | ET104: =IFERROR((G104+R104+AC104+AN104+AY104+BJ104+BU104+CF104+CQ104+DB104+DM104+DX104)/ROUND(12/VLOOKUP($A104, Annualization!$A$3:$C$323,3,FALSE),0),0) -> 0 | EU104: =IFERROR((H104+S104+AD104+AO104+AZ104+BK104+BV104+CG104+CR104+DC104+DN104+DY104)/ROUND(12/VLOOKUP($A104, Annualization!$A$3:$C$323,3,FALSE),0),0) -> 0 | EV104: =IFERROR((I104+T104+AE104+AP104+BA104+BL104+BW104+CH104+CS104+DD104+DO104+DZ104)/ROUND(12/VLOOKUP($A104, Annualization!$A$3:$C$323,3,FALSE),0),0) -> 0 | EW104: =IFERROR((J104+U104+AF104+AQ104+BB104+BM104+BX104+CI104+CT104+DE104+DP104+EA104)/ROUND(12/VLOOKUP($A104, Annualization!$A$3:$C$323,3,FALSE),0),0) -> 0 | EX104: =IFERROR((K104+V104+AG104+AR104+BC104+BN104+BY104+CJ104+CU104+DF104+DQ104+EB104)/ROUND(12/VLOOKUP($A104, Annualization!$A$3:$C$323,3,FALSE),0),0) -> 0 | EY104: =IFERROR((L104+W104+AH104+AS104+BD104+BO104+BZ104+CK104+CV104+DG104+DR104+EC104)/ROUND(12/VLOOKUP($A104, Annualization!$A$3:$C$323,3,FALSE),0),0) -> 0 | EZ104: =IFERROR((M104+X104+AI104+AT104+BE104+BP104+CA104+CL104+CW104+DH104+DS104+ED104)/ROUND(12/VLOOKUP($A104, Annualization!$A$3:$C$323,3,FALSE),0),0) -> 0
EE105: 0 | EF105: 0 | EG105: 0 | EH105: 0 | EI105: 0 | EJ105: 0 | EK105: 0 | EL105: 0 | EM105: 0 | EN105: 0 | EO105: 0 | EP105: =IFERROR((C105+N105+Y105+AJ105+AU105+BF105+BQ105+CB105+CM105+CX105+DI105+DT105)/ROUND(12/VLOOKUP($A105, Annualization!$A$3:$C$323,3,FALSE),0),0) -> 0 | EQ105: =IFERROR((D105+O105+Z105+AK105+AV105+BG105+BR105+CC105+CN105+CY105+DJ105+DU105)/ROUND(12/VLOOKUP($A105, Annualization!$A$3:$C$323,3,FALSE),0),0) -> 0 | ER105: =IFERROR((E105+P105+AA105+AL105+AW105+BH105+BS105+CD105+CO105+CZ105+DK105+DV105)/ROUND(12/VLOOKUP($A105, Annualization!$A$3:$C$323,3,FALSE),0),0) -> 0 | ES105: =IFERROR((F105+Q105+AB105+AM105+AX105+BI105+BT105+CE105+CP105+DA105+DL105+DW105)/ROUND(12/VLOOKUP($A105, Annualization!$A$3:$C$323,3,FALSE),0),0) -> 0 | ET105: =IFERROR((G105+R105+AC105+AN105+AY105+BJ105+BU105+CF105+CQ105+DB105+DM105+DX105)/ROUND(12/VLOOKUP($A105, Annualization!$A$3:$C$323,3,FALSE),0),0) -> 0 | EU105: =IFERROR((H105+S105+AD105+AO105+AZ105+BK105+BV105+CG105+CR105+DC105+DN105+DY105)/ROUND(12/VLOOKUP($A105, Annualization!$A$3:$C$323,3,FALSE),0),0) -> 0 | EV105: =IFERROR((I105+T105+AE105+AP105+BA105+BL105+BW105+CH105+CS105+DD105+DO105+DZ105)/ROUND(12/VLOOKUP($A105, Annualization!$A$3:$C$323,3,FALSE),0),0) -> 0 | EW105: =IFERROR((J105+U105+AF105+AQ105+BB105+BM105+BX105+CI105+CT105+DE105+DP105+EA105)/ROUND(12/VLOOKUP($A105, Annualization!$A$3:$C$323,3,FALSE),0),0) -> 0 | EX105: =IFERROR((K105+V105+AG105+AR105+BC105+BN105+BY105+CJ105+CU105+DF105+DQ105+EB105)/ROUND(12/VLOOKUP($A105, Annualization!$A$3:$C$323,3,FALSE),0),0) -> 0 | EY105: =IFERROR((L105+W105+AH105+AS105+BD105+BO105+BZ105+CK105+CV105+DG105+DR105+EC105)/ROUND(12/VLOOKUP($A105, Annualization!$A$3:$C$323,3,FALSE),0),0) -> 0 | EZ105: =IFERROR((M105+X105+AI105+AT105+BE105+BP105+CA105+CL105+CW105+DH105+DS105+ED105)/ROUND(12/VLOOKUP($A105, Annualization!$A$3:$C$323,3,FALSE),0),0) -> 0
EE106: 0 | EF106: 0 | EG106: 0 | EH106: 0 | EI106: 0 | EJ106: 0 | EK106: 0 | EL106: 0 | EM106: 0 | EN106: 0 | EO106: 0 | EP106: =IFERROR((C106+N106+Y106+AJ106+AU106+BF106+BQ106+CB106+CM106+CX106+DI106+DT106)/ROUND(12/VLOOKUP($A106, Annualization!$A$3:$C$323,3,FALSE),0),0) -> 0 | EQ106: =IFERROR((D106+O106+Z106+AK106+AV106+BG106+BR106+CC106+CN106+CY106+DJ106+DU106)/ROUND(12/VLOOKUP($A106, Annualization!$A$3:$C$323,3,FALSE),0),0) -> 0 | ER106: =IFERROR((E106+P106+AA106+AL106+AW106+BH106+BS106+CD106+CO106+CZ106+DK106+DV106)/ROUND(12/VLOOKUP($A106, Annualization!$A$3:$C$323,3,FALSE),0),0) -> 0 | ES106: =IFERROR((F106+Q106+AB106+AM106+AX106+BI106+BT106+CE106+CP106+DA106+DL106+DW106)/ROUND(12/VLOOKUP($A106, Annualization!$A$3:$C$323,3,FALSE),0),0) -> 0 | ET106: =IFERROR((G106+R106+AC106+AN106+AY106+BJ106+BU106+CF106+CQ106+DB106+DM106+DX106)/ROUND(12/VLOOKUP($A106, Annualization!$A$3:$C$323,3,FALSE),0),0) -> 0 | EU106: =IFERROR((H106+S106+AD106+AO106+AZ106+BK106+BV106+CG106+CR106+DC106+DN106+DY106)/ROUND(12/VLOOKUP($A106, Annualization!$A$3:$C$323,3,FALSE),0),0) -> 0 | EV106: =IFERROR((I106+T106+AE106+AP106+BA106+BL106+BW106+CH106+CS106+DD106+DO106+DZ106)/ROUND(12/VLOOKUP($A106, Annualization!$A$3:$C$323,3,FALSE),0),0) -> 0 | EW106: =IFERROR((J106+U106+AF106+AQ106+BB106+BM106+BX106+CI106+CT106+DE106+DP106+EA106)/ROUND(12/VLOOKUP($A106, Annualization!$A$3:$C$323,3,FALSE),0),0) -> 0 | EX106: =IFERROR((K106+V106+AG106+AR106+BC106+BN106+BY106+CJ106+CU106+DF106+DQ106+EB106)/ROUND(12/VLOOKUP($A106, Annualization!$A$3:$C$323,3,FALSE),0),0) -> 0 | EY106: =IFERROR((L106+W106+AH106+AS106+BD106+BO106+BZ106+CK106+CV106+DG106+DR106+EC106)/ROUND(12/VLOOKUP($A106, Annualization!$A$3:$C$323,3,FALSE),0),0) -> 0 | EZ106: =IFERROR((M106+X106+AI106+AT106+BE106+BP106+CA106+CL106+CW106+DH106+DS106+ED106)/ROUND(12/VLOOKUP($A106, Annualization!$A$3:$C$323,3,FALSE),0),0) -> 0
EE107: 0 | EF107: 0 | EG107: 0 | EH107: 0 | EI107: 0 | EJ107: 0 | EK107: 0 | EL107: 0 | EM107: 0 | EN107: 0 | EO107: 0 | EP107: =IFERROR((C107+N107+Y107+AJ107+AU107+BF107+BQ107+CB107+CM107+CX107+DI107+DT107)/ROUND(12/VLOOKUP($A107, Annualization!$A$3:$C$323,3,FALSE),0),0) -> 0 | EQ107: =IFERROR((D107+O107+Z107+AK107+AV107+BG107+BR107+CC107+CN107+CY107+DJ107+DU107)/ROUND(12/VLOOKUP($A107, Annualization!$A$3:$C$323,3,FALSE),0),0) -> 0 | ER107: =IFERROR((E107+P107+AA107+AL107+AW107+BH107+BS107+CD107+CO107+CZ107+DK107+DV107)/ROUND(12/VLOOKUP($A107, Annualization!$A$3:$C$323,3,FALSE),0),0) -> 0 | ES107: =IFERROR((F107+Q107+AB107+AM107+AX107+BI107+BT107+CE107+CP107+DA107+DL107+DW107)/ROUND(12/VLOOKUP($A107, Annualization!$A$3:$C$323,3,FALSE),0),0) -> 0 | ET107: =IFERROR((G107+R107+AC107+AN107+AY107+BJ107+BU107+CF107+CQ107+DB107+DM107+DX107)/ROUND(12/VLOOKUP($A107, Annualization!$A$3:$C$323,3,FALSE),0),0) -> 0 | EU107: =IFERROR((H107+S107+AD107+AO107+AZ107+BK107+BV107+CG107+CR107+DC107+DN107+DY107)/ROUND(12/VLOOKUP($A107, Annualization!$A$3:$C$323,3,FALSE),0),0) -> 0 | EV107: =IFERROR((I107+T107+AE107+AP107+BA107+BL107+BW107+CH107+CS107+DD107+DO107+DZ107)/ROUND(12/VLOOKUP($A107, Annualization!$A$3:$C$323,3,FALSE),0),0) -> 0 | EW107: =IFERROR((J107+U107+AF107+AQ107+BB107+BM107+BX107+CI107+CT107+DE107+DP107+EA107)/ROUND(12/VLOOKUP($A107, Annualization!$A$3:$C$323,3,FALSE),0),0) -> 0 | EX107: =IFERROR((K107+V107+AG107+AR107+BC107+BN107+BY107+CJ107+CU107+DF107+DQ107+EB107)/ROUND(12/VLOOKUP($A107, Annualization!$A$3:$C$323,3,FALSE),0),0) -> 0 | EY107: =IFERROR((L107+W107+AH107+AS107+BD107+BO107+BZ107+CK107+CV107+DG107+DR107+EC107)/ROUND(12/VLOOKUP($A107, Annualization!$A$3:$C$323,3,FALSE),0),0) -> 0 | EZ107: =IFERROR((M107+X107+AI107+AT107+BE107+BP107+CA107+CL107+CW107+DH107+DS107+ED107)/ROUND(12/VLOOKUP($A107, Annualization!$A$3:$C$323,3,FALSE),0),0) -> 0
EE108: 0 | EF108: 0 | EG108: 0 | EH108: 0 | EI108: 0 | EJ108: 0 | EK108: 0 | EL108: 0 | EM108: 0 | EN108: 0 | EO108: 0 | EP108: =IFERROR((C108+N108+Y108+AJ108+AU108+BF108+BQ108+CB108+CM108+CX108+DI108+DT108)/ROUND(12/VLOOKUP($A108, Annualization!$A$3:$C$323,3,FALSE),0),0) -> 0 | EQ108: =IFERROR((D108+O108+Z108+AK108+AV108+BG108+BR108+CC108+CN108+CY108+DJ108+DU108)/ROUND(12/VLOOKUP($A108, Annualization!$A$3:$C$323,3,FALSE),0),0) -> 0 | ER108: =IFERROR((E108+P108+AA108+AL108+AW108+BH108+BS108+CD108+CO108+CZ108+DK108+DV108)/ROUND(12/VLOOKUP($A108, Annualization!$A$3:$C$323,3,FALSE),0),0) -> 0 | ES108: =IFERROR((F108+Q108+AB108+AM108+AX108+BI108+BT108+CE108+CP108+DA108+DL108+DW108)/ROUND(12/VLOOKUP($A108, Annualization!$A$3:$C$323,3,FALSE),0),0) -> 0 | ET108: =IFERROR((G108+R108+AC108+AN108+AY108+BJ108+BU108+CF108+CQ108+DB108+DM108+DX108)/ROUND(12/VLOOKUP($A108, Annualization!$A$3:$C$323,3,FALSE),0),0) -> 0 | EU108: =IFERROR((H108+S108+AD108+AO108+AZ108+BK108+BV108+CG108+CR108+DC108+DN108+DY108)/ROUND(12/VLOOKUP($A108, Annualization!$A$3:$C$323,3,FALSE),0),0) -> 0 | EV108: =IFERROR((I108+T108+AE108+AP108+BA108+BL108+BW108+CH108+CS108+DD108+DO108+DZ108)/ROUND(12/VLOOKUP($A108, Annualization!$A$3:$C$323,3,FALSE),0),0) -> 0 | EW108: =IFERROR((J108+U108+AF108+AQ108+BB108+BM108+BX108+CI108+CT108+DE108+DP108+EA108)/ROUND(12/VLOOKUP($A108, Annualization!$A$3:$C$323,3,FALSE),0),0) -> 0 | EX108: =IFERROR((K108+V108+AG108+AR108+BC108+BN108+BY108+CJ108+CU108+DF108+DQ108+EB108)/ROUND(12/VLOOKUP($A108, Annualization!$A$3:$C$323,3,FALSE),0),0) -> 0 | EY108: =IFERROR((L108+W108+AH108+AS108+BD108+BO108+BZ108+CK108+CV108+DG108+DR108+EC108)/ROUND(12/VLOOKUP($A108, Annualization!$A$3:$C$323,3,FALSE),0),0) -> 0 | EZ108: =IFERROR((M108+X108+AI108+AT108+BE108+BP108+CA108+CL108+CW108+DH108+DS108+ED108)/ROUND(12/VLOOKUP($A108, Annualization!$A$3:$C$323,3,FALSE),0),0) -> 0
EE109: 0 | EF109: 0 | EG109: 0 | EH109: 0 | EI109: 0 | EJ109: 0 | EK109: 0 | EL109: 0 | EM109: 0 | EN109: 0 | EO109: 0 | EP109: =IFERROR((C109+N109+Y109+AJ109+AU109+BF109+BQ109+CB109+CM109+CX109+DI109+DT109)/ROUND(12/VLOOKUP($A109, Annualization!$A$3:$C$323,3,FALSE),0),0) -> 0 | EQ109: =IFERROR((D109+O109+Z109+AK109+AV109+BG109+BR109+CC109+CN109+CY109+DJ109+DU109)/ROUND(12/VLOOKUP($A109, Annualization!$A$3:$C$323,3,FALSE),0),0) -> 0 | ER109: =IFERROR((E109+P109+AA109+AL109+AW109+BH109+BS109+CD109+CO109+CZ109+DK109+DV109)/ROUND(12/VLOOKUP($A109, Annualization!$A$3:$C$323,3,FALSE),0),0) -> 0 | ES109: =IFERROR((F109+Q109+AB109+AM109+AX109+BI109+BT109+CE109+CP109+DA109+DL109+DW109)/ROUND(12/VLOOKUP($A109, Annualization!$A$3:$C$323,3,FALSE),0),0) -> 0 | ET109: =IFERROR((G109+R109+AC109+AN109+AY109+BJ109+BU109+CF109+CQ109+DB109+DM109+DX109)/ROUND(12/VLOOKUP($A109, Annualization!$A$3:$C$323,3,FALSE),0),0) -> 0 | EU109: =IFERROR((H109+S109+AD109+AO109+AZ109+BK109+BV109+CG109+CR109+DC109+DN109+DY109)/ROUND(12/VLOOKUP($A109, Annualization!$A$3:$C$323,3,FALSE),0),0) -> 0 | EV109: =IFERROR((I109+T109+AE109+AP109+BA109+BL109+BW109+CH109+CS109+DD109+DO109+DZ109)/ROUND(12/VLOOKUP($A109, Annualization!$A$3:$C$323,3,FALSE),0),0) -> 0 | EW109: =IFERROR((J109+U109+AF109+AQ109+BB109+BM109+BX109+CI109+CT109+DE109+DP109+EA109)/ROUND(12/VLOOKUP($A109, Annualization!$A$3:$C$323,3,FALSE),0),0) -> 0 | EX109: =IFERROR((K109+V109+AG109+AR109+BC109+BN109+BY109+CJ109+CU109+DF109+DQ109+EB109)/ROUND(12/VLOOKUP($A109, Annualization!$A$3:$C$323,3,FALSE),0),0) -> 0 | EY109: =IFERROR((L109+W109+AH109+AS109+BD109+BO109+BZ109+CK109+CV109+DG109+DR109+EC109)/ROUND(12/VLOOKUP($A109, Annualization!$A$3:$C$323,3,FALSE),0),0) -> 0 | EZ109: =IFERROR((M109+X109+AI109+AT109+BE109+BP109+CA109+CL109+CW109+DH109+DS109+ED109)/ROUND(12/VLOOKUP($A109, Annualization!$A$3:$C$323,3,FALSE),0),0) -> 0
EE110: 0 | EF110: =(D110+O110+Z110+AK110+AV110+BG110+BR110+CC110+CN110+CY110+DJ110+DU110) -> 0 | EG110: 0 | EH110: 0 | EI110: 0 | EJ110: 0 | EK110: 0 | EL110: 0 | EM110: 0 | EN110: 0 | EO110: 0 | EP110: =IFERROR((C110+N110+Y110+AJ110+AU110+BF110+BQ110+CB110+CM110+CX110+DI110+DT110)/ROUND(12/VLOOKUP($A110, Annualization!$A$3:$C$323,3,FALSE),0),0) -> 0 | EQ110: =IFERROR((D110+O110+Z110+AK110+AV110+BG110+BR110+CC110+CN110+CY110+DJ110+DU110)/ROUND(12/VLOOKUP($A110, Annualization!$A$3:$C$323,3,FALSE),0),0) -> 0 | ER110: =IFERROR((E110+P110+AA110+AL110+AW110+BH110+BS110+CD110+CO110+CZ110+DK110+DV110)/ROUND(12/VLOOKUP($A110, Annualization!$A$3:$C$323,3,FALSE),0),0) -> 0 | ES110: =IFERROR((F110+Q110+AB110+AM110+AX110+BI110+BT110+CE110+CP110+DA110+DL110+DW110)/ROUND(12/VLOOKUP($A110, Annualization!$A$3:$C$323,3,FALSE),0),0) -> 0 | ET110: =IFERROR((G110+R110+AC110+AN110+AY110+BJ110+BU110+CF110+CQ110+DB110+DM110+DX110)/ROUND(12/VLOOKUP($A110, Annualization!$A$3:$C$323,3,FALSE),0),0) -> 0 | EU110: =IFERROR((H110+S110+AD110+AO110+AZ110+BK110+BV110+CG110+CR110+DC110+DN110+DY110)/ROUND(12/VLOOKUP($A110, Annualization!$A$3:$C$323,3,FALSE),0),0) -> 0 | EV110: =IFERROR((I110+T110+AE110+AP110+BA110+BL110+BW110+CH110+CS110+DD110+DO110+DZ110)/ROUND(12/VLOOKUP($A110, Annualization!$A$3:$C$323,3,FALSE),0),0) -> 0 | EW110: =IFERROR((J110+U110+AF110+AQ110+BB110+BM110+BX110+CI110+CT110+DE110+DP110+EA110)/ROUND(12/VLOOKUP($A110, Annualization!$A$3:$C$323,3,FALSE),0),0) -> 0 | EX110: =IFERROR((K110+V110+AG110+AR110+BC110+BN110+BY110+CJ110+CU110+DF110+DQ110+EB110)/ROUND(12/VLOOKUP($A110, Annualization!$A$3:$C$323,3,FALSE),0),0) -> 0 | EY110: =IFERROR((L110+W110+AH110+AS110+BD110+BO110+BZ110+CK110+CV110+DG110+DR110+EC110)/ROUND(12/VLOOKUP($A110, Annualization!$A$3:$C$323,3,FALSE),0),0) -> 0 | EZ110: =IFERROR((M110+X110+AI110+AT110+BE110+BP110+CA110+CL110+CW110+DH110+DS110+ED110)/ROUND(12/VLOOKUP($A110, Annualization!$A$3:$C$323,3,FALSE),0),0) -> 0
EE111: =(C111+N111+Y111+AJ111+AU111+BF111+BQ111+CB111+CM111+CX111+DI111+DT111) -> 0 | EF111: 0 | EG111: 0 | EH111: 0 | EI111: 0 | EJ111: 0 | EK111: 0 | EL111: 0 | EM111: 0 | EN111: 0 | EO111: 0 | EP111: =IFERROR((C111+N111+Y111+AJ111+AU111+BF111+BQ111+CB111+CM111+CX111+DI111+DT111)/ROUND(12/VLOOKUP($A111, Annualization!$A$3:$C$323,3,FALSE),0),0) -> 0 | EQ111: =IFERROR((D111+O111+Z111+AK111+AV111+BG111+BR111+CC111+CN111+CY111+DJ111+DU111)/ROUND(12/VLOOKUP($A111, Annualization!$A$3:$C$323,3,FALSE),0),0) -> 0 | ER111: =IFERROR((E111+P111+AA111+AL111+AW111+BH111+BS111+CD111+CO111+CZ111+DK111+DV111)/ROUND(12/VLOOKUP($A111, Annualization!$A$3:$C$323,3,FALSE),0),0) -> 0 | ES111: =IFERROR((F111+Q111+AB111+AM111+AX111+BI111+BT111+CE111+CP111+DA111+DL111+DW111)/ROUND(12/VLOOKUP($A111, Annualization!$A$3:$C$323,3,FALSE),0),0) -> 0 | ET111: =IFERROR((G111+R111+AC111+AN111+AY111+BJ111+BU111+CF111+CQ111+DB111+DM111+DX111)/ROUND(12/VLOOKUP($A111, Annualization!$A$3:$C$323,3,FALSE),0),0) -> 0 | EU111: =IFERROR((H111+S111+AD111+AO111+AZ111+BK111+BV111+CG111+CR111+DC111+DN111+DY111)/ROUND(12/VLOOKUP($A111, Annualization!$A$3:$C$323,3,FALSE),0),0) -> 0 | EV111: =IFERROR((I111+T111+AE111+AP111+BA111+BL111+BW111+CH111+CS111+DD111+DO111+DZ111)/ROUND(12/VLOOKUP($A111, Annualization!$A$3:$C$323,3,FALSE),0),0) -> 0 | EW111: =IFERROR((J111+U111+AF111+AQ111+BB111+BM111+BX111+CI111+CT111+DE111+DP111+EA111)/ROUND(12/VLOOKUP($A111, Annualization!$A$3:$C$323,3,FALSE),0),0) -> 0 | EX111: =IFERROR((K111+V111+AG111+AR111+BC111+BN111+BY111+CJ111+CU111+DF111+DQ111+EB111)/ROUND(12/VLOOKUP($A111, Annualization!$A$3:$C$323,3,FALSE),0),0) -> 0 | EY111: =IFERROR((L111+W111+AH111+AS111+BD111+BO111+BZ111+CK111+CV111+DG111+DR111+EC111)/ROUND(12/VLOOKUP($A111, Annualization!$A$3:$C$323,3,FALSE),0),0) -> 0 | EZ111: =IFERROR((M111+X111+AI111+AT111+BE111+BP111+CA111+CL111+CW111+DH111+DS111+ED111)/ROUND(12/VLOOKUP($A111, Annualization!$A$3:$C$323,3,FALSE),0),0) -> 0
EE112: 0 | EF112: 0 | EG112: 0 | EH112: 0 | EI112: 0 | EJ112: 0 | EK112: 0 | EL112: 0 | EM112: 0 | EN112: 0 | EO112: 0 | EP112: =IFERROR((C112+N112+Y112+AJ112+AU112+BF112+BQ112+CB112+CM112+CX112+DI112+DT112)/ROUND(12/VLOOKUP($A112, Annualization!$A$3:$C$323,3,FALSE),0),0) -> 0 | EQ112: =IFERROR((D112+O112+Z112+AK112+AV112+BG112+BR112+CC112+CN112+CY112+DJ112+DU112)/ROUND(12/VLOOKUP($A112, Annualization!$A$3:$C$323,3,FALSE),0),0) -> 0 | ER112: =IFERROR((E112+P112+AA112+AL112+AW112+BH112+BS112+CD112+CO112+CZ112+DK112+DV112)/ROUND(12/VLOOKUP($A112, Annualization!$A$3:$C$323,3,FALSE),0),0) -> 0 | ES112: =IFERROR((F112+Q112+AB112+AM112+AX112+BI112+BT112+CE112+CP112+DA112+DL112+DW112)/ROUND(12/VLOOKUP($A112, Annualization!$A$3:$C$323,3,FALSE),0),0) -> 0 | ET112: =IFERROR((G112+R112+AC112+AN112+AY112+BJ112+BU112+CF112+CQ112+DB112+DM112+DX112)/ROUND(12/VLOOKUP($A112, Annualization!$A$3:$C$323,3,FALSE),0),0) -> 0 | EU112: =IFERROR((H112+S112+AD112+AO112+AZ112+BK112+BV112+CG112+CR112+DC112+DN112+DY112)/ROUND(12/VLOOKUP($A112, Annualization!$A$3:$C$323,3,FALSE),0),0) -> 0 | EV112: =IFERROR((I112+T112+AE112+AP112+BA112+BL112+BW112+CH112+CS112+DD112+DO112+DZ112)/ROUND(12/VLOOKUP($A112, Annualization!$A$3:$C$323,3,FALSE),0),0) -> 0 | EW112: =IFERROR((J112+U112+AF112+AQ112+BB112+BM112+BX112+CI112+CT112+DE112+DP112+EA112)/ROUND(12/VLOOKUP($A112, Annualization!$A$3:$C$323,3,FALSE),0),0) -> 0 | EX112: =IFERROR((K112+V112+AG112+AR112+BC112+BN112+BY112+CJ112+CU112+DF112+DQ112+EB112)/ROUND(12/VLOOKUP($A112, Annualization!$A$3:$C$323,3,FALSE),0),0) -> 0 | EY112: =IFERROR((L112+W112+AH112+AS112+BD112+BO112+BZ112+CK112+CV112+DG112+DR112+EC112)/ROUND(12/VLOOKUP($A112, Annualization!$A$3:$C$323,3,FALSE),0),0) -> 0 | EZ112: =IFERROR((M112+X112+AI112+AT112+BE112+BP112+CA112+CL112+CW112+DH112+DS112+ED112)/ROUND(12/VLOOKUP($A112, Annualization!$A$3:$C$323,3,FALSE),0),0) -> 0
EE113: 0 | EF113: 0 | EG113: 0 | EH113: 0 | EI113: 0 | EJ113: 0 | EK113: 0 | EL113: 0 | EM113: 0 | EN113: 0 | EO113: 0 | EP113: =IFERROR((C113+N113+Y113+AJ113+AU113+BF113+BQ113+CB113+CM113+CX113+DI113+DT113)/ROUND(12/VLOOKUP($A113, Annualization!$A$3:$C$323,3,FALSE),0),0) -> 0 | EQ113: =IFERROR((D113+O113+Z113+AK113+AV113+BG113+BR113+CC113+CN113+CY113+DJ113+DU113)/ROUND(12/VLOOKUP($A113, Annualization!$A$3:$C$323,3,FALSE),0),0) -> 0 | ER113: =IFERROR((E113+P113+AA113+AL113+AW113+BH113+BS113+CD113+CO113+CZ113+DK113+DV113)/ROUND(12/VLOOKUP($A113, Annualization!$A$3:$C$323,3,FALSE),0),0) -> 0 | ES113: =IFERROR((F113+Q113+AB113+AM113+AX113+BI113+BT113+CE113+CP113+DA113+DL113+DW113)/ROUND(12/VLOOKUP($A113, Annualization!$A$3:$C$323,3,FALSE),0),0) -> 0 | ET113: =IFERROR((G113+R113+AC113+AN113+AY113+BJ113+BU113+CF113+CQ113+DB113+DM113+DX113)/ROUND(12/VLOOKUP($A113, Annualization!$A$3:$C$323,3,FALSE),0),0) -> 0 | EU113: =IFERROR((H113+S113+AD113+AO113+AZ113+BK113+BV113+CG113+CR113+DC113+DN113+DY113)/ROUND(12/VLOOKUP($A113, Annualization!$A$3:$C$323,3,FALSE),0),0) -> 0 | EV113: =IFERROR((I113+T113+AE113+AP113+BA113+BL113+BW113+CH113+CS113+DD113+DO113+DZ113)/ROUND(12/VLOOKUP($A113, Annualization!$A$3:$C$323,3,FALSE),0),0) -> 0 | EW113: =IFERROR((J113+U113+AF113+AQ113+BB113+BM113+BX113+CI113+CT113+DE113+DP113+EA113)/ROUND(12/VLOOKUP($A113, Annualization!$A$3:$C$323,3,FALSE),0),0) -> 0 | EX113: =IFERROR((K113+V113+AG113+AR113+BC113+BN113+BY113+CJ113+CU113+DF113+DQ113+EB113)/ROUND(12/VLOOKUP($A113, Annualization!$A$3:$C$323,3,FALSE),0),0) -> 0 | EY113: =IFERROR((L113+W113+AH113+AS113+BD113+BO113+BZ113+CK113+CV113+DG113+DR113+EC113)/ROUND(12/VLOOKUP($A113, Annualization!$A$3:$C$323,3,FALSE),0),0) -> 0 | EZ113: =IFERROR((M113+X113+AI113+AT113+BE113+BP113+CA113+CL113+CW113+DH113+DS113+ED113)/ROUND(12/VLOOKUP($A113, Annualization!$A$3:$C$323,3,FALSE),0),0) -> 0
EE114: 0 | EF114: 0 | EG114: 0 | EH114: 0 | EI114: 0 | EJ114: 0 | EK114: 0 | EL114: 0 | EM114: 0 | EN114: 0 | EO114: 0 | EP114: =IFERROR((C114+N114+Y114+AJ114+AU114+BF114+BQ114+CB114+CM114+CX114+DI114+DT114)/ROUND(12/VLOOKUP($A114, Annualization!$A$3:$C$323,3,FALSE),0),0) -> 0 | EQ114: =IFERROR((D114+O114+Z114+AK114+AV114+BG114+BR114+CC114+CN114+CY114+DJ114+DU114)/ROUND(12/VLOOKUP($A114, Annualization!$A$3:$C$323,3,FALSE),0),0) -> 0 | ER114: =IFERROR((E114+P114+AA114+AL114+AW114+BH114+BS114+CD114+CO114+CZ114+DK114+DV114)/ROUND(12/VLOOKUP($A114, Annualization!$A$3:$C$323,3,FALSE),0),0) -> 0 | ES114: =IFERROR((F114+Q114+AB114+AM114+AX114+BI114+BT114+CE114+CP114+DA114+DL114+DW114)/ROUND(12/VLOOKUP($A114, Annualization!$A$3:$C$323,3,FALSE),0),0) -> 0 | ET114: =IFERROR((G114+R114+AC114+AN114+AY114+BJ114+BU114+CF114+CQ114+DB114+DM114+DX114)/ROUND(12/VLOOKUP($A114, Annualization!$A$3:$C$323,3,FALSE),0),0) -> 0 | EU114: =IFERROR((H114+S114+AD114+AO114+AZ114+BK114+BV114+CG114+CR114+DC114+DN114+DY114)/ROUND(12/VLOOKUP($A114, Annualization!$A$3:$C$323,3,FALSE),0),0) -> 0 | EV114: =IFERROR((I114+T114+AE114+AP114+BA114+BL114+BW114+CH114+CS114+DD114+DO114+DZ114)/ROUND(12/VLOOKUP($A114, Annualization!$A$3:$C$323,3,FALSE),0),0) -> 0 | EW114: =IFERROR((J114+U114+AF114+AQ114+BB114+BM114+BX114+CI114+CT114+DE114+DP114+EA114)/ROUND(12/VLOOKUP($A114, Annualization!$A$3:$C$323,3,FALSE),0),0) -> 0 | EX114: =IFERROR((K114+V114+AG114+AR114+BC114+BN114+BY114+CJ114+CU114+DF114+DQ114+EB114)/ROUND(12/VLOOKUP($A114, Annualization!$A$3:$C$323,3,FALSE),0),0) -> 0 | EY114: =IFERROR((L114+W114+AH114+AS114+BD114+BO114+BZ114+CK114+CV114+DG114+DR114+EC114)/ROUND(12/VLOOKUP($A114, Annualization!$A$3:$C$323,3,FALSE),0),0) -> 0 | EZ114: =IFERROR((M114+X114+AI114+AT114+BE114+BP114+CA114+CL114+CW114+DH114+DS114+ED114)/ROUND(12/VLOOKUP($A114, Annualization!$A$3:$C$323,3,FALSE),0),0) -> 0
EE115: 0 | EF115: 0 | EG115: 0 | EH115: 0 | EI115: 0 | EJ115: 0 | EK115: 0 | EL115: 0 | EM115: 0 | EN115: 0 | EO115: 0 | EP115: =IFERROR((C115+N115+Y115+AJ115+AU115+BF115+BQ115+CB115+CM115+CX115+DI115+DT115)/ROUND(12/VLOOKUP($A115, Annualization!$A$3:$C$323,3,FALSE),0),0) -> 0 | EQ115: =IFERROR((D115+O115+Z115+AK115+AV115+BG115+BR115+CC115+CN115+CY115+DJ115+DU115)/ROUND(12/VLOOKUP($A115, Annualization!$A$3:$C$323,3,FALSE),0),0) -> 0 | ER115: =IFERROR((E115+P115+AA115+AL115+AW115+BH115+BS115+CD115+CO115+CZ115+DK115+DV115)/ROUND(12/VLOOKUP($A115, Annualization!$A$3:$C$323,3,FALSE),0),0) -> 0 | ES115: =IFERROR((F115+Q115+AB115+AM115+AX115+BI115+BT115+CE115+CP115+DA115+DL115+DW115)/ROUND(12/VLOOKUP($A115, Annualization!$A$3:$C$323,3,FALSE),0),0) -> 0 | ET115: =IFERROR((G115+R115+AC115+AN115+AY115+BJ115+BU115+CF115+CQ115+DB115+DM115+DX115)/ROUND(12/VLOOKUP($A115, Annualization!$A$3:$C$323,3,FALSE),0),0) -> 0 | EU115: =IFERROR((H115+S115+AD115+AO115+AZ115+BK115+BV115+CG115+CR115+DC115+DN115+DY115)/ROUND(12/VLOOKUP($A115, Annualization!$A$3:$C$323,3,FALSE),0),0) -> 0 | EV115: =IFERROR((I115+T115+AE115+AP115+BA115+BL115+BW115+CH115+CS115+DD115+DO115+DZ115)/ROUND(12/VLOOKUP($A115, Annualization!$A$3:$C$323,3,FALSE),0),0) -> 0 | EW115: =IFERROR((J115+U115+AF115+AQ115+BB115+BM115+BX115+CI115+CT115+DE115+DP115+EA115)/ROUND(12/VLOOKUP($A115, Annualization!$A$3:$C$323,3,FALSE),0),0) -> 0 | EX115: =IFERROR((K115+V115+AG115+AR115+BC115+BN115+BY115+CJ115+CU115+DF115+DQ115+EB115)/ROUND(12/VLOOKUP($A115, Annualization!$A$3:$C$323,3,FALSE),0),0) -> 0 | EY115: =IFERROR((L115+W115+AH115+AS115+BD115+BO115+BZ115+CK115+CV115+DG115+DR115+EC115)/ROUND(12/VLOOKUP($A115, Annualization!$A$3:$C$323,3,FALSE),0),0) -> 0 | EZ115: =IFERROR((M115+X115+AI115+AT115+BE115+BP115+CA115+CL115+CW115+DH115+DS115+ED115)/ROUND(12/VLOOKUP($A115, Annualization!$A$3:$C$323,3,FALSE),0),0) -> 0
EE116: 0 | EF116: 0 | EG116: 0 | EH116: 0 | EI116: 0 | EJ116: 0 | EK116: 0 | EL116: 0 | EM116: 0 | EN116: 0 | EO116: 0 | EP116: =IFERROR((C116+N116+Y116+AJ116+AU116+BF116+BQ116+CB116+CM116+CX116+DI116+DT116)/ROUND(12/VLOOKUP($A116, Annualization!$A$3:$C$323,3,FALSE),0),0) -> 0 | EQ116: =IFERROR((D116+O116+Z116+AK116+AV116+BG116+BR116+CC116+CN116+CY116+DJ116+DU116)/ROUND(12/VLOOKUP($A116, Annualization!$A$3:$C$323,3,FALSE),0),0) -> 0 | ER116: =IFERROR((E116+P116+AA116+AL116+AW116+BH116+BS116+CD116+CO116+CZ116+DK116+DV116)/ROUND(12/VLOOKUP($A116, Annualization!$A$3:$C$323,3,FALSE),0),0) -> 0 | ES116: =IFERROR((F116+Q116+AB116+AM116+AX116+BI116+BT116+CE116+CP116+DA116+DL116+DW116)/ROUND(12/VLOOKUP($A116, Annualization!$A$3:$C$323,3,FALSE),0),0) -> 0 | ET116: =IFERROR((G116+R116+AC116+AN116+AY116+BJ116+BU116+CF116+CQ116+DB116+DM116+DX116)/ROUND(12/VLOOKUP($A116, Annualization!$A$3:$C$323,3,FALSE),0),0) -> 0 | EU116: =IFERROR((H116+S116+AD116+AO116+AZ116+BK116+BV116+CG116+CR116+DC116+DN116+DY116)/ROUND(12/VLOOKUP($A116, Annualization!$A$3:$C$323,3,FALSE),0),0) -> 0 | EV116: =IFERROR((I116+T116+AE116+AP116+BA116+BL116+BW116+CH116+CS116+DD116+DO116+DZ116)/ROUND(12/VLOOKUP($A116, Annualization!$A$3:$C$323,3,FALSE),0),0) -> 0 | EW116: =IFERROR((J116+U116+AF116+AQ116+BB116+BM116+BX116+CI116+CT116+DE116+DP116+EA116)/ROUND(12/VLOOKUP($A116, Annualization!$A$3:$C$323,3,FALSE),0),0) -> 0 | EX116: =IFERROR((K116+V116+AG116+AR116+BC116+BN116+BY116+CJ116+CU116+DF116+DQ116+EB116)/ROUND(12/VLOOKUP($A116, Annualization!$A$3:$C$323,3,FALSE),0),0) -> 0 | EY116: =IFERROR((L116+W116+AH116+AS116+BD116+BO116+BZ116+CK116+CV116+DG116+DR116+EC116)/ROUND(12/VLOOKUP($A116, Annualization!$A$3:$C$323,3,FALSE),0),0) -> 0 | EZ116: =IFERROR((M116+X116+AI116+AT116+BE116+BP116+CA116+CL116+CW116+DH116+DS116+ED116)/ROUND(12/VLOOKUP($A116, Annualization!$A$3:$C$323,3,FALSE),0),0) -> 0
EE117: 0 | EF117: 0 | EG117: 0 | EH117: 0 | EI117: 0 | EJ117: 0 | EK117: 0 | EL117: 0 | EM117: 0 | EN117: 0 | EO117: 0 | EP117: =IFERROR((C117+N117+Y117+AJ117+AU117+BF117+BQ117+CB117+CM117+CX117+DI117+DT117)/ROUND(12/VLOOKUP($A117, Annualization!$A$3:$C$323,3,FALSE),0),0) -> 0 | EQ117: =IFERROR((D117+O117+Z117+AK117+AV117+BG117+BR117+CC117+CN117+CY117+DJ117+DU117)/ROUND(12/VLOOKUP($A117, Annualization!$A$3:$C$323,3,FALSE),0),0) -> 0 | ER117: =IFERROR((E117+P117+AA117+AL117+AW117+BH117+BS117+CD117+CO117+CZ117+DK117+DV117)/ROUND(12/VLOOKUP($A117, Annualization!$A$3:$C$323,3,FALSE),0),0) -> 0 | ES117: =IFERROR((F117+Q117+AB117+AM117+AX117+BI117+BT117+CE117+CP117+DA117+DL117+DW117)/ROUND(12/VLOOKUP($A117, Annualization!$A$3:$C$323,3,FALSE),0),0) -> 0 | ET117: =IFERROR((G117+R117+AC117+AN117+AY117+BJ117+BU117+CF117+CQ117+DB117+DM117+DX117)/ROUND(12/VLOOKUP($A117, Annualization!$A$3:$C$323,3,FALSE),0),0) -> 0 | EU117: =IFERROR((H117+S117+AD117+AO117+AZ117+BK117+BV117+CG117+CR117+DC117+DN117+DY117)/ROUND(12/VLOOKUP($A117, Annualization!$A$3:$C$323,3,FALSE),0),0) -> 0 | EV117: =IFERROR((I117+T117+AE117+AP117+BA117+BL117+BW117+CH117+CS117+DD117+DO117+DZ117)/ROUND(12/VLOOKUP($A117, Annualization!$A$3:$C$323,3,FALSE),0),0) -> 0 | EW117: =IFERROR((J117+U117+AF117+AQ117+BB117+BM117+BX117+CI117+CT117+DE117+DP117+EA117)/ROUND(12/VLOOKUP($A117, Annualization!$A$3:$C$323,3,FALSE),0),0) -> 0 | EX117: =IFERROR((K117+V117+AG117+AR117+BC117+BN117+BY117+CJ117+CU117+DF117+DQ117+EB117)/ROUND(12/VLOOKUP($A117, Annualization!$A$3:$C$323,3,FALSE),0),0) -> 0 | EY117: =IFERROR((L117+W117+AH117+AS117+BD117+BO117+BZ117+CK117+CV117+DG117+DR117+EC117)/ROUND(12/VLOOKUP($A117, Annualization!$A$3:$C$323,3,FALSE),0),0) -> 0 | EZ117: =IFERROR((M117+X117+AI117+AT117+BE117+BP117+CA117+CL117+CW117+DH117+DS117+ED117)/ROUND(12/VLOOKUP($A117, Annualization!$A$3:$C$323,3,FALSE),0),0) -> 0
EE118: 0 | EF118: 0 | EG118: 0 | EH118: 0 | EI118: 0 | EJ118: 0 | EK118: 0 | EL118: 0 | EM118: 0 | EN118: 0 | EO118: 0 | EP118: =IFERROR((C118+N118+Y118+AJ118+AU118+BF118+BQ118+CB118+CM118+CX118+DI118+DT118)/ROUND(12/VLOOKUP($A118, Annualization!$A$3:$C$323,3,FALSE),0),0) -> 0 | EQ118: =IFERROR((D118+O118+Z118+AK118+AV118+BG118+BR118+CC118+CN118+CY118+DJ118+DU118)/ROUND(12/VLOOKUP($A118, Annualization!$A$3:$C$323,3,FALSE),0),0) -> 0 | ER118: =IFERROR((E118+P118+AA118+AL118+AW118+BH118+BS118+CD118+CO118+CZ118+DK118+DV118)/ROUND(12/VLOOKUP($A118, Annualization!$A$3:$C$323,3,FALSE),0),0) -> 0 | ES118: =IFERROR((F118+Q118+AB118+AM118+AX118+BI118+BT118+CE118+CP118+DA118+DL118+DW118)/ROUND(12/VLOOKUP($A118, Annualization!$A$3:$C$323,3,FALSE),0),0) -> 0 | ET118: =IFERROR((G118+R118+AC118+AN118+AY118+BJ118+BU118+CF118+CQ118+DB118+DM118+DX118)/ROUND(12/VLOOKUP($A118, Annualization!$A$3:$C$323,3,FALSE),0),0) -> 0 | EU118: =IFERROR((H118+S118+AD118+AO118+AZ118+BK118+BV118+CG118+CR118+DC118+DN118+DY118)/ROUND(12/VLOOKUP($A118, Annualization!$A$3:$C$323,3,FALSE),0),0) -> 0 | EV118: =IFERROR((I118+T118+AE118+AP118+BA118+BL118+BW118+CH118+CS118+DD118+DO118+DZ118)/ROUND(12/VLOOKUP($A118, Annualization!$A$3:$C$323,3,FALSE),0),0) -> 0 | EW118: =IFERROR((J118+U118+AF118+AQ118+BB118+BM118+BX118+CI118+CT118+DE118+DP118+EA118)/ROUND(12/VLOOKUP($A118, Annualization!$A$3:$C$323,3,FALSE),0),0) -> 0 | EX118: =IFERROR((K118+V118+AG118+AR118+BC118+BN118+BY118+CJ118+CU118+DF118+DQ118+EB118)/ROUND(12/VLOOKUP($A118, Annualization!$A$3:$C$323,3,FALSE),0),0) -> 0 | EY118: =IFERROR((L118+W118+AH118+AS118+BD118+BO118+BZ118+CK118+CV118+DG118+DR118+EC118)/ROUND(12/VLOOKUP($A118, Annualization!$A$3:$C$323,3,FALSE),0),0) -> 0 | EZ118: =IFERROR((M118+X118+AI118+AT118+BE118+BP118+CA118+CL118+CW118+DH118+DS118+ED118)/ROUND(12/VLOOKUP($A118, Annualization!$A$3:$C$323,3,FALSE),0),0) -> 0
EE119: 0 | EF119: 0 | EG119: 0 | EH119: 0 | EI119: 0 | EJ119: 0 | EK119: 0 | EL119: 0 | EM119: 0 | EN119: 0 | EO119: 0 | EP119: =IFERROR((C119+N119+Y119+AJ119+AU119+BF119+BQ119+CB119+CM119+CX119+DI119+DT119)/ROUND(12/VLOOKUP($A119, Annualization!$A$3:$C$323,3,FALSE),0),0) -> 0 | EQ119: =IFERROR((D119+O119+Z119+AK119+AV119+BG119+BR119+CC119+CN119+CY119+DJ119+DU119)/ROUND(12/VLOOKUP($A119, Annualization!$A$3:$C$323,3,FALSE),0),0) -> 0 | ER119: =IFERROR((E119+P119+AA119+AL119+AW119+BH119+BS119+CD119+CO119+CZ119+DK119+DV119)/ROUND(12/VLOOKUP($A119, Annualization!$A$3:$C$323,3,FALSE),0),0) -> 0 | ES119: =IFERROR((F119+Q119+AB119+AM119+AX119+BI119+BT119+CE119+CP119+DA119+DL119+DW119)/ROUND(12/VLOOKUP($A119, Annualization!$A$3:$C$323,3,FALSE),0),0) -> 0 | ET119: =IFERROR((G119+R119+AC119+AN119+AY119+BJ119+BU119+CF119+CQ119+DB119+DM119+DX119)/ROUND(12/VLOOKUP($A119, Annualization!$A$3:$C$323,3,FALSE),0),0) -> 0 | EU119: =IFERROR((H119+S119+AD119+AO119+AZ119+BK119+BV119+CG119+CR119+DC119+DN119+DY119)/ROUND(12/VLOOKUP($A119, Annualization!$A$3:$C$323,3,FALSE),0),0) -> 0 | EV119: =IFERROR((I119+T119+AE119+AP119+BA119+BL119+BW119+CH119+CS119+DD119+DO119+DZ119)/ROUND(12/VLOOKUP($A119, Annualization!$A$3:$C$323,3,FALSE),0),0) -> 0 | EW119: =IFERROR((J119+U119+AF119+AQ119+BB119+BM119+BX119+CI119+CT119+DE119+DP119+EA119)/ROUND(12/VLOOKUP($A119, Annualization!$A$3:$C$323,3,FALSE),0),0) -> 0 | EX119: =IFERROR((K119+V119+AG119+AR119+BC119+BN119+BY119+CJ119+CU119+DF119+DQ119+EB119)/ROUND(12/VLOOKUP($A119, Annualization!$A$3:$C$323,3,FALSE),0),0) -> 0 | EY119: =IFERROR((L119+W119+AH119+AS119+BD119+BO119+BZ119+CK119+CV119+DG119+DR119+EC119)/ROUND(12/VLOOKUP($A119, Annualization!$A$3:$C$323,3,FALSE),0),0) -> 0 | EZ119: =IFERROR((M119+X119+AI119+AT119+BE119+BP119+CA119+CL119+CW119+DH119+DS119+ED119)/ROUND(12/VLOOKUP($A119, Annualization!$A$3:$C$323,3,FALSE),0),0) -> 0
EE120: 0 | EF120: 0 | EG120: 0 | EH120: 0 | EI120: 0 | EJ120: 0 | EK120: 0 | EL120: 0 | EM120: 0 | EN120: 0 | EO120: 0 | EP120: =IFERROR((C120+N120+Y120+AJ120+AU120+BF120+BQ120+CB120+CM120+CX120+DI120+DT120)/ROUND(12/VLOOKUP($A120, Annualization!$A$3:$C$323,3,FALSE),0),0) -> 0 | EQ120: =IFERROR((D120+O120+Z120+AK120+AV120+BG120+BR120+CC120+CN120+CY120+DJ120+DU120)/ROUND(12/VLOOKUP($A120, Annualization!$A$3:$C$323,3,FALSE),0),0) -> 0 | ER120: =IFERROR((E120+P120+AA120+AL120+AW120+BH120+BS120+CD120+CO120+CZ120+DK120+DV120)/ROUND(12/VLOOKUP($A120, Annualization!$A$3:$C$323,3,FALSE),0),0) -> 0 | ES120: =IFERROR((F120+Q120+AB120+AM120+AX120+BI120+BT120+CE120+CP120+DA120+DL120+DW120)/ROUND(12/VLOOKUP($A120, Annualization!$A$3:$C$323,3,FALSE),0),0) -> 0 | ET120: =IFERROR((G120+R120+AC120+AN120+AY120+BJ120+BU120+CF120+CQ120+DB120+DM120+DX120)/ROUND(12/VLOOKUP($A120, Annualization!$A$3:$C$323,3,FALSE),0),0) -> 0 | EU120: =IFERROR((H120+S120+AD120+AO120+AZ120+BK120+BV120+CG120+CR120+DC120+DN120+DY120)/ROUND(12/VLOOKUP($A120, Annualization!$A$3:$C$323,3,FALSE),0),0) -> 0 | EV120: =IFERROR((I120+T120+AE120+AP120+BA120+BL120+BW120+CH120+CS120+DD120+DO120+DZ120)/ROUND(12/VLOOKUP($A120, Annualization!$A$3:$C$323,3,FALSE),0),0) -> 0 | EW120: =IFERROR((J120+U120+AF120+AQ120+BB120+BM120+BX120+CI120+CT120+DE120+DP120+EA120)/ROUND(12/VLOOKUP($A120, Annualization!$A$3:$C$323,3,FALSE),0),0) -> 0 | EX120: =IFERROR((K120+V120+AG120+AR120+BC120+BN120+BY120+CJ120+CU120+DF120+DQ120+EB120)/ROUND(12/VLOOKUP($A120, Annualization!$A$3:$C$323,3,FALSE),0),0) -> 0 | EY120: =IFERROR((L120+W120+AH120+AS120+BD120+BO120+BZ120+CK120+CV120+DG120+DR120+EC120)/ROUND(12/VLOOKUP($A120, Annualization!$A$3:$C$323,3,FALSE),0),0) -> 0 | EZ120: =IFERROR((M120+X120+AI120+AT120+BE120+BP120+CA120+CL120+CW120+DH120+DS120+ED120)/ROUND(12/VLOOKUP($A120, Annualization!$A$3:$C$323,3,FALSE),0),0) -> 0
EE121: 0 | EF121: 0 | EG121: 0 | EH121: 0 | EI121: 0 | EJ121: 0 | EK121: 0 | EL121: 0 | EM121: 0 | EN121: 0 | EO121: 0 | EP121: =IFERROR((C121+N121+Y121+AJ121+AU121+BF121+BQ121+CB121+CM121+CX121+DI121+DT121)/ROUND(12/VLOOKUP($A121, Annualization!$A$3:$C$323,3,FALSE),0),0) -> 0 | EQ121: =IFERROR((D121+O121+Z121+AK121+AV121+BG121+BR121+CC121+CN121+CY121+DJ121+DU121)/ROUND(12/VLOOKUP($A121, Annualization!$A$3:$C$323,3,FALSE),0),0) -> 0 | ER121: =IFERROR((E121+P121+AA121+AL121+AW121+BH121+BS121+CD121+CO121+CZ121+DK121+DV121)/ROUND(12/VLOOKUP($A121, Annualization!$A$3:$C$323,3,FALSE),0),0) -> 0 | ES121: =IFERROR((F121+Q121+AB121+AM121+AX121+BI121+BT121+CE121+CP121+DA121+DL121+DW121)/ROUND(12/VLOOKUP($A121, Annualization!$A$3:$C$323,3,FALSE),0),0) -> 0 | ET121: =IFERROR((G121+R121+AC121+AN121+AY121+BJ121+BU121+CF121+CQ121+DB121+DM121+DX121)/ROUND(12/VLOOKUP($A121, Annualization!$A$3:$C$323,3,FALSE),0),0) -> 0 | EU121: =IFERROR((H121+S121+AD121+AO121+AZ121+BK121+BV121+CG121+CR121+DC121+DN121+DY121)/ROUND(12/VLOOKUP($A121, Annualization!$A$3:$C$323,3,FALSE),0),0) -> 0 | EV121: =IFERROR((I121+T121+AE121+AP121+BA121+BL121+BW121+CH121+CS121+DD121+DO121+DZ121)/ROUND(12/VLOOKUP($A121, Annualization!$A$3:$C$323,3,FALSE),0),0) -> 0 | EW121: =IFERROR((J121+U121+AF121+AQ121+BB121+BM121+BX121+CI121+CT121+DE121+DP121+EA121)/ROUND(12/VLOOKUP($A121, Annualization!$A$3:$C$323,3,FALSE),0),0) -> 0 | EX121: =IFERROR((K121+V121+AG121+AR121+BC121+BN121+BY121+CJ121+CU121+DF121+DQ121+EB121)/ROUND(12/VLOOKUP($A121, Annualization!$A$3:$C$323,3,FALSE),0),0) -> 0 | EY121: =IFERROR((L121+W121+AH121+AS121+BD121+BO121+BZ121+CK121+CV121+DG121+DR121+EC121)/ROUND(12/VLOOKUP($A121, Annualization!$A$3:$C$323,3,FALSE),0),0) -> 0 | EZ121: =IFERROR((M121+X121+AI121+AT121+BE121+BP121+CA121+CL121+CW121+DH121+DS121+ED121)/ROUND(12/VLOOKUP($A121, Annualization!$A$3:$C$323,3,FALSE),0),0) -> 0
EE122: 0 | EF122: 0 | EG122: 0 | EH122: 0 | EI122: 0 | EJ122: 0 | EK122: 0 | EL122: 0 | EM122: 0 | EN122: 0 | EO122: 0 | EP122: =IFERROR((C122+N122+Y122+AJ122+AU122+BF122+BQ122+CB122+CM122+CX122+DI122+DT122)/ROUND(12/VLOOKUP($A122, Annualization!$A$3:$C$323,3,FALSE),0),0) -> 0 | EQ122: =IFERROR((D122+O122+Z122+AK122+AV122+BG122+BR122+CC122+CN122+CY122+DJ122+DU122)/ROUND(12/VLOOKUP($A122, Annualization!$A$3:$C$323,3,FALSE),0),0) -> 0 | ER122: =IFERROR((E122+P122+AA122+AL122+AW122+BH122+BS122+CD122+CO122+CZ122+DK122+DV122)/ROUND(12/VLOOKUP($A122, Annualization!$A$3:$C$323,3,FALSE),0),0) -> 0 | ES122: =IFERROR((F122+Q122+AB122+AM122+AX122+BI122+BT122+CE122+CP122+DA122+DL122+DW122)/ROUND(12/VLOOKUP($A122, Annualization!$A$3:$C$323,3,FALSE),0),0) -> 0 | ET122: =IFERROR((G122+R122+AC122+AN122+AY122+BJ122+BU122+CF122+CQ122+DB122+DM122+DX122)/ROUND(12/VLOOKUP($A122, Annualization!$A$3:$C$323,3,FALSE),0),0) -> 0 | EU122: =IFERROR((H122+S122+AD122+AO122+AZ122+BK122+BV122+CG122+CR122+DC122+DN122+DY122)/ROUND(12/VLOOKUP($A122, Annualization!$A$3:$C$323,3,FALSE),0),0) -> 0 | EV122: =IFERROR((I122+T122+AE122+AP122+BA122+BL122+BW122+CH122+CS122+DD122+DO122+DZ122)/ROUND(12/VLOOKUP($A122, Annualization!$A$3:$C$323,3,FALSE),0),0) -> 0 | EW122: =IFERROR((J122+U122+AF122+AQ122+BB122+BM122+BX122+CI122+CT122+DE122+DP122+EA122)/ROUND(12/VLOOKUP($A122, Annualization!$A$3:$C$323,3,FALSE),0),0) -> 0 | EX122: =IFERROR((K122+V122+AG122+AR122+BC122+BN122+BY122+CJ122+CU122+DF122+DQ122+EB122)/ROUND(12/VLOOKUP($A122, Annualization!$A$3:$C$323,3,FALSE),0),0) -> 0 | EY122: =IFERROR((L122+W122+AH122+AS122+BD122+BO122+BZ122+CK122+CV122+DG122+DR122+EC122)/ROUND(12/VLOOKUP($A122, Annualization!$A$3:$C$323,3,FALSE),0),0) -> 0 | EZ122: =IFERROR((M122+X122+AI122+AT122+BE122+BP122+CA122+CL122+CW122+DH122+DS122+ED122)/ROUND(12/VLOOKUP($A122, Annualization!$A$3:$C$323,3,FALSE),0),0) -> 0
EE123: 0 | EF123: 0 | EG123: 0 | EH123: 0 | EI123: 0 | EJ123: 0 | EK123: 0 | EL123: 0 | EM123: 0 | EN123: 0 | EO123: 0 | EP123: =IFERROR((C123+N123+Y123+AJ123+AU123+BF123+BQ123+CB123+CM123+CX123+DI123+DT123)/ROUND(12/VLOOKUP($A123, Annualization!$A$3:$C$323,3,FALSE),0),0) -> 0 | EQ123: =IFERROR((D123+O123+Z123+AK123+AV123+BG123+BR123+CC123+CN123+CY123+DJ123+DU123)/ROUND(12/VLOOKUP($A123, Annualization!$A$3:$C$323,3,FALSE),0),0) -> 0 | ER123: =IFERROR((E123+P123+AA123+AL123+AW123+BH123+BS123+CD123+CO123+CZ123+DK123+DV123)/ROUND(12/VLOOKUP($A123, Annualization!$A$3:$C$323,3,FALSE),0),0) -> 0 | ES123: =IFERROR((F123+Q123+AB123+AM123+AX123+BI123+BT123+CE123+CP123+DA123+DL123+DW123)/ROUND(12/VLOOKUP($A123, Annualization!$A$3:$C$323,3,FALSE),0),0) -> 0 | ET123: =IFERROR((G123+R123+AC123+AN123+AY123+BJ123+BU123+CF123+CQ123+DB123+DM123+DX123)/ROUND(12/VLOOKUP($A123, Annualization!$A$3:$C$323,3,FALSE),0),0) -> 0 | EU123: =IFERROR((H123+S123+AD123+AO123+AZ123+BK123+BV123+CG123+CR123+DC123+DN123+DY123)/ROUND(12/VLOOKUP($A123, Annualization!$A$3:$C$323,3,FALSE),0),0) -> 0 | EV123: =IFERROR((I123+T123+AE123+AP123+BA123+BL123+BW123+CH123+CS123+DD123+DO123+DZ123)/ROUND(12/VLOOKUP($A123, Annualization!$A$3:$C$323,3,FALSE),0),0) -> 0 | EW123: =IFERROR((J123+U123+AF123+AQ123+BB123+BM123+BX123+CI123+CT123+DE123+DP123+EA123)/ROUND(12/VLOOKUP($A123, Annualization!$A$3:$C$323,3,FALSE),0),0) -> 0 | EX123: =IFERROR((K123+V123+AG123+AR123+BC123+BN123+BY123+CJ123+CU123+DF123+DQ123+EB123)/ROUND(12/VLOOKUP($A123, Annualization!$A$3:$C$323,3,FALSE),0),0) -> 0 | EY123: =IFERROR((L123+W123+AH123+AS123+BD123+BO123+BZ123+CK123+CV123+DG123+DR123+EC123)/ROUND(12/VLOOKUP($A123, Annualization!$A$3:$C$323,3,FALSE),0),0) -> 0 | EZ123: =IFERROR((M123+X123+AI123+AT123+BE123+BP123+CA123+CL123+CW123+DH123+DS123+ED123)/ROUND(12/VLOOKUP($A123, Annualization!$A$3:$C$323,3,FALSE),0),0) -> 0
EE124: 0 | EF124: 0 | EG124: 0 | EH124: 0 | EI124: 0 | EJ124: 0 | EK124: 0 | EL124: 0 | EM124: 0 | EN124: 0 | EO124: 0 | EP124: =IFERROR((C124+N124+Y124+AJ124+AU124+BF124+BQ124+CB124+CM124+CX124+DI124+DT124)/ROUND(12/VLOOKUP($A124, Annualization!$A$3:$C$323,3,FALSE),0),0) -> 0 | EQ124: =IFERROR((D124+O124+Z124+AK124+AV124+BG124+BR124+CC124+CN124+CY124+DJ124+DU124)/ROUND(12/VLOOKUP($A124, Annualization!$A$3:$C$323,3,FALSE),0),0) -> 0 | ER124: =IFERROR((E124+P124+AA124+AL124+AW124+BH124+BS124+CD124+CO124+CZ124+DK124+DV124)/ROUND(12/VLOOKUP($A124, Annualization!$A$3:$C$323,3,FALSE),0),0) -> 0 | ES124: =IFERROR((F124+Q124+AB124+AM124+AX124+BI124+BT124+CE124+CP124+DA124+DL124+DW124)/ROUND(12/VLOOKUP($A124, Annualization!$A$3:$C$323,3,FALSE),0),0) -> 0 | ET124: =IFERROR((G124+R124+AC124+AN124+AY124+BJ124+BU124+CF124+CQ124+DB124+DM124+DX124)/ROUND(12/VLOOKUP($A124, Annualization!$A$3:$C$323,3,FALSE),0),0) -> 0 | EU124: =IFERROR((H124+S124+AD124+AO124+AZ124+BK124+BV124+CG124+CR124+DC124+DN124+DY124)/ROUND(12/VLOOKUP($A124, Annualization!$A$3:$C$323,3,FALSE),0),0) -> 0 | EV124: =IFERROR((I124+T124+AE124+AP124+BA124+BL124+BW124+CH124+CS124+DD124+DO124+DZ124)/ROUND(12/VLOOKUP($A124, Annualization!$A$3:$C$323,3,FALSE),0),0) -> 0 | EW124: =IFERROR((J124+U124+AF124+AQ124+BB124+BM124+BX124+CI124+CT124+DE124+DP124+EA124)/ROUND(12/VLOOKUP($A124, Annualization!$A$3:$C$323,3,FALSE),0),0) -> 0 | EX124: =IFERROR((K124+V124+AG124+AR124+BC124+BN124+BY124+CJ124+CU124+DF124+DQ124+EB124)/ROUND(12/VLOOKUP($A124, Annualization!$A$3:$C$323,3,FALSE),0),0) -> 0 | EY124: =IFERROR((L124+W124+AH124+AS124+BD124+BO124+BZ124+CK124+CV124+DG124+DR124+EC124)/ROUND(12/VLOOKUP($A124, Annualization!$A$3:$C$323,3,FALSE),0),0) -> 0 | EZ124: =IFERROR((M124+X124+AI124+AT124+BE124+BP124+CA124+CL124+CW124+DH124+DS124+ED124)/ROUND(12/VLOOKUP($A124, Annualization!$A$3:$C$323,3,FALSE),0),0) -> 0
EE125: 0 | EF125: 0 | EG125: 0 | EH125: 0 | EI125: 0 | EJ125: 0 | EK125: 0 | EL125: 0 | EM125: 0 | EN125: 0 | EO125: 0 | EP125: =IFERROR((C125+N125+Y125+AJ125+AU125+BF125+BQ125+CB125+CM125+CX125+DI125+DT125)/ROUND(12/VLOOKUP($A125, Annualization!$A$3:$C$323,3,FALSE),0),0) -> 0 | EQ125: =IFERROR((D125+O125+Z125+AK125+AV125+BG125+BR125+CC125+CN125+CY125+DJ125+DU125)/ROUND(12/VLOOKUP($A125, Annualization!$A$3:$C$323,3,FALSE),0),0) -> 0 | ER125: =IFERROR((E125+P125+AA125+AL125+AW125+BH125+BS125+CD125+CO125+CZ125+DK125+DV125)/ROUND(12/VLOOKUP($A125, Annualization!$A$3:$C$323,3,FALSE),0),0) -> 0 | ES125: =IFERROR((F125+Q125+AB125+AM125+AX125+BI125+BT125+CE125+CP125+DA125+DL125+DW125)/ROUND(12/VLOOKUP($A125, Annualization!$A$3:$C$323,3,FALSE),0),0) -> 0 | ET125: =IFERROR((G125+R125+AC125+AN125+AY125+BJ125+BU125+CF125+CQ125+DB125+DM125+DX125)/ROUND(12/VLOOKUP($A125, Annualization!$A$3:$C$323,3,FALSE),0),0) -> 0 | EU125: =IFERROR((H125+S125+AD125+AO125+AZ125+BK125+BV125+CG125+CR125+DC125+DN125+DY125)/ROUND(12/VLOOKUP($A125, Annualization!$A$3:$C$323,3,FALSE),0),0) -> 0 | EV125: =IFERROR((I125+T125+AE125+AP125+BA125+BL125+BW125+CH125+CS125+DD125+DO125+DZ125)/ROUND(12/VLOOKUP($A125, Annualization!$A$3:$C$323,3,FALSE),0),0) -> 0 | EW125: =IFERROR((J125+U125+AF125+AQ125+BB125+BM125+BX125+CI125+CT125+DE125+DP125+EA125)/ROUND(12/VLOOKUP($A125, Annualization!$A$3:$C$323,3,FALSE),0),0) -> 0 | EX125: =IFERROR((K125+V125+AG125+AR125+BC125+BN125+BY125+CJ125+CU125+DF125+DQ125+EB125)/ROUND(12/VLOOKUP($A125, Annualization!$A$3:$C$323,3,FALSE),0),0) -> 0 | EY125: =IFERROR((L125+W125+AH125+AS125+BD125+BO125+BZ125+CK125+CV125+DG125+DR125+EC125)/ROUND(12/VLOOKUP($A125, Annualization!$A$3:$C$323,3,FALSE),0),0) -> 0 | EZ125: =IFERROR((M125+X125+AI125+AT125+BE125+BP125+CA125+CL125+CW125+DH125+DS125+ED125)/ROUND(12/VLOOKUP($A125, Annualization!$A$3:$C$323,3,FALSE),0),0) -> 0
EE126: 0 | EF126: 0 | EG126: 0 | EH126: 0 | EI126: 0 | EJ126: 0 | EK126: 0 | EL126: 0 | EM126: 0 | EN126: 0 | EO126: 0 | EP126: =IFERROR((C126+N126+Y126+AJ126+AU126+BF126+BQ126+CB126+CM126+CX126+DI126+DT126)/ROUND(12/VLOOKUP($A126, Annualization!$A$3:$C$323,3,FALSE),0),0) -> 0 | EQ126: =IFERROR((D126+O126+Z126+AK126+AV126+BG126+BR126+CC126+CN126+CY126+DJ126+DU126)/ROUND(12/VLOOKUP($A126, Annualization!$A$3:$C$323,3,FALSE),0),0) -> 0 | ER126: =IFERROR((E126+P126+AA126+AL126+AW126+BH126+BS126+CD126+CO126+CZ126+DK126+DV126)/ROUND(12/VLOOKUP($A126, Annualization!$A$3:$C$323,3,FALSE),0),0) -> 0 | ES126: =IFERROR((F126+Q126+AB126+AM126+AX126+BI126+BT126+CE126+CP126+DA126+DL126+DW126)/ROUND(12/VLOOKUP($A126, Annualization!$A$3:$C$323,3,FALSE),0),0) -> 0 | ET126: =IFERROR((G126+R126+AC126+AN126+AY126+BJ126+BU126+CF126+CQ126+DB126+DM126+DX126)/ROUND(12/VLOOKUP($A126, Annualization!$A$3:$C$323,3,FALSE),0),0) -> 0 | EU126: =IFERROR((H126+S126+AD126+AO126+AZ126+BK126+BV126+CG126+CR126+DC126+DN126+DY126)/ROUND(12/VLOOKUP($A126, Annualization!$A$3:$C$323,3,FALSE),0),0) -> 0 | EV126: =IFERROR((I126+T126+AE126+AP126+BA126+BL126+BW126+CH126+CS126+DD126+DO126+DZ126)/ROUND(12/VLOOKUP($A126, Annualization!$A$3:$C$323,3,FALSE),0),0) -> 0 | EW126: =IFERROR((J126+U126+AF126+AQ126+BB126+BM126+BX126+CI126+CT126+DE126+DP126+EA126)/ROUND(12/VLOOKUP($A126, Annualization!$A$3:$C$323,3,FALSE),0),0) -> 0 | EX126: =IFERROR((K126+V126+AG126+AR126+BC126+BN126+BY126+CJ126+CU126+DF126+DQ126+EB126)/ROUND(12/VLOOKUP($A126, Annualization!$A$3:$C$323,3,FALSE),0),0) -> 0 | EY126: =IFERROR((L126+W126+AH126+AS126+BD126+BO126+BZ126+CK126+CV126+DG126+DR126+EC126)/ROUND(12/VLOOKUP($A126, Annualization!$A$3:$C$323,3,FALSE),0),0) -> 0 | EZ126: =IFERROR((M126+X126+AI126+AT126+BE126+BP126+CA126+CL126+CW126+DH126+DS126+ED126)/ROUND(12/VLOOKUP($A126, Annualization!$A$3:$C$323,3,FALSE),0),0) -> 0
EE127: 0 | EF127: 0 | EG127: 0 | EH127: 0 | EI127: 0 | EJ127: 0 | EK127: 0 | EL127: 0 | EM127: 0 | EN127: 0 | EO127: 0 | EP127: =IFERROR((C127+N127+Y127+AJ127+AU127+BF127+BQ127+CB127+CM127+CX127+DI127+DT127)/ROUND(12/VLOOKUP($A127, Annualization!$A$3:$C$323,3,FALSE),0),0) -> 0 | EQ127: =IFERROR((D127+O127+Z127+AK127+AV127+BG127+BR127+CC127+CN127+CY127+DJ127+DU127)/ROUND(12/VLOOKUP($A127, Annualization!$A$3:$C$323,3,FALSE),0),0) -> 0 | ER127: =IFERROR((E127+P127+AA127+AL127+AW127+BH127+BS127+CD127+CO127+CZ127+DK127+DV127)/ROUND(12/VLOOKUP($A127, Annualization!$A$3:$C$323,3,FALSE),0),0) -> 0 | ES127: =IFERROR((F127+Q127+AB127+AM127+AX127+BI127+BT127+CE127+CP127+DA127+DL127+DW127)/ROUND(12/VLOOKUP($A127, Annualization!$A$3:$C$323,3,FALSE),0),0) -> 0 | ET127: =IFERROR((G127+R127+AC127+AN127+AY127+BJ127+BU127+CF127+CQ127+DB127+DM127+DX127)/ROUND(12/VLOOKUP($A127, Annualization!$A$3:$C$323,3,FALSE),0),0) -> 0 | EU127: =IFERROR((H127+S127+AD127+AO127+AZ127+BK127+BV127+CG127+CR127+DC127+DN127+DY127)/ROUND(12/VLOOKUP($A127, Annualization!$A$3:$C$323,3,FALSE),0),0) -> 0 | EV127: =IFERROR((I127+T127+AE127+AP127+BA127+BL127+BW127+CH127+CS127+DD127+DO127+DZ127)/ROUND(12/VLOOKUP($A127, Annualization!$A$3:$C$323,3,FALSE),0),0) -> 0 | EW127: =IFERROR((J127+U127+AF127+AQ127+BB127+BM127+BX127+CI127+CT127+DE127+DP127+EA127)/ROUND(12/VLOOKUP($A127, Annualization!$A$3:$C$323,3,FALSE),0),0) -> 0 | EX127: =IFERROR((K127+V127+AG127+AR127+BC127+BN127+BY127+CJ127+CU127+DF127+DQ127+EB127)/ROUND(12/VLOOKUP($A127, Annualization!$A$3:$C$323,3,FALSE),0),0) -> 0 | EY127: =IFERROR((L127+W127+AH127+AS127+BD127+BO127+BZ127+CK127+CV127+DG127+DR127+EC127)/ROUND(12/VLOOKUP($A127, Annualization!$A$3:$C$323,3,FALSE),0),0) -> 0 | EZ127: =IFERROR((M127+X127+AI127+AT127+BE127+BP127+CA127+CL127+CW127+DH127+DS127+ED127)/ROUND(12/VLOOKUP($A127, Annualization!$A$3:$C$323,3,FALSE),0),0) -> 0
EE128: 0 | EF128: 0 | EG128: 0 | EH128: 0 | EI128: 0 | EJ128: 0 | EK128: 0 | EL128: 0 | EM128: 0 | EN128: 0 | EO128: 0 | EP128: =IFERROR((C128+N128+Y128+AJ128+AU128+BF128+BQ128+CB128+CM128+CX128+DI128+DT128)/ROUND(12/VLOOKUP($A128, Annualization!$A$3:$C$323,3,FALSE),0),0) -> 0 | EQ128: =IFERROR((D128+O128+Z128+AK128+AV128+BG128+BR128+CC128+CN128+CY128+DJ128+DU128)/ROUND(12/VLOOKUP($A128, Annualization!$A$3:$C$323,3,FALSE),0),0) -> 0 | ER128: =IFERROR((E128+P128+AA128+AL128+AW128+BH128+BS128+CD128+CO128+CZ128+DK128+DV128)/ROUND(12/VLOOKUP($A128, Annualization!$A$3:$C$323,3,FALSE),0),0) -> 0 | ES128: =IFERROR((F128+Q128+AB128+AM128+AX128+BI128+BT128+CE128+CP128+DA128+DL128+DW128)/ROUND(12/VLOOKUP($A128, Annualization!$A$3:$C$323,3,FALSE),0),0) -> 0 | ET128: =IFERROR((G128+R128+AC128+AN128+AY128+BJ128+BU128+CF128+CQ128+DB128+DM128+DX128)/ROUND(12/VLOOKUP($A128, Annualization!$A$3:$C$323,3,FALSE),0),0) -> 0 | EU128: =IFERROR((H128+S128+AD128+AO128+AZ128+BK128+BV128+CG128+CR128+DC128+DN128+DY128)/ROUND(12/VLOOKUP($A128, Annualization!$A$3:$C$323,3,FALSE),0),0) -> 0 | EV128: =IFERROR((I128+T128+AE128+AP128+BA128+BL128+BW128+CH128+CS128+DD128+DO128+DZ128)/ROUND(12/VLOOKUP($A128, Annualization!$A$3:$C$323,3,FALSE),0),0) -> 0 | EW128: =IFERROR((J128+U128+AF128+AQ128+BB128+BM128+BX128+CI128+CT128+DE128+DP128+EA128)/ROUND(12/VLOOKUP($A128, Annualization!$A$3:$C$323,3,FALSE),0),0) -> 0 | EX128: =IFERROR((K128+V128+AG128+AR128+BC128+BN128+BY128+CJ128+CU128+DF128+DQ128+EB128)/ROUND(12/VLOOKUP($A128, Annualization!$A$3:$C$323,3,FALSE),0),0) -> 0 | EY128: =IFERROR((L128+W128+AH128+AS128+BD128+BO128+BZ128+CK128+CV128+DG128+DR128+EC128)/ROUND(12/VLOOKUP($A128, Annualization!$A$3:$C$323,3,FALSE),0),0) -> 0 | EZ128: =IFERROR((M128+X128+AI128+AT128+BE128+BP128+CA128+CL128+CW128+DH128+DS128+ED128)/ROUND(12/VLOOKUP($A128, Annualization!$A$3:$C$323,3,FALSE),0),0) -> 0
EE129: 0 | EF129: 0 | EG129: 0 | EH129: 0 | EI129: 0 | EJ129: 0 | EK129: 0 | EL129: 0 | EM129: 0 | EN129: 0 | EO129: 0 | EP129: =IFERROR((C129+N129+Y129+AJ129+AU129+BF129+BQ129+CB129+CM129+CX129+DI129+DT129)/ROUND(12/VLOOKUP($A129, Annualization!$A$3:$C$323,3,FALSE),0),0) -> 0 | EQ129: =IFERROR((D129+O129+Z129+AK129+AV129+BG129+BR129+CC129+CN129+CY129+DJ129+DU129)/ROUND(12/VLOOKUP($A129, Annualization!$A$3:$C$323,3,FALSE),0),0) -> 0 | ER129: =IFERROR((E129+P129+AA129+AL129+AW129+BH129+BS129+CD129+CO129+CZ129+DK129+DV129)/ROUND(12/VLOOKUP($A129, Annualization!$A$3:$C$323,3,FALSE),0),0) -> 0 | ES129: =IFERROR((F129+Q129+AB129+AM129+AX129+BI129+BT129+CE129+CP129+DA129+DL129+DW129)/ROUND(12/VLOOKUP($A129, Annualization!$A$3:$C$323,3,FALSE),0),0) -> 0 | ET129: =IFERROR((G129+R129+AC129+AN129+AY129+BJ129+BU129+CF129+CQ129+DB129+DM129+DX129)/ROUND(12/VLOOKUP($A129, Annualization!$A$3:$C$323,3,FALSE),0),0) -> 0 | EU129: =IFERROR((H129+S129+AD129+AO129+AZ129+BK129+BV129+CG129+CR129+DC129+DN129+DY129)/ROUND(12/VLOOKUP($A129, Annualization!$A$3:$C$323,3,FALSE),0),0) -> 0 | EV129: =IFERROR((I129+T129+AE129+AP129+BA129+BL129+BW129+CH129+CS129+DD129+DO129+DZ129)/ROUND(12/VLOOKUP($A129, Annualization!$A$3:$C$323,3,FALSE),0),0) -> 0 | EW129: =IFERROR((J129+U129+AF129+AQ129+BB129+BM129+BX129+CI129+CT129+DE129+DP129+EA129)/ROUND(12/VLOOKUP($A129, Annualization!$A$3:$C$323,3,FALSE),0),0) -> 0 | EX129: =IFERROR((K129+V129+AG129+AR129+BC129+BN129+BY129+CJ129+CU129+DF129+DQ129+EB129)/ROUND(12/VLOOKUP($A129, Annualization!$A$3:$C$323,3,FALSE),0),0) -> 0 | EY129: =IFERROR((L129+W129+AH129+AS129+BD129+BO129+BZ129+CK129+CV129+DG129+DR129+EC129)/ROUND(12/VLOOKUP($A129, Annualization!$A$3:$C$323,3,FALSE),0),0) -> 0 | EZ129: =IFERROR((M129+X129+AI129+AT129+BE129+BP129+CA129+CL129+CW129+DH129+DS129+ED129)/ROUND(12/VLOOKUP($A129, Annualization!$A$3:$C$323,3,FALSE),0),0) -> 0
EE130: 0 | EF130: 0 | EG130: 0 | EH130: 0 | EI130: 0 | EJ130: 0 | EK130: 0 | EL130: 0 | EM130: 0 | EN130: 0 | EO130: 0 | EP130: =IFERROR((C130+N130+Y130+AJ130+AU130+BF130+BQ130+CB130+CM130+CX130+DI130+DT130)/ROUND(12/VLOOKUP($A130, Annualization!$A$3:$C$323,3,FALSE),0),0) -> 0 | EQ130: =IFERROR((D130+O130+Z130+AK130+AV130+BG130+BR130+CC130+CN130+CY130+DJ130+DU130)/ROUND(12/VLOOKUP($A130, Annualization!$A$3:$C$323,3,FALSE),0),0) -> 0 | ER130: =IFERROR((E130+P130+AA130+AL130+AW130+BH130+BS130+CD130+CO130+CZ130+DK130+DV130)/ROUND(12/VLOOKUP($A130, Annualization!$A$3:$C$323,3,FALSE),0),0) -> 0 | ES130: =IFERROR((F130+Q130+AB130+AM130+AX130+BI130+BT130+CE130+CP130+DA130+DL130+DW130)/ROUND(12/VLOOKUP($A130, Annualization!$A$3:$C$323,3,FALSE),0),0) -> 0 | ET130: =IFERROR((G130+R130+AC130+AN130+AY130+BJ130+BU130+CF130+CQ130+DB130+DM130+DX130)/ROUND(12/VLOOKUP($A130, Annualization!$A$3:$C$323,3,FALSE),0),0) -> 0 | EU130: =IFERROR((H130+S130+AD130+AO130+AZ130+BK130+BV130+CG130+CR130+DC130+DN130+DY130)/ROUND(12/VLOOKUP($A130, Annualization!$A$3:$C$323,3,FALSE),0),0) -> 0 | EV130: =IFERROR((I130+T130+AE130+AP130+BA130+BL130+BW130+CH130+CS130+DD130+DO130+DZ130)/ROUND(12/VLOOKUP($A130, Annualization!$A$3:$C$323,3,FALSE),0),0) -> 0 | EW130: =IFERROR((J130+U130+AF130+AQ130+BB130+BM130+BX130+CI130+CT130+DE130+DP130+EA130)/ROUND(12/VLOOKUP($A130, Annualization!$A$3:$C$323,3,FALSE),0),0) -> 0 | EX130: =IFERROR((K130+V130+AG130+AR130+BC130+BN130+BY130+CJ130+CU130+DF130+DQ130+EB130)/ROUND(12/VLOOKUP($A130, Annualization!$A$3:$C$323,3,FALSE),0),0) -> 0 | EY130: =IFERROR((L130+W130+AH130+AS130+BD130+BO130+BZ130+CK130+CV130+DG130+DR130+EC130)/ROUND(12/VLOOKUP($A130, Annualization!$A$3:$C$323,3,FALSE),0),0) -> 0 | EZ130: =IFERROR((M130+X130+AI130+AT130+BE130+BP130+CA130+CL130+CW130+DH130+DS130+ED130)/ROUND(12/VLOOKUP($A130, Annualization!$A$3:$C$323,3,FALSE),0),0) -> 0
EE131: 0 | EF131: 0 | EG131: 0 | EH131: 0 | EI131: 0 | EJ131: 0 | EK131: 0 | EL131: 0 | EM131: 0 | EN131: 0 | EO131: 0 | EP131: =IFERROR((C131+N131+Y131+AJ131+AU131+BF131+BQ131+CB131+CM131+CX131+DI131+DT131)/ROUND(12/VLOOKUP($A131, Annualization!$A$3:$C$323,3,FALSE),0),0) -> 0 | EQ131: =IFERROR((D131+O131+Z131+AK131+AV131+BG131+BR131+CC131+CN131+CY131+DJ131+DU131)/ROUND(12/VLOOKUP($A131, Annualization!$A$3:$C$323,3,FALSE),0),0) -> 0 | ER131: =IFERROR((E131+P131+AA131+AL131+AW131+BH131+BS131+CD131+CO131+CZ131+DK131+DV131)/ROUND(12/VLOOKUP($A131, Annualization!$A$3:$C$323,3,FALSE),0),0) -> 0 | ES131: =IFERROR((F131+Q131+AB131+AM131+AX131+BI131+BT131+CE131+CP131+DA131+DL131+DW131)/ROUND(12/VLOOKUP($A131, Annualization!$A$3:$C$323,3,FALSE),0),0) -> 0 | ET131: =IFERROR((G131+R131+AC131+AN131+AY131+BJ131+BU131+CF131+CQ131+DB131+DM131+DX131)/ROUND(12/VLOOKUP($A131, Annualization!$A$3:$C$323,3,FALSE),0),0) -> 0 | EU131: =IFERROR((H131+S131+AD131+AO131+AZ131+BK131+BV131+CG131+CR131+DC131+DN131+DY131)/ROUND(12/VLOOKUP($A131, Annualization!$A$3:$C$323,3,FALSE),0),0) -> 0 | EV131: =IFERROR((I131+T131+AE131+AP131+BA131+BL131+BW131+CH131+CS131+DD131+DO131+DZ131)/ROUND(12/VLOOKUP($A131, Annualization!$A$3:$C$323,3,FALSE),0),0) -> 0 | EW131: =IFERROR((J131+U131+AF131+AQ131+BB131+BM131+BX131+CI131+CT131+DE131+DP131+EA131)/ROUND(12/VLOOKUP($A131, Annualization!$A$3:$C$323,3,FALSE),0),0) -> 0 | EX131: =IFERROR((K131+V131+AG131+AR131+BC131+BN131+BY131+CJ131+CU131+DF131+DQ131+EB131)/ROUND(12/VLOOKUP($A131, Annualization!$A$3:$C$323,3,FALSE),0),0) -> 0 | EY131: =IFERROR((L131+W131+AH131+AS131+BD131+BO131+BZ131+CK131+CV131+DG131+DR131+EC131)/ROUND(12/VLOOKUP($A131, Annualization!$A$3:$C$323,3,FALSE),0),0) -> 0 | EZ131: =IFERROR((M131+X131+AI131+AT131+BE131+BP131+CA131+CL131+CW131+DH131+DS131+ED131)/ROUND(12/VLOOKUP($A131, Annualization!$A$3:$C$323,3,FALSE),0),0) -> 0
EE132: 0 | EF132: 0 | EG132: 0 | EH132: 0 | EI132: 0 | EJ132: 0 | EK132: 0 | EL132: 0 | EM132: 0 | EN132: 0 | EO132: 0 | EP132: =IFERROR((C132+N132+Y132+AJ132+AU132+BF132+BQ132+CB132+CM132+CX132+DI132+DT132)/ROUND(12/VLOOKUP($A132, Annualization!$A$3:$C$323,3,FALSE),0),0) -> 0 | EQ132: =IFERROR((D132+O132+Z132+AK132+AV132+BG132+BR132+CC132+CN132+CY132+DJ132+DU132)/ROUND(12/VLOOKUP($A132, Annualization!$A$3:$C$323,3,FALSE),0),0) -> 0 | ER132: =IFERROR((E132+P132+AA132+AL132+AW132+BH132+BS132+CD132+CO132+CZ132+DK132+DV132)/ROUND(12/VLOOKUP($A132, Annualization!$A$3:$C$323,3,FALSE),0),0) -> 0 | ES132: =IFERROR((F132+Q132+AB132+AM132+AX132+BI132+BT132+CE132+CP132+DA132+DL132+DW132)/ROUND(12/VLOOKUP($A132, Annualization!$A$3:$C$323,3,FALSE),0),0) -> 0 | ET132: =IFERROR((G132+R132+AC132+AN132+AY132+BJ132+BU132+CF132+CQ132+DB132+DM132+DX132)/ROUND(12/VLOOKUP($A132, Annualization!$A$3:$C$323,3,FALSE),0),0) -> 0 | EU132: =IFERROR((H132+S132+AD132+AO132+AZ132+BK132+BV132+CG132+CR132+DC132+DN132+DY132)/ROUND(12/VLOOKUP($A132, Annualization!$A$3:$C$323,3,FALSE),0),0) -> 0 | EV132: =IFERROR((I132+T132+AE132+AP132+BA132+BL132+BW132+CH132+CS132+DD132+DO132+DZ132)/ROUND(12/VLOOKUP($A132, Annualization!$A$3:$C$323,3,FALSE),0),0) -> 0 | EW132: =IFERROR((J132+U132+AF132+AQ132+BB132+BM132+BX132+CI132+CT132+DE132+DP132+EA132)/ROUND(12/VLOOKUP($A132, Annualization!$A$3:$C$323,3,FALSE),0),0) -> 0 | EX132: =IFERROR((K132+V132+AG132+AR132+BC132+BN132+BY132+CJ132+CU132+DF132+DQ132+EB132)/ROUND(12/VLOOKUP($A132, Annualization!$A$3:$C$323,3,FALSE),0),0) -> 0 | EY132: =IFERROR((L132+W132+AH132+AS132+BD132+BO132+BZ132+CK132+CV132+DG132+DR132+EC132)/ROUND(12/VLOOKUP($A132, Annualization!$A$3:$C$323,3,FALSE),0),0) -> 0 | EZ132: =IFERROR((M132+X132+AI132+AT132+BE132+BP132+CA132+CL132+CW132+DH132+DS132+ED132)/ROUND(12/VLOOKUP($A132, Annualization!$A$3:$C$323,3,FALSE),0),0) -> 0
EE133: 0 | EF133: 0 | EG133: 0 | EH133: 0 | EI133: 0 | EJ133: 0 | EK133: 0 | EL133: 0 | EM133: 0 | EN133: 0 | EO133: 0 | EP133: =IFERROR((C133+N133+Y133+AJ133+AU133+BF133+BQ133+CB133+CM133+CX133+DI133+DT133)/ROUND(12/VLOOKUP($A133, Annualization!$A$3:$C$323,3,FALSE),0),0) -> 0 | EQ133: =IFERROR((D133+O133+Z133+AK133+AV133+BG133+BR133+CC133+CN133+CY133+DJ133+DU133)/ROUND(12/VLOOKUP($A133, Annualization!$A$3:$C$323,3,FALSE),0),0) -> 0 | ER133: =IFERROR((E133+P133+AA133+AL133+AW133+BH133+BS133+CD133+CO133+CZ133+DK133+DV133)/ROUND(12/VLOOKUP($A133, Annualization!$A$3:$C$323,3,FALSE),0),0) -> 0 | ES133: =IFERROR((F133+Q133+AB133+AM133+AX133+BI133+BT133+CE133+CP133+DA133+DL133+DW133)/ROUND(12/VLOOKUP($A133, Annualization!$A$3:$C$323,3,FALSE),0),0) -> 0 | ET133: =IFERROR((G133+R133+AC133+AN133+AY133+BJ133+BU133+CF133+CQ133+DB133+DM133+DX133)/ROUND(12/VLOOKUP($A133, Annualization!$A$3:$C$323,3,FALSE),0),0) -> 0 | EU133: =IFERROR((H133+S133+AD133+AO133+AZ133+BK133+BV133+CG133+CR133+DC133+DN133+DY133)/ROUND(12/VLOOKUP($A133, Annualization!$A$3:$C$323,3,FALSE),0),0) -> 0 | EV133: =IFERROR((I133+T133+AE133+AP133+BA133+BL133+BW133+CH133+CS133+DD133+DO133+DZ133)/ROUND(12/VLOOKUP($A133, Annualization!$A$3:$C$323,3,FALSE),0),0) -> 0 | EW133: =IFERROR((J133+U133+AF133+AQ133+BB133+BM133+BX133+CI133+CT133+DE133+DP133+EA133)/ROUND(12/VLOOKUP($A133, Annualization!$A$3:$C$323,3,FALSE),0),0) -> 0 | EX133: =IFERROR((K133+V133+AG133+AR133+BC133+BN133+BY133+CJ133+CU133+DF133+DQ133+EB133)/ROUND(12/VLOOKUP($A133, Annualization!$A$3:$C$323,3,FALSE),0),0) -> 0 | EY133: =IFERROR((L133+W133+AH133+AS133+BD133+BO133+BZ133+CK133+CV133+DG133+DR133+EC133)/ROUND(12/VLOOKUP($A133, Annualization!$A$3:$C$323,3,FALSE),0),0) -> 0 | EZ133: =IFERROR((M133+X133+AI133+AT133+BE133+BP133+CA133+CL133+CW133+DH133+DS133+ED133)/ROUND(12/VLOOKUP($A133, Annualization!$A$3:$C$323,3,FALSE),0),0) -> 0
EE134: 0 | EF134: 0 | EG134: 0 | EH134: 0 | EI134: 0 | EJ134: 0 | EK134: 0 | EL134: 0 | EM134: 0 | EN134: 0 | EO134: 0 | EP134: =IFERROR((C134+N134+Y134+AJ134+AU134+BF134+BQ134+CB134+CM134+CX134+DI134+DT134)/ROUND(12/VLOOKUP($A134, Annualization!$A$3:$C$323,3,FALSE),0),0) -> 0 | EQ134: =IFERROR((D134+O134+Z134+AK134+AV134+BG134+BR134+CC134+CN134+CY134+DJ134+DU134)/ROUND(12/VLOOKUP($A134, Annualization!$A$3:$C$323,3,FALSE),0),0) -> 0 | ER134: =IFERROR((E134+P134+AA134+AL134+AW134+BH134+BS134+CD134+CO134+CZ134+DK134+DV134)/ROUND(12/VLOOKUP($A134, Annualization!$A$3:$C$323,3,FALSE),0),0) -> 0 | ES134: =IFERROR((F134+Q134+AB134+AM134+AX134+BI134+BT134+CE134+CP134+DA134+DL134+DW134)/ROUND(12/VLOOKUP($A134, Annualization!$A$3:$C$323,3,FALSE),0),0) -> 0 | ET134: =IFERROR((G134+R134+AC134+AN134+AY134+BJ134+BU134+CF134+CQ134+DB134+DM134+DX134)/ROUND(12/VLOOKUP($A134, Annualization!$A$3:$C$323,3,FALSE),0),0) -> 0 | EU134: =IFERROR((H134+S134+AD134+AO134+AZ134+BK134+BV134+CG134+CR134+DC134+DN134+DY134)/ROUND(12/VLOOKUP($A134, Annualization!$A$3:$C$323,3,FALSE),0),0) -> 0 | EV134: =IFERROR((I134+T134+AE134+AP134+BA134+BL134+BW134+CH134+CS134+DD134+DO134+DZ134)/ROUND(12/VLOOKUP($A134, Annualization!$A$3:$C$323,3,FALSE),0),0) -> 0 | EW134: =IFERROR((J134+U134+AF134+AQ134+BB134+BM134+BX134+CI134+CT134+DE134+DP134+EA134)/ROUND(12/VLOOKUP($A134, Annualization!$A$3:$C$323,3,FALSE),0),0) -> 0 | EX134: =IFERROR((K134+V134+AG134+AR134+BC134+BN134+BY134+CJ134+CU134+DF134+DQ134+EB134)/ROUND(12/VLOOKUP($A134, Annualization!$A$3:$C$323,3,FALSE),0),0) -> 0 | EY134: =IFERROR((L134+W134+AH134+AS134+BD134+BO134+BZ134+CK134+CV134+DG134+DR134+EC134)/ROUND(12/VLOOKUP($A134, Annualization!$A$3:$C$323,3,FALSE),0),0) -> 0 | EZ134: =IFERROR((M134+X134+AI134+AT134+BE134+BP134+CA134+CL134+CW134+DH134+DS134+ED134)/ROUND(12/VLOOKUP($A134, Annualization!$A$3:$C$323,3,FALSE),0),0) -> 0
EE135: 0 | EF135: 0 | EG135: 0 | EH135: 0 | EI135: 0 | EJ135: 0 | EK135: 0 | EL135: 0 | EM135: 0 | EN135: 0 | EO135: 0 | EP135: =IFERROR((C135+N135+Y135+AJ135+AU135+BF135+BQ135+CB135+CM135+CX135+DI135+DT135)/ROUND(12/VLOOKUP($A135, Annualization!$A$3:$C$323,3,FALSE),0),0) -> 0 | EQ135: =IFERROR((D135+O135+Z135+AK135+AV135+BG135+BR135+CC135+CN135+CY135+DJ135+DU135)/ROUND(12/VLOOKUP($A135, Annualization!$A$3:$C$323,3,FALSE),0),0) -> 0 | ER135: =IFERROR((E135+P135+AA135+AL135+AW135+BH135+BS135+CD135+CO135+CZ135+DK135+DV135)/ROUND(12/VLOOKUP($A135, Annualization!$A$3:$C$323,3,FALSE),0),0) -> 0 | ES135: =IFERROR((F135+Q135+AB135+AM135+AX135+BI135+BT135+CE135+CP135+DA135+DL135+DW135)/ROUND(12/VLOOKUP($A135, Annualization!$A$3:$C$323,3,FALSE),0),0) -> 0 | ET135: =IFERROR((G135+R135+AC135+AN135+AY135+BJ135+BU135+CF135+CQ135+DB135+DM135+DX135)/ROUND(12/VLOOKUP($A135, Annualization!$A$3:$C$323,3,FALSE),0),0) -> 0 | EU135: =IFERROR((H135+S135+AD135+AO135+AZ135+BK135+BV135+CG135+CR135+DC135+DN135+DY135)/ROUND(12/VLOOKUP($A135, Annualization!$A$3:$C$323,3,FALSE),0),0) -> 0 | EV135: =IFERROR((I135+T135+AE135+AP135+BA135+BL135+BW135+CH135+CS135+DD135+DO135+DZ135)/ROUND(12/VLOOKUP($A135, Annualization!$A$3:$C$323,3,FALSE),0),0) -> 0 | EW135: =IFERROR((J135+U135+AF135+AQ135+BB135+BM135+BX135+CI135+CT135+DE135+DP135+EA135)/ROUND(12/VLOOKUP($A135, Annualization!$A$3:$C$323,3,FALSE),0),0) -> 0 | EX135: =IFERROR((K135+V135+AG135+AR135+BC135+BN135+BY135+CJ135+CU135+DF135+DQ135+EB135)/ROUND(12/VLOOKUP($A135, Annualization!$A$3:$C$323,3,FALSE),0),0) -> 0 | EY135: =IFERROR((L135+W135+AH135+AS135+BD135+BO135+BZ135+CK135+CV135+DG135+DR135+EC135)/ROUND(12/VLOOKUP($A135, Annualization!$A$3:$C$323,3,FALSE),0),0) -> 0 | EZ135: =IFERROR((M135+X135+AI135+AT135+BE135+BP135+CA135+CL135+CW135+DH135+DS135+ED135)/ROUND(12/VLOOKUP($A135, Annualization!$A$3:$C$323,3,FALSE),0),0) -> 0
EE136: 0 | EF136: 0 | EG136: 0 | EH136: 0 | EI136: 0 | EJ136: 0 | EK136: 0 | EL136: 0 | EM136: 0 | EN136: 0 | EO136: 0 | EP136: =IFERROR((C136+N136+Y136+AJ136+AU136+BF136+BQ136+CB136+CM136+CX136+DI136+DT136)/ROUND(12/VLOOKUP($A136, Annualization!$A$3:$C$323,3,FALSE),0),0) -> 0 | EQ136: =IFERROR((D136+O136+Z136+AK136+AV136+BG136+BR136+CC136+CN136+CY136+DJ136+DU136)/ROUND(12/VLOOKUP($A136, Annualization!$A$3:$C$323,3,FALSE),0),0) -> 0 | ER136: =IFERROR((E136+P136+AA136+AL136+AW136+BH136+BS136+CD136+CO136+CZ136+DK136+DV136)/ROUND(12/VLOOKUP($A136, Annualization!$A$3:$C$323,3,FALSE),0),0) -> 0 | ES136: =IFERROR((F136+Q136+AB136+AM136+AX136+BI136+BT136+CE136+CP136+DA136+DL136+DW136)/ROUND(12/VLOOKUP($A136, Annualization!$A$3:$C$323,3,FALSE),0),0) -> 0 | ET136: =IFERROR((G136+R136+AC136+AN136+AY136+BJ136+BU136+CF136+CQ136+DB136+DM136+DX136)/ROUND(12/VLOOKUP($A136, Annualization!$A$3:$C$323,3,FALSE),0),0) -> 0 | EU136: =IFERROR((H136+S136+AD136+AO136+AZ136+BK136+BV136+CG136+CR136+DC136+DN136+DY136)/ROUND(12/VLOOKUP($A136, Annualization!$A$3:$C$323,3,FALSE),0),0) -> 0 | EV136: =IFERROR((I136+T136+AE136+AP136+BA136+BL136+BW136+CH136+CS136+DD136+DO136+DZ136)/ROUND(12/VLOOKUP($A136, Annualization!$A$3:$C$323,3,FALSE),0),0) -> 0 | EW136: =IFERROR((J136+U136+AF136+AQ136+BB136+BM136+BX136+CI136+CT136+DE136+DP136+EA136)/ROUND(12/VLOOKUP($A136, Annualization!$A$3:$C$323,3,FALSE),0),0) -> 0 | EX136: =IFERROR((K136+V136+AG136+AR136+BC136+BN136+BY136+CJ136+CU136+DF136+DQ136+EB136)/ROUND(12/VLOOKUP($A136, Annualization!$A$3:$C$323,3,FALSE),0),0) -> 0 | EY136: =IFERROR((L136+W136+AH136+AS136+BD136+BO136+BZ136+CK136+CV136+DG136+DR136+EC136)/ROUND(12/VLOOKUP($A136, Annualization!$A$3:$C$323,3,FALSE),0),0) -> 0 | EZ136: =IFERROR((M136+X136+AI136+AT136+BE136+BP136+CA136+CL136+CW136+DH136+DS136+ED136)/ROUND(12/VLOOKUP($A136, Annualization!$A$3:$C$323,3,FALSE),0),0) -> 0
EE137: 0 | EF137: 0 | EG137: 0 | EH137: 0 | EI137: 0 | EJ137: 0 | EK137: 0 | EL137: 0 | EM137: 0 | EN137: 0 | EO137: 0 | EP137: =IFERROR((C137+N137+Y137+AJ137+AU137+BF137+BQ137+CB137+CM137+CX137+DI137+DT137)/ROUND(12/VLOOKUP($A137, Annualization!$A$3:$C$323,3,FALSE),0),0) -> 0 | EQ137: =IFERROR((D137+O137+Z137+AK137+AV137+BG137+BR137+CC137+CN137+CY137+DJ137+DU137)/ROUND(12/VLOOKUP($A137, Annualization!$A$3:$C$323,3,FALSE),0),0) -> 0 | ER137: =IFERROR((E137+P137+AA137+AL137+AW137+BH137+BS137+CD137+CO137+CZ137+DK137+DV137)/ROUND(12/VLOOKUP($A137, Annualization!$A$3:$C$323,3,FALSE),0),0) -> 0 | ES137: =IFERROR((F137+Q137+AB137+AM137+AX137+BI137+BT137+CE137+CP137+DA137+DL137+DW137)/ROUND(12/VLOOKUP($A137, Annualization!$A$3:$C$323,3,FALSE),0),0) -> 0 | ET137: =IFERROR((G137+R137+AC137+AN137+AY137+BJ137+BU137+CF137+CQ137+DB137+DM137+DX137)/ROUND(12/VLOOKUP($A137, Annualization!$A$3:$C$323,3,FALSE),0),0) -> 0 | EU137: =IFERROR((H137+S137+AD137+AO137+AZ137+BK137+BV137+CG137+CR137+DC137+DN137+DY137)/ROUND(12/VLOOKUP($A137, Annualization!$A$3:$C$323,3,FALSE),0),0) -> 0 | EV137: =IFERROR((I137+T137+AE137+AP137+BA137+BL137+BW137+CH137+CS137+DD137+DO137+DZ137)/ROUND(12/VLOOKUP($A137, Annualization!$A$3:$C$323,3,FALSE),0),0) -> 0 | EW137: =IFERROR((J137+U137+AF137+AQ137+BB137+BM137+BX137+CI137+CT137+DE137+DP137+EA137)/ROUND(12/VLOOKUP($A137, Annualization!$A$3:$C$323,3,FALSE),0),0) -> 0 | EX137: =IFERROR((K137+V137+AG137+AR137+BC137+BN137+BY137+CJ137+CU137+DF137+DQ137+EB137)/ROUND(12/VLOOKUP($A137, Annualization!$A$3:$C$323,3,FALSE),0),0) -> 0 | EY137: =IFERROR((L137+W137+AH137+AS137+BD137+BO137+BZ137+CK137+CV137+DG137+DR137+EC137)/ROUND(12/VLOOKUP($A137, Annualization!$A$3:$C$323,3,FALSE),0),0) -> 0 | EZ137: =IFERROR((M137+X137+AI137+AT137+BE137+BP137+CA137+CL137+CW137+DH137+DS137+ED137)/ROUND(12/VLOOKUP($A137, Annualization!$A$3:$C$323,3,FALSE),0),0) -> 0
EE138: 0 | EF138: 0 | EG138: 0 | EH138: 0 | EI138: 0 | EJ138: 0 | EK138: 0 | EL138: 0 | EM138: 0 | EN138: 0 | EO138: 0 | EP138: =IFERROR((C138+N138+Y138+AJ138+AU138+BF138+BQ138+CB138+CM138+CX138+DI138+DT138)/ROUND(12/VLOOKUP($A138, Annualization!$A$3:$C$323,3,FALSE),0),0) -> 0 | EQ138: =IFERROR((D138+O138+Z138+AK138+AV138+BG138+BR138+CC138+CN138+CY138+DJ138+DU138)/ROUND(12/VLOOKUP($A138, Annualization!$A$3:$C$323,3,FALSE),0),0) -> 0 | ER138: =IFERROR((E138+P138+AA138+AL138+AW138+BH138+BS138+CD138+CO138+CZ138+DK138+DV138)/ROUND(12/VLOOKUP($A138, Annualization!$A$3:$C$323,3,FALSE),0),0) -> 0 | ES138: =IFERROR((F138+Q138+AB138+AM138+AX138+BI138+BT138+CE138+CP138+DA138+DL138+DW138)/ROUND(12/VLOOKUP($A138, Annualization!$A$3:$C$323,3,FALSE),0),0) -> 0 | ET138: =IFERROR((G138+R138+AC138+AN138+AY138+BJ138+BU138+CF138+CQ138+DB138+DM138+DX138)/ROUND(12/VLOOKUP($A138, Annualization!$A$3:$C$323,3,FALSE),0),0) -> 0 | EU138: =IFERROR((H138+S138+AD138+AO138+AZ138+BK138+BV138+CG138+CR138+DC138+DN138+DY138)/ROUND(12/VLOOKUP($A138, Annualization!$A$3:$C$323,3,FALSE),0),0) -> 0 | EV138: =IFERROR((I138+T138+AE138+AP138+BA138+BL138+BW138+CH138+CS138+DD138+DO138+DZ138)/ROUND(12/VLOOKUP($A138, Annualization!$A$3:$C$323,3,FALSE),0),0) -> 0 | EW138: =IFERROR((J138+U138+AF138+AQ138+BB138+BM138+BX138+CI138+CT138+DE138+DP138+EA138)/ROUND(12/VLOOKUP($A138, Annualization!$A$3:$C$323,3,FALSE),0),0) -> 0 | EX138: =IFERROR((K138+V138+AG138+AR138+BC138+BN138+BY138+CJ138+CU138+DF138+DQ138+EB138)/ROUND(12/VLOOKUP($A138, Annualization!$A$3:$C$323,3,FALSE),0),0) -> 0 | EY138: =IFERROR((L138+W138+AH138+AS138+BD138+BO138+BZ138+CK138+CV138+DG138+DR138+EC138)/ROUND(12/VLOOKUP($A138, Annualization!$A$3:$C$323,3,FALSE),0),0) -> 0 | EZ138: =IFERROR((M138+X138+AI138+AT138+BE138+BP138+CA138+CL138+CW138+DH138+DS138+ED138)/ROUND(12/VLOOKUP($A138, Annualization!$A$3:$C$323,3,FALSE),0),0) -> 0
EE139: 0 | EF139: 0 | EG139: 0 | EH139: 0 | EI139: 0 | EJ139: 0 | EK139: 0 | EL139: 0 | EM139: 0 | EN139: 0 | EO139: 0 | EP139: =IFERROR((C139+N139+Y139+AJ139+AU139+BF139+BQ139+CB139+CM139+CX139+DI139+DT139)/ROUND(12/VLOOKUP($A139, Annualization!$A$3:$C$323,3,FALSE),0),0) -> 0 | EQ139: =IFERROR((D139+O139+Z139+AK139+AV139+BG139+BR139+CC139+CN139+CY139+DJ139+DU139)/ROUND(12/VLOOKUP($A139, Annualization!$A$3:$C$323,3,FALSE),0),0) -> 0 | ER139: =IFERROR((E139+P139+AA139+AL139+AW139+BH139+BS139+CD139+CO139+CZ139+DK139+DV139)/ROUND(12/VLOOKUP($A139, Annualization!$A$3:$C$323,3,FALSE),0),0) -> 0 | ES139: =IFERROR((F139+Q139+AB139+AM139+AX139+BI139+BT139+CE139+CP139+DA139+DL139+DW139)/ROUND(12/VLOOKUP($A139, Annualization!$A$3:$C$323,3,FALSE),0),0) -> 0 | ET139: =IFERROR((G139+R139+AC139+AN139+AY139+BJ139+BU139+CF139+CQ139+DB139+DM139+DX139)/ROUND(12/VLOOKUP($A139, Annualization!$A$3:$C$323,3,FALSE),0),0) -> 0 | EU139: =IFERROR((H139+S139+AD139+AO139+AZ139+BK139+BV139+CG139+CR139+DC139+DN139+DY139)/ROUND(12/VLOOKUP($A139, Annualization!$A$3:$C$323,3,FALSE),0),0) -> 0 | EV139: =IFERROR((I139+T139+AE139+AP139+BA139+BL139+BW139+CH139+CS139+DD139+DO139+DZ139)/ROUND(12/VLOOKUP($A139, Annualization!$A$3:$C$323,3,FALSE),0),0) -> 0 | EW139: =IFERROR((J139+U139+AF139+AQ139+BB139+BM139+BX139+CI139+CT139+DE139+DP139+EA139)/ROUND(12/VLOOKUP($A139, Annualization!$A$3:$C$323,3,FALSE),0),0) -> 0 | EX139: =IFERROR((K139+V139+AG139+AR139+BC139+BN139+BY139+CJ139+CU139+DF139+DQ139+EB139)/ROUND(12/VLOOKUP($A139, Annualization!$A$3:$C$323,3,FALSE),0),0) -> 0 | EY139: =IFERROR((L139+W139+AH139+AS139+BD139+BO139+BZ139+CK139+CV139+DG139+DR139+EC139)/ROUND(12/VLOOKUP($A139, Annualization!$A$3:$C$323,3,FALSE),0),0) -> 0 | EZ139: =IFERROR((M139+X139+AI139+AT139+BE139+BP139+CA139+CL139+CW139+DH139+DS139+ED139)/ROUND(12/VLOOKUP($A139, Annualization!$A$3:$C$323,3,FALSE),0),0) -> 0
EE140: 0 | EF140: 0 | EG140: 0 | EH140: 0 | EI140: 0 | EJ140: 0 | EK140: 0 | EL140: 0 | EM140: 0 | EN140: 0 | EO140: 0 | EP140: =IFERROR((C140+N140+Y140+AJ140+AU140+BF140+BQ140+CB140+CM140+CX140+DI140+DT140)/ROUND(12/VLOOKUP($A140, Annualization!$A$3:$C$323,3,FALSE),0),0) -> 0 | EQ140: =IFERROR((D140+O140+Z140+AK140+AV140+BG140+BR140+CC140+CN140+CY140+DJ140+DU140)/ROUND(12/VLOOKUP($A140, Annualization!$A$3:$C$323,3,FALSE),0),0) -> 0 | ER140: =IFERROR((E140+P140+AA140+AL140+AW140+BH140+BS140+CD140+CO140+CZ140+DK140+DV140)/ROUND(12/VLOOKUP($A140, Annualization!$A$3:$C$323,3,FALSE),0),0) -> 0 | ES140: =IFERROR((F140+Q140+AB140+AM140+AX140+BI140+BT140+CE140+CP140+DA140+DL140+DW140)/ROUND(12/VLOOKUP($A140, Annualization!$A$3:$C$323,3,FALSE),0),0) -> 0 | ET140: =IFERROR((G140+R140+AC140+AN140+AY140+BJ140+BU140+CF140+CQ140+DB140+DM140+DX140)/ROUND(12/VLOOKUP($A140, Annualization!$A$3:$C$323,3,FALSE),0),0) -> 0 | EU140: =IFERROR((H140+S140+AD140+AO140+AZ140+BK140+BV140+CG140+CR140+DC140+DN140+DY140)/ROUND(12/VLOOKUP($A140, Annualization!$A$3:$C$323,3,FALSE),0),0) -> 0 | EV140: =IFERROR((I140+T140+AE140+AP140+BA140+BL140+BW140+CH140+CS140+DD140+DO140+DZ140)/ROUND(12/VLOOKUP($A140, Annualization!$A$3:$C$323,3,FALSE),0),0) -> 0 | EW140: =IFERROR((J140+U140+AF140+AQ140+BB140+BM140+BX140+CI140+CT140+DE140+DP140+EA140)/ROUND(12/VLOOKUP($A140, Annualization!$A$3:$C$323,3,FALSE),0),0) -> 0 | EX140: =IFERROR((K140+V140+AG140+AR140+BC140+BN140+BY140+CJ140+CU140+DF140+DQ140+EB140)/ROUND(12/VLOOKUP($A140, Annualization!$A$3:$C$323,3,FALSE),0),0) -> 0 | EY140: =IFERROR((L140+W140+AH140+AS140+BD140+BO140+BZ140+CK140+CV140+DG140+DR140+EC140)/ROUND(12/VLOOKUP($A140, Annualization!$A$3:$C$323,3,FALSE),0),0) -> 0 | EZ140: =IFERROR((M140+X140+AI140+AT140+BE140+BP140+CA140+CL140+CW140+DH140+DS140+ED140)/ROUND(12/VLOOKUP($A140, Annualization!$A$3:$C$323,3,FALSE),0),0) -> 0
EE141: 0 | EF141: 0 | EG141: 0 | EH141: 0 | EI141: 0 | EJ141: 0 | EK141: 0 | EL141: 0 | EM141: 0 | EN141: 0 | EO141: 0 | EP141: =IFERROR((C141+N141+Y141+AJ141+AU141+BF141+BQ141+CB141+CM141+CX141+DI141+DT141)/ROUND(12/VLOOKUP($A141, Annualization!$A$3:$C$323,3,FALSE),0),0) -> 0 | EQ141: =IFERROR((D141+O141+Z141+AK141+AV141+BG141+BR141+CC141+CN141+CY141+DJ141+DU141)/ROUND(12/VLOOKUP($A141, Annualization!$A$3:$C$323,3,FALSE),0),0) -> 0 | ER141: =IFERROR((E141+P141+AA141+AL141+AW141+BH141+BS141+CD141+CO141+CZ141+DK141+DV141)/ROUND(12/VLOOKUP($A141, Annualization!$A$3:$C$323,3,FALSE),0),0) -> 0 | ES141: =IFERROR((F141+Q141+AB141+AM141+AX141+BI141+BT141+CE141+CP141+DA141+DL141+DW141)/ROUND(12/VLOOKUP($A141, Annualization!$A$3:$C$323,3,FALSE),0),0) -> 0 | ET141: =IFERROR((G141+R141+AC141+AN141+AY141+BJ141+BU141+CF141+CQ141+DB141+DM141+DX141)/ROUND(12/VLOOKUP($A141, Annualization!$A$3:$C$323,3,FALSE),0),0) -> 0 | EU141: =IFERROR((H141+S141+AD141+AO141+AZ141+BK141+BV141+CG141+CR141+DC141+DN141+DY141)/ROUND(12/VLOOKUP($A141, Annualization!$A$3:$C$323,3,FALSE),0),0) -> 0 | EV141: =IFERROR((I141+T141+AE141+AP141+BA141+BL141+BW141+CH141+CS141+DD141+DO141+DZ141)/ROUND(12/VLOOKUP($A141, Annualization!$A$3:$C$323,3,FALSE),0),0) -> 0 | EW141: =IFERROR((J141+U141+AF141+AQ141+BB141+BM141+BX141+CI141+CT141+DE141+DP141+EA141)/ROUND(12/VLOOKUP($A141, Annualization!$A$3:$C$323,3,FALSE),0),0) -> 0 | EX141: =IFERROR((K141+V141+AG141+AR141+BC141+BN141+BY141+CJ141+CU141+DF141+DQ141+EB141)/ROUND(12/VLOOKUP($A141, Annualization!$A$3:$C$323,3,FALSE),0),0) -> 0 | EY141: =IFERROR((L141+W141+AH141+AS141+BD141+BO141+BZ141+CK141+CV141+DG141+DR141+EC141)/ROUND(12/VLOOKUP($A141, Annualization!$A$3:$C$323,3,FALSE),0),0) -> 0 | EZ141: =IFERROR((M141+X141+AI141+AT141+BE141+BP141+CA141+CL141+CW141+DH141+DS141+ED141)/ROUND(12/VLOOKUP($A141, Annualization!$A$3:$C$323,3,FALSE),0),0) -> 0
EE142: 0 | EF142: 0 | EG142: 0 | EH142: 0 | EI142: 0 | EJ142: 0 | EK142: 0 | EL142: 0 | EM142: 0 | EN142: 0 | EO142: 0 | EP142: =IFERROR((C142+N142+Y142+AJ142+AU142+BF142+BQ142+CB142+CM142+CX142+DI142+DT142)/ROUND(12/VLOOKUP($A142, Annualization!$A$3:$C$323,3,FALSE),0),0) -> 0 | EQ142: =IFERROR((D142+O142+Z142+AK142+AV142+BG142+BR142+CC142+CN142+CY142+DJ142+DU142)/ROUND(12/VLOOKUP($A142, Annualization!$A$3:$C$323,3,FALSE),0),0) -> 0 | ER142: =IFERROR((E142+P142+AA142+AL142+AW142+BH142+BS142+CD142+CO142+CZ142+DK142+DV142)/ROUND(12/VLOOKUP($A142, Annualization!$A$3:$C$323,3,FALSE),0),0) -> 0 | ES142: =IFERROR((F142+Q142+AB142+AM142+AX142+BI142+BT142+CE142+CP142+DA142+DL142+DW142)/ROUND(12/VLOOKUP($A142, Annualization!$A$3:$C$323,3,FALSE),0),0) -> 0 | ET142: =IFERROR((G142+R142+AC142+AN142+AY142+BJ142+BU142+CF142+CQ142+DB142+DM142+DX142)/ROUND(12/VLOOKUP($A142, Annualization!$A$3:$C$323,3,FALSE),0),0) -> 0 | EU142: =IFERROR((H142+S142+AD142+AO142+AZ142+BK142+BV142+CG142+CR142+DC142+DN142+DY142)/ROUND(12/VLOOKUP($A142, Annualization!$A$3:$C$323,3,FALSE),0),0) -> 0 | EV142: =IFERROR((I142+T142+AE142+AP142+BA142+BL142+BW142+CH142+CS142+DD142+DO142+DZ142)/ROUND(12/VLOOKUP($A142, Annualization!$A$3:$C$323,3,FALSE),0),0) -> 0 | EW142: =IFERROR((J142+U142+AF142+AQ142+BB142+BM142+BX142+CI142+CT142+DE142+DP142+EA142)/ROUND(12/VLOOKUP($A142, Annualization!$A$3:$C$323,3,FALSE),0),0) -> 0 | EX142: =IFERROR((K142+V142+AG142+AR142+BC142+BN142+BY142+CJ142+CU142+DF142+DQ142+EB142)/ROUND(12/VLOOKUP($A142, Annualization!$A$3:$C$323,3,FALSE),0),0) -> 0 | EY142: =IFERROR((L142+W142+AH142+AS142+BD142+BO142+BZ142+CK142+CV142+DG142+DR142+EC142)/ROUND(12/VLOOKUP($A142, Annualization!$A$3:$C$323,3,FALSE),0),0) -> 0 | EZ142: =IFERROR((M142+X142+AI142+AT142+BE142+BP142+CA142+CL142+CW142+DH142+DS142+ED142)/ROUND(12/VLOOKUP($A142, Annualization!$A$3:$C$323,3,FALSE),0),0) -> 0
EE143: =(C143+N143+Y143+AJ143+AU143+BF143+BQ143+CB143+CM143+CX143+DI143+DT143) -> 0 | EF143: 0 | EG143: 0 | EH143: 0 | EI143: 0 | EJ143: 0 | EK143: 0 | EL143: 0 | EM143: 0 | EN143: 0 | EO143: 0 | EP143: =IFERROR((C143+N143+Y143+AJ143+AU143+BF143+BQ143+CB143+CM143+CX143+DI143+DT143)/ROUND(12/VLOOKUP($A143, Annualization!$A$3:$C$323,3,FALSE),0),0) -> 0 | EQ143: =IFERROR((D143+O143+Z143+AK143+AV143+BG143+BR143+CC143+CN143+CY143+DJ143+DU143)/ROUND(12/VLOOKUP($A143, Annualization!$A$3:$C$323,3,FALSE),0),0) -> 0 | ER143: =IFERROR((E143+P143+AA143+AL143+AW143+BH143+BS143+CD143+CO143+CZ143+DK143+DV143)/ROUND(12/VLOOKUP($A143, Annualization!$A$3:$C$323,3,FALSE),0),0) -> 0 | ES143: =IFERROR((F143+Q143+AB143+AM143+AX143+BI143+BT143+CE143+CP143+DA143+DL143+DW143)/ROUND(12/VLOOKUP($A143, Annualization!$A$3:$C$323,3,FALSE),0),0) -> 0 | ET143: =IFERROR((G143+R143+AC143+AN143+AY143+BJ143+BU143+CF143+CQ143+DB143+DM143+DX143)/ROUND(12/VLOOKUP($A143, Annualization!$A$3:$C$323,3,FALSE),0),0) -> 0 | EU143: =IFERROR((H143+S143+AD143+AO143+AZ143+BK143+BV143+CG143+CR143+DC143+DN143+DY143)/ROUND(12/VLOOKUP($A143, Annualization!$A$3:$C$323,3,FALSE),0),0) -> 0 | EV143: =IFERROR((I143+T143+AE143+AP143+BA143+BL143+BW143+CH143+CS143+DD143+DO143+DZ143)/ROUND(12/VLOOKUP($A143, Annualization!$A$3:$C$323,3,FALSE),0),0) -> 0 | EW143: =IFERROR((J143+U143+AF143+AQ143+BB143+BM143+BX143+CI143+CT143+DE143+DP143+EA143)/ROUND(12/VLOOKUP($A143, Annualization!$A$3:$C$323,3,FALSE),0),0) -> 0 | EX143: =IFERROR((K143+V143+AG143+AR143+BC143+BN143+BY143+CJ143+CU143+DF143+DQ143+EB143)/ROUND(12/VLOOKUP($A143, Annualization!$A$3:$C$323,3,FALSE),0),0) -> 0 | EY143: =IFERROR((L143+W143+AH143+AS143+BD143+BO143+BZ143+CK143+CV143+DG143+DR143+EC143)/ROUND(12/VLOOKUP($A143, Annualization!$A$3:$C$323,3,FALSE),0),0) -> 0 | EZ143: =IFERROR((M143+X143+AI143+AT143+BE143+BP143+CA143+CL143+CW143+DH143+DS143+ED143)/ROUND(12/VLOOKUP($A143, Annualization!$A$3:$C$323,3,FALSE),0),0) -> 0
EE144: 0 | EF144: 0 | EG144: 0 | EH144: 0 | EI144: 0 | EJ144: 0 | EK144: 0 | EL144: 0 | EM144: 0 | EN144: 0 | EO144: 0 | EP144: =IFERROR((C144+N144+Y144+AJ144+AU144+BF144+BQ144+CB144+CM144+CX144+DI144+DT144)/ROUND(12/VLOOKUP($A144, Annualization!$A$3:$C$323,3,FALSE),0),0) -> 0 | EQ144: =IFERROR((D144+O144+Z144+AK144+AV144+BG144+BR144+CC144+CN144+CY144+DJ144+DU144)/ROUND(12/VLOOKUP($A144, Annualization!$A$3:$C$323,3,FALSE),0),0) -> 0 | ER144: =IFERROR((E144+P144+AA144+AL144+AW144+BH144+BS144+CD144+CO144+CZ144+DK144+DV144)/ROUND(12/VLOOKUP($A144, Annualization!$A$3:$C$323,3,FALSE),0),0) -> 0 | ES144: =IFERROR((F144+Q144+AB144+AM144+AX144+BI144+BT144+CE144+CP144+DA144+DL144+DW144)/ROUND(12/VLOOKUP($A144, Annualization!$A$3:$C$323,3,FALSE),0),0) -> 0 | ET144: =IFERROR((G144+R144+AC144+AN144+AY144+BJ144+BU144+CF144+CQ144+DB144+DM144+DX144)/ROUND(12/VLOOKUP($A144, Annualization!$A$3:$C$323,3,FALSE),0),0) -> 0 | EU144: =IFERROR((H144+S144+AD144+AO144+AZ144+BK144+BV144+CG144+CR144+DC144+DN144+DY144)/ROUND(12/VLOOKUP($A144, Annualization!$A$3:$C$323,3,FALSE),0),0) -> 0 | EV144: =IFERROR((I144+T144+AE144+AP144+BA144+BL144+BW144+CH144+CS144+DD144+DO144+DZ144)/ROUND(12/VLOOKUP($A144, Annualization!$A$3:$C$323,3,FALSE),0),0) -> 0 | EW144: =IFERROR((J144+U144+AF144+AQ144+BB144+BM144+BX144+CI144+CT144+DE144+DP144+EA144)/ROUND(12/VLOOKUP($A144, Annualization!$A$3:$C$323,3,FALSE),0),0) -> 0 | EX144: =IFERROR((K144+V144+AG144+AR144+BC144+BN144+BY144+CJ144+CU144+DF144+DQ144+EB144)/ROUND(12/VLOOKUP($A144, Annualization!$A$3:$C$323,3,FALSE),0),0) -> 0 | EY144: =IFERROR((L144+W144+AH144+AS144+BD144+BO144+BZ144+CK144+CV144+DG144+DR144+EC144)/ROUND(12/VLOOKUP($A144, Annualization!$A$3:$C$323,3,FALSE),0),0) -> 0 | EZ144: =IFERROR((M144+X144+AI144+AT144+BE144+BP144+CA144+CL144+CW144+DH144+DS144+ED144)/ROUND(12/VLOOKUP($A144, Annualization!$A$3:$C$323,3,FALSE),0),0) -> 0
EE145: 0 | EF145: 0 | EG145: 0 | EH145: 0 | EI145: 0 | EJ145: 0 | EK145: 0 | EL145: 0 | EM145: 0 | EN145: 0 | EO145: 0 | EP145: =IFERROR((C145+N145+Y145+AJ145+AU145+BF145+BQ145+CB145+CM145+CX145+DI145+DT145)/ROUND(12/VLOOKUP($A145, Annualization!$A$3:$C$323,3,FALSE),0),0) -> 0 | EQ145: =IFERROR((D145+O145+Z145+AK145+AV145+BG145+BR145+CC145+CN145+CY145+DJ145+DU145)/ROUND(12/VLOOKUP($A145, Annualization!$A$3:$C$323,3,FALSE),0),0) -> 0 | ER145: =IFERROR((E145+P145+AA145+AL145+AW145+BH145+BS145+CD145+CO145+CZ145+DK145+DV145)/ROUND(12/VLOOKUP($A145, Annualization!$A$3:$C$323,3,FALSE),0),0) -> 0 | ES145: =IFERROR((F145+Q145+AB145+AM145+AX145+BI145+BT145+CE145+CP145+DA145+DL145+DW145)/ROUND(12/VLOOKUP($A145, Annualization!$A$3:$C$323,3,FALSE),0),0) -> 0 | ET145: =IFERROR((G145+R145+AC145+AN145+AY145+BJ145+BU145+CF145+CQ145+DB145+DM145+DX145)/ROUND(12/VLOOKUP($A145, Annualization!$A$3:$C$323,3,FALSE),0),0) -> 0 | EU145: =IFERROR((H145+S145+AD145+AO145+AZ145+BK145+BV145+CG145+CR145+DC145+DN145+DY145)/ROUND(12/VLOOKUP($A145, Annualization!$A$3:$C$323,3,FALSE),0),0) -> 0 | EV145: =IFERROR((I145+T145+AE145+AP145+BA145+BL145+BW145+CH145+CS145+DD145+DO145+DZ145)/ROUND(12/VLOOKUP($A145, Annualization!$A$3:$C$323,3,FALSE),0),0) -> 0 | EW145: =IFERROR((J145+U145+AF145+AQ145+BB145+BM145+BX145+CI145+CT145+DE145+DP145+EA145)/ROUND(12/VLOOKUP($A145, Annualization!$A$3:$C$323,3,FALSE),0),0) -> 0 | EX145: =IFERROR((K145+V145+AG145+AR145+BC145+BN145+BY145+CJ145+CU145+DF145+DQ145+EB145)/ROUND(12/VLOOKUP($A145, Annualization!$A$3:$C$323,3,FALSE),0),0) -> 0 | EY145: =IFERROR((L145+W145+AH145+AS145+BD145+BO145+BZ145+CK145+CV145+DG145+DR145+EC145)/ROUND(12/VLOOKUP($A145, Annualization!$A$3:$C$323,3,FALSE),0),0) -> 0 | EZ145: =IFERROR((M145+X145+AI145+AT145+BE145+BP145+CA145+CL145+CW145+DH145+DS145+ED145)/ROUND(12/VLOOKUP($A145, Annualization!$A$3:$C$323,3,FALSE),0),0) -> 0
EE146: 0 | EF146: =(D146+O146+Z146+AK146+AV146+BG146+BR146+CC146+CN146+CY146+DJ146+DU146) -> 0 | EG146: =(E146+P146+AA146+AL146+AW146+BH146+BS146+CD146+CO146+CZ146+DK146+DV146) -> 0 | EH146: =(F146+Q146+AB146+AM146+AX146+BI146+BT146+CE146+CP146+DA146+DL146+DW146) -> 0 | EI146: =(G146+R146+AC146+AN146+AY146+BJ146+BU146+CF146+CQ146+DB146+DM146+DX146) -> 0 | EJ146: =(H146+S146+AD146+AO146+AZ146+BK146+BV146+CG146+CR146+DC146+DN146+DY146) -> 0 | EK146: =(I146+T146+AE146+AP146+BA146+BL146+BW146+CH146+CS146+DD146+DO146+DZ146) -> 0 | EL146: =(J146+U146+AF146+AQ146+BB146+BM146+BX146+CI146+CT146+DE146+DP146+EA146) -> 0 | EM146: =(K146+V146+AG146+AR146+BC146+BN146+BY146+CJ146+CU146+DF146+DQ146+EB146) -> 0 | EN146: =(L146+W146+AH146+AS146+BD146+BO146+BZ146+CK146+CV146+DG146+DR146+EC146) -> 0 | EO146: =(M146+X146+AI146+AT146+BE146+BP146+CA146+CL146+CW146+DH146+DS146+ED146) -> 0 | EP146: =IFERROR((C146+N146+Y146+AJ146+AU146+BF146+BQ146+CB146+CM146+CX146+DI146+DT146)/ROUND(12/VLOOKUP($A146, Annualization!$A$3:$C$323,3,FALSE),0),0) -> 0 | EQ146: =IFERROR((D146+O146+Z146+AK146+AV146+BG146+BR146+CC146+CN146+CY146+DJ146+DU146)/ROUND(12/VLOOKUP($A146, Annualization!$A$3:$C$323,3,FALSE),0),0) -> 0 | ER146: =IFERROR((E146+P146+AA146+AL146+AW146+BH146+BS146+CD146+CO146+CZ146+DK146+DV146)/ROUND(12/VLOOKUP($A146, Annualization!$A$3:$C$323,3,FALSE),0),0) -> 0 | ES146: =IFERROR((F146+Q146+AB146+AM146+AX146+BI146+BT146+CE146+CP146+DA146+DL146+DW146)/ROUND(12/VLOOKUP($A146, Annualization!$A$3:$C$323,3,FALSE),0),0) -> 0 | ET146: =IFERROR((G146+R146+AC146+AN146+AY146+BJ146+BU146+CF146+CQ146+DB146+DM146+DX146)/ROUND(12/VLOOKUP($A146, Annualization!$A$3:$C$323,3,FALSE),0),0) -> 0 | EU146: =IFERROR((H146+S146+AD146+AO146+AZ146+BK146+BV146+CG146+CR146+DC146+DN146+DY146)/ROUND(12/VLOOKUP($A146, Annualization!$A$3:$C$323,3,FALSE),0),0) -> 0 | EV146: =IFERROR((I146+T146+AE146+AP146+BA146+BL146+BW146+CH146+CS146+DD146+DO146+DZ146)/ROUND(12/VLOOKUP($A146, Annualization!$A$3:$C$323,3,FALSE),0),0) -> 0 | EW146: =IFERROR((J146+U146+AF146+AQ146+BB146+BM146+BX146+CI146+CT146+DE146+DP146+EA146)/ROUND(12/VLOOKUP($A146, Annualization!$A$3:$C$323,3,FALSE),0),0) -> 0 | EX146: =IFERROR((K146+V146+AG146+AR146+BC146+BN146+BY146+CJ146+CU146+DF146+DQ146+EB146)/ROUND(12/VLOOKUP($A146, Annualization!$A$3:$C$323,3,FALSE),0),0) -> 0 | EY146: =IFERROR((L146+W146+AH146+AS146+BD146+BO146+BZ146+CK146+CV146+DG146+DR146+EC146)/ROUND(12/VLOOKUP($A146, Annualization!$A$3:$C$323,3,FALSE),0),0) -> 0 | EZ146: =IFERROR((M146+X146+AI146+AT146+BE146+BP146+CA146+CL146+CW146+DH146+DS146+ED146)/ROUND(12/VLOOKUP($A146, Annualization!$A$3:$C$323,3,FALSE),0),0) -> 0
EE147: 0 | EF147: 0 | EG147: 0 | EH147: 0 | EI147: 0 | EJ147: 0 | EK147: 0 | EL147: 0 | EM147: 0 | EN147: 0 | EO147: 0 | EP147: =IFERROR((C147+N147+Y147+AJ147+AU147+BF147+BQ147+CB147+CM147+CX147+DI147+DT147)/ROUND(12/VLOOKUP($A147, Annualization!$A$3:$C$323,3,FALSE),0),0) -> 0 | EQ147: =IFERROR((D147+O147+Z147+AK147+AV147+BG147+BR147+CC147+CN147+CY147+DJ147+DU147)/ROUND(12/VLOOKUP($A147, Annualization!$A$3:$C$323,3,FALSE),0),0) -> 0 | ER147: =IFERROR((E147+P147+AA147+AL147+AW147+BH147+BS147+CD147+CO147+CZ147+DK147+DV147)/ROUND(12/VLOOKUP($A147, Annualization!$A$3:$C$323,3,FALSE),0),0) -> 0 | ES147: =IFERROR((F147+Q147+AB147+AM147+AX147+BI147+BT147+CE147+CP147+DA147+DL147+DW147)/ROUND(12/VLOOKUP($A147, Annualization!$A$3:$C$323,3,FALSE),0),0) -> 0 | ET147: =IFERROR((G147+R147+AC147+AN147+AY147+BJ147+BU147+CF147+CQ147+DB147+DM147+DX147)/ROUND(12/VLOOKUP($A147, Annualization!$A$3:$C$323,3,FALSE),0),0) -> 0 | EU147: =IFERROR((H147+S147+AD147+AO147+AZ147+BK147+BV147+CG147+CR147+DC147+DN147+DY147)/ROUND(12/VLOOKUP($A147, Annualization!$A$3:$C$323,3,FALSE),0),0) -> 0 | EV147: =IFERROR((I147+T147+AE147+AP147+BA147+BL147+BW147+CH147+CS147+DD147+DO147+DZ147)/ROUND(12/VLOOKUP($A147, Annualization!$A$3:$C$323,3,FALSE),0),0) -> 0 | EW147: =IFERROR((J147+U147+AF147+AQ147+BB147+BM147+BX147+CI147+CT147+DE147+DP147+EA147)/ROUND(12/VLOOKUP($A147, Annualization!$A$3:$C$323,3,FALSE),0),0) -> 0 | EX147: =IFERROR((K147+V147+AG147+AR147+BC147+BN147+BY147+CJ147+CU147+DF147+DQ147+EB147)/ROUND(12/VLOOKUP($A147, Annualization!$A$3:$C$323,3,FALSE),0),0) -> 0 | EY147: =IFERROR((L147+W147+AH147+AS147+BD147+BO147+BZ147+CK147+CV147+DG147+DR147+EC147)/ROUND(12/VLOOKUP($A147, Annualization!$A$3:$C$323,3,FALSE),0),0) -> 0 | EZ147: =IFERROR((M147+X147+AI147+AT147+BE147+BP147+CA147+CL147+CW147+DH147+DS147+ED147)/ROUND(12/VLOOKUP($A147, Annualization!$A$3:$C$323,3,FALSE),0),0) -> 0
EE148: 0 | EF148: 0 | EG148: 0 | EH148: 0 | EI148: 0 | EJ148: 0 | EK148: 0 | EL148: 0 | EM148: 0 | EN148: 0 | EO148: 0 | EP148: =IFERROR((C148+N148+Y148+AJ148+AU148+BF148+BQ148+CB148+CM148+CX148+DI148+DT148)/ROUND(12/VLOOKUP($A148, Annualization!$A$3:$C$323,3,FALSE),0),0) -> 0 | EQ148: =IFERROR((D148+O148+Z148+AK148+AV148+BG148+BR148+CC148+CN148+CY148+DJ148+DU148)/ROUND(12/VLOOKUP($A148, Annualization!$A$3:$C$323,3,FALSE),0),0) -> 0 | ER148: =IFERROR((E148+P148+AA148+AL148+AW148+BH148+BS148+CD148+CO148+CZ148+DK148+DV148)/ROUND(12/VLOOKUP($A148, Annualization!$A$3:$C$323,3,FALSE),0),0) -> 0 | ES148: =IFERROR((F148+Q148+AB148+AM148+AX148+BI148+BT148+CE148+CP148+DA148+DL148+DW148)/ROUND(12/VLOOKUP($A148, Annualization!$A$3:$C$323,3,FALSE),0),0) -> 0 | ET148: =IFERROR((G148+R148+AC148+AN148+AY148+BJ148+BU148+CF148+CQ148+DB148+DM148+DX148)/ROUND(12/VLOOKUP($A148, Annualization!$A$3:$C$323,3,FALSE),0),0) -> 0 | EU148: =IFERROR((H148+S148+AD148+AO148+AZ148+BK148+BV148+CG148+CR148+DC148+DN148+DY148)/ROUND(12/VLOOKUP($A148, Annualization!$A$3:$C$323,3,FALSE),0),0) -> 0 | EV148: =IFERROR((I148+T148+AE148+AP148+BA148+BL148+BW148+CH148+CS148+DD148+DO148+DZ148)/ROUND(12/VLOOKUP($A148, Annualization!$A$3:$C$323,3,FALSE),0),0) -> 0 | EW148: =IFERROR((J148+U148+AF148+AQ148+BB148+BM148+BX148+CI148+CT148+DE148+DP148+EA148)/ROUND(12/VLOOKUP($A148, Annualization!$A$3:$C$323,3,FALSE),0),0) -> 0 | EX148: =IFERROR((K148+V148+AG148+AR148+BC148+BN148+BY148+CJ148+CU148+DF148+DQ148+EB148)/ROUND(12/VLOOKUP($A148, Annualization!$A$3:$C$323,3,FALSE),0),0) -> 0 | EY148: =IFERROR((L148+W148+AH148+AS148+BD148+BO148+BZ148+CK148+CV148+DG148+DR148+EC148)/ROUND(12/VLOOKUP($A148, Annualization!$A$3:$C$323,3,FALSE),0),0) -> 0 | EZ148: =IFERROR((M148+X148+AI148+AT148+BE148+BP148+CA148+CL148+CW148+DH148+DS148+ED148)/ROUND(12/VLOOKUP($A148, Annualization!$A$3:$C$323,3,FALSE),0),0) -> 0
EE149: 0 | EF149: 0 | EG149: 0 | EH149: 0 | EI149: 0 | EJ149: 0 | EK149: 0 | EL149: 0 | EM149: 0 | EN149: 0 | EO149: 0 | EP149: =IFERROR((C149+N149+Y149+AJ149+AU149+BF149+BQ149+CB149+CM149+CX149+DI149+DT149)/ROUND(12/VLOOKUP($A149, Annualization!$A$3:$C$323,3,FALSE),0),0) -> 0 | EQ149: =IFERROR((D149+O149+Z149+AK149+AV149+BG149+BR149+CC149+CN149+CY149+DJ149+DU149)/ROUND(12/VLOOKUP($A149, Annualization!$A$3:$C$323,3,FALSE),0),0) -> 0 | ER149: =IFERROR((E149+P149+AA149+AL149+AW149+BH149+BS149+CD149+CO149+CZ149+DK149+DV149)/ROUND(12/VLOOKUP($A149, Annualization!$A$3:$C$323,3,FALSE),0),0) -> 0 | ES149: =IFERROR((F149+Q149+AB149+AM149+AX149+BI149+BT149+CE149+CP149+DA149+DL149+DW149)/ROUND(12/VLOOKUP($A149, Annualization!$A$3:$C$323,3,FALSE),0),0) -> 0 | ET149: =IFERROR((G149+R149+AC149+AN149+AY149+BJ149+BU149+CF149+CQ149+DB149+DM149+DX149)/ROUND(12/VLOOKUP($A149, Annualization!$A$3:$C$323,3,FALSE),0),0) -> 0 | EU149: =IFERROR((H149+S149+AD149+AO149+AZ149+BK149+BV149+CG149+CR149+DC149+DN149+DY149)/ROUND(12/VLOOKUP($A149, Annualization!$A$3:$C$323,3,FALSE),0),0) -> 0 | EV149: =IFERROR((I149+T149+AE149+AP149+BA149+BL149+BW149+CH149+CS149+DD149+DO149+DZ149)/ROUND(12/VLOOKUP($A149, Annualization!$A$3:$C$323,3,FALSE),0),0) -> 0 | EW149: =IFERROR((J149+U149+AF149+AQ149+BB149+BM149+BX149+CI149+CT149+DE149+DP149+EA149)/ROUND(12/VLOOKUP($A149, Annualization!$A$3:$C$323,3,FALSE),0),0) -> 0 | EX149: =IFERROR((K149+V149+AG149+AR149+BC149+BN149+BY149+CJ149+CU149+DF149+DQ149+EB149)/ROUND(12/VLOOKUP($A149, Annualization!$A$3:$C$323,3,FALSE),0),0) -> 0 | EY149: =IFERROR((L149+W149+AH149+AS149+BD149+BO149+BZ149+CK149+CV149+DG149+DR149+EC149)/ROUND(12/VLOOKUP($A149, Annualization!$A$3:$C$323,3,FALSE),0),0) -> 0 | EZ149: =IFERROR((M149+X149+AI149+AT149+BE149+BP149+CA149+CL149+CW149+DH149+DS149+ED149)/ROUND(12/VLOOKUP($A149, Annualization!$A$3:$C$323,3,FALSE),0),0) -> 0
EE150: 0 | EF150: 0 | EG150: 0 | EH150: 0 | EI150: 0 | EJ150: 0 | EK150: 0 | EL150: 0 | EM150: 0 | EN150: 0 | EO150: 0 | EP150: =IFERROR((C150+N150+Y150+AJ150+AU150+BF150+BQ150+CB150+CM150+CX150+DI150+DT150)/ROUND(12/VLOOKUP($A150, Annualization!$A$3:$C$323,3,FALSE),0),0) -> 0 | EQ150: =IFERROR((D150+O150+Z150+AK150+AV150+BG150+BR150+CC150+CN150+CY150+DJ150+DU150)/ROUND(12/VLOOKUP($A150, Annualization!$A$3:$C$323,3,FALSE),0),0) -> 0 | ER150: =IFERROR((E150+P150+AA150+AL150+AW150+BH150+BS150+CD150+CO150+CZ150+DK150+DV150)/ROUND(12/VLOOKUP($A150, Annualization!$A$3:$C$323,3,FALSE),0),0) -> 0 | ES150: =IFERROR((F150+Q150+AB150+AM150+AX150+BI150+BT150+CE150+CP150+DA150+DL150+DW150)/ROUND(12/VLOOKUP($A150, Annualization!$A$3:$C$323,3,FALSE),0),0) -> 0 | ET150: =IFERROR((G150+R150+AC150+AN150+AY150+BJ150+BU150+CF150+CQ150+DB150+DM150+DX150)/ROUND(12/VLOOKUP($A150, Annualization!$A$3:$C$323,3,FALSE),0),0) -> 0 | EU150: =IFERROR((H150+S150+AD150+AO150+AZ150+BK150+BV150+CG150+CR150+DC150+DN150+DY150)/ROUND(12/VLOOKUP($A150, Annualization!$A$3:$C$323,3,FALSE),0),0) -> 0 | EV150: =IFERROR((I150+T150+AE150+AP150+BA150+BL150+BW150+CH150+CS150+DD150+DO150+DZ150)/ROUND(12/VLOOKUP($A150, Annualization!$A$3:$C$323,3,FALSE),0),0) -> 0 | EW150: =IFERROR((J150+U150+AF150+AQ150+BB150+BM150+BX150+CI150+CT150+DE150+DP150+EA150)/ROUND(12/VLOOKUP($A150, Annualization!$A$3:$C$323,3,FALSE),0),0) -> 0 | EX150: =IFERROR((K150+V150+AG150+AR150+BC150+BN150+BY150+CJ150+CU150+DF150+DQ150+EB150)/ROUND(12/VLOOKUP($A150, Annualization!$A$3:$C$323,3,FALSE),0),0) -> 0 | EY150: =IFERROR((L150+W150+AH150+AS150+BD150+BO150+BZ150+CK150+CV150+DG150+DR150+EC150)/ROUND(12/VLOOKUP($A150, Annualization!$A$3:$C$323,3,FALSE),0),0) -> 0 | EZ150: =IFERROR((M150+X150+AI150+AT150+BE150+BP150+CA150+CL150+CW150+DH150+DS150+ED150)/ROUND(12/VLOOKUP($A150, Annualization!$A$3:$C$323,3,FALSE),0),0) -> 0
EE151: 0 | EF151: 0 | EG151: 0 | EH151: 0 | EI151: 0 | EJ151: 0 | EK151: 0 | EL151: 0 | EM151: 0 | EN151: 0 | EO151: 0 | EP151: =IFERROR((C151+N151+Y151+AJ151+AU151+BF151+BQ151+CB151+CM151+CX151+DI151+DT151)/ROUND(12/VLOOKUP($A151, Annualization!$A$3:$C$323,3,FALSE),0),0) -> 0 | EQ151: =IFERROR((D151+O151+Z151+AK151+AV151+BG151+BR151+CC151+CN151+CY151+DJ151+DU151)/ROUND(12/VLOOKUP($A151, Annualization!$A$3:$C$323,3,FALSE),0),0) -> 0 | ER151: =IFERROR((E151+P151+AA151+AL151+AW151+BH151+BS151+CD151+CO151+CZ151+DK151+DV151)/ROUND(12/VLOOKUP($A151, Annualization!$A$3:$C$323,3,FALSE),0),0) -> 0 | ES151: =IFERROR((F151+Q151+AB151+AM151+AX151+BI151+BT151+CE151+CP151+DA151+DL151+DW151)/ROUND(12/VLOOKUP($A151, Annualization!$A$3:$C$323,3,FALSE),0),0) -> 0 | ET151: =IFERROR((G151+R151+AC151+AN151+AY151+BJ151+BU151+CF151+CQ151+DB151+DM151+DX151)/ROUND(12/VLOOKUP($A151, Annualization!$A$3:$C$323,3,FALSE),0),0) -> 0 | EU151: =IFERROR((H151+S151+AD151+AO151+AZ151+BK151+BV151+CG151+CR151+DC151+DN151+DY151)/ROUND(12/VLOOKUP($A151, Annualization!$A$3:$C$323,3,FALSE),0),0) -> 0 | EV151: =IFERROR((I151+T151+AE151+AP151+BA151+BL151+BW151+CH151+CS151+DD151+DO151+DZ151)/ROUND(12/VLOOKUP($A151, Annualization!$A$3:$C$323,3,FALSE),0),0) -> 0 | EW151: =IFERROR((J151+U151+AF151+AQ151+BB151+BM151+BX151+CI151+CT151+DE151+DP151+EA151)/ROUND(12/VLOOKUP($A151, Annualization!$A$3:$C$323,3,FALSE),0),0) -> 0 | EX151: =IFERROR((K151+V151+AG151+AR151+BC151+BN151+BY151+CJ151+CU151+DF151+DQ151+EB151)/ROUND(12/VLOOKUP($A151, Annualization!$A$3:$C$323,3,FALSE),0),0) -> 0 | EY151: =IFERROR((L151+W151+AH151+AS151+BD151+BO151+BZ151+CK151+CV151+DG151+DR151+EC151)/ROUND(12/VLOOKUP($A151, Annualization!$A$3:$C$323,3,FALSE),0),0) -> 0 | EZ151: =IFERROR((M151+X151+AI151+AT151+BE151+BP151+CA151+CL151+CW151+DH151+DS151+ED151)/ROUND(12/VLOOKUP($A151, Annualization!$A$3:$C$323,3,FALSE),0),0) -> 0
EE152: 0 | EF152: 0 | EG152: 0 | EH152: 0 | EI152: 0 | EJ152: 0 | EK152: 0 | EL152: 0 | EM152: 0 | EN152: 0 | EO152: 0 | EP152: =IFERROR((C152+N152+Y152+AJ152+AU152+BF152+BQ152+CB152+CM152+CX152+DI152+DT152)/ROUND(12/VLOOKUP($A152, Annualization!$A$3:$C$323,3,FALSE),0),0) -> 0 | EQ152: =IFERROR((D152+O152+Z152+AK152+AV152+BG152+BR152+CC152+CN152+CY152+DJ152+DU152)/ROUND(12/VLOOKUP($A152, Annualization!$A$3:$C$323,3,FALSE),0),0) -> 0 | ER152: =IFERROR((E152+P152+AA152+AL152+AW152+BH152+BS152+CD152+CO152+CZ152+DK152+DV152)/ROUND(12/VLOOKUP($A152, Annualization!$A$3:$C$323,3,FALSE),0),0) -> 0 | ES152: =IFERROR((F152+Q152+AB152+AM152+AX152+BI152+BT152+CE152+CP152+DA152+DL152+DW152)/ROUND(12/VLOOKUP($A152, Annualization!$A$3:$C$323,3,FALSE),0),0) -> 0 | ET152: =IFERROR((G152+R152+AC152+AN152+AY152+BJ152+BU152+CF152+CQ152+DB152+DM152+DX152)/ROUND(12/VLOOKUP($A152, Annualization!$A$3:$C$323,3,FALSE),0),0) -> 0 | EU152: =IFERROR((H152+S152+AD152+AO152+AZ152+BK152+BV152+CG152+CR152+DC152+DN152+DY152)/ROUND(12/VLOOKUP($A152, Annualization!$A$3:$C$323,3,FALSE),0),0) -> 0 | EV152: =IFERROR((I152+T152+AE152+AP152+BA152+BL152+BW152+CH152+CS152+DD152+DO152+DZ152)/ROUND(12/VLOOKUP($A152, Annualization!$A$3:$C$323,3,FALSE),0),0) -> 0 | EW152: =IFERROR((J152+U152+AF152+AQ152+BB152+BM152+BX152+CI152+CT152+DE152+DP152+EA152)/ROUND(12/VLOOKUP($A152, Annualization!$A$3:$C$323,3,FALSE),0),0) -> 0 | EX152: =IFERROR((K152+V152+AG152+AR152+BC152+BN152+BY152+CJ152+CU152+DF152+DQ152+EB152)/ROUND(12/VLOOKUP($A152, Annualization!$A$3:$C$323,3,FALSE),0),0) -> 0 | EY152: =IFERROR((L152+W152+AH152+AS152+BD152+BO152+BZ152+CK152+CV152+DG152+DR152+EC152)/ROUND(12/VLOOKUP($A152, Annualization!$A$3:$C$323,3,FALSE),0),0) -> 0 | EZ152: =IFERROR((M152+X152+AI152+AT152+BE152+BP152+CA152+CL152+CW152+DH152+DS152+ED152)/ROUND(12/VLOOKUP($A152, Annualization!$A$3:$C$323,3,FALSE),0),0) -> 0
EE153: 0 | EF153: 0 | EG153: 0 | EH153: 0 | EI153: 0 | EJ153: 0 | EK153: 0 | EL153: 0 | EM153: 0 | EN153: 0 | EO153: 0 | EP153: =IFERROR((C153+N153+Y153+AJ153+AU153+BF153+BQ153+CB153+CM153+CX153+DI153+DT153)/ROUND(12/VLOOKUP($A153, Annualization!$A$3:$C$323,3,FALSE),0),0) -> 0 | EQ153: =IFERROR((D153+O153+Z153+AK153+AV153+BG153+BR153+CC153+CN153+CY153+DJ153+DU153)/ROUND(12/VLOOKUP($A153, Annualization!$A$3:$C$323,3,FALSE),0),0) -> 0 | ER153: =IFERROR((E153+P153+AA153+AL153+AW153+BH153+BS153+CD153+CO153+CZ153+DK153+DV153)/ROUND(12/VLOOKUP($A153, Annualization!$A$3:$C$323,3,FALSE),0),0) -> 0 | ES153: =IFERROR((F153+Q153+AB153+AM153+AX153+BI153+BT153+CE153+CP153+DA153+DL153+DW153)/ROUND(12/VLOOKUP($A153, Annualization!$A$3:$C$323,3,FALSE),0),0) -> 0 | ET153: =IFERROR((G153+R153+AC153+AN153+AY153+BJ153+BU153+CF153+CQ153+DB153+DM153+DX153)/ROUND(12/VLOOKUP($A153, Annualization!$A$3:$C$323,3,FALSE),0),0) -> 0 | EU153: =IFERROR((H153+S153+AD153+AO153+AZ153+BK153+BV153+CG153+CR153+DC153+DN153+DY153)/ROUND(12/VLOOKUP($A153, Annualization!$A$3:$C$323,3,FALSE),0),0) -> 0 | EV153: =IFERROR((I153+T153+AE153+AP153+BA153+BL153+BW153+CH153+CS153+DD153+DO153+DZ153)/ROUND(12/VLOOKUP($A153, Annualization!$A$3:$C$323,3,FALSE),0),0) -> 0 | EW153: =IFERROR((J153+U153+AF153+AQ153+BB153+BM153+BX153+CI153+CT153+DE153+DP153+EA153)/ROUND(12/VLOOKUP($A153, Annualization!$A$3:$C$323,3,FALSE),0),0) -> 0 | EX153: =IFERROR((K153+V153+AG153+AR153+BC153+BN153+BY153+CJ153+CU153+DF153+DQ153+EB153)/ROUND(12/VLOOKUP($A153, Annualization!$A$3:$C$323,3,FALSE),0),0) -> 0 | EY153: =IFERROR((L153+W153+AH153+AS153+BD153+BO153+BZ153+CK153+CV153+DG153+DR153+EC153)/ROUND(12/VLOOKUP($A153, Annualization!$A$3:$C$323,3,FALSE),0),0) -> 0 | EZ153: =IFERROR((M153+X153+AI153+AT153+BE153+BP153+CA153+CL153+CW153+DH153+DS153+ED153)/ROUND(12/VLOOKUP($A153, Annualization!$A$3:$C$323,3,FALSE),0),0) -> 0
EE154: 0 | EF154: 0 | EG154: 0 | EH154: 0 | EI154: 0 | EJ154: 0 | EK154: 0 | EL154: 0 | EM154: 0 | EN154: 0 | EO154: 0 | EP154: =IFERROR((C154+N154+Y154+AJ154+AU154+BF154+BQ154+CB154+CM154+CX154+DI154+DT154)/ROUND(12/VLOOKUP($A154, Annualization!$A$3:$C$323,3,FALSE),0),0) -> 0 | EQ154: =IFERROR((D154+O154+Z154+AK154+AV154+BG154+BR154+CC154+CN154+CY154+DJ154+DU154)/ROUND(12/VLOOKUP($A154, Annualization!$A$3:$C$323,3,FALSE),0),0) -> 0 | ER154: =IFERROR((E154+P154+AA154+AL154+AW154+BH154+BS154+CD154+CO154+CZ154+DK154+DV154)/ROUND(12/VLOOKUP($A154, Annualization!$A$3:$C$323,3,FALSE),0),0) -> 0 | ES154: =IFERROR((F154+Q154+AB154+AM154+AX154+BI154+BT154+CE154+CP154+DA154+DL154+DW154)/ROUND(12/VLOOKUP($A154, Annualization!$A$3:$C$323,3,FALSE),0),0) -> 0 | ET154: =IFERROR((G154+R154+AC154+AN154+AY154+BJ154+BU154+CF154+CQ154+DB154+DM154+DX154)/ROUND(12/VLOOKUP($A154, Annualization!$A$3:$C$323,3,FALSE),0),0) -> 0 | EU154: =IFERROR((H154+S154+AD154+AO154+AZ154+BK154+BV154+CG154+CR154+DC154+DN154+DY154)/ROUND(12/VLOOKUP($A154, Annualization!$A$3:$C$323,3,FALSE),0),0) -> 0 | EV154: =IFERROR((I154+T154+AE154+AP154+BA154+BL154+BW154+CH154+CS154+DD154+DO154+DZ154)/ROUND(12/VLOOKUP($A154, Annualization!$A$3:$C$323,3,FALSE),0),0) -> 0 | EW154: =IFERROR((J154+U154+AF154+AQ154+BB154+BM154+BX154+CI154+CT154+DE154+DP154+EA154)/ROUND(12/VLOOKUP($A154, Annualization!$A$3:$C$323,3,FALSE),0),0) -> 0 | EX154: =IFERROR((K154+V154+AG154+AR154+BC154+BN154+BY154+CJ154+CU154+DF154+DQ154+EB154)/ROUND(12/VLOOKUP($A154, Annualization!$A$3:$C$323,3,FALSE),0),0) -> 0 | EY154: =IFERROR((L154+W154+AH154+AS154+BD154+BO154+BZ154+CK154+CV154+DG154+DR154+EC154)/ROUND(12/VLOOKUP($A154, Annualization!$A$3:$C$323,3,FALSE),0),0) -> 0 | EZ154: =IFERROR((M154+X154+AI154+AT154+BE154+BP154+CA154+CL154+CW154+DH154+DS154+ED154)/ROUND(12/VLOOKUP($A154, Annualization!$A$3:$C$323,3,FALSE),0),0) -> 0
EE155: 0 | EF155: 0 | EG155: 0 | EH155: 0 | EI155: 0 | EJ155: 0 | EK155: 0 | EL155: 0 | EM155: 0 | EN155: 0 | EO155: 0 | EP155: =IFERROR((C155+N155+Y155+AJ155+AU155+BF155+BQ155+CB155+CM155+CX155+DI155+DT155)/ROUND(12/VLOOKUP($A155, Annualization!$A$3:$C$323,3,FALSE),0),0) -> 0 | EQ155: =IFERROR((D155+O155+Z155+AK155+AV155+BG155+BR155+CC155+CN155+CY155+DJ155+DU155)/ROUND(12/VLOOKUP($A155, Annualization!$A$3:$C$323,3,FALSE),0),0) -> 0 | ER155: =IFERROR((E155+P155+AA155+AL155+AW155+BH155+BS155+CD155+CO155+CZ155+DK155+DV155)/ROUND(12/VLOOKUP($A155, Annualization!$A$3:$C$323,3,FALSE),0),0) -> 0 | ES155: =IFERROR((F155+Q155+AB155+AM155+AX155+BI155+BT155+CE155+CP155+DA155+DL155+DW155)/ROUND(12/VLOOKUP($A155, Annualization!$A$3:$C$323,3,FALSE),0),0) -> 0 | ET155: =IFERROR((G155+R155+AC155+AN155+AY155+BJ155+BU155+CF155+CQ155+DB155+DM155+DX155)/ROUND(12/VLOOKUP($A155, Annualization!$A$3:$C$323,3,FALSE),0),0) -> 0 | EU155: =IFERROR((H155+S155+AD155+AO155+AZ155+BK155+BV155+CG155+CR155+DC155+DN155+DY155)/ROUND(12/VLOOKUP($A155, Annualization!$A$3:$C$323,3,FALSE),0),0) -> 0 | EV155: =IFERROR((I155+T155+AE155+AP155+BA155+BL155+BW155+CH155+CS155+DD155+DO155+DZ155)/ROUND(12/VLOOKUP($A155, Annualization!$A$3:$C$323,3,FALSE),0),0) -> 0 | EW155: =IFERROR((J155+U155+AF155+AQ155+BB155+BM155+BX155+CI155+CT155+DE155+DP155+EA155)/ROUND(12/VLOOKUP($A155, Annualization!$A$3:$C$323,3,FALSE),0),0) -> 0 | EX155: =IFERROR((K155+V155+AG155+AR155+BC155+BN155+BY155+CJ155+CU155+DF155+DQ155+EB155)/ROUND(12/VLOOKUP($A155, Annualization!$A$3:$C$323,3,FALSE),0),0) -> 0 | EY155: =IFERROR((L155+W155+AH155+AS155+BD155+BO155+BZ155+CK155+CV155+DG155+DR155+EC155)/ROUND(12/VLOOKUP($A155, Annualization!$A$3:$C$323,3,FALSE),0),0) -> 0 | EZ155: =IFERROR((M155+X155+AI155+AT155+BE155+BP155+CA155+CL155+CW155+DH155+DS155+ED155)/ROUND(12/VLOOKUP($A155, Annualization!$A$3:$C$323,3,FALSE),0),0) -> 0
EE156: 0 | EF156: 0 | EG156: 0 | EH156: 0 | EI156: 0 | EJ156: 0 | EK156: 0 | EL156: 0 | EM156: 0 | EN156: 0 | EO156: 0 | EP156: =IFERROR((C156+N156+Y156+AJ156+AU156+BF156+BQ156+CB156+CM156+CX156+DI156+DT156)/ROUND(12/VLOOKUP($A156, Annualization!$A$3:$C$323,3,FALSE),0),0) -> 0 | EQ156: =IFERROR((D156+O156+Z156+AK156+AV156+BG156+BR156+CC156+CN156+CY156+DJ156+DU156)/ROUND(12/VLOOKUP($A156, Annualization!$A$3:$C$323,3,FALSE),0),0) -> 0 | ER156: =IFERROR((E156+P156+AA156+AL156+AW156+BH156+BS156+CD156+CO156+CZ156+DK156+DV156)/ROUND(12/VLOOKUP($A156, Annualization!$A$3:$C$323,3,FALSE),0),0) -> 0 | ES156: =IFERROR((F156+Q156+AB156+AM156+AX156+BI156+BT156+CE156+CP156+DA156+DL156+DW156)/ROUND(12/VLOOKUP($A156, Annualization!$A$3:$C$323,3,FALSE),0),0) -> 0 | ET156: =IFERROR((G156+R156+AC156+AN156+AY156+BJ156+BU156+CF156+CQ156+DB156+DM156+DX156)/ROUND(12/VLOOKUP($A156, Annualization!$A$3:$C$323,3,FALSE),0),0) -> 0 | EU156: =IFERROR((H156+S156+AD156+AO156+AZ156+BK156+BV156+CG156+CR156+DC156+DN156+DY156)/ROUND(12/VLOOKUP($A156, Annualization!$A$3:$C$323,3,FALSE),0),0) -> 0 | EV156: =IFERROR((I156+T156+AE156+AP156+BA156+BL156+BW156+CH156+CS156+DD156+DO156+DZ156)/ROUND(12/VLOOKUP($A156, Annualization!$A$3:$C$323,3,FALSE),0),0) -> 0 | EW156: =IFERROR((J156+U156+AF156+AQ156+BB156+BM156+BX156+CI156+CT156+DE156+DP156+EA156)/ROUND(12/VLOOKUP($A156, Annualization!$A$3:$C$323,3,FALSE),0),0) -> 0 | EX156: =IFERROR((K156+V156+AG156+AR156+BC156+BN156+BY156+CJ156+CU156+DF156+DQ156+EB156)/ROUND(12/VLOOKUP($A156, Annualization!$A$3:$C$323,3,FALSE),0),0) -> 0 | EY156: =IFERROR((L156+W156+AH156+AS156+BD156+BO156+BZ156+CK156+CV156+DG156+DR156+EC156)/ROUND(12/VLOOKUP($A156, Annualization!$A$3:$C$323,3,FALSE),0),0) -> 0 | EZ156: =IFERROR((M156+X156+AI156+AT156+BE156+BP156+CA156+CL156+CW156+DH156+DS156+ED156)/ROUND(12/VLOOKUP($A156, Annualization!$A$3:$C$323,3,FALSE),0),0) -> 0
EE157: 0 | EF157: 0 | EG157: 0 | EH157: 0 | EI157: 0 | EJ157: 0 | EK157: 0 | EL157: 0 | EM157: 0 | EN157: 0 | EO157: 0 | EP157: =IFERROR((C157+N157+Y157+AJ157+AU157+BF157+BQ157+CB157+CM157+CX157+DI157+DT157)/ROUND(12/VLOOKUP($A157, Annualization!$A$3:$C$323,3,FALSE),0),0) -> 0 | EQ157: =IFERROR((D157+O157+Z157+AK157+AV157+BG157+BR157+CC157+CN157+CY157+DJ157+DU157)/ROUND(12/VLOOKUP($A157, Annualization!$A$3:$C$323,3,FALSE),0),0) -> 0 | ER157: =IFERROR((E157+P157+AA157+AL157+AW157+BH157+BS157+CD157+CO157+CZ157+DK157+DV157)/ROUND(12/VLOOKUP($A157, Annualization!$A$3:$C$323,3,FALSE),0),0) -> 0 | ES157: =IFERROR((F157+Q157+AB157+AM157+AX157+BI157+BT157+CE157+CP157+DA157+DL157+DW157)/ROUND(12/VLOOKUP($A157, Annualization!$A$3:$C$323,3,FALSE),0),0) -> 0 | ET157: =IFERROR((G157+R157+AC157+AN157+AY157+BJ157+BU157+CF157+CQ157+DB157+DM157+DX157)/ROUND(12/VLOOKUP($A157, Annualization!$A$3:$C$323,3,FALSE),0),0) -> 0 | EU157: =IFERROR((H157+S157+AD157+AO157+AZ157+BK157+BV157+CG157+CR157+DC157+DN157+DY157)/ROUND(12/VLOOKUP($A157, Annualization!$A$3:$C$323,3,FALSE),0),0) -> 0 | EV157: =IFERROR((I157+T157+AE157+AP157+BA157+BL157+BW157+CH157+CS157+DD157+DO157+DZ157)/ROUND(12/VLOOKUP($A157, Annualization!$A$3:$C$323,3,FALSE),0),0) -> 0 | EW157: =IFERROR((J157+U157+AF157+AQ157+BB157+BM157+BX157+CI157+CT157+DE157+DP157+EA157)/ROUND(12/VLOOKUP($A157, Annualization!$A$3:$C$323,3,FALSE),0),0) -> 0 | EX157: =IFERROR((K157+V157+AG157+AR157+BC157+BN157+BY157+CJ157+CU157+DF157+DQ157+EB157)/ROUND(12/VLOOKUP($A157, Annualization!$A$3:$C$323,3,FALSE),0),0) -> 0 | EY157: =IFERROR((L157+W157+AH157+AS157+BD157+BO157+BZ157+CK157+CV157+DG157+DR157+EC157)/ROUND(12/VLOOKUP($A157, Annualization!$A$3:$C$323,3,FALSE),0),0) -> 0 | EZ157: =IFERROR((M157+X157+AI157+AT157+BE157+BP157+CA157+CL157+CW157+DH157+DS157+ED157)/ROUND(12/VLOOKUP($A157, Annualization!$A$3:$C$323,3,FALSE),0),0) -> 0
EE158: 0 | EF158: 0 | EG158: 0 | EH158: 0 | EI158: 0 | EJ158: 0 | EK158: 0 | EL158: 0 | EM158: 0 | EN158: 0 | EO158: 0 | EP158: =IFERROR((C158+N158+Y158+AJ158+AU158+BF158+BQ158+CB158+CM158+CX158+DI158+DT158)/ROUND(12/VLOOKUP($A158, Annualization!$A$3:$C$323,3,FALSE),0),0) -> 0 | EQ158: =IFERROR((D158+O158+Z158+AK158+AV158+BG158+BR158+CC158+CN158+CY158+DJ158+DU158)/ROUND(12/VLOOKUP($A158, Annualization!$A$3:$C$323,3,FALSE),0),0) -> 0 | ER158: =IFERROR((E158+P158+AA158+AL158+AW158+BH158+BS158+CD158+CO158+CZ158+DK158+DV158)/ROUND(12/VLOOKUP($A158, Annualization!$A$3:$C$323,3,FALSE),0),0) -> 0 | ES158: =IFERROR((F158+Q158+AB158+AM158+AX158+BI158+BT158+CE158+CP158+DA158+DL158+DW158)/ROUND(12/VLOOKUP($A158, Annualization!$A$3:$C$323,3,FALSE),0),0) -> 0 | ET158: =IFERROR((G158+R158+AC158+AN158+AY158+BJ158+BU158+CF158+CQ158+DB158+DM158+DX158)/ROUND(12/VLOOKUP($A158, Annualization!$A$3:$C$323,3,FALSE),0),0) -> 0 | EU158: =IFERROR((H158+S158+AD158+AO158+AZ158+BK158+BV158+CG158+CR158+DC158+DN158+DY158)/ROUND(12/VLOOKUP($A158, Annualization!$A$3:$C$323,3,FALSE),0),0) -> 0 | EV158: =IFERROR((I158+T158+AE158+AP158+BA158+BL158+BW158+CH158+CS158+DD158+DO158+DZ158)/ROUND(12/VLOOKUP($A158, Annualization!$A$3:$C$323,3,FALSE),0),0) -> 0 | EW158: =IFERROR((J158+U158+AF158+AQ158+BB158+BM158+BX158+CI158+CT158+DE158+DP158+EA158)/ROUND(12/VLOOKUP($A158, Annualization!$A$3:$C$323,3,FALSE),0),0) -> 0 | EX158: =IFERROR((K158+V158+AG158+AR158+BC158+BN158+BY158+CJ158+CU158+DF158+DQ158+EB158)/ROUND(12/VLOOKUP($A158, Annualization!$A$3:$C$323,3,FALSE),0),0) -> 0 | EY158: =IFERROR((L158+W158+AH158+AS158+BD158+BO158+BZ158+CK158+CV158+DG158+DR158+EC158)/ROUND(12/VLOOKUP($A158, Annualization!$A$3:$C$323,3,FALSE),0),0) -> 0 | EZ158: =IFERROR((M158+X158+AI158+AT158+BE158+BP158+CA158+CL158+CW158+DH158+DS158+ED158)/ROUND(12/VLOOKUP($A158, Annualization!$A$3:$C$323,3,FALSE),0),0) -> 0
EE159: 0 | EF159: 0 | EG159: 0 | EH159: 0 | EI159: 0 | EJ159: 0 | EK159: 0 | EL159: 0 | EM159: 0 | EN159: 0 | EO159: 0 | EP159: =IFERROR((C159+N159+Y159+AJ159+AU159+BF159+BQ159+CB159+CM159+CX159+DI159+DT159)/ROUND(12/VLOOKUP($A159, Annualization!$A$3:$C$323,3,FALSE),0),0) -> 0 | EQ159: =IFERROR((D159+O159+Z159+AK159+AV159+BG159+BR159+CC159+CN159+CY159+DJ159+DU159)/ROUND(12/VLOOKUP($A159, Annualization!$A$3:$C$323,3,FALSE),0),0) -> 0 | ER159: =IFERROR((E159+P159+AA159+AL159+AW159+BH159+BS159+CD159+CO159+CZ159+DK159+DV159)/ROUND(12/VLOOKUP($A159, Annualization!$A$3:$C$323,3,FALSE),0),0) -> 0 | ES159: =IFERROR((F159+Q159+AB159+AM159+AX159+BI159+BT159+CE159+CP159+DA159+DL159+DW159)/ROUND(12/VLOOKUP($A159, Annualization!$A$3:$C$323,3,FALSE),0),0) -> 0 | ET159: =IFERROR((G159+R159+AC159+AN159+AY159+BJ159+BU159+CF159+CQ159+DB159+DM159+DX159)/ROUND(12/VLOOKUP($A159, Annualization!$A$3:$C$323,3,FALSE),0),0) -> 0 | EU159: =IFERROR((H159+S159+AD159+AO159+AZ159+BK159+BV159+CG159+CR159+DC159+DN159+DY159)/ROUND(12/VLOOKUP($A159, Annualization!$A$3:$C$323,3,FALSE),0),0) -> 0 | EV159: =IFERROR((I159+T159+AE159+AP159+BA159+BL159+BW159+CH159+CS159+DD159+DO159+DZ159)/ROUND(12/VLOOKUP($A159, Annualization!$A$3:$C$323,3,FALSE),0),0) -> 0 | EW159: =IFERROR((J159+U159+AF159+AQ159+BB159+BM159+BX159+CI159+CT159+DE159+DP159+EA159)/ROUND(12/VLOOKUP($A159, Annualization!$A$3:$C$323,3,FALSE),0),0) -> 0 | EX159: =IFERROR((K159+V159+AG159+AR159+BC159+BN159+BY159+CJ159+CU159+DF159+DQ159+EB159)/ROUND(12/VLOOKUP($A159, Annualization!$A$3:$C$323,3,FALSE),0),0) -> 0 | EY159: =IFERROR((L159+W159+AH159+AS159+BD159+BO159+BZ159+CK159+CV159+DG159+DR159+EC159)/ROUND(12/VLOOKUP($A159, Annualization!$A$3:$C$323,3,FALSE),0),0) -> 0 | EZ159: =IFERROR((M159+X159+AI159+AT159+BE159+BP159+CA159+CL159+CW159+DH159+DS159+ED159)/ROUND(12/VLOOKUP($A159, Annualization!$A$3:$C$323,3,FALSE),0),0) -> 0
EE160: 0 | EF160: 0 | EG160: 0 | EH160: 0 | EI160: 0 | EJ160: 0 | EK160: 0 | EL160: 0 | EM160: 0 | EN160: 0 | EO160: 0 | EP160: =IFERROR((C160+N160+Y160+AJ160+AU160+BF160+BQ160+CB160+CM160+CX160+DI160+DT160)/ROUND(12/VLOOKUP($A160, Annualization!$A$3:$C$323,3,FALSE),0),0) -> 0 | EQ160: =IFERROR((D160+O160+Z160+AK160+AV160+BG160+BR160+CC160+CN160+CY160+DJ160+DU160)/ROUND(12/VLOOKUP($A160, Annualization!$A$3:$C$323,3,FALSE),0),0) -> 0 | ER160: =IFERROR((E160+P160+AA160+AL160+AW160+BH160+BS160+CD160+CO160+CZ160+DK160+DV160)/ROUND(12/VLOOKUP($A160, Annualization!$A$3:$C$323,3,FALSE),0),0) -> 0 | ES160: =IFERROR((F160+Q160+AB160+AM160+AX160+BI160+BT160+CE160+CP160+DA160+DL160+DW160)/ROUND(12/VLOOKUP($A160, Annualization!$A$3:$C$323,3,FALSE),0),0) -> 0 | ET160: =IFERROR((G160+R160+AC160+AN160+AY160+BJ160+BU160+CF160+CQ160+DB160+DM160+DX160)/ROUND(12/VLOOKUP($A160, Annualization!$A$3:$C$323,3,FALSE),0),0) -> 0 | EU160: =IFERROR((H160+S160+AD160+AO160+AZ160+BK160+BV160+CG160+CR160+DC160+DN160+DY160)/ROUND(12/VLOOKUP($A160, Annualization!$A$3:$C$323,3,FALSE),0),0) -> 0 | EV160: =IFERROR((I160+T160+AE160+AP160+BA160+BL160+BW160+CH160+CS160+DD160+DO160+DZ160)/ROUND(12/VLOOKUP($A160, Annualization!$A$3:$C$323,3,FALSE),0),0) -> 0 | EW160: =IFERROR((J160+U160+AF160+AQ160+BB160+BM160+BX160+CI160+CT160+DE160+DP160+EA160)/ROUND(12/VLOOKUP($A160, Annualization!$A$3:$C$323,3,FALSE),0),0) -> 0 | EX160: =IFERROR((K160+V160+AG160+AR160+BC160+BN160+BY160+CJ160+CU160+DF160+DQ160+EB160)/ROUND(12/VLOOKUP($A160, Annualization!$A$3:$C$323,3,FALSE),0),0) -> 0 | EY160: =IFERROR((L160+W160+AH160+AS160+BD160+BO160+BZ160+CK160+CV160+DG160+DR160+EC160)/ROUND(12/VLOOKUP($A160, Annualization!$A$3:$C$323,3,FALSE),0),0) -> 0 | EZ160: =IFERROR((M160+X160+AI160+AT160+BE160+BP160+CA160+CL160+CW160+DH160+DS160+ED160)/ROUND(12/VLOOKUP($A160, Annualization!$A$3:$C$323,3,FALSE),0),0) -> 0
